Workbook

Sheet RESUMO
A5: INSTITUTO FEDERAL DE EDUCAÇÃO, CIÊNCIA E TECNOLOGIA DE MATO GROSSO
A6: =ORÇAMENTO!A6 -> CAMPUS SINOP
A8: RESUMO
A9: =ORÇAMENTO!B10 -> IMPLANTAÇÃO DO CAMPUS SINOP
A10: LOCAL: | B10: municipio SINOP
A11: OBRA: | B11: IMPLANTAÇÃO DO CAMPUS SINOP
A12: UNIDADE | B12: 2197 m2
A13: Valor por | B13: =C56 -> 11102120.24
A14: ITEM | B14: DESCRIÇÃO / ETAPA | C14: TOTAL
C15: VALOR (R$) | D15: (%)
A16: 1.0 | B16: =IFERROR(INDEX(ORÇAMENTO!$D:$D,MATCH($A16,ORÇAMENTO!$A:$A,0)),"") -> ADMINISTRAÇÃO E CONTROLE | C16: =IFERROR(INDEX(ORÇAMENTO!$I:$I,MATCH($A16,ORÇAMENTO!$A:$A,0)),0) -> 672384.68 | D16: =IFERROR(C16/$C$56,"") -> 0.06056362798
A18: 2.0 | B18: =IFERROR(INDEX(ORÇAMENTO!$D:$D,MATCH($A18,ORÇAMENTO!$A:$A,0)),"") -> SERVIÇOS PRELIMINARES | C18: =IFERROR(INDEX(ORÇAMENTO!$I:$I,MATCH($A18,ORÇAMENTO!$A:$A,0)),0) -> 209407.58 | D18: =IFERROR(C18/$C$56,"") -> 0.01886194488
A20: 3.0 | B20: =IFERROR(INDEX(ORÇAMENTO!$D:$D,MATCH($A20,ORÇAMENTO!$A:$A,0)),"") -> MOVIMENTAÇÃO DE TERRA | C20: =IFERROR(INDEX(ORÇAMENTO!$I:$I,MATCH($A20,ORÇAMENTO!$A:$A,0)),0) -> 219647.81 | D20: =IFERROR(C20/$C$56,"") -> 0.01978431194
A22: 4.0 | B22: =IFERROR(INDEX(ORÇAMENTO!$D:$D,MATCH($A22,ORÇAMENTO!$A:$A,0)),"") -> INFRAESTRUTURA | C22: =IFERROR(INDEX(ORÇAMENTO!$I:$I,MATCH($A22,ORÇAMENTO!$A:$A,0)),0) -> 501618.3 | D22: =IFERROR(C22/$C$56,"") -> 0.04518220747
A24: 5.0 | B24: =IFERROR(INDEX(ORÇAMENTO!$D:$D,MATCH($A24,ORÇAMENTO!$A:$A,0)),"") -> SUPERESTRUTURA | C24: =IFERROR(INDEX(ORÇAMENTO!$I:$I,MATCH($A24,ORÇAMENTO!$A:$A,0)),0) -> 1935201.42 | D24: =IFERROR(C24/$C$56,"") -> 0.174309175
A26: 6.0 | B26: =IFERROR(INDEX(ORÇAMENTO!$D:$D,MATCH($A26,ORÇAMENTO!$A:$A,0)),"") -> IMPERMEABILIZAÇÕES | C26: =IFERROR(INDEX(ORÇAMENTO!$I:$I,MATCH($A26,ORÇAMENTO!$A:$A,0)),0) -> 80707.84 | D26: =IFERROR(C26/$C$56,"") -> 0.007269587994
A28: 7.0 | B28: =IFERROR(INDEX(ORÇAMENTO!$D:$D,MATCH($A28,ORÇAMENTO!$A:$A,0)),"") -> COBERTURA | C28: =IFERROR(INDEX(ORÇAMENTO!$I:$I,MATCH($A28,ORÇAMENTO!$A:$A,0)),0) -> 572836.55 | D28: =IFERROR(C28/$C$56,"") -> 0.05159704071
A30: 8.0 | B30: =IFERROR(INDEX(ORÇAMENTO!$D:$D,MATCH($A30,ORÇAMENTO!$A:$A,0)),"") -> PAREDES E PAINEIS | C30: =IFERROR(INDEX(ORÇAMENTO!$I:$I,MATCH($A30,ORÇAMENTO!$A:$A,0)),0) -> 432334.39 | D30: =IFERROR(C30/$C$56,"") -> 0.03894160581
A32: 9.0 | B32: =IFERROR(INDEX(ORÇAMENTO!$D:$D,MATCH($A32,ORÇAMENTO!$A:$A,0)),"") -> REVESTIMENTOS | C32: =IFERROR(INDEX(ORÇAMENTO!$I:$I,MATCH($A32,ORÇAMENTO!$A:$A,0)),0) -> 681660.11 | D32: =IFERROR(C32/$C$56,"") -> 0.06139909272
A34: 10.0 | B34: =IFERROR(INDEX(ORÇAMENTO!$D:$D,MATCH($A34,ORÇAMENTO!$A:$A,0)),"") -> PAVIMENTAÇÃO | C34: =IFERROR(INDEX(ORÇAMENTO!$I:$I,MATCH($A34,ORÇAMENTO!$A:$A,0)),0) -> 1441708.84 | D34: =IFERROR(C34/$C$56,"") -> 0.1298588746
A36: 11.0 | B36: =IFERROR(INDEX(ORÇAMENTO!$D:$D,MATCH($A36,ORÇAMENTO!$A:$A,0)),"") -> ESQUADRIAS E FERRAGENS | C36: =IFERROR(INDEX(ORÇAMENTO!$I:$I,MATCH($A36,ORÇAMENTO!$A:$A,0)),0) -> 966750.43 | D36: =IFERROR(C36/$C$56,"") -> 0.08707800034
A38: 12.0 | B38: =IFERROR(INDEX(ORÇAMENTO!$D:$D,MATCH($A38,ORÇAMENTO!$A:$A,0)),"") -> INSTALAÇÃO ELÉTRICA | C38: =IFERROR(INDEX(ORÇAMENTO!$I:$I,MATCH($A38,ORÇAMENTO!$A:$A,0)),0) -> 1426983.73 | D38: =IFERROR(C38/$C$56,"") -> 0.1285325415
A40: 13.0 | B40: =IFERROR(INDEX(ORÇAMENTO!$D:$D,MATCH($A40,ORÇAMENTO!$A:$A,0)),"") -> INSTALAÇÃO - ÁGUAS | C40: =IFERROR(INDEX(ORÇAMENTO!$I:$I,MATCH($A40,ORÇAMENTO!$A:$A,0)),0) -> 639313.17 | D40: =IFERROR(C40/$C$56,"") -> 0.05758478166
A42: 14.0 | B42: =IFERROR(INDEX(ORÇAMENTO!$D:$D,MATCH($A42,ORÇAMENTO!$A:$A,0)),"") -> CLIMATIZAÇÃO | C42: =IFERROR(INDEX(ORÇAMENTO!$I:$I,MATCH($A42,ORÇAMENTO!$A:$A,0)),0) -> 74124.77 | D42: =IFERROR(C42/$C$56,"") -> 0.006676631886
A44: 15.0 | B44: =IFERROR(INDEX(ORÇAMENTO!$D:$D,MATCH($A44,ORÇAMENTO!$A:$A,0)),"") -> PINTURA | C44: =IFERROR(INDEX(ORÇAMENTO!$I:$I,MATCH($A44,ORÇAMENTO!$A:$A,0)),0) -> 219385.79 | D44: =IFERROR(C44/$C$56,"") -> 0.01976071104
A46: 16.0 | B46: =IFERROR(INDEX(ORÇAMENTO!$D:$D,MATCH($A46,ORÇAMENTO!$A:$A,0)),"") -> PAISAGISMO | C46: =IFERROR(INDEX(ORÇAMENTO!$I:$I,MATCH($A46,ORÇAMENTO!$A:$A,0)),0) -> 80899.12 | D46: =IFERROR(C46/$C$56,"") -> 0.007286817135
A48: 17.0 | B48: =IFERROR(INDEX(ORÇAMENTO!$D:$D,MATCH($A48,ORÇAMENTO!$A:$A,0)),"") -> URBANIZAÇÃO | C48: =IFERROR(INDEX(ORÇAMENTO!$I:$I,MATCH($A48,ORÇAMENTO!$A:$A,0)),0) -> 10939.15 | D48: =IFERROR(C48/$C$56,"") -> 0.0009853208003
A50: 18.0 | B50: =IFERROR(INDEX(ORÇAMENTO!$D:$D,MATCH($A50,ORÇAMENTO!$A:$A,0)),"") -> GUARITA E PÓRTICO | C50: =IFERROR(INDEX(ORÇAMENTO!$I:$I,MATCH($A50,ORÇAMENTO!$A:$A,0)),0) -> 156727.56 | D50: =IFERROR(C50/$C$56,"") -> 0.01411690349
A52: 19.0 | B52: =IFERROR(INDEX(ORÇAMENTO!$D:$D,MATCH($A52,ORÇAMENTO!$A:$A,0)),"") -> EQUIPAMENTOS | C52: =IFERROR(INDEX(ORÇAMENTO!$I:$I,MATCH($A52,ORÇAMENTO!$A:$A,0)),0) -> 550836.03 | D52: =IFERROR(C52/$C$56,"") -> 0.0496153904
A54: 20.0 | B54: =IFERROR(INDEX(ORÇAMENTO!$D:$D,MATCH($A54,ORÇAMENTO!$A:$A,0)),"") -> SERVIÇOS COMPLEMENTARES | C54: =IFERROR(INDEX(ORÇAMENTO!$I:$I,MATCH($A54,ORÇAMENTO!$A:$A,0)),0) -> 228652.97 | D54: =IFERROR(C54/$C$56,"") -> 0.02059543268
B56: TOTAL | C56: =SUM(C16:C55) -> 11102120.24 | D56: 1

Sheet ORÇAMENTO
A5: INSTITUTO FEDERAL DE EDUCAÇÃO, CIÊNCIA E TECNOLOGIA DE MATO GROSSO
A6: CAMPUS SINOP
A7: PLANILHA DE ESTIMATIVA DE CUSTO
A9: LOCAL: | B9: SINOP | D9: FONTES | H9: Não desonerado
A10: OBRA: | B10: IMPLANTAÇÃO DO CAMPUS SINOP | E10: ORSE - AGOSTO/2021 | G10: SEINFRA - MARÇO/2021 | H10: BDI: | I10: =BDI!C27 -> 0.2044456238
A11: UNIDADE | B11: 2197 | C11: M2 | D11: TABELA SINAPI - DATA DE EMISSÃO: 20/09/2021 | E11: GOINFRA - OUTUBRO/2021 | G11: SETOP - JULHO/2021 | H11: L S Hora | I11: 1.1304
A12: Valor por | B12: =I1017/B11 -> 5053.309167 | C12: M2 | D12: SINAPI DATA REFERÊNCIA TÉCNICA: 20/09/2021 - NÃO DESONERADO | E12: SCO-RJ - SETEMBRO/2021 | H12: L S Mensal | I12: 0.7163
A13: ITEM | B13: REFERÊNCIA | C13: CÓDIGO | D13: DESCRIÇÃO DETALHADA | E13: UND | F13: QTD | G13: VALOR UNIT (R$) | H13: VALOR UNIT c/ BDI (R$) | I13: VALOR TOTAL (R$)
A14: 1.0 | D14: ADMINISTRAÇÃO E CONTROLE | I14: =SUM(I15:I24) -> 672384.68
A15: 1.1 | B15: SINAPI | C15: 93567 | D15: =IF(B15="SINAPI",IFERROR(INDEX(SINAPI!$B:$B,MATCH($C15,SINAPI!$A:$A,0)),""),IF(B15="COMPOSIÇÃO",IFERROR(INDEX(COMPOSIÇÃO!$C:$C,MATCH($C15,COMPOSIÇÃO!$A:$A,0)),""),"")) -> ENGENHEIRO CIVIL DE OBRA PLENO COM ENCARGOS COMPLEMENTARES | E15: =IF(B15="SINAPI",IFERROR(INDEX(SINAPI!$C:$C,MATCH($C15,SINAPI!$A:$A,0)),""),IF(B15="COMPOSIÇÃO",IFERROR(INDEX(COMPOSIÇÃO!$D:$D,MATCH($C15,COMPOSIÇÃO!$A:$A,0)),""),"")) -> MES | F15: 12 | G15: =IF(B15="SINAPI",IFERROR(INDEX(SINAPI!$D:$D,MATCH($C15,SINAPI!$A:$A,0)),0),IF(B15="COMPOSIÇÃO",IFERROR(INDEX(COMPOSIÇÃO!$G:$G,MATCH($C15,COMPOSIÇÃO!$A:$A,0)),0),0)) -> 18632.83 | H15: =G15*(1+$I$10) -> 22442.23055 | I15: =ROUND(F15*H15,2) -> 269306.77
A16: 1.2 | B16: COMPOSIÇÃO | C16: IFMT 242.08.2020 | D16: =IF(B16="SINAPI",IFERROR(INDEX(SINAPI!$B:$B,MATCH($C16,SINAPI!$A:$A,0)),""),IF(B16="COMPOSIÇÃO",IFERROR(INDEX(COMPOSIÇÃO!$C:$C,MATCH($C16,COMPOSIÇÃO!$A:$A,0)),""),"")) -> ENGENHEIRO ELETRICISTA COM ENCARGOS COMPLEMENTARES | E16: =IF(B16="SINAPI",IFERROR(INDEX(SINAPI!$C:$C,MATCH($C16,SINAPI!$A:$A,0)),""),IF(B16="COMPOSIÇÃO",IFERROR(INDEX(COMPOSIÇÃO!$D:$D,MATCH($C16,COMPOSIÇÃO!$A:$A,0)),""),"")) -> MES | F16: 1.5 | G16: =IF(B16="SINAPI",IFERROR(INDEX(SINAPI!$D:$D,MATCH($C16,SINAPI!$A:$A,0)),0),IF(B16="COMPOSIÇÃO",IFERROR(INDEX(COMPOSIÇÃO!$G:$G,MATCH($C16,COMPOSIÇÃO!$A:$A,0)),0),0)) -> 15858.63 | H16: 19100.8575 | I16: 28651.29
A17: 1.3 | B17: SINAPI | C17: 100321 | D17: =IF(B17="SINAPI",IFERROR(INDEX(SINAPI!$B:$B,MATCH($C17,SINAPI!$A:$A,0)),""),IF(B17="COMPOSIÇÃO",IFERROR(INDEX(COMPOSIÇÃO!$C:$C,MATCH($C17,COMPOSIÇÃO!$A:$A,0)),""),"")) -> TÉCNICO EM SEGURANÇA DO TRABALHO COM ENCARGOS COMPLEMENTARES | E17: =IF(B17="SINAPI",IFERROR(INDEX(SINAPI!$C:$C,MATCH($C17,SINAPI!$A:$A,0)),""),IF(B17="COMPOSIÇÃO",IFERROR(INDEX(COMPOSIÇÃO!$D:$D,MATCH($C17,COMPOSIÇÃO!$A:$A,0)),""),"")) -> MES | F17: 12 | G17: =IF(B17="SINAPI",IFERROR(INDEX(SINAPI!$D:$D,MATCH($C17,SINAPI!$A:$A,0)),0),IF(B17="COMPOSIÇÃO",IFERROR(INDEX(COMPOSIÇÃO!$G:$G,MATCH($C17,COMPOSIÇÃO!$A:$A,0)),0),0)) -> 4526.9 | H17: 5452.404894 | I17: 65428.86
A18: 1.4 | B18: SINAPI | C18: 94295 | D18: =IF(B18="SINAPI",IFERROR(INDEX(SINAPI!$B:$B,MATCH($C18,SINAPI!$A:$A,0)),""),IF(B18="COMPOSIÇÃO",IFERROR(INDEX(COMPOSIÇÃO!$C:$C,MATCH($C18,COMPOSIÇÃO!$A:$A,0)),""),"")) -> MESTRE DE OBRAS COM ENCARGOS COMPLEMENTARES | E18: =IF(B18="SINAPI",IFERROR(INDEX(SINAPI!$C:$C,MATCH($C18,SINAPI!$A:$A,0)),""),IF(B18="COMPOSIÇÃO",IFERROR(INDEX(COMPOSIÇÃO!$D:$D,MATCH($C18,COMPOSIÇÃO!$A:$A,0)),""),"")) -> MES | F18: 12 | G18: =IF(B18="SINAPI",IFERROR(INDEX(SINAPI!$D:$D,MATCH($C18,SINAPI!$A:$A,0)),0),IF(B18="COMPOSIÇÃO",IFERROR(INDEX(COMPOSIÇÃO!$G:$G,MATCH($C18,COMPOSIÇÃO!$A:$A,0)),0),0)) -> 6069.52 | H18: 7310.406803 | I18: 87724.88
A19: 1.5 | B19: SINAPI | C19: 93563 | D19: =IF(B19="SINAPI",IFERROR(INDEX(SINAPI!$B:$B,MATCH($C19,SINAPI!$A:$A,0)),""),IF(B19="COMPOSIÇÃO",IFERROR(INDEX(COMPOSIÇÃO!$C:$C,MATCH($C19,COMPOSIÇÃO!$A:$A,0)),""),"")) -> ALMOXARIFE COM ENCARGOS COMPLEMENTARES | E19: =IF(B19="SINAPI",IFERROR(INDEX(SINAPI!$C:$C,MATCH($C19,SINAPI!$A:$A,0)),""),IF(B19="COMPOSIÇÃO",IFERROR(INDEX(COMPOSIÇÃO!$D:$D,MATCH($C19,COMPOSIÇÃO!$A:$A,0)),""),"")) -> MES | F19: 12 | G19: =IF(B19="SINAPI",IFERROR(INDEX(SINAPI!$D:$D,MATCH($C19,SINAPI!$A:$A,0)),0),IF(B19="COMPOSIÇÃO",IFERROR(INDEX(COMPOSIÇÃO!$G:$G,MATCH($C19,COMPOSIÇÃO!$A:$A,0)),0),0)) -> 3044.84 | H19: 3667.344213 | I19: 44008.13
A20: 1.6 | B20: COMPOSIÇÃO | C20: COMP-01 | D20: =IF(B20="SINAPI",IFERROR(INDEX(SINAPI!$B:$B,MATCH($C20,SINAPI!$A:$A,0)),""),IF(B20="COMPOSIÇÃO",IFERROR(INDEX(COMPOSIÇÃO!$C:$C,MATCH($C20,COMPOSIÇÃO!$A:$A,0)),""),"")) -> VIGILANCIA DE OBRA DIURNA - 2 VIGIAS COM ENCARGOS COMPLEMENTARES | E20: =IF(B20="SINAPI",IFERROR(INDEX(SINAPI!$C:$C,MATCH($C20,SINAPI!$A:$A,0)),""),IF(B20="COMPOSIÇÃO",IFERROR(INDEX(COMPOSIÇÃO!$D:$D,MATCH($C20,COMPOSIÇÃO!$A:$A,0)),""),"")) -> MES | F20: 12 | G20: =IF(B20="SINAPI",IFERROR(INDEX(SINAPI!$D:$D,MATCH($C20,SINAPI!$A:$A,0)),0),IF(B20="COMPOSIÇÃO",IFERROR(INDEX(COMPOSIÇÃO!$G:$G,MATCH($C20,COMPOSIÇÃO!$A:$A,0)),0),0)) -> 5848.00875 | H20: 7043.608547 | I20: 84523.3
A21: 1.7 | B21: COMPOSIÇÃO | C21: COMP-02 | D21: =IF(B21="SINAPI",IFERROR(INDEX(SINAPI!$B:$B,MATCH($C21,SINAPI!$A:$A,0)),""),IF(B21="COMPOSIÇÃO",IFERROR(INDEX(COMPOSIÇÃO!$C:$C,MATCH($C21,COMPOSIÇÃO!$A:$A,0)),""),"")) -> VIGIA NOTURNO - 2 VIGIAS COM ENCARGOS COMPLEMENTARES | E21: =IF(B21="SINAPI",IFERROR(INDEX(SINAPI!$C:$C,MATCH($C21,SINAPI!$A:$A,0)),""),IF(B21="COMPOSIÇÃO",IFERROR(INDEX(COMPOSIÇÃO!$D:$D,MATCH($C21,COMPOSIÇÃO!$A:$A,0)),""),"")) -> MES | F21: 12 | G21: =IF(B21="SINAPI",IFERROR(INDEX(SINAPI!$D:$D,MATCH($C21,SINAPI!$A:$A,0)),0),IF(B21="COMPOSIÇÃO",IFERROR(INDEX(COMPOSIÇÃO!$G:$G,MATCH($C21,COMPOSIÇÃO!$A:$A,0)),0),0)) -> 6201.9 | H21: 7469.851314 | I21: 89638.22
A22: 1.8 | B22: COMPOSIÇÃO | C22: COMP-264922 | D22: =IF(B22="SINAPI",IFERROR(INDEX(SINAPI!$B:$B,MATCH($C22,SINAPI!$A:$A,0)),""),IF(B22="COMPOSIÇÃO",IFERROR(INDEX(COMPOSIÇÃO!$C:$C,MATCH($C22,COMPOSIÇÃO!$A:$A,0)),""),"")) -> PCMAT - PROGRAMA DE CONDIÇÕES E MEIO AMBIENTE DO TRABALHO NA INDÚSTRIA DA CONSTRUÇÃO | E22: =IF(B22="SINAPI",IFERROR(INDEX(SINAPI!$C:$C,MATCH($C22,SINAPI!$A:$A,0)),""),IF(B22="COMPOSIÇÃO",IFERROR(INDEX(COMPOSIÇÃO!$D:$D,MATCH($C22,COMPOSIÇÃO!$A:$A,0)),""),"")) -> UND | F22: 1 | G22: =IF(B22="SINAPI",IFERROR(INDEX(SINAPI!$D:$D,MATCH($C22,SINAPI!$A:$A,0)),0),IF(B22="COMPOSIÇÃO",IFERROR(INDEX(COMPOSIÇÃO!$G:$G,MATCH($C22,COMPOSIÇÃO!$A:$A,0)),0),0)) -> 734.68 | H22: 884.8821109 | I22: 884.88
A23: 1.9 | B23: COMPOSIÇÃO | C23: COMP-1940 | D23: =IF(B23="SINAPI",IFERROR(INDEX(SINAPI!$B:$B,MATCH($C23,SINAPI!$A:$A,0)),""),IF(B23="COMPOSIÇÃO",IFERROR(INDEX(COMPOSIÇÃO!$C:$C,MATCH($C23,COMPOSIÇÃO!$A:$A,0)),""),"")) -> PPRA - PROGRAMA DE PREVENÇÃO DE RISCOS AMBIENTAIS | E23: =IF(B23="SINAPI",IFERROR(INDEX(SINAPI!$C:$C,MATCH($C23,SINAPI!$A:$A,0)),""),IF(B23="COMPOSIÇÃO",IFERROR(INDEX(COMPOSIÇÃO!$D:$D,MATCH($C23,COMPOSIÇÃO!$A:$A,0)),""),"")) -> UND | F23: 1 | G23: =IF(B23="SINAPI",IFERROR(INDEX(SINAPI!$D:$D,MATCH($C23,SINAPI!$A:$A,0)),0),IF(B23="COMPOSIÇÃO",IFERROR(INDEX(COMPOSIÇÃO!$G:$G,MATCH($C23,COMPOSIÇÃO!$A:$A,0)),0),0)) -> 892.84 | H23: 1075.377231 | I23: 1075.38
A24: 1.10 | B24: COMPOSIÇÃO | C24: COMP-729139 | D24: =IF(B24="SINAPI",IFERROR(INDEX(SINAPI!$B:$B,MATCH($C24,SINAPI!$A:$A,0)),""),IF(B24="COMPOSIÇÃO",IFERROR(INDEX(COMPOSIÇÃO!$C:$C,MATCH($C24,COMPOSIÇÃO!$A:$A,0)),""),"")) -> PCMSO - PROGRAMA DE CONTROLE MÉDICO E MEIO AMBIENTE DO TRABALHO NA INDÚSTRIA DA CONSTRUÇÃO | E24: =IF(B24="SINAPI",IFERROR(INDEX(SINAPI!$C:$C,MATCH($C24,SINAPI!$A:$A,0)),""),IF(B24="COMPOSIÇÃO",IFERROR(INDEX(COMPOSIÇÃO!$D:$D,MATCH($C24,COMPOSIÇÃO!$A:$A,0)),""),"")) -> UND | F24: 1 | G24: =IF(B24="SINAPI",IFERROR(INDEX(SINAPI!$D:$D,MATCH($C24,SINAPI!$A:$A,0)),0),IF(B24="COMPOSIÇÃO",IFERROR(INDEX(COMPOSIÇÃO!$G:$G,MATCH($C24,COMPOSIÇÃO!$A:$A,0)),0),0)) -> 948.96 | H24: 1142.970719 | I24: 1142.97
A25: 2.0 | D25: SERVIÇOS PRELIMINARES | I25: =SUM(I26:I38) -> 209407.58
A26: 2.1 | B26: SINAPI | C26: 99059 | D26: =IF(B26="SINAPI",IFERROR(INDEX(SINAPI!$B:$B,MATCH($C26,SINAPI!$A:$A,0)),""),IF(B26="COMPOSIÇÃO",IFERROR(INDEX(COMPOSIÇÃO!$C:$C,MATCH($C26,COMPOSIÇÃO!$A:$A,0)),""),"")) -> LOCACAO CONVENCIONAL DE OBRA, UTILIZANDO GABARITO DE TÁBUAS CORRIDAS PONTALETADAS A CADA 2,00M - 2 UTILIZAÇÕES. AF_10/2018 | E26: =IF(B26="SINAPI",IFERROR(INDEX(SINAPI!$C:$C,MATCH($C26,SINAPI!$A:$A,0)),""),IF(B26="COMPOSIÇÃO",IFERROR(INDEX(COMPOSIÇÃO!$D:$D,MATCH($C26,COMPOSIÇÃO!$A:$A,0)),""),"")) -> M | F26: 569 | G26: =IF(B26="SINAPI",IFERROR(INDEX(SINAPI!$D:$D,MATCH($C26,SINAPI!$A:$A,0)),0),IF(B26="COMPOSIÇÃO",IFERROR(INDEX(COMPOSIÇÃO!$G:$G,MATCH($C26,COMPOSIÇÃO!$A:$A,0)),0),0)) -> 41.85 | H26: =G26*(1+$I$10) -> 50.40604936 | I26: =ROUND(F26*H26,2) -> 28681.04
A27: 2.2 | B27: SINAPI | C27: 93207 | D27: =IF(B27="SINAPI",IFERROR(INDEX(SINAPI!$B:$B,MATCH($C27,SINAPI!$A:$A,0)),""),IF(B27="COMPOSIÇÃO",IFERROR(INDEX(COMPOSIÇÃO!$C:$C,MATCH($C27,COMPOSIÇÃO!$A:$A,0)),""),"")) -> EXECUÇÃO DE ESCRITÓRIO EM CANTEIRO DE OBRA EM CHAPA DE MADEIRA COMPENSADA, NÃO INCLUSO MOBILIÁRIO E EQUIPAMENTOS. AF_02/2016 | E27: =IF(B27="SINAPI",IFERROR(INDEX(SINAPI!$C:$C,MATCH($C27,SINAPI!$A:$A,0)),""),IF(B27="COMPOSIÇÃO",IFERROR(INDEX(COMPOSIÇÃO!$D:$D,MATCH($C27,COMPOSIÇÃO!$A:$A,0)),""),"")) -> M2 | F27: 10 | G27: =IF(B27="SINAPI",IFERROR(INDEX(SINAPI!$D:$D,MATCH($C27,SINAPI!$A:$A,0)),0),IF(B27="COMPOSIÇÃO",IFERROR(INDEX(COMPOSIÇÃO!$G:$G,MATCH($C27,COMPOSIÇÃO!$A:$A,0)),0),0)) -> 897.55 | H27: 1081.05017 | I27: 10810.5
A28: 2.3 | B28: SINAPI | C28: 93208 | D28: =IF(B28="SINAPI",IFERROR(INDEX(SINAPI!$B:$B,MATCH($C28,SINAPI!$A:$A,0)),""),IF(B28="COMPOSIÇÃO",IFERROR(INDEX(COMPOSIÇÃO!$C:$C,MATCH($C28,COMPOSIÇÃO!$A:$A,0)),""),"")) -> EXECUÇÃO DE ALMOXARIFADO EM CANTEIRO DE OBRA EM CHAPA DE MADEIRA COMPENSADA, INCLUSO PRATELEIRAS. AF_02/2016 | E28: =IF(B28="SINAPI",IFERROR(INDEX(SINAPI!$C:$C,MATCH($C28,SINAPI!$A:$A,0)),""),IF(B28="COMPOSIÇÃO",IFERROR(INDEX(COMPOSIÇÃO!$D:$D,MATCH($C28,COMPOSIÇÃO!$A:$A,0)),""),"")) -> M2 | F28: 10.04 | G28: =IF(B28="SINAPI",IFERROR(INDEX(SINAPI!$D:$D,MATCH($C28,SINAPI!$A:$A,0)),0),IF(B28="COMPOSIÇÃO",IFERROR(INDEX(COMPOSIÇÃO!$G:$G,MATCH($C28,COMPOSIÇÃO!$A:$A,0)),0),0)) -> 706.98 | H28: 851.5189671 | I28: 8549.25
A29: 2.4 | B29: SINAPI | C29: 93210 | D29: =IF(B29="SINAPI",IFERROR(INDEX(SINAPI!$B:$B,MATCH($C29,SINAPI!$A:$A,0)),""),IF(B29="COMPOSIÇÃO",IFERROR(INDEX(COMPOSIÇÃO!$C:$C,MATCH($C29,COMPOSIÇÃO!$A:$A,0)),""),"")) -> EXECUÇÃO DE REFEITÓRIO EM CANTEIRO DE OBRA EM CHAPA DE MADEIRA COMPENSADA, NÃO INCLUSO MOBILIÁRIO E EQUIPAMENTOS. AF_02/2016 | E29: =IF(B29="SINAPI",IFERROR(INDEX(SINAPI!$C:$C,MATCH($C29,SINAPI!$A:$A,0)),""),IF(B29="COMPOSIÇÃO",IFERROR(INDEX(COMPOSIÇÃO!$D:$D,MATCH($C29,COMPOSIÇÃO!$A:$A,0)),""),"")) -> M2 | F29: 33.54 | G29: =IF(B29="SINAPI",IFERROR(INDEX(SINAPI!$D:$D,MATCH($C29,SINAPI!$A:$A,0)),0),IF(B29="COMPOSIÇÃO",IFERROR(INDEX(COMPOSIÇÃO!$G:$G,MATCH($C29,COMPOSIÇÃO!$A:$A,0)),0),0)) -> 495.11 | H29: 596.3330728 | I29: 20001.01
A30: 2.5 | B30: SINAPI | C30: 93212 | D30: =IF(B30="SINAPI",IFERROR(INDEX(SINAPI!$B:$B,MATCH($C30,SINAPI!$A:$A,0)),""),IF(B30="COMPOSIÇÃO",IFERROR(INDEX(COMPOSIÇÃO!$C:$C,MATCH($C30,COMPOSIÇÃO!$A:$A,0)),""),"")) -> EXECUÇÃO DE SANITÁRIO E VESTIÁRIO EM CANTEIRO DE OBRA EM CHAPA DE MADEIRA COMPENSADA, NÃO INCLUSO MOBILIÁRIO. AF_02/2016 | E30: =IF(B30="SINAPI",IFERROR(INDEX(SINAPI!$C:$C,MATCH($C30,SINAPI!$A:$A,0)),""),IF(B30="COMPOSIÇÃO",IFERROR(INDEX(COMPOSIÇÃO!$D:$D,MATCH($C30,COMPOSIÇÃO!$A:$A,0)),""),"")) -> M2 | F30: 30.1 | G30: =IF(B30="SINAPI",IFERROR(INDEX(SINAPI!$D:$D,MATCH($C30,SINAPI!$A:$A,0)),0),IF(B30="COMPOSIÇÃO",IFERROR(INDEX(COMPOSIÇÃO!$G:$G,MATCH($C30,COMPOSIÇÃO!$A:$A,0)),0),0)) -> 814.28 | H30: 980.7559825 | I30: 29520.76
A31: 2.6 | B31: SINAPI | C31: 93243 | D31: =IF(B31="SINAPI",IFERROR(INDEX(SINAPI!$B:$B,MATCH($C31,SINAPI!$A:$A,0)),""),IF(B31="COMPOSIÇÃO",IFERROR(INDEX(COMPOSIÇÃO!$C:$C,MATCH($C31,COMPOSIÇÃO!$A:$A,0)),""),"")) -> EXECUÇÃO DE RESERVATÓRIO ELEVADO DE ÁGUA (2000 LITROS) EM CANTEIRO DE OBRA, APOIADO EM ESTRUTURA DE MADEIRA. AF_02/2016 | E31: =IF(B31="SINAPI",IFERROR(INDEX(SINAPI!$C:$C,MATCH($C31,SINAPI!$A:$A,0)),""),IF(B31="COMPOSIÇÃO",IFERROR(INDEX(COMPOSIÇÃO!$D:$D,MATCH($C31,COMPOSIÇÃO!$A:$A,0)),""),"")) -> UN | F31: 1 | G31: =IF(B31="SINAPI",IFERROR(INDEX(SINAPI!$D:$D,MATCH($C31,SINAPI!$A:$A,0)),0),IF(B31="COMPOSIÇÃO",IFERROR(INDEX(COMPOSIÇÃO!$G:$G,MATCH($C31,COMPOSIÇÃO!$A:$A,0)),0),0)) -> 6677.92 | H31: 8043.19152 | I31: 8043.19
A32: 2.7 | B32: SINAPI | C32: 93582 | D32: =IF(B32="SINAPI",IFERROR(INDEX(SINAPI!$B:$B,MATCH($C32,SINAPI!$A:$A,0)),""),IF(B32="COMPOSIÇÃO",IFERROR(INDEX(COMPOSIÇÃO!$C:$C,MATCH($C32,COMPOSIÇÃO!$A:$A,0)),""),"")) -> EXECUÇÃO DE CENTRAL DE ARMADURA EM CANTEIRO DE OBRA, NÃO INCLUSO MOBILIÁRIO E EQUIPAMENTOS. AF_04/2016 | E32: =IF(B32="SINAPI",IFERROR(INDEX(SINAPI!$C:$C,MATCH($C32,SINAPI!$A:$A,0)),""),IF(B32="COMPOSIÇÃO",IFERROR(INDEX(COMPOSIÇÃO!$D:$D,MATCH($C32,COMPOSIÇÃO!$A:$A,0)),""),"")) -> M2 | F32: 41.09 | G32: =IF(B32="SINAPI",IFERROR(INDEX(SINAPI!$D:$D,MATCH($C32,SINAPI!$A:$A,0)),0),IF(B32="COMPOSIÇÃO",IFERROR(INDEX(COMPOSIÇÃO!$G:$G,MATCH($C32,COMPOSIÇÃO!$A:$A,0)),0),0)) -> 222.9 | H32: 268.4709295 | I32: 11031.47
A33: 2.8 | B33: SINAPI | C33: 93583 | D33: =IF(B33="SINAPI",IFERROR(INDEX(SINAPI!$B:$B,MATCH($C33,SINAPI!$A:$A,0)),""),IF(B33="COMPOSIÇÃO",IFERROR(INDEX(COMPOSIÇÃO!$C:$C,MATCH($C33,COMPOSIÇÃO!$A:$A,0)),""),"")) -> EXECUÇÃO DE CENTRAL DE FÔRMAS, PRODUÇÃO DE ARGAMASSA OU CONCRETO EM CANTEIRO DE OBRA, NÃO INCLUSO MOBILIÁRIO E EQUIPAMENTOS. AF_04/2016 | E33: =IF(B33="SINAPI",IFERROR(INDEX(SINAPI!$C:$C,MATCH($C33,SINAPI!$A:$A,0)),""),IF(B33="COMPOSIÇÃO",IFERROR(INDEX(COMPOSIÇÃO!$D:$D,MATCH($C33,COMPOSIÇÃO!$A:$A,0)),""),"")) -> M2 | F33: 20 | G33: =IF(B33="SINAPI",IFERROR(INDEX(SINAPI!$D:$D,MATCH($C33,SINAPI!$A:$A,0)),0),IF(B33="COMPOSIÇÃO",IFERROR(INDEX(COMPOSIÇÃO!$G:$G,MATCH($C33,COMPOSIÇÃO!$A:$A,0)),0),0)) -> 369.58 | H33: 445.1390136 | I33: 8902.78
A34: 2.9 | B34: SINAPI | C34: 93584 | D34: =IF(B34="SINAPI",IFERROR(INDEX(SINAPI!$B:$B,MATCH($C34,SINAPI!$A:$A,0)),""),IF(B34="COMPOSIÇÃO",IFERROR(INDEX(COMPOSIÇÃO!$C:$C,MATCH($C34,COMPOSIÇÃO!$A:$A,0)),""),"")) -> EXECUÇÃO DE DEPÓSITO EM CANTEIRO DE OBRA EM CHAPA DE MADEIRA COMPENSADA, NÃO INCLUSO MOBILIÁRIO. AF_04/2016 | E34: =IF(B34="SINAPI",IFERROR(INDEX(SINAPI!$C:$C,MATCH($C34,SINAPI!$A:$A,0)),""),IF(B34="COMPOSIÇÃO",IFERROR(INDEX(COMPOSIÇÃO!$D:$D,MATCH($C34,COMPOSIÇÃO!$A:$A,0)),""),"")) -> M2 | F34: 20.79 | G34: =IF(B34="SINAPI",IFERROR(INDEX(SINAPI!$D:$D,MATCH($C34,SINAPI!$A:$A,0)),0),IF(B34="COMPOSIÇÃO",IFERROR(INDEX(COMPOSIÇÃO!$G:$G,MATCH($C34,COMPOSIÇÃO!$A:$A,0)),0),0)) -> 681.31 | H34: 820.6008479 | I34: 17060.29
A35: 2.10 | B35: COMPOSIÇÃO | C35: IFMT 214.06.2020 | D35: =IF(B35="SINAPI",IFERROR(INDEX(SINAPI!$B:$B,MATCH($C35,SINAPI!$A:$A,0)),""),IF(B35="COMPOSIÇÃO",IFERROR(INDEX(COMPOSIÇÃO!$C:$C,MATCH($C35,COMPOSIÇÃO!$A:$A,0)),""),"")) -> ENTRADA PROVISORIA DE ENERGIA ELETRICA AEREA TRIFASICA 40A EM POSTE MADEIRA | E35: =IF(B35="SINAPI",IFERROR(INDEX(SINAPI!$C:$C,MATCH($C35,SINAPI!$A:$A,0)),""),IF(B35="COMPOSIÇÃO",IFERROR(INDEX(COMPOSIÇÃO!$D:$D,MATCH($C35,COMPOSIÇÃO!$A:$A,0)),""),"")) -> UN | F35: 1 | G35: =IF(B35="SINAPI",IFERROR(INDEX(SINAPI!$D:$D,MATCH($C35,SINAPI!$A:$A,0)),0),IF(B35="COMPOSIÇÃO",IFERROR(INDEX(COMPOSIÇÃO!$G:$G,MATCH($C35,COMPOSIÇÃO!$A:$A,0)),0),0)) -> 2291.502264 | H35: 2759.989874 | I35: 2759.99
A36: 2.11 | B36: COMPOSIÇÃO | C36: COMP-6982 | D36: =IF(B36="SINAPI",IFERROR(INDEX(SINAPI!$B:$B,MATCH($C36,SINAPI!$A:$A,0)),""),IF(B36="COMPOSIÇÃO",IFERROR(INDEX(COMPOSIÇÃO!$C:$C,MATCH($C36,COMPOSIÇÃO!$A:$A,0)),""),"")) -> ENTRADA PROVISÓRIAS DE ÁGUA (UND) | E36: =IF(B36="SINAPI",IFERROR(INDEX(SINAPI!$C:$C,MATCH($C36,SINAPI!$A:$A,0)),""),IF(B36="COMPOSIÇÃO",IFERROR(INDEX(COMPOSIÇÃO!$D:$D,MATCH($C36,COMPOSIÇÃO!$A:$A,0)),""),"")) -> UND | F36: 1 | G36: =IF(B36="SINAPI",IFERROR(INDEX(SINAPI!$D:$D,MATCH($C36,SINAPI!$A:$A,0)),0),IF(B36="COMPOSIÇÃO",IFERROR(INDEX(COMPOSIÇÃO!$G:$G,MATCH($C36,COMPOSIÇÃO!$A:$A,0)),0),0)) -> 302.735 | H36: 364.6278459 | I36: 364.63
A37: 2.12 | B37: COMPOSIÇÃO | C37: IFMT 211.06.2020 | D37: =IF(B37="SINAPI",IFERROR(INDEX(SINAPI!$B:$B,MATCH($C37,SINAPI!$A:$A,0)),""),IF(B37="COMPOSIÇÃO",IFERROR(INDEX(COMPOSIÇÃO!$C:$C,MATCH($C37,COMPOSIÇÃO!$A:$A,0)),""),"")) -> PLACA DE OBRA EM CHAPA DE ACO GALVANIZADO | E37: =IF(B37="SINAPI",IFERROR(INDEX(SINAPI!$C:$C,MATCH($C37,SINAPI!$A:$A,0)),""),IF(B37="COMPOSIÇÃO",IFERROR(INDEX(COMPOSIÇÃO!$D:$D,MATCH($C37,COMPOSIÇÃO!$A:$A,0)),""),"")) -> M2 | F37: 6 | G37: =IF(B37="SINAPI",IFERROR(INDEX(SINAPI!$D:$D,MATCH($C37,SINAPI!$A:$A,0)),0),IF(B37="COMPOSIÇÃO",IFERROR(INDEX(COMPOSIÇÃO!$G:$G,MATCH($C37,COMPOSIÇÃO!$A:$A,0)),0),0)) -> 318.1754 | H37: 383.2249681 | I37: 2299.35
A38: 2.13 | B38: SINAPI | C38: 98459 | D38: =IF(B38="SINAPI",IFERROR(INDEX(SINAPI!$B:$B,MATCH($C38,SINAPI!$A:$A,0)),""),IF(B38="COMPOSIÇÃO",IFERROR(INDEX(COMPOSIÇÃO!$C:$C,MATCH($C38,COMPOSIÇÃO!$A:$A,0)),""),"")) -> TAPUME COM TELHA METÁLICA. AF_05/2018 | E38: =IF(B38="SINAPI",IFERROR(INDEX(SINAPI!$C:$C,MATCH($C38,SINAPI!$A:$A,0)),""),IF(B38="COMPOSIÇÃO",IFERROR(INDEX(COMPOSIÇÃO!$D:$D,MATCH($C38,COMPOSIÇÃO!$A:$A,0)),""),"")) -> M2 | F38: 596 | G38: =IF(B38="SINAPI",IFERROR(INDEX(SINAPI!$D:$D,MATCH($C38,SINAPI!$A:$A,0)),0),IF(B38="COMPOSIÇÃO",IFERROR(INDEX(COMPOSIÇÃO!$G:$G,MATCH($C38,COMPOSIÇÃO!$A:$A,0)),0),0)) -> 85.51 | H38: 102.9921453 | I38: 61383.32
A39: 3.0 | D39: MOVIMENTAÇÃO DE TERRA | I39: =I40+I43+I47 -> 219647.81
A40: 3.1 | D40: Raspagem e Limpeza do Terreno | I40: =SUM(I41:I42) -> 45871.17
A41: 3.1.1 | B41: COMPOSIÇÃO | C41: IFMT 243.08.2020 | D41: =IF(B41="SINAPI",IFERROR(INDEX(SINAPI!$B:$B,MATCH($C41,SINAPI!$A:$A,0)),""),IF(B41="COMPOSIÇÃO",IFERROR(INDEX(COMPOSIÇÃO!$C:$C,MATCH($C41,COMPOSIÇÃO!$A:$A,0)),""),"")) -> LIMPEZA MECANIZADA DE TERRENO COM REMOCAO DE CAMADA VEGETAL, UTILIZANDO MOTONIVELADORA | E41: =IF(B41="SINAPI",IFERROR(INDEX(SINAPI!$C:$C,MATCH($C41,SINAPI!$A:$A,0)),""),IF(B41="COMPOSIÇÃO",IFERROR(INDEX(COMPOSIÇÃO!$D:$D,MATCH($C41,COMPOSIÇÃO!$A:$A,0)),""),"")) -> M2 | F41: 8900 | G41: =IF(B41="SINAPI",IFERROR(INDEX(SINAPI!$D:$D,MATCH($C41,SINAPI!$A:$A,0)),0),IF(B41="COMPOSIÇÃO",IFERROR(INDEX(COMPOSIÇÃO!$G:$G,MATCH($C41,COMPOSIÇÃO!$A:$A,0)),0),0)) -> 0.59145 | H41: =G41*(1+$I$10) -> 0.7123693642 | I41: =ROUND(F41*H41,2) -> 6340.09
A42: 3.1.2 | B42: COMPOSIÇÃO | C42: COMP-879649 | D42: =IF(B42="SINAPI",IFERROR(INDEX(SINAPI!$B:$B,MATCH($C42,SINAPI!$A:$A,0)),""),IF(B42="COMPOSIÇÃO",IFERROR(INDEX(COMPOSIÇÃO!$C:$C,MATCH($C42,COMPOSIÇÃO!$A:$A,0)),""),"")) -> TRANSPORTE DE COLETA E DESCARTES DE MATERIAIS | E42: =IF(B42="SINAPI",IFERROR(INDEX(SINAPI!$C:$C,MATCH($C42,SINAPI!$A:$A,0)),""),IF(B42="COMPOSIÇÃO",IFERROR(INDEX(COMPOSIÇÃO!$D:$D,MATCH($C42,COMPOSIÇÃO!$A:$A,0)),""),"")) -> M3 | F42: 556.25 | G42: =IF(B42="SINAPI",IFERROR(INDEX(SINAPI!$D:$D,MATCH($C42,SINAPI!$A:$A,0)),0),IF(B42="COMPOSIÇÃO",IFERROR(INDEX(COMPOSIÇÃO!$G:$G,MATCH($C42,COMPOSIÇÃO!$A:$A,0)),0),0)) -> 59.004 | H42: =G42*(1+$I$10) -> 71.06710959 | I42: 39531.08
A43: 3.2 | D43: Terraplanagem | I43: =SUM(I44:I46) -> 17866.74
A44: 10.2.1 | B44: ORSE | C44: 2524 | D44: 02524/ORSE Escavação e carga com trator de esteiras com lâmina e carregadeira, de material de 1ª categoria ou de jazida | E44: m3 | F44: 700 | G44: 5.22 | H44: =G44*(1+$I$10) -> 6.287206156 | I44: =ROUND(F44*H44,2) -> 4401.04
A45: 10.2.2 | B45: SINAPI | C45: 93594 | D45: =IF(B45="SINAPI",IFERROR(INDEX(SINAPI!$B:$B,MATCH($C45,SINAPI!$A:$A,0)),""),IF(B45="COMPOSIÇÃO",IFERROR(INDEX(COMPOSIÇÃO!$C:$C,MATCH($C45,COMPOSIÇÃO!$A:$A,0)),""),"")) -> TRANSPORTE COM CAMINHÃO BASCULANTE DE 10 M³, EM VIA URBANA EM LEITO NATURAL (UNIDADE: TXKM). AF_07/2020 | E45: =IF(B45="SINAPI",IFERROR(INDEX(SINAPI!$C:$C,MATCH($C45,SINAPI!$A:$A,0)),""),IF(B45="COMPOSIÇÃO",IFERROR(INDEX(COMPOSIÇÃO!$D:$D,MATCH($C45,COMPOSIÇÃO!$A:$A,0)),""),"")) -> TXKM | F45: 1500 | G45: =IF(B45="SINAPI",IFERROR(INDEX(SINAPI!$D:$D,MATCH($C45,SINAPI!$A:$A,0)),0),IF(B45="COMPOSIÇÃO",IFERROR(INDEX(COMPOSIÇÃO!$G:$G,MATCH($C45,COMPOSIÇÃO!$A:$A,0)),0),0)) -> 1.48 | H45: =G45*(1+$I$10) -> 1.782579523 | I45: 2673.87
A46: 10.2.3 | B46: SINAPI | C46: 93595 | D46: =IF(B46="SINAPI",IFERROR(INDEX(SINAPI!$B:$B,MATCH($C46,SINAPI!$A:$A,0)),""),IF(B46="COMPOSIÇÃO",IFERROR(INDEX(COMPOSIÇÃO!$C:$C,MATCH($C46,COMPOSIÇÃO!$A:$A,0)),""),"")) -> TRANSPORTE COM CAMINHÃO BASCULANTE DE 10 M³, EM VIA URBANA EM REVESTIMENTO PRIMÁRIO (UNIDADE: TXKM). AF_07/2020 | E46: =IF(B46="SINAPI",IFERROR(INDEX(SINAPI!$C:$C,MATCH($C46,SINAPI!$A:$A,0)),""),IF(B46="COMPOSIÇÃO",IFERROR(INDEX(COMPOSIÇÃO!$D:$D,MATCH($C46,COMPOSIÇÃO!$A:$A,0)),""),"")) -> TXKM | F46: 7000 | G46: =IF(B46="SINAPI",IFERROR(INDEX(SINAPI!$D:$D,MATCH($C46,SINAPI!$A:$A,0)),0),IF(B46="COMPOSIÇÃO",IFERROR(INDEX(COMPOSIÇÃO!$G:$G,MATCH($C46,COMPOSIÇÃO!$A:$A,0)),0),0)) -> 1.28 | H46: =G46*(1+$I$10) -> 1.541690398 | I46: 10791.83
A47: 2021-03-03 | D47: Fundações | I47: =SUM(I48:I54) -> 155909.9
A48: 3.3.1 | B48: COMPOSIÇÃO | C48: COMP-83338 | D48: =IF(B48="SINAPI",IFERROR(INDEX(SINAPI!$B:$B,MATCH($C48,SINAPI!$A:$A,0)),""),IF(B48="COMPOSIÇÃO",IFERROR(INDEX(COMPOSIÇÃO!$C:$C,MATCH($C48,COMPOSIÇÃO!$A:$A,0)),""),"")) -> ESCAVACAO MECANICA, A CEU ABERTO, EM MATERIAL DE 1A CATEGORIA, COM ESCAVADEIRA HIDRAULICA, CAPACIDADE DE 0,78 M3 | E48: =IF(B48="SINAPI",IFERROR(INDEX(SINAPI!$C:$C,MATCH($C48,SINAPI!$A:$A,0)),""),IF(B48="COMPOSIÇÃO",IFERROR(INDEX(COMPOSIÇÃO!$D:$D,MATCH($C48,COMPOSIÇÃO!$A:$A,0)),""),"")) -> M3 | F48: 1071 | G48: =IF(B48="SINAPI",IFERROR(INDEX(SINAPI!$D:$D,MATCH($C48,SINAPI!$A:$A,0)),0),IF(B48="COMPOSIÇÃO",IFERROR(INDEX(COMPOSIÇÃO!$G:$G,MATCH($C48,COMPOSIÇÃO!$A:$A,0)),0),0)) -> 2.606064 | H48: =G48*(1+$I$10) -> 3.13886238 | I48: =ROUND(F48*H48,2) -> 3361.72
A49: 3.3.2 | B49: SINAPI | C49: 93368 | D49: =IF(B49="SINAPI",IFERROR(INDEX(SINAPI!$B:$B,MATCH($C49,SINAPI!$A:$A,0)),""),IF(B49="COMPOSIÇÃO",IFERROR(INDEX(COMPOSIÇÃO!$C:$C,MATCH($C49,COMPOSIÇÃO!$A:$A,0)),""),"")) -> REATERRO MECANIZADO DE VALA COM ESCAVADEIRA HIDRÁULICA (CAPACIDADE DA CAÇAMBA: 0,8 M³ / POTÊNCIA: 111 HP), LARGURA ATÉ 1,5 M, PROFUNDIDADE DE 1,5 A 3,0 M, COM SOLO DE 1ª CATEGORIA EM LOCAIS COM BAIXO NÍVEL DE INTERFERÊNCIA. AF_04/2016 | E49: =IF(B49="SINAPI",IFERROR(INDEX(SINAPI!$C:$C,MATCH($C49,SINAPI!$A:$A,0)),""),IF(B49="COMPOSIÇÃO",IFERROR(INDEX(COMPOSIÇÃO!$D:$D,MATCH($C49,COMPOSIÇÃO!$A:$A,0)),""),"")) -> M3 | F49: 803.58 | G49: =IF(B49="SINAPI",IFERROR(INDEX(SINAPI!$D:$D,MATCH($C49,SINAPI!$A:$A,0)),0),IF(B49="COMPOSIÇÃO",IFERROR(INDEX(COMPOSIÇÃO!$G:$G,MATCH($C49,COMPOSIÇÃO!$A:$A,0)),0),0)) -> 11.95 | H49: 14.3931252 | I49: 11566.03
A50: 3.3.3 | B50: SINAPI | C50: 93358 | D50: =IF(B50="SINAPI",IFERROR(INDEX(SINAPI!$B:$B,MATCH($C50,SINAPI!$A:$A,0)),""),IF(B50="COMPOSIÇÃO",IFERROR(INDEX(COMPOSIÇÃO!$C:$C,MATCH($C50,COMPOSIÇÃO!$A:$A,0)),""),"")) -> ESCAVAÇÃO MANUAL DE VALA COM PROFUNDIDADE MENOR OU IGUAL A 1,30 M. AF_02/2021 | E50: =IF(B50="SINAPI",IFERROR(INDEX(SINAPI!$C:$C,MATCH($C50,SINAPI!$A:$A,0)),""),IF(B50="COMPOSIÇÃO",IFERROR(INDEX(COMPOSIÇÃO!$D:$D,MATCH($C50,COMPOSIÇÃO!$A:$A,0)),""),"")) -> M3 | F50: 89.09 | G50: =IF(B50="SINAPI",IFERROR(INDEX(SINAPI!$D:$D,MATCH($C50,SINAPI!$A:$A,0)),0),IF(B50="COMPOSIÇÃO",IFERROR(INDEX(COMPOSIÇÃO!$G:$G,MATCH($C50,COMPOSIÇÃO!$A:$A,0)),0),0)) -> 61.91 | H50: 74.56722857 | I50: 6643.19
A51: 3.3.4 | B51: SINAPI | C51: 94319 | D51: =IF(B51="SINAPI",IFERROR(INDEX(SINAPI!$B:$B,MATCH($C51,SINAPI!$A:$A,0)),""),IF(B51="COMPOSIÇÃO",IFERROR(INDEX(COMPOSIÇÃO!$C:$C,MATCH($C51,COMPOSIÇÃO!$A:$A,0)),""),"")) -> ATERRO MANUAL DE VALAS COM SOLO ARGILO-ARENOSO E COMPACTAÇÃO MECANIZADA. AF_05/2016 | E51: =IF(B51="SINAPI",IFERROR(INDEX(SINAPI!$C:$C,MATCH($C51,SINAPI!$A:$A,0)),""),IF(B51="COMPOSIÇÃO",IFERROR(INDEX(COMPOSIÇÃO!$D:$D,MATCH($C51,COMPOSIÇÃO!$A:$A,0)),""),"")) -> M3 | F51: 1980.88 | G51: =IF(B51="SINAPI",IFERROR(INDEX(SINAPI!$D:$D,MATCH($C51,SINAPI!$A:$A,0)),0),IF(B51="COMPOSIÇÃO",IFERROR(INDEX(COMPOSIÇÃO!$G:$G,MATCH($C51,COMPOSIÇÃO!$A:$A,0)),0),0)) -> 34.12 | H51: 41.09568468 | I51: 81405.62
A52: 3.3.5 | B52: COMPOSIÇÃO | C52: COMP-1294 | D52: =IF(B52="SINAPI",IFERROR(INDEX(SINAPI!$B:$B,MATCH($C52,SINAPI!$A:$A,0)),""),IF(B52="COMPOSIÇÃO",IFERROR(INDEX(COMPOSIÇÃO!$C:$C,MATCH($C52,COMPOSIÇÃO!$A:$A,0)),""),"")) -> APILOAMENTO DE FUNDO DE VALA COM COMPACTADOR DE SOLOS DE PERCUSSÃO (SOQUETE) | E52: =IF(B52="SINAPI",IFERROR(INDEX(SINAPI!$C:$C,MATCH($C52,SINAPI!$A:$A,0)),""),IF(B52="COMPOSIÇÃO",IFERROR(INDEX(COMPOSIÇÃO!$D:$D,MATCH($C52,COMPOSIÇÃO!$A:$A,0)),""),"")) -> M2 | F52: 274.63 | G52: =IF(B52="SINAPI",IFERROR(INDEX(SINAPI!$D:$D,MATCH($C52,SINAPI!$A:$A,0)),0),IF(B52="COMPOSIÇÃO",IFERROR(INDEX(COMPOSIÇÃO!$G:$G,MATCH($C52,COMPOSIÇÃO!$A:$A,0)),0),0)) -> 31.4375 | H52: 37.8647593 | I52: 10398.8
A53: 3.3.6 | B53: COMPOSIÇÃO | C53: IFMT 230.08.2020 | D53: =IF(B53="SINAPI",IFERROR(INDEX(SINAPI!$B:$B,MATCH($C53,SINAPI!$A:$A,0)),""),IF(B53="COMPOSIÇÃO",IFERROR(INDEX(COMPOSIÇÃO!$C:$C,MATCH($C53,COMPOSIÇÃO!$A:$A,0)),""),"")) -> COMPACTACAO MECANICA C/ CONTROLE DO GC>=95% DO PN (AREAS) (C/MONIVELADORA 140 HP E ROLO COMPRESSOR VIBRATORIO 80 HP) | E53: =IF(B53="SINAPI",IFERROR(INDEX(SINAPI!$C:$C,MATCH($C53,SINAPI!$A:$A,0)),""),IF(B53="COMPOSIÇÃO",IFERROR(INDEX(COMPOSIÇÃO!$D:$D,MATCH($C53,COMPOSIÇÃO!$A:$A,0)),""),"")) -> M3 | F53: 1706.25 | G53: =IF(B53="SINAPI",IFERROR(INDEX(SINAPI!$D:$D,MATCH($C53,SINAPI!$A:$A,0)),0),IF(B53="COMPOSIÇÃO",IFERROR(INDEX(COMPOSIÇÃO!$G:$G,MATCH($C53,COMPOSIÇÃO!$A:$A,0)),0),0)) -> 6.90905 | H53: 8.321575037 | I53: 14198.69
A54: 3.3.7 | B54: COMPOSIÇÃO | C54: IFMT 231.08.2020 | D54: =IF(B54="SINAPI",IFERROR(INDEX(SINAPI!$B:$B,MATCH($C54,SINAPI!$A:$A,0)),""),IF(B54="COMPOSIÇÃO",IFERROR(INDEX(COMPOSIÇÃO!$C:$C,MATCH($C54,COMPOSIÇÃO!$A:$A,0)),""),"")) -> BASE DE SOLO COMPACTACAO 100% PROCTOR MODIFICADO, EXCLUSIVE ESCAVACAO, CARGA E TRANSPORTE | E54: =IF(B54="SINAPI",IFERROR(INDEX(SINAPI!$C:$C,MATCH($C54,SINAPI!$A:$A,0)),""),IF(B54="COMPOSIÇÃO",IFERROR(INDEX(COMPOSIÇÃO!$D:$D,MATCH($C54,COMPOSIÇÃO!$A:$A,0)),""),"")) -> M3 | F54: 339.15 | G54: =IF(B54="SINAPI",IFERROR(INDEX(SINAPI!$D:$D,MATCH($C54,SINAPI!$A:$A,0)),0),IF(B54="COMPOSIÇÃO",IFERROR(INDEX(COMPOSIÇÃO!$G:$G,MATCH($C54,COMPOSIÇÃO!$A:$A,0)),0),0)) -> 69.36769605 | H54: 83.54961794 | I54: 28335.85
A55: 4.0 | D55: INFRAESTRUTURA | I55: =I56+I66 -> 501618.3
A56: 4.1 | D56: ESTACAS Sapata e Arranque | I56: =SUM(I57:I65) -> 337968.91
A57: 4.1.1 | B57: COMPOSIÇÃO | C57: COMP-111 | D57: =IF(B57="SINAPI",IFERROR(INDEX(SINAPI!$B:$B,MATCH($C57,SINAPI!$A:$A,0)),""),IF(B57="COMPOSIÇÃO",IFERROR(INDEX(COMPOSIÇÃO!$C:$C,MATCH($C57,COMPOSIÇÃO!$A:$A,0)),""),"")) -> ESTACA HÉLICE CONTÍNUA, DIÂMETRO DE 20 CM, COMPRIMENTO TOTAL ATÉ 15 M, PERFURATRIZ COM TORQUE DE 170 KN.M (EXCLUSIVE MOBILIZAÇÃO E DESMOBILIZAÇÃO). | E57: =IF(B57="SINAPI",IFERROR(INDEX(SINAPI!$C:$C,MATCH($C57,SINAPI!$A:$A,0)),""),IF(B57="COMPOSIÇÃO",IFERROR(INDEX(COMPOSIÇÃO!$D:$D,MATCH($C57,COMPOSIÇÃO!$A:$A,0)),""),"")) -> M3 | F57: 1692 | G57: =IF(B57="SINAPI",IFERROR(INDEX(SINAPI!$D:$D,MATCH($C57,SINAPI!$A:$A,0)),0),IF(B57="COMPOSIÇÃO",IFERROR(INDEX(COMPOSIÇÃO!$G:$G,MATCH($C57,COMPOSIÇÃO!$A:$A,0)),0),0)) -> 134.7763613 | H57: =G57*(1+$I$10) -> 162.3307986 | I57: =ROUND(F57*H57,2) -> 274663.71
A58: 4.1.2 | B58: SINAPI | C58: 100651 | D58: =IF(B58="SINAPI",IFERROR(INDEX(SINAPI!$B:$B,MATCH($C58,SINAPI!$A:$A,0)),""),IF(B58="COMPOSIÇÃO",IFERROR(INDEX(COMPOSIÇÃO!$C:$C,MATCH($C58,COMPOSIÇÃO!$A:$A,0)),""),"")) -> ESTACA HÉLICE CONTÍNUA, DIÂMETRO DE 30 CM, INCLUSO CONCRETO FCK=30MPA E ARMADURA MÍNIMA (EXCLUSIVE MOBILIZAÇÃO, DESMOBILIZAÇÃO E BOMBEAMENTO). AF_12/2019 | E58: =IF(B58="SINAPI",IFERROR(INDEX(SINAPI!$C:$C,MATCH($C58,SINAPI!$A:$A,0)),""),IF(B58="COMPOSIÇÃO",IFERROR(INDEX(COMPOSIÇÃO!$D:$D,MATCH($C58,COMPOSIÇÃO!$A:$A,0)),""),"")) -> M | F58: 36 | G58: =IF(B58="SINAPI",IFERROR(INDEX(SINAPI!$D:$D,MATCH($C58,SINAPI!$A:$A,0)),0),IF(B58="COMPOSIÇÃO",IFERROR(INDEX(COMPOSIÇÃO!$G:$G,MATCH($C58,COMPOSIÇÃO!$A:$A,0)),0),0)) -> 130.07 | H58: 156.6622423 | I58: 5639.84
A59: 4.1.3 | B59: SINAPI | C59: 96619 | D59: =IF(B59="SINAPI",IFERROR(INDEX(SINAPI!$B:$B,MATCH($C59,SINAPI!$A:$A,0)),""),IF(B59="COMPOSIÇÃO",IFERROR(INDEX(COMPOSIÇÃO!$C:$C,MATCH($C59,COMPOSIÇÃO!$A:$A,0)),""),"")) -> LASTRO DE CONCRETO MAGRO, APLICADO EM BLOCOS DE COROAMENTO OU SAPATAS, ESPESSURA DE 5 CM. AF_08/2017 | E59: =IF(B59="SINAPI",IFERROR(INDEX(SINAPI!$C:$C,MATCH($C59,SINAPI!$A:$A,0)),""),IF(B59="COMPOSIÇÃO",IFERROR(INDEX(COMPOSIÇÃO!$D:$D,MATCH($C59,COMPOSIÇÃO!$A:$A,0)),""),"")) -> M2 | F59: 267.86 | G59: =IF(B59="SINAPI",IFERROR(INDEX(SINAPI!$D:$D,MATCH($C59,SINAPI!$A:$A,0)),0),IF(B59="COMPOSIÇÃO",IFERROR(INDEX(COMPOSIÇÃO!$G:$G,MATCH($C59,COMPOSIÇÃO!$A:$A,0)),0),0)) -> 24.37 | H59: 29.35233985 | I59: =ROUND(F59*H59,2) -> 7862.32
A60: 4.1.4 | B60: SINAPI | C60: 96543 | D60: =IF(B60="SINAPI",IFERROR(INDEX(SINAPI!$B:$B,MATCH($C60,SINAPI!$A:$A,0)),""),IF(B60="COMPOSIÇÃO",IFERROR(INDEX(COMPOSIÇÃO!$C:$C,MATCH($C60,COMPOSIÇÃO!$A:$A,0)),""),"")) -> ARMAÇÃO DE BLOCO, VIGA BALDRAME E SAPATA UTILIZANDO AÇO CA-60 DE 5 MM - MONTAGEM. AF_06/2017 | E60: =IF(B60="SINAPI",IFERROR(INDEX(SINAPI!$C:$C,MATCH($C60,SINAPI!$A:$A,0)),""),IF(B60="COMPOSIÇÃO",IFERROR(INDEX(COMPOSIÇÃO!$D:$D,MATCH($C60,COMPOSIÇÃO!$A:$A,0)),""),"")) -> KG | F60: 31.36 | G60: =IF(B60="SINAPI",IFERROR(INDEX(SINAPI!$D:$D,MATCH($C60,SINAPI!$A:$A,0)),0),IF(B60="COMPOSIÇÃO",IFERROR(INDEX(COMPOSIÇÃO!$G:$G,MATCH($C60,COMPOSIÇÃO!$A:$A,0)),0),0)) -> 20.59 | H60: 24.79953539 | I60: 777.71
A61: 4.1.5 | B61: SINAPI | C61: 96546 | D61: =IF(B61="SINAPI",IFERROR(INDEX(SINAPI!$B:$B,MATCH($C61,SINAPI!$A:$A,0)),""),IF(B61="COMPOSIÇÃO",IFERROR(INDEX(COMPOSIÇÃO!$C:$C,MATCH($C61,COMPOSIÇÃO!$A:$A,0)),""),"")) -> ARMAÇÃO DE BLOCO, VIGA BALDRAME OU SAPATA UTILIZANDO AÇO CA-50 DE 10 MM - MONTAGEM. AF_06/2017 | E61: =IF(B61="SINAPI",IFERROR(INDEX(SINAPI!$C:$C,MATCH($C61,SINAPI!$A:$A,0)),""),IF(B61="COMPOSIÇÃO",IFERROR(INDEX(COMPOSIÇÃO!$D:$D,MATCH($C61,COMPOSIÇÃO!$A:$A,0)),""),"")) -> KG | F61: 336 | G61: =IF(B61="SINAPI",IFERROR(INDEX(SINAPI!$D:$D,MATCH($C61,SINAPI!$A:$A,0)),0),IF(B61="COMPOSIÇÃO",IFERROR(INDEX(COMPOSIÇÃO!$G:$G,MATCH($C61,COMPOSIÇÃO!$A:$A,0)),0),0)) -> 17.53 | H61: 21.11393179 | I61: 7094.28
A62: 4.1.6 | B62: SINAPI | C62: 96547 | D62: =IF(B62="SINAPI",IFERROR(INDEX(SINAPI!$B:$B,MATCH($C62,SINAPI!$A:$A,0)),""),IF(B62="COMPOSIÇÃO",IFERROR(INDEX(COMPOSIÇÃO!$C:$C,MATCH($C62,COMPOSIÇÃO!$A:$A,0)),""),"")) -> ARMAÇÃO DE BLOCO, VIGA BALDRAME OU SAPATA UTILIZANDO AÇO CA-50 DE 12,5 MM - MONTAGEM. AF_06/2017 | E62: =IF(B62="SINAPI",IFERROR(INDEX(SINAPI!$C:$C,MATCH($C62,SINAPI!$A:$A,0)),""),IF(B62="COMPOSIÇÃO",IFERROR(INDEX(COMPOSIÇÃO!$D:$D,MATCH($C62,COMPOSIÇÃO!$A:$A,0)),""),"")) -> KG | F62: 382 | G62: =IF(B62="SINAPI",IFERROR(INDEX(SINAPI!$D:$D,MATCH($C62,SINAPI!$A:$A,0)),0),IF(B62="COMPOSIÇÃO",IFERROR(INDEX(COMPOSIÇÃO!$G:$G,MATCH($C62,COMPOSIÇÃO!$A:$A,0)),0),0)) -> 14.92 | H62: 17.97032871 | I62: 6864.67
A63: 4.1.7 | B63: SINAPI | C63: 96548 | D63: =IF(B63="SINAPI",IFERROR(INDEX(SINAPI!$B:$B,MATCH($C63,SINAPI!$A:$A,0)),""),IF(B63="COMPOSIÇÃO",IFERROR(INDEX(COMPOSIÇÃO!$C:$C,MATCH($C63,COMPOSIÇÃO!$A:$A,0)),""),"")) -> ARMAÇÃO DE BLOCO, VIGA BALDRAME OU SAPATA UTILIZANDO AÇO CA-50 DE 16 MM - MONTAGEM. AF_06/2017 | E63: =IF(B63="SINAPI",IFERROR(INDEX(SINAPI!$C:$C,MATCH($C63,SINAPI!$A:$A,0)),""),IF(B63="COMPOSIÇÃO",IFERROR(INDEX(COMPOSIÇÃO!$D:$D,MATCH($C63,COMPOSIÇÃO!$A:$A,0)),""),"")) -> KG | F63: 176 | G63: =IF(B63="SINAPI",IFERROR(INDEX(SINAPI!$D:$D,MATCH($C63,SINAPI!$A:$A,0)),0),IF(B63="COMPOSIÇÃO",IFERROR(INDEX(COMPOSIÇÃO!$G:$G,MATCH($C63,COMPOSIÇÃO!$A:$A,0)),0),0)) -> 14.37 | H63: 17.30788361 | I63: 3046.19
A64: 4.1.8 | B64: SINAPI | C64: 92269 | D64: =IF(B64="SINAPI",IFERROR(INDEX(SINAPI!$B:$B,MATCH($C64,SINAPI!$A:$A,0)),""),IF(B64="COMPOSIÇÃO",IFERROR(INDEX(COMPOSIÇÃO!$C:$C,MATCH($C64,COMPOSIÇÃO!$A:$A,0)),""),"")) -> FABRICAÇÃO DE FÔRMA PARA PILARES E ESTRUTURAS SIMILARES, EM MADEIRA SERRADA, E=25 MM. AF_09/2020 | E64: =IF(B64="SINAPI",IFERROR(INDEX(SINAPI!$C:$C,MATCH($C64,SINAPI!$A:$A,0)),""),IF(B64="COMPOSIÇÃO",IFERROR(INDEX(COMPOSIÇÃO!$D:$D,MATCH($C64,COMPOSIÇÃO!$A:$A,0)),""),"")) -> M2 | F64: 78 | G64: =IF(B64="SINAPI",IFERROR(INDEX(SINAPI!$D:$D,MATCH($C64,SINAPI!$A:$A,0)),0),IF(B64="COMPOSIÇÃO",IFERROR(INDEX(COMPOSIÇÃO!$G:$G,MATCH($C64,COMPOSIÇÃO!$A:$A,0)),0),0)) -> 135.58 | H64: 163.2987377 | I64: 12737.3
A65: 4.1.9 | B65: SINAPI | C65: 96558 | D65: =IF(B65="SINAPI",IFERROR(INDEX(SINAPI!$B:$B,MATCH($C65,SINAPI!$A:$A,0)),""),IF(B65="COMPOSIÇÃO",IFERROR(INDEX(COMPOSIÇÃO!$C:$C,MATCH($C65,COMPOSIÇÃO!$A:$A,0)),""),"")) -> CONCRETAGEM DE SAPATAS, FCK 30 MPA, COM USO DE BOMBA  LANÇAMENTO, ADENSAMENTO E ACABAMENTO. AF_11/2016 | E65: =IF(B65="SINAPI",IFERROR(INDEX(SINAPI!$C:$C,MATCH($C65,SINAPI!$A:$A,0)),""),IF(B65="COMPOSIÇÃO",IFERROR(INDEX(COMPOSIÇÃO!$D:$D,MATCH($C65,COMPOSIÇÃO!$A:$A,0)),""),"")) -> M3 | F65: 26 | G65: =IF(B65="SINAPI",IFERROR(INDEX(SINAPI!$D:$D,MATCH($C65,SINAPI!$A:$A,0)),0),IF(B65="COMPOSIÇÃO",IFERROR(INDEX(COMPOSIÇÃO!$G:$G,MATCH($C65,COMPOSIÇÃO!$A:$A,0)),0),0)) -> 615.76 | H65: 741.6494373 | I65: 19282.89
A66: 4.2 | D66: Viga Baldrame | I66: =SUM(I67:I73) -> 163649.39
A67: 4.2.1 | B67: SINAPI | C67: 96543 | D67: =IF(B67="SINAPI",IFERROR(INDEX(SINAPI!$B:$B,MATCH($C67,SINAPI!$A:$A,0)),""),IF(B67="COMPOSIÇÃO",IFERROR(INDEX(COMPOSIÇÃO!$C:$C,MATCH($C67,COMPOSIÇÃO!$A:$A,0)),""),"")) -> ARMAÇÃO DE BLOCO, VIGA BALDRAME E SAPATA UTILIZANDO AÇO CA-60 DE 5 MM - MONTAGEM. AF_06/2017 | E67: =IF(B67="SINAPI",IFERROR(INDEX(SINAPI!$C:$C,MATCH($C67,SINAPI!$A:$A,0)),""),IF(B67="COMPOSIÇÃO",IFERROR(INDEX(COMPOSIÇÃO!$D:$D,MATCH($C67,COMPOSIÇÃO!$A:$A,0)),""),"")) -> KG | F67: 1124.6 | G67: =IF(B67="SINAPI",IFERROR(INDEX(SINAPI!$D:$D,MATCH($C67,SINAPI!$A:$A,0)),0),IF(B67="COMPOSIÇÃO",IFERROR(INDEX(COMPOSIÇÃO!$G:$G,MATCH($C67,COMPOSIÇÃO!$A:$A,0)),0),0)) -> 20.59 | H67: =G67*(1+$I$10) -> 24.79953539 | I67: =ROUND(F67*H67,2) -> 27889.56
A68: 4.2.2 | B68: SINAPI | C68: 96544 | D68: =IF(B68="SINAPI",IFERROR(INDEX(SINAPI!$B:$B,MATCH($C68,SINAPI!$A:$A,0)),""),IF(B68="COMPOSIÇÃO",IFERROR(INDEX(COMPOSIÇÃO!$C:$C,MATCH($C68,COMPOSIÇÃO!$A:$A,0)),""),"")) -> ARMAÇÃO DE BLOCO, VIGA BALDRAME OU SAPATA UTILIZANDO AÇO CA-50 DE 6,3 MM - MONTAGEM. AF_06/2017 | E68: =IF(B68="SINAPI",IFERROR(INDEX(SINAPI!$C:$C,MATCH($C68,SINAPI!$A:$A,0)),""),IF(B68="COMPOSIÇÃO",IFERROR(INDEX(COMPOSIÇÃO!$D:$D,MATCH($C68,COMPOSIÇÃO!$A:$A,0)),""),"")) -> KG | F68: 16.6 | G68: =IF(B68="SINAPI",IFERROR(INDEX(SINAPI!$D:$D,MATCH($C68,SINAPI!$A:$A,0)),0),IF(B68="COMPOSIÇÃO",IFERROR(INDEX(COMPOSIÇÃO!$G:$G,MATCH($C68,COMPOSIÇÃO!$A:$A,0)),0),0)) -> 20.1 | H68: 24.20935704 | I68: 401.88
A69: 4.2.2 | B69: SINAPI | C69: 96545 | D69: =IF(B69="SINAPI",IFERROR(INDEX(SINAPI!$B:$B,MATCH($C69,SINAPI!$A:$A,0)),""),IF(B69="COMPOSIÇÃO",IFERROR(INDEX(COMPOSIÇÃO!$C:$C,MATCH($C69,COMPOSIÇÃO!$A:$A,0)),""),"")) -> ARMAÇÃO DE BLOCO, VIGA BALDRAME OU SAPATA UTILIZANDO AÇO CA-50 DE 8 MM - MONTAGEM. AF_06/2017 | E69: =IF(B69="SINAPI",IFERROR(INDEX(SINAPI!$C:$C,MATCH($C69,SINAPI!$A:$A,0)),""),IF(B69="COMPOSIÇÃO",IFERROR(INDEX(COMPOSIÇÃO!$D:$D,MATCH($C69,COMPOSIÇÃO!$A:$A,0)),""),"")) -> KG | F69: 162 | G69: =IF(B69="SINAPI",IFERROR(INDEX(SINAPI!$D:$D,MATCH($C69,SINAPI!$A:$A,0)),0),IF(B69="COMPOSIÇÃO",IFERROR(INDEX(COMPOSIÇÃO!$G:$G,MATCH($C69,COMPOSIÇÃO!$A:$A,0)),0),0)) -> 19.35 | H69: 23.30602282 | I69: 3775.58
A70: 4.2.2 | B70: SINAPI | C70: 96546 | D70: =IF(B70="SINAPI",IFERROR(INDEX(SINAPI!$B:$B,MATCH($C70,SINAPI!$A:$A,0)),""),IF(B70="COMPOSIÇÃO",IFERROR(INDEX(COMPOSIÇÃO!$C:$C,MATCH($C70,COMPOSIÇÃO!$A:$A,0)),""),"")) -> ARMAÇÃO DE BLOCO, VIGA BALDRAME OU SAPATA UTILIZANDO AÇO CA-50 DE 10 MM - MONTAGEM. AF_06/2017 | E70: =IF(B70="SINAPI",IFERROR(INDEX(SINAPI!$C:$C,MATCH($C70,SINAPI!$A:$A,0)),""),IF(B70="COMPOSIÇÃO",IFERROR(INDEX(COMPOSIÇÃO!$D:$D,MATCH($C70,COMPOSIÇÃO!$A:$A,0)),""),"")) -> KG | F70: 1120.5 | G70: =IF(B70="SINAPI",IFERROR(INDEX(SINAPI!$D:$D,MATCH($C70,SINAPI!$A:$A,0)),0),IF(B70="COMPOSIÇÃO",IFERROR(INDEX(COMPOSIÇÃO!$G:$G,MATCH($C70,COMPOSIÇÃO!$A:$A,0)),0),0)) -> 17.53 | H70: 21.11393179 | I70: 23658.16
A71: 4.2.3 | B71: SINAPI | C71: 96547 | D71: =IF(B71="SINAPI",IFERROR(INDEX(SINAPI!$B:$B,MATCH($C71,SINAPI!$A:$A,0)),""),IF(B71="COMPOSIÇÃO",IFERROR(INDEX(COMPOSIÇÃO!$C:$C,MATCH($C71,COMPOSIÇÃO!$A:$A,0)),""),"")) -> ARMAÇÃO DE BLOCO, VIGA BALDRAME OU SAPATA UTILIZANDO AÇO CA-50 DE 12,5 MM - MONTAGEM. AF_06/2017 | E71: =IF(B71="SINAPI",IFERROR(INDEX(SINAPI!$C:$C,MATCH($C71,SINAPI!$A:$A,0)),""),IF(B71="COMPOSIÇÃO",IFERROR(INDEX(COMPOSIÇÃO!$D:$D,MATCH($C71,COMPOSIÇÃO!$A:$A,0)),""),"")) -> KG | F71: 913.6 | G71: =IF(B71="SINAPI",IFERROR(INDEX(SINAPI!$D:$D,MATCH($C71,SINAPI!$A:$A,0)),0),IF(B71="COMPOSIÇÃO",IFERROR(INDEX(COMPOSIÇÃO!$G:$G,MATCH($C71,COMPOSIÇÃO!$A:$A,0)),0),0)) -> 14.92 | H71: 17.97032871 | I71: 16417.69
A72: 4.2.6 | B72: SINAPI | C72: 92269 | D72: =IF(B72="SINAPI",IFERROR(INDEX(SINAPI!$B:$B,MATCH($C72,SINAPI!$A:$A,0)),""),IF(B72="COMPOSIÇÃO",IFERROR(INDEX(COMPOSIÇÃO!$C:$C,MATCH($C72,COMPOSIÇÃO!$A:$A,0)),""),"")) -> FABRICAÇÃO DE FÔRMA PARA PILARES E ESTRUTURAS SIMILARES, EM MADEIRA SERRADA, E=25 MM. AF_09/2020 | E72: =IF(B72="SINAPI",IFERROR(INDEX(SINAPI!$C:$C,MATCH($C72,SINAPI!$A:$A,0)),""),IF(B72="COMPOSIÇÃO",IFERROR(INDEX(COMPOSIÇÃO!$D:$D,MATCH($C72,COMPOSIÇÃO!$A:$A,0)),""),"")) -> M2 | F72: 235.5 | G72: =IF(B72="SINAPI",IFERROR(INDEX(SINAPI!$D:$D,MATCH($C72,SINAPI!$A:$A,0)),0),IF(B72="COMPOSIÇÃO",IFERROR(INDEX(COMPOSIÇÃO!$G:$G,MATCH($C72,COMPOSIÇÃO!$A:$A,0)),0),0)) -> 135.58 | H72: 163.2987377 | I72: 38456.85
A73: 4.2.7 | B73: SINAPI | C73: 96557 | D73: =IF(B73="SINAPI",IFERROR(INDEX(SINAPI!$B:$B,MATCH($C73,SINAPI!$A:$A,0)),""),IF(B73="COMPOSIÇÃO",IFERROR(INDEX(COMPOSIÇÃO!$C:$C,MATCH($C73,COMPOSIÇÃO!$A:$A,0)),""),"")) -> CONCRETAGEM DE BLOCOS DE COROAMENTO E VIGAS BALDRAMES, FCK 30 MPA, COM USO DE BOMBA  LANÇAMENTO, ADENSAMENTO E ACABAMENTO. AF_06/2017 | E73: =IF(B73="SINAPI",IFERROR(INDEX(SINAPI!$C:$C,MATCH($C73,SINAPI!$A:$A,0)),""),IF(B73="COMPOSIÇÃO",IFERROR(INDEX(COMPOSIÇÃO!$D:$D,MATCH($C73,COMPOSIÇÃO!$A:$A,0)),""),"")) -> M3 | F73: 72.2 | G73: =IF(B73="SINAPI",IFERROR(INDEX(SINAPI!$D:$D,MATCH($C73,SINAPI!$A:$A,0)),0),IF(B73="COMPOSIÇÃO",IFERROR(INDEX(COMPOSIÇÃO!$G:$G,MATCH($C73,COMPOSIÇÃO!$A:$A,0)),0),0)) -> 610.04 | H73: 734.7600083 | I73: 53049.67
A74: 5.0 | D74: SUPERESTRUTURA | I74: =I75+I83+I99+I108 -> 1935201.42
A75: 5.1 | D75: Pilar | I75: =SUM(I76:I82) -> 401128.63
A76: 5.1.1 | B76: SINAPI | C76: 92759 | D76: =IF(B76="SINAPI",IFERROR(INDEX(SINAPI!$B:$B,MATCH($C76,SINAPI!$A:$A,0)),""),IF(B76="COMPOSIÇÃO",IFERROR(INDEX(COMPOSIÇÃO!$C:$C,MATCH($C76,COMPOSIÇÃO!$A:$A,0)),""),"")) -> ARMAÇÃO DE PILAR OU VIGA DE UMA ESTRUTURA CONVENCIONAL DE CONCRETO ARMADO EM UM EDIFÍCIO DE MÚLTIPLOS PAVIMENTOS UTILIZANDO AÇO CA-60 DE 5,0 MM - MONTAGEM. AF_12/2015 | E76: =IF(B76="SINAPI",IFERROR(INDEX(SINAPI!$C:$C,MATCH($C76,SINAPI!$A:$A,0)),""),IF(B76="COMPOSIÇÃO",IFERROR(INDEX(COMPOSIÇÃO!$D:$D,MATCH($C76,COMPOSIÇÃO!$A:$A,0)),""),"")) -> KG | F76: 1801.4 | G76: =IF(B76="SINAPI",IFERROR(INDEX(SINAPI!$D:$D,MATCH($C76,SINAPI!$A:$A,0)),0),IF(B76="COMPOSIÇÃO",IFERROR(INDEX(COMPOSIÇÃO!$G:$G,MATCH($C76,COMPOSIÇÃO!$A:$A,0)),0),0)) -> 18.39 | H76: =G76*(1+$I$10) -> 22.14975502 | I76: =ROUND(F76*H76,2) -> 39900.57
A77: 5.1.2 | B77: SINAPI | C77: 92762 | D77: =IF(B77="SINAPI",IFERROR(INDEX(SINAPI!$B:$B,MATCH($C77,SINAPI!$A:$A,0)),""),IF(B77="COMPOSIÇÃO",IFERROR(INDEX(COMPOSIÇÃO!$C:$C,MATCH($C77,COMPOSIÇÃO!$A:$A,0)),""),"")) -> ARMAÇÃO DE PILAR OU VIGA DE UMA ESTRUTURA CONVENCIONAL DE CONCRETO ARMADO EM UM EDIFÍCIO DE MÚLTIPLOS PAVIMENTOS UTILIZANDO AÇO CA-50 DE 10,0 MM - MONTAGEM. AF_12/2015 | E77: =IF(B77="SINAPI",IFERROR(INDEX(SINAPI!$C:$C,MATCH($C77,SINAPI!$A:$A,0)),""),IF(B77="COMPOSIÇÃO",IFERROR(INDEX(COMPOSIÇÃO!$D:$D,MATCH($C77,COMPOSIÇÃO!$A:$A,0)),""),"")) -> KG | F77: 1448.1 | G77: =IF(B77="SINAPI",IFERROR(INDEX(SINAPI!$D:$D,MATCH($C77,SINAPI!$A:$A,0)),0),IF(B77="COMPOSIÇÃO",IFERROR(INDEX(COMPOSIÇÃO!$G:$G,MATCH($C77,COMPOSIÇÃO!$A:$A,0)),0),0)) -> 16.53 | H77: 19.90948616 | I77: 28830.93
A78: 5.1.3 | B78: SINAPI | C78: 92763 | D78: =IF(B78="SINAPI",IFERROR(INDEX(SINAPI!$B:$B,MATCH($C78,SINAPI!$A:$A,0)),""),IF(B78="COMPOSIÇÃO",IFERROR(INDEX(COMPOSIÇÃO!$C:$C,MATCH($C78,COMPOSIÇÃO!$A:$A,0)),""),"")) -> ARMAÇÃO DE PILAR OU VIGA DE UMA ESTRUTURA CONVENCIONAL DE CONCRETO ARMADO EM UM EDIFÍCIO DE MÚLTIPLOS PAVIMENTOS UTILIZANDO AÇO CA-50 DE 12,5 MM - MONTAGEM. AF_12/2015 | E78: =IF(B78="SINAPI",IFERROR(INDEX(SINAPI!$C:$C,MATCH($C78,SINAPI!$A:$A,0)),""),IF(B78="COMPOSIÇÃO",IFERROR(INDEX(COMPOSIÇÃO!$D:$D,MATCH($C78,COMPOSIÇÃO!$A:$A,0)),""),"")) -> KG | F78: 1542.2 | G78: =IF(B78="SINAPI",IFERROR(INDEX(SINAPI!$D:$D,MATCH($C78,SINAPI!$A:$A,0)),0),IF(B78="COMPOSIÇÃO",IFERROR(INDEX(COMPOSIÇÃO!$G:$G,MATCH($C78,COMPOSIÇÃO!$A:$A,0)),0),0)) -> 14.12 | H78: 17.00677221 | I78: 26227.84
A79: 5.1.4 | B79: SINAPI | C79: 92764 | D79: =IF(B79="SINAPI",IFERROR(INDEX(SINAPI!$B:$B,MATCH($C79,SINAPI!$A:$A,0)),""),IF(B79="COMPOSIÇÃO",IFERROR(INDEX(COMPOSIÇÃO!$C:$C,MATCH($C79,COMPOSIÇÃO!$A:$A,0)),""),"")) -> ARMAÇÃO DE PILAR OU VIGA DE UMA ESTRUTURA CONVENCIONAL DE CONCRETO ARMADO EM UM EDIFÍCIO DE MÚLTIPLOS PAVIMENTOS UTILIZANDO AÇO CA-50 DE 16,0 MM - MONTAGEM. AF_12/2015 | E79: =IF(B79="SINAPI",IFERROR(INDEX(SINAPI!$C:$C,MATCH($C79,SINAPI!$A:$A,0)),""),IF(B79="COMPOSIÇÃO",IFERROR(INDEX(COMPOSIÇÃO!$D:$D,MATCH($C79,COMPOSIÇÃO!$A:$A,0)),""),"")) -> KG | F79: 4546.1 | G79: =IF(B79="SINAPI",IFERROR(INDEX(SINAPI!$D:$D,MATCH($C79,SINAPI!$A:$A,0)),0),IF(B79="COMPOSIÇÃO",IFERROR(INDEX(COMPOSIÇÃO!$G:$G,MATCH($C79,COMPOSIÇÃO!$A:$A,0)),0),0)) -> 13.74 | H79: 16.54908287 | I79: 75233.79
A80: 5.1.4 | B80: SINAPI | C80: 92765 | D80: =IF(B80="SINAPI",IFERROR(INDEX(SINAPI!$B:$B,MATCH($C80,SINAPI!$A:$A,0)),""),IF(B80="COMPOSIÇÃO",IFERROR(INDEX(COMPOSIÇÃO!$C:$C,MATCH($C80,COMPOSIÇÃO!$A:$A,0)),""),"")) -> ARMAÇÃO DE PILAR OU VIGA DE UMA ESTRUTURA CONVENCIONAL DE CONCRETO ARMADO EM UM EDIFÍCIO DE MÚLTIPLOS PAVIMENTOS UTILIZANDO AÇO CA-50 DE 20,0 MM - MONTAGEM. AF_12/2015 | E80: =IF(B80="SINAPI",IFERROR(INDEX(SINAPI!$C:$C,MATCH($C80,SINAPI!$A:$A,0)),""),IF(B80="COMPOSIÇÃO",IFERROR(INDEX(COMPOSIÇÃO!$D:$D,MATCH($C80,COMPOSIÇÃO!$A:$A,0)),""),"")) -> KG | F80: 1066.9 | G80: =IF(B80="SINAPI",IFERROR(INDEX(SINAPI!$D:$D,MATCH($C80,SINAPI!$A:$A,0)),0),IF(B80="COMPOSIÇÃO",IFERROR(INDEX(COMPOSIÇÃO!$G:$G,MATCH($C80,COMPOSIÇÃO!$A:$A,0)),0),0)) -> 15.79 | H80: 19.0181964 | I80: 20290.51
A81: 5.1.5 | B81: COMPOSIÇÃO | C81: COMP-92414 | D81: =IF(B81="SINAPI",IFERROR(INDEX(SINAPI!$B:$B,MATCH($C81,SINAPI!$A:$A,0)),""),IF(B81="COMPOSIÇÃO",IFERROR(INDEX(COMPOSIÇÃO!$C:$C,MATCH($C81,COMPOSIÇÃO!$A:$A,0)),""),"")) -> MONTAGEM E DESMONTAGEM DE FÔRMA DE PILARES RETANGULARES E ESTRUTURAS SIMILARES COM ÁREA MÉDIA DAS SEÇÕES MENOR OU IGUAL A 0,25 M², PÉ-DIREITO SIMPLES, EM CHAPA DE MADEIRA COMPENSADA RESINADA, 2 UTILIZAÇÕES. AF_12/2015 | E81: =IF(B81="SINAPI",IFERROR(INDEX(SINAPI!$C:$C,MATCH($C81,SINAPI!$A:$A,0)),""),IF(B81="COMPOSIÇÃO",IFERROR(INDEX(COMPOSIÇÃO!$D:$D,MATCH($C81,COMPOSIÇÃO!$A:$A,0)),""),"")) -> M2 | F81: 968.3 | G81: =IF(B81="SINAPI",IFERROR(INDEX(SINAPI!$D:$D,MATCH($C81,SINAPI!$A:$A,0)),0),IF(B81="COMPOSIÇÃO",IFERROR(INDEX(COMPOSIÇÃO!$G:$G,MATCH($C81,COMPOSIÇÃO!$A:$A,0)),0),0)) -> 115.63414 | H81: 139.2750339 | I81: 134860.02
A82: 5.1.6 | B82: SINAPI | C82: 92722 | D82: =IF(B82="SINAPI",IFERROR(INDEX(SINAPI!$B:$B,MATCH($C82,SINAPI!$A:$A,0)),""),IF(B82="COMPOSIÇÃO",IFERROR(INDEX(COMPOSIÇÃO!$C:$C,MATCH($C82,COMPOSIÇÃO!$A:$A,0)),""),"")) -> CONCRETAGEM DE PILARES, FCK = 25 MPA, COM USO DE BOMBA EM EDIFICAÇÃO COM SEÇÃO MÉDIA DE PILARES MAIOR QUE 0,25 M² - LANÇAMENTO, ADENSAMENTO E ACABAMENTO. AF_12/2015 | E82: =IF(B82="SINAPI",IFERROR(INDEX(SINAPI!$C:$C,MATCH($C82,SINAPI!$A:$A,0)),""),IF(B82="COMPOSIÇÃO",IFERROR(INDEX(COMPOSIÇÃO!$D:$D,MATCH($C82,COMPOSIÇÃO!$A:$A,0)),""),"")) -> M3 | F82: 109.2 | G82: =IF(B82="SINAPI",IFERROR(INDEX(SINAPI!$D:$D,MATCH($C82,SINAPI!$A:$A,0)),0),IF(B82="COMPOSIÇÃO",IFERROR(INDEX(COMPOSIÇÃO!$G:$G,MATCH($C82,COMPOSIÇÃO!$A:$A,0)),0),0)) -> 576.2 | H82: 694.0015684 | I82: 75784.97
A83: 5.2 | D83: Viga | I83: =SUM(I84:I98) -> 1046375.69
A84: 5.2.1 | B84: SINAPI | C84: 92759 | D84: =IF(B84="SINAPI",IFERROR(INDEX(SINAPI!$B:$B,MATCH($C84,SINAPI!$A:$A,0)),""),IF(B84="COMPOSIÇÃO",IFERROR(INDEX(COMPOSIÇÃO!$C:$C,MATCH($C84,COMPOSIÇÃO!$A:$A,0)),""),"")) -> ARMAÇÃO DE PILAR OU VIGA DE UMA ESTRUTURA CONVENCIONAL DE CONCRETO ARMADO EM UM EDIFÍCIO DE MÚLTIPLOS PAVIMENTOS UTILIZANDO AÇO CA-60 DE 5,0 MM - MONTAGEM. AF_12/2015 | E84: =IF(B84="SINAPI",IFERROR(INDEX(SINAPI!$C:$C,MATCH($C84,SINAPI!$A:$A,0)),""),IF(B84="COMPOSIÇÃO",IFERROR(INDEX(COMPOSIÇÃO!$D:$D,MATCH($C84,COMPOSIÇÃO!$A:$A,0)),""),"")) -> KG | F84: 3379.2 | G84: =IF(B84="SINAPI",IFERROR(INDEX(SINAPI!$D:$D,MATCH($C84,SINAPI!$A:$A,0)),0),IF(B84="COMPOSIÇÃO",IFERROR(INDEX(COMPOSIÇÃO!$G:$G,MATCH($C84,COMPOSIÇÃO!$A:$A,0)),0),0)) -> 18.39 | H84: =G84*(1+$I$10) -> 22.14975502 | I84: =ROUND(F84*H84,2) -> 74848.45
A85: 5.2.2 | B85: SINAPI | C85: 92760 | D85: =IF(B85="SINAPI",IFERROR(INDEX(SINAPI!$B:$B,MATCH($C85,SINAPI!$A:$A,0)),""),IF(B85="COMPOSIÇÃO",IFERROR(INDEX(COMPOSIÇÃO!$C:$C,MATCH($C85,COMPOSIÇÃO!$A:$A,0)),""),"")) -> ARMAÇÃO DE PILAR OU VIGA DE UMA ESTRUTURA CONVENCIONAL DE CONCRETO ARMADO EM UM EDIFÍCIO DE MÚLTIPLOS PAVIMENTOS UTILIZANDO AÇO CA-50 DE 6,3 MM - MONTAGEM. AF_12/2015 | E85: =IF(B85="SINAPI",IFERROR(INDEX(SINAPI!$C:$C,MATCH($C85,SINAPI!$A:$A,0)),""),IF(B85="COMPOSIÇÃO",IFERROR(INDEX(COMPOSIÇÃO!$D:$D,MATCH($C85,COMPOSIÇÃO!$A:$A,0)),""),"")) -> KG | F85: 39.5 | G85: =IF(B85="SINAPI",IFERROR(INDEX(SINAPI!$D:$D,MATCH($C85,SINAPI!$A:$A,0)),0),IF(B85="COMPOSIÇÃO",IFERROR(INDEX(COMPOSIÇÃO!$G:$G,MATCH($C85,COMPOSIÇÃO!$A:$A,0)),0),0)) -> 18.45 | H85: 22.22202176 | I85: 877.77
A86: 5.2.3 | B86: SINAPI | C86: 92761 | D86: =IF(B86="SINAPI",IFERROR(INDEX(SINAPI!$B:$B,MATCH($C86,SINAPI!$A:$A,0)),""),IF(B86="COMPOSIÇÃO",IFERROR(INDEX(COMPOSIÇÃO!$C:$C,MATCH($C86,COMPOSIÇÃO!$A:$A,0)),""),"")) -> ARMAÇÃO DE PILAR OU VIGA DE UMA ESTRUTURA CONVENCIONAL DE CONCRETO ARMADO EM UM EDIFÍCIO DE MÚLTIPLOS PAVIMENTOS UTILIZANDO AÇO CA-50 DE 8,0 MM - MONTAGEM. AF_12/2015 | E86: =IF(B86="SINAPI",IFERROR(INDEX(SINAPI!$C:$C,MATCH($C86,SINAPI!$A:$A,0)),""),IF(B86="COMPOSIÇÃO",IFERROR(INDEX(COMPOSIÇÃO!$D:$D,MATCH($C86,COMPOSIÇÃO!$A:$A,0)),""),"")) -> KG | F86: 2140.6 | G86: =IF(B86="SINAPI",IFERROR(INDEX(SINAPI!$D:$D,MATCH($C86,SINAPI!$A:$A,0)),0),IF(B86="COMPOSIÇÃO",IFERROR(INDEX(COMPOSIÇÃO!$G:$G,MATCH($C86,COMPOSIÇÃO!$A:$A,0)),0),0)) -> 18.08 | H86: 21.77637688 | I86: 46614.51
A87: 5.1.2 | B87: SINAPI | C87: 92762 | D87: =IF(B87="SINAPI",IFERROR(INDEX(SINAPI!$B:$B,MATCH($C87,SINAPI!$A:$A,0)),""),IF(B87="COMPOSIÇÃO",IFERROR(INDEX(COMPOSIÇÃO!$C:$C,MATCH($C87,COMPOSIÇÃO!$A:$A,0)),""),"")) -> ARMAÇÃO DE PILAR OU VIGA DE UMA ESTRUTURA CONVENCIONAL DE CONCRETO ARMADO EM UM EDIFÍCIO DE MÚLTIPLOS PAVIMENTOS UTILIZANDO AÇO CA-50 DE 10,0 MM - MONTAGEM. AF_12/2015 | E87: =IF(B87="SINAPI",IFERROR(INDEX(SINAPI!$C:$C,MATCH($C87,SINAPI!$A:$A,0)),""),IF(B87="COMPOSIÇÃO",IFERROR(INDEX(COMPOSIÇÃO!$D:$D,MATCH($C87,COMPOSIÇÃO!$A:$A,0)),""),"")) -> KG | F87: 2232.5 | G87: =IF(B87="SINAPI",IFERROR(INDEX(SINAPI!$D:$D,MATCH($C87,SINAPI!$A:$A,0)),0),IF(B87="COMPOSIÇÃO",IFERROR(INDEX(COMPOSIÇÃO!$G:$G,MATCH($C87,COMPOSIÇÃO!$A:$A,0)),0),0)) -> 16.53 | H87: 19.90948616 | I87: 44447.93
A88: 5.2.4 | B88: SINAPI | C88: 92763 | D88: =IF(B88="SINAPI",IFERROR(INDEX(SINAPI!$B:$B,MATCH($C88,SINAPI!$A:$A,0)),""),IF(B88="COMPOSIÇÃO",IFERROR(INDEX(COMPOSIÇÃO!$C:$C,MATCH($C88,COMPOSIÇÃO!$A:$A,0)),""),"")) -> ARMAÇÃO DE PILAR OU VIGA DE UMA ESTRUTURA CONVENCIONAL DE CONCRETO ARMADO EM UM EDIFÍCIO DE MÚLTIPLOS PAVIMENTOS UTILIZANDO AÇO CA-50 DE 12,5 MM - MONTAGEM. AF_12/2015 | E88: =IF(B88="SINAPI",IFERROR(INDEX(SINAPI!$C:$C,MATCH($C88,SINAPI!$A:$A,0)),""),IF(B88="COMPOSIÇÃO",IFERROR(INDEX(COMPOSIÇÃO!$D:$D,MATCH($C88,COMPOSIÇÃO!$A:$A,0)),""),"")) -> KG | F88: 5208.5 | G88: =IF(B88="SINAPI",IFERROR(INDEX(SINAPI!$D:$D,MATCH($C88,SINAPI!$A:$A,0)),0),IF(B88="COMPOSIÇÃO",IFERROR(INDEX(COMPOSIÇÃO!$G:$G,MATCH($C88,COMPOSIÇÃO!$A:$A,0)),0),0)) -> 14.12 | H88: 17.00677221 | I88: 88579.77
A89: 5.1.4 | B89: SINAPI | C89: 92764 | D89: =IF(B89="SINAPI",IFERROR(INDEX(SINAPI!$B:$B,MATCH($C89,SINAPI!$A:$A,0)),""),IF(B89="COMPOSIÇÃO",IFERROR(INDEX(COMPOSIÇÃO!$C:$C,MATCH($C89,COMPOSIÇÃO!$A:$A,0)),""),"")) -> ARMAÇÃO DE PILAR OU VIGA DE UMA ESTRUTURA CONVENCIONAL DE CONCRETO ARMADO EM UM EDIFÍCIO DE MÚLTIPLOS PAVIMENTOS UTILIZANDO AÇO CA-50 DE 16,0 MM - MONTAGEM. AF_12/2015 | E89: =IF(B89="SINAPI",IFERROR(INDEX(SINAPI!$C:$C,MATCH($C89,SINAPI!$A:$A,0)),""),IF(B89="COMPOSIÇÃO",IFERROR(INDEX(COMPOSIÇÃO!$D:$D,MATCH($C89,COMPOSIÇÃO!$A:$A,0)),""),"")) -> KG | F89: 3948.5 | G89: =IF(B89="SINAPI",IFERROR(INDEX(SINAPI!$D:$D,MATCH($C89,SINAPI!$A:$A,0)),0),IF(B89="COMPOSIÇÃO",IFERROR(INDEX(COMPOSIÇÃO!$G:$G,MATCH($C89,COMPOSIÇÃO!$A:$A,0)),0),0)) -> 13.74 | H89: 16.54908287 | I89: 65344.05
A90: 5.1.4 | B90: SINAPI | C90: 92765 | D90: =IF(B90="SINAPI",IFERROR(INDEX(SINAPI!$B:$B,MATCH($C90,SINAPI!$A:$A,0)),""),IF(B90="COMPOSIÇÃO",IFERROR(INDEX(COMPOSIÇÃO!$C:$C,MATCH($C90,COMPOSIÇÃO!$A:$A,0)),""),"")) -> ARMAÇÃO DE PILAR OU VIGA DE UMA ESTRUTURA CONVENCIONAL DE CONCRETO ARMADO EM UM EDIFÍCIO DE MÚLTIPLOS PAVIMENTOS UTILIZANDO AÇO CA-50 DE 20,0 MM - MONTAGEM. AF_12/2015 | E90: =IF(B90="SINAPI",IFERROR(INDEX(SINAPI!$C:$C,MATCH($C90,SINAPI!$A:$A,0)),""),IF(B90="COMPOSIÇÃO",IFERROR(INDEX(COMPOSIÇÃO!$D:$D,MATCH($C90,COMPOSIÇÃO!$A:$A,0)),""),"")) -> KG | F90: 947.8 | G90: =IF(B90="SINAPI",IFERROR(INDEX(SINAPI!$D:$D,MATCH($C90,SINAPI!$A:$A,0)),0),IF(B90="COMPOSIÇÃO",IFERROR(INDEX(COMPOSIÇÃO!$G:$G,MATCH($C90,COMPOSIÇÃO!$A:$A,0)),0),0)) -> 15.79 | H90: 19.0181964 | I90: 18025.45
A91: 5.2.1 | B91: SINAPI | C91: 95943 | D91: =IF(B91="SINAPI",IFERROR(INDEX(SINAPI!$B:$B,MATCH($C91,SINAPI!$A:$A,0)),""),IF(B91="COMPOSIÇÃO",IFERROR(INDEX(COMPOSIÇÃO!$C:$C,MATCH($C91,COMPOSIÇÃO!$A:$A,0)),""),"")) -> ARMAÇÃO DE ESCADA, DE UMA ESTRUTURA CONVENCIONAL DE CONCRETO ARMADO UTILIZANDO AÇO CA-60 DE 5,0 MM - MONTAGEM. AF_11/2020 | E91: =IF(B91="SINAPI",IFERROR(INDEX(SINAPI!$C:$C,MATCH($C91,SINAPI!$A:$A,0)),""),IF(B91="COMPOSIÇÃO",IFERROR(INDEX(COMPOSIÇÃO!$D:$D,MATCH($C91,COMPOSIÇÃO!$A:$A,0)),""),"")) -> KG | F91: 1836.1 | G91: =IF(B91="SINAPI",IFERROR(INDEX(SINAPI!$D:$D,MATCH($C91,SINAPI!$A:$A,0)),0),IF(B91="COMPOSIÇÃO",IFERROR(INDEX(COMPOSIÇÃO!$G:$G,MATCH($C91,COMPOSIÇÃO!$A:$A,0)),0),0)) -> 23.28 | H91: 28.03949412 | I91: 51483.32
A92: 5.2.1 | B92: SINAPI | C92: 95944 | D92: =IF(B92="SINAPI",IFERROR(INDEX(SINAPI!$B:$B,MATCH($C92,SINAPI!$A:$A,0)),""),IF(B92="COMPOSIÇÃO",IFERROR(INDEX(COMPOSIÇÃO!$C:$C,MATCH($C92,COMPOSIÇÃO!$A:$A,0)),""),"")) -> ARMAÇÃO DE ESCADA, DE UMA ESTRUTURA CONVENCIONAL DE CONCRETO ARMADO UTILIZANDO AÇO CA-50 DE 6,3 MM - MONTAGEM. AF_11/2020 | E92: =IF(B92="SINAPI",IFERROR(INDEX(SINAPI!$C:$C,MATCH($C92,SINAPI!$A:$A,0)),""),IF(B92="COMPOSIÇÃO",IFERROR(INDEX(COMPOSIÇÃO!$D:$D,MATCH($C92,COMPOSIÇÃO!$A:$A,0)),""),"")) -> KG | F92: 46.3 | G92: =IF(B92="SINAPI",IFERROR(INDEX(SINAPI!$D:$D,MATCH($C92,SINAPI!$A:$A,0)),0),IF(B92="COMPOSIÇÃO",IFERROR(INDEX(COMPOSIÇÃO!$G:$G,MATCH($C92,COMPOSIÇÃO!$A:$A,0)),0),0)) -> 22.65 | H92: 27.28069338 | I92: 1263.1
A93: 5.2.1 | B93: SINAPI | C93: 95946 | D93: =IF(B93="SINAPI",IFERROR(INDEX(SINAPI!$B:$B,MATCH($C93,SINAPI!$A:$A,0)),""),IF(B93="COMPOSIÇÃO",IFERROR(INDEX(COMPOSIÇÃO!$C:$C,MATCH($C93,COMPOSIÇÃO!$A:$A,0)),""),"")) -> ARMAÇÃO DE ESCADA, DE UMA ESTRUTURA CONVENCIONAL DE CONCRETO ARMADO UTILIZANDO AÇO CA-50 DE 10,0 MM - MONTAGEM. AF_11/2020 | E93: =IF(B93="SINAPI",IFERROR(INDEX(SINAPI!$C:$C,MATCH($C93,SINAPI!$A:$A,0)),""),IF(B93="COMPOSIÇÃO",IFERROR(INDEX(COMPOSIÇÃO!$D:$D,MATCH($C93,COMPOSIÇÃO!$A:$A,0)),""),"")) -> KG | F93: 750 | G93: =IF(B93="SINAPI",IFERROR(INDEX(SINAPI!$D:$D,MATCH($C93,SINAPI!$A:$A,0)),0),IF(B93="COMPOSIÇÃO",IFERROR(INDEX(COMPOSIÇÃO!$G:$G,MATCH($C93,COMPOSIÇÃO!$A:$A,0)),0),0)) -> 17.34 | H93: 20.88508712 | I93: 15663.82
A94: 5.2.1 | B94: SINAPI | C94: 95947 | D94: =IF(B94="SINAPI",IFERROR(INDEX(SINAPI!$B:$B,MATCH($C94,SINAPI!$A:$A,0)),""),IF(B94="COMPOSIÇÃO",IFERROR(INDEX(COMPOSIÇÃO!$C:$C,MATCH($C94,COMPOSIÇÃO!$A:$A,0)),""),"")) -> ARMAÇÃO DE ESCADA, DE UMA ESTRUTURA CONVENCIONAL DE CONCRETO ARMADO UTILIZANDO AÇO CA-50 DE 12,5 MM - MONTAGEM. AF_11/2020 | E94: =IF(B94="SINAPI",IFERROR(INDEX(SINAPI!$C:$C,MATCH($C94,SINAPI!$A:$A,0)),""),IF(B94="COMPOSIÇÃO",IFERROR(INDEX(COMPOSIÇÃO!$D:$D,MATCH($C94,COMPOSIÇÃO!$A:$A,0)),""),"")) -> KG | F94: 579.2 | G94: =IF(B94="SINAPI",IFERROR(INDEX(SINAPI!$D:$D,MATCH($C94,SINAPI!$A:$A,0)),0),IF(B94="COMPOSIÇÃO",IFERROR(INDEX(COMPOSIÇÃO!$G:$G,MATCH($C94,COMPOSIÇÃO!$A:$A,0)),0),0)) -> 14.13 | H94: 17.01881666 | I94: 9857.3
A95: 5.2.6 | B95: SINAPI | C95: 95948 | D95: =IF(B95="SINAPI",IFERROR(INDEX(SINAPI!$B:$B,MATCH($C95,SINAPI!$A:$A,0)),""),IF(B95="COMPOSIÇÃO",IFERROR(INDEX(COMPOSIÇÃO!$C:$C,MATCH($C95,COMPOSIÇÃO!$A:$A,0)),""),"")) -> ARMAÇÃO DE ESCADA, DE UMA ESTRUTURA CONVENCIONAL DE CONCRETO ARMADO UTILIZANDO AÇO CA-50 DE 16,0 MM - MONTAGEM. AF_11/2020 | E95: =IF(B95="SINAPI",IFERROR(INDEX(SINAPI!$C:$C,MATCH($C95,SINAPI!$A:$A,0)),""),IF(B95="COMPOSIÇÃO",IFERROR(INDEX(COMPOSIÇÃO!$D:$D,MATCH($C95,COMPOSIÇÃO!$A:$A,0)),""),"")) -> KG | F95: 460.6 | G95: =IF(B95="SINAPI",IFERROR(INDEX(SINAPI!$D:$D,MATCH($C95,SINAPI!$A:$A,0)),0),IF(B95="COMPOSIÇÃO",IFERROR(INDEX(COMPOSIÇÃO!$G:$G,MATCH($C95,COMPOSIÇÃO!$A:$A,0)),0),0)) -> 13.27 | H95: 15.98299343 | I95: 7361.77
A96: 5.2.7 | B96: SINAPI | C96: 92764 | D96: =IF(B96="SINAPI",IFERROR(INDEX(SINAPI!$B:$B,MATCH($C96,SINAPI!$A:$A,0)),""),IF(B96="COMPOSIÇÃO",IFERROR(INDEX(COMPOSIÇÃO!$C:$C,MATCH($C96,COMPOSIÇÃO!$A:$A,0)),""),"")) -> ARMAÇÃO DE PILAR OU VIGA DE UMA ESTRUTURA CONVENCIONAL DE CONCRETO ARMADO EM UM EDIFÍCIO DE MÚLTIPLOS PAVIMENTOS UTILIZANDO AÇO CA-50 DE 16,0 MM - MONTAGEM. AF_12/2015 | E96: =IF(B96="SINAPI",IFERROR(INDEX(SINAPI!$C:$C,MATCH($C96,SINAPI!$A:$A,0)),""),IF(B96="COMPOSIÇÃO",IFERROR(INDEX(COMPOSIÇÃO!$D:$D,MATCH($C96,COMPOSIÇÃO!$A:$A,0)),""),"")) -> KG | F96: 2961.82 | G96: =IF(B96="SINAPI",IFERROR(INDEX(SINAPI!$D:$D,MATCH($C96,SINAPI!$A:$A,0)),0),IF(B96="COMPOSIÇÃO",IFERROR(INDEX(COMPOSIÇÃO!$G:$G,MATCH($C96,COMPOSIÇÃO!$A:$A,0)),0),0)) -> 13.74 | H96: 16.54908287 | I96: 49015.4
A97: 5.2.9 | B97: SINAPI | C97: 92452 | D97: =IF(B97="SINAPI",IFERROR(INDEX(SINAPI!$B:$B,MATCH($C97,SINAPI!$A:$A,0)),""),IF(B97="COMPOSIÇÃO",IFERROR(INDEX(COMPOSIÇÃO!$C:$C,MATCH($C97,COMPOSIÇÃO!$A:$A,0)),""),"")) -> MONTAGEM E DESMONTAGEM DE FÔRMA DE VIGA, ESCORAMENTO METÁLICO, PÉ-DIREITO SIMPLES, EM CHAPA DE MADEIRA RESINADA, 2 UTILIZAÇÕES. AF_09/2020 | E97: =IF(B97="SINAPI",IFERROR(INDEX(SINAPI!$C:$C,MATCH($C97,SINAPI!$A:$A,0)),""),IF(B97="COMPOSIÇÃO",IFERROR(INDEX(COMPOSIÇÃO!$D:$D,MATCH($C97,COMPOSIÇÃO!$A:$A,0)),""),"")) -> M2 | F97: =2521.3+210.2 -> 2731.5 | G97: =IF(B97="SINAPI",IFERROR(INDEX(SINAPI!$D:$D,MATCH($C97,SINAPI!$A:$A,0)),0),IF(B97="COMPOSIÇÃO",IFERROR(INDEX(COMPOSIÇÃO!$G:$G,MATCH($C97,COMPOSIÇÃO!$A:$A,0)),0),0)) -> 125.79 | H97: 151.507215 | I97: 413841.96
A98: 5.2.10 | B98: SINAPI | C98: 92726 | D98: =IF(B98="SINAPI",IFERROR(INDEX(SINAPI!$B:$B,MATCH($C98,SINAPI!$A:$A,0)),""),IF(B98="COMPOSIÇÃO",IFERROR(INDEX(COMPOSIÇÃO!$C:$C,MATCH($C98,COMPOSIÇÃO!$A:$A,0)),""),"")) -> CONCRETAGEM DE VIGAS E LAJES, FCK=20 MPA, PARA LAJES MACIÇAS OU NERVURADAS COM USO DE BOMBA EM EDIFICAÇÃO COM ÁREA MÉDIA DE LAJES MAIOR QUE 20 M² - LANÇAMENTO, ADENSAMENTO E ACABAMENTO. AF_12/2015 | E98: =IF(B98="SINAPI",IFERROR(INDEX(SINAPI!$C:$C,MATCH($C98,SINAPI!$A:$A,0)),""),IF(B98="COMPOSIÇÃO",IFERROR(INDEX(COMPOSIÇÃO!$D:$D,MATCH($C98,COMPOSIÇÃO!$A:$A,0)),""),"")) -> M3 | F98: =216.9+20.35 -> 237.25 | G98: =IF(B98="SINAPI",IFERROR(INDEX(SINAPI!$D:$D,MATCH($C98,SINAPI!$A:$A,0)),0),IF(B98="COMPOSIÇÃO",IFERROR(INDEX(COMPOSIÇÃO!$G:$G,MATCH($C98,COMPOSIÇÃO!$A:$A,0)),0),0)) -> 556.95 | H98: 670.8159902 | I98: 159151.09
A99: 5.3 | D99: Laje | I99: =SUM(I100:I107) -> 484359.11
A100: 5.3.1 | B100: SINAPI | C100: 92768 | D100: =IF(B100="SINAPI",IFERROR(INDEX(SINAPI!$B:$B,MATCH($C100,SINAPI!$A:$A,0)),""),IF(B100="COMPOSIÇÃO",IFERROR(INDEX(COMPOSIÇÃO!$C:$C,MATCH($C100,COMPOSIÇÃO!$A:$A,0)),""),"")) -> ARMAÇÃO DE LAJE DE UMA ESTRUTURA CONVENCIONAL DE CONCRETO ARMADO EM UM EDIFÍCIO DE MÚLTIPLOS PAVIMENTOS UTILIZANDO AÇO CA-60 DE 5,0 MM - MONTAGEM. AF_12/2015 | E100: =IF(B100="SINAPI",IFERROR(INDEX(SINAPI!$C:$C,MATCH($C100,SINAPI!$A:$A,0)),""),IF(B100="COMPOSIÇÃO",IFERROR(INDEX(COMPOSIÇÃO!$D:$D,MATCH($C100,COMPOSIÇÃO!$A:$A,0)),""),"")) -> KG | F100: 5195.9 | G100: =IF(B100="SINAPI",IFERROR(INDEX(SINAPI!$D:$D,MATCH($C100,SINAPI!$A:$A,0)),0),IF(B100="COMPOSIÇÃO",IFERROR(INDEX(COMPOSIÇÃO!$G:$G,MATCH($C100,COMPOSIÇÃO!$A:$A,0)),0),0)) -> 17.31 | H100: =G100*(1+$I$10) -> 20.84895375 | I100: =ROUND(F100*H100,2) -> 108329.08
A101: 5.3.1 | B101: SINAPI | C101: 92769 | D101: =IF(B101="SINAPI",IFERROR(INDEX(SINAPI!$B:$B,MATCH($C101,SINAPI!$A:$A,0)),""),IF(B101="COMPOSIÇÃO",IFERROR(INDEX(COMPOSIÇÃO!$C:$C,MATCH($C101,COMPOSIÇÃO!$A:$A,0)),""),"")) -> ARMAÇÃO DE LAJE DE UMA ESTRUTURA CONVENCIONAL DE CONCRETO ARMADO EM UM EDIFÍCIO DE MÚLTIPLOS PAVIMENTOS UTILIZANDO AÇO CA-50 DE 6,3 MM - MONTAGEM. AF_12/2015 | E101: =IF(B101="SINAPI",IFERROR(INDEX(SINAPI!$C:$C,MATCH($C101,SINAPI!$A:$A,0)),""),IF(B101="COMPOSIÇÃO",IFERROR(INDEX(COMPOSIÇÃO!$D:$D,MATCH($C101,COMPOSIÇÃO!$A:$A,0)),""),"")) -> KG | F101: 2378 | G101: =IF(B101="SINAPI",IFERROR(INDEX(SINAPI!$D:$D,MATCH($C101,SINAPI!$A:$A,0)),0),IF(B101="COMPOSIÇÃO",IFERROR(INDEX(COMPOSIÇÃO!$G:$G,MATCH($C101,COMPOSIÇÃO!$A:$A,0)),0),0)) -> 17.61 | H101: 21.21028743 | I101: 50438.06
A102: 5.3.1 | B102: SINAPI | C102: 92770 | D102: =IF(B102="SINAPI",IFERROR(INDEX(SINAPI!$B:$B,MATCH($C102,SINAPI!$A:$A,0)),""),IF(B102="COMPOSIÇÃO",IFERROR(INDEX(COMPOSIÇÃO!$C:$C,MATCH($C102,COMPOSIÇÃO!$A:$A,0)),""),"")) -> ARMAÇÃO DE LAJE DE UMA ESTRUTURA CONVENCIONAL DE CONCRETO ARMADO EM UM EDIFÍCIO DE MÚLTIPLOS PAVIMENTOS UTILIZANDO AÇO CA-50 DE 8,0 MM - MONTAGEM. AF_12/2015 | E102: =IF(B102="SINAPI",IFERROR(INDEX(SINAPI!$C:$C,MATCH($C102,SINAPI!$A:$A,0)),""),IF(B102="COMPOSIÇÃO",IFERROR(INDEX(COMPOSIÇÃO!$D:$D,MATCH($C102,COMPOSIÇÃO!$A:$A,0)),""),"")) -> KG | F102: 2822.6 | G102: =IF(B102="SINAPI",IFERROR(INDEX(SINAPI!$D:$D,MATCH($C102,SINAPI!$A:$A,0)),0),IF(B102="COMPOSIÇÃO",IFERROR(INDEX(COMPOSIÇÃO!$G:$G,MATCH($C102,COMPOSIÇÃO!$A:$A,0)),0),0)) -> 17.42 | H102: 20.98144277 | I102: 59222.22
A103: 5.3.2 | B103: SINAPI | C103: 92771 | D103: =IF(B103="SINAPI",IFERROR(INDEX(SINAPI!$B:$B,MATCH($C103,SINAPI!$A:$A,0)),""),IF(B103="COMPOSIÇÃO",IFERROR(INDEX(COMPOSIÇÃO!$C:$C,MATCH($C103,COMPOSIÇÃO!$A:$A,0)),""),"")) -> ARMAÇÃO DE LAJE DE UMA ESTRUTURA CONVENCIONAL DE CONCRETO ARMADO EM UM EDIFÍCIO DE MÚLTIPLOS PAVIMENTOS UTILIZANDO AÇO CA-50 DE 10,0 MM - MONTAGEM. AF_12/2015 | E103: =IF(B103="SINAPI",IFERROR(INDEX(SINAPI!$C:$C,MATCH($C103,SINAPI!$A:$A,0)),""),IF(B103="COMPOSIÇÃO",IFERROR(INDEX(COMPOSIÇÃO!$D:$D,MATCH($C103,COMPOSIÇÃO!$A:$A,0)),""),"")) -> KG | F103: 4331.5 | G103: =IF(B103="SINAPI",IFERROR(INDEX(SINAPI!$D:$D,MATCH($C103,SINAPI!$A:$A,0)),0),IF(B103="COMPOSIÇÃO",IFERROR(INDEX(COMPOSIÇÃO!$G:$G,MATCH($C103,COMPOSIÇÃO!$A:$A,0)),0),0)) -> 16.01 | H103: 19.28317444 | I103: 83525.07
A104: 5.3.3 | B104: SINAPI | C104: 92772 | D104: =IF(B104="SINAPI",IFERROR(INDEX(SINAPI!$B:$B,MATCH($C104,SINAPI!$A:$A,0)),""),IF(B104="COMPOSIÇÃO",IFERROR(INDEX(COMPOSIÇÃO!$C:$C,MATCH($C104,COMPOSIÇÃO!$A:$A,0)),""),"")) -> ARMAÇÃO DE LAJE DE UMA ESTRUTURA CONVENCIONAL DE CONCRETO ARMADO EM UM EDIFÍCIO DE MÚLTIPLOS PAVIMENTOS UTILIZANDO AÇO CA-50 DE 12,5 MM - MONTAGEM. AF_12/2015 | E104: =IF(B104="SINAPI",IFERROR(INDEX(SINAPI!$C:$C,MATCH($C104,SINAPI!$A:$A,0)),""),IF(B104="COMPOSIÇÃO",IFERROR(INDEX(COMPOSIÇÃO!$D:$D,MATCH($C104,COMPOSIÇÃO!$A:$A,0)),""),"")) -> KG | F104: 1575.1 | G104: =IF(B104="SINAPI",IFERROR(INDEX(SINAPI!$D:$D,MATCH($C104,SINAPI!$A:$A,0)),0),IF(B104="COMPOSIÇÃO",IFERROR(INDEX(COMPOSIÇÃO!$G:$G,MATCH($C104,COMPOSIÇÃO!$A:$A,0)),0),0)) -> 13.72 | H104: 16.52499396 | I104: 26028.52
A105: 5.3.5 | B105: SINAPI | C105: 92490 | D105: =IF(B105="SINAPI",IFERROR(INDEX(SINAPI!$B:$B,MATCH($C105,SINAPI!$A:$A,0)),""),IF(B105="COMPOSIÇÃO",IFERROR(INDEX(COMPOSIÇÃO!$C:$C,MATCH($C105,COMPOSIÇÃO!$A:$A,0)),""),"")) -> MONTAGEM E DESMONTAGEM DE FÔRMA DE LAJE NERVURADA COM CUBETA E ASSOALHO, PÉ-DIREITO SIMPLES, EM CHAPA DE MADEIRA COMPENSADA RESINADA, 8 UTILIZAÇÕES. AF_09/2020 | E105: =IF(B105="SINAPI",IFERROR(INDEX(SINAPI!$C:$C,MATCH($C105,SINAPI!$A:$A,0)),""),IF(B105="COMPOSIÇÃO",IFERROR(INDEX(COMPOSIÇÃO!$D:$D,MATCH($C105,COMPOSIÇÃO!$A:$A,0)),""),"")) -> M2 | F105: 2092.1 | G105: =IF(B105="SINAPI",IFERROR(INDEX(SINAPI!$D:$D,MATCH($C105,SINAPI!$A:$A,0)),0),IF(B105="COMPOSIÇÃO",IFERROR(INDEX(COMPOSIÇÃO!$G:$G,MATCH($C105,COMPOSIÇÃO!$A:$A,0)),0),0)) -> 42.25 | H105: 50.88782761 | I105: 106462.42
A106: 5.3.6 | B106: COMPOSIÇÃO | C106: COMP-73301 | D106: =IF(B106="SINAPI",IFERROR(INDEX(SINAPI!$B:$B,MATCH($C106,SINAPI!$A:$A,0)),""),IF(B106="COMPOSIÇÃO",IFERROR(INDEX(COMPOSIÇÃO!$C:$C,MATCH($C106,COMPOSIÇÃO!$A:$A,0)),""),"")) -> ESCORAMENTO FORMAS ATE H = 3,30M, COM MADEIRA DE 3A QUALIDADE, NAO APARELHADA, APROVEITAMENTO TABUAS 3X E PRUMOS 4X. | E106: =IF(B106="SINAPI",IFERROR(INDEX(SINAPI!$C:$C,MATCH($C106,SINAPI!$A:$A,0)),""),IF(B106="COMPOSIÇÃO",IFERROR(INDEX(COMPOSIÇÃO!$D:$D,MATCH($C106,COMPOSIÇÃO!$A:$A,0)),""),"")) -> M3 | F106: 152.72 | G106: =IF(B106="SINAPI",IFERROR(INDEX(SINAPI!$D:$D,MATCH($C106,SINAPI!$A:$A,0)),0),IF(B106="COMPOSIÇÃO",IFERROR(INDEX(COMPOSIÇÃO!$G:$G,MATCH($C106,COMPOSIÇÃO!$A:$A,0)),0),0)) -> 12.26591 | H106: 14.77362162 | I106: 2256.23
A107: 5.3.7 | B107: SINAPI | C107: 92726 | D107: =IF(B107="SINAPI",IFERROR(INDEX(SINAPI!$B:$B,MATCH($C107,SINAPI!$A:$A,0)),""),IF(B107="COMPOSIÇÃO",IFERROR(INDEX(COMPOSIÇÃO!$C:$C,MATCH($C107,COMPOSIÇÃO!$A:$A,0)),""),"")) -> CONCRETAGEM DE VIGAS E LAJES, FCK=20 MPA, PARA LAJES MACIÇAS OU NERVURADAS COM USO DE BOMBA EM EDIFICAÇÃO COM ÁREA MÉDIA DE LAJES MAIOR QUE 20 M² - LANÇAMENTO, ADENSAMENTO E ACABAMENTO. AF_12/2015 | E107: =IF(B107="SINAPI",IFERROR(INDEX(SINAPI!$C:$C,MATCH($C107,SINAPI!$A:$A,0)),""),IF(B107="COMPOSIÇÃO",IFERROR(INDEX(COMPOSIÇÃO!$D:$D,MATCH($C107,COMPOSIÇÃO!$A:$A,0)),""),"")) -> M3 | F107: 71.7 | G107: =IF(B107="SINAPI",IFERROR(INDEX(SINAPI!$D:$D,MATCH($C107,SINAPI!$A:$A,0)),0),IF(B107="COMPOSIÇÃO",IFERROR(INDEX(COMPOSIÇÃO!$G:$G,MATCH($C107,COMPOSIÇÃO!$A:$A,0)),0),0)) -> 556.95 | H107: 670.8159902 | I107: 48097.51
A108: 5.4 | D108: Escada de Madeira | I108: =I109 -> 3337.99
A109: 5.4.1 | B109: COMPOSIÇÃO | C109: COMP-352975 | D109: =IF(B109="SINAPI",IFERROR(INDEX(SINAPI!$B:$B,MATCH($C109,SINAPI!$A:$A,0)),""),IF(B109="COMPOSIÇÃO",IFERROR(INDEX(COMPOSIÇÃO!$C:$C,MATCH($C109,COMPOSIÇÃO!$A:$A,0)),""),"")) -> ESCADA DE MADEIRA COM PATAMAR-LARGURA 1,2 m | E109: =IF(B109="SINAPI",IFERROR(INDEX(SINAPI!$C:$C,MATCH($C109,SINAPI!$A:$A,0)),""),IF(B109="COMPOSIÇÃO",IFERROR(INDEX(COMPOSIÇÃO!$D:$D,MATCH($C109,COMPOSIÇÃO!$A:$A,0)),""),"")) -> M | F109: 10 | G109: =IF(B109="SINAPI",IFERROR(INDEX(SINAPI!$D:$D,MATCH($C109,SINAPI!$A:$A,0)),0),IF(B109="COMPOSIÇÃO",IFERROR(INDEX(COMPOSIÇÃO!$G:$G,MATCH($C109,COMPOSIÇÃO!$A:$A,0)),0),0)) -> 277.1394 | H109: =G109*(1+$I$10) -> 333.7993375 | I109: =ROUND(F109*H109,2) -> 3337.99
A110: 6.0 | D110: IMPERMEABILIZAÇÕES | I110: =I111+I114 -> 80707.84
A111: 6.1 | D111: Viga Baldrame | I111: =SUM(I112:I113) -> 19168.57
A112: 6.1.1 | B112: COMPOSIÇÃO | C112: IFMT 232.08.2020 | D112: =IF(B112="SINAPI",IFERROR(INDEX(SINAPI!$B:$B,MATCH($C112,SINAPI!$A:$A,0)),""),IF(B112="COMPOSIÇÃO",IFERROR(INDEX(COMPOSIÇÃO!$C:$C,MATCH($C112,COMPOSIÇÃO!$A:$A,0)),""),"")) -> IMPERMEABILIZACAO DE ESTRUTURAS ENTERRADAS, COM TINTA ASFALTICA, DUAS DEMAOS. | E112: =IF(B112="SINAPI",IFERROR(INDEX(SINAPI!$C:$C,MATCH($C112,SINAPI!$A:$A,0)),""),IF(B112="COMPOSIÇÃO",IFERROR(INDEX(COMPOSIÇÃO!$D:$D,MATCH($C112,COMPOSIÇÃO!$A:$A,0)),""),"")) -> M2 | F112: 650.2 | G112: =IF(B112="SINAPI",IFERROR(INDEX(SINAPI!$D:$D,MATCH($C112,SINAPI!$A:$A,0)),0),IF(B112="COMPOSIÇÃO",IFERROR(INDEX(COMPOSIÇÃO!$G:$G,MATCH($C112,COMPOSIÇÃO!$A:$A,0)),0),0)) -> 14.46 | H112: =G112*(1+$I$10) -> 17.41628372 | I112: =ROUND(F112*H112,2) -> 11324.07
A113: 6.1.2 | B113: SINAPI | C113: 98557 | D113: =IF(B113="SINAPI",IFERROR(INDEX(SINAPI!$B:$B,MATCH($C113,SINAPI!$A:$A,0)),""),IF(B113="COMPOSIÇÃO",IFERROR(INDEX(COMPOSIÇÃO!$C:$C,MATCH($C113,COMPOSIÇÃO!$A:$A,0)),""),"")) -> IMPERMEABILIZAÇÃO DE SUPERFÍCIE COM EMULSÃO ASFÁLTICA, 2 DEMÃOS AF_06/2018 | E113: =IF(B113="SINAPI",IFERROR(INDEX(SINAPI!$C:$C,MATCH($C113,SINAPI!$A:$A,0)),""),IF(B113="COMPOSIÇÃO",IFERROR(INDEX(COMPOSIÇÃO!$D:$D,MATCH($C113,COMPOSIÇÃO!$A:$A,0)),""),"")) -> M2 | F113: 111.01 | G113: =IF(B113="SINAPI",IFERROR(INDEX(SINAPI!$D:$D,MATCH($C113,SINAPI!$A:$A,0)),0),IF(B113="COMPOSIÇÃO",IFERROR(INDEX(COMPOSIÇÃO!$G:$G,MATCH($C113,COMPOSIÇÃO!$A:$A,0)),0),0)) -> 58.67 | H113: =G113*(1+$I$10) -> 70.66482475 | I113: 7844.5
A114: 6.2 | D114: Laje | I114: =SUM(I115:I116) -> 61539.27
A115: 6.2.1 | B115: SINAPI | C115: 98563 | D115: =IF(B115="SINAPI",IFERROR(INDEX(SINAPI!$B:$B,MATCH($C115,SINAPI!$A:$A,0)),""),IF(B115="COMPOSIÇÃO",IFERROR(INDEX(COMPOSIÇÃO!$C:$C,MATCH($C115,COMPOSIÇÃO!$A:$A,0)),""),"")) -> PROTEÇÃO MECÂNICA DE SUPERFÍCIE HORIZONTAL COM ARGAMASSA DE CIMENTO E AREIA, TRAÇO 1:3, E=2CM. AF_06/2018 | E115: =IF(B115="SINAPI",IFERROR(INDEX(SINAPI!$C:$C,MATCH($C115,SINAPI!$A:$A,0)),""),IF(B115="COMPOSIÇÃO",IFERROR(INDEX(COMPOSIÇÃO!$D:$D,MATCH($C115,COMPOSIÇÃO!$A:$A,0)),""),"")) -> M2 | F115: 420.28 | G115: =IF(B115="SINAPI",IFERROR(INDEX(SINAPI!$D:$D,MATCH($C115,SINAPI!$A:$A,0)),0),IF(B115="COMPOSIÇÃO",IFERROR(INDEX(COMPOSIÇÃO!$G:$G,MATCH($C115,COMPOSIÇÃO!$A:$A,0)),0),0)) -> 27.64 | H115: =G115*(1+$I$10) -> 33.29087704 | I115: =ROUND(F115*H115,2) -> 13991.49
A116: 6.2.2 | B116: SINAPI | C116: 98546 | D116: =IF(B116="SINAPI",IFERROR(INDEX(SINAPI!$B:$B,MATCH($C116,SINAPI!$A:$A,0)),""),IF(B116="COMPOSIÇÃO",IFERROR(INDEX(COMPOSIÇÃO!$C:$C,MATCH($C116,COMPOSIÇÃO!$A:$A,0)),""),"")) -> IMPERMEABILIZAÇÃO DE SUPERFÍCIE COM MANTA ASFÁLTICA, UMA CAMADA, INCLUSIVE APLICAÇÃO DE PRIMER ASFÁLTICO, E=3MM. AF_06/2018 | E116: =IF(B116="SINAPI",IFERROR(INDEX(SINAPI!$C:$C,MATCH($C116,SINAPI!$A:$A,0)),""),IF(B116="COMPOSIÇÃO",IFERROR(INDEX(COMPOSIÇÃO!$D:$D,MATCH($C116,COMPOSIÇÃO!$A:$A,0)),""),"")) -> M2 | F116: 420.28 | G116: =IF(B116="SINAPI",IFERROR(INDEX(SINAPI!$D:$D,MATCH($C116,SINAPI!$A:$A,0)),0),IF(B116="COMPOSIÇÃO",IFERROR(INDEX(COMPOSIÇÃO!$G:$G,MATCH($C116,COMPOSIÇÃO!$A:$A,0)),0),0)) -> 93.93 | H116: =G116*(1+$I$10) -> 113.1335774 | I116: 47547.78
A117: 7.0 | D117: COBERTURA | I117: =I118+I128+I131 -> 572836.55
A118: 7.1 | D118: Estrutura Metálica | I118: =SUM(I119:I127) -> 304837.4
A119: 7.1.1 | B119: COMPOSIÇÃO | C119: COMP-0967 | D119: =IF(B119="SINAPI",IFERROR(INDEX(SINAPI!$B:$B,MATCH($C119,SINAPI!$A:$A,0)),""),IF(B119="COMPOSIÇÃO",IFERROR(INDEX(COMPOSIÇÃO!$C:$C,MATCH($C119,COMPOSIÇÃO!$A:$A,0)),""),"")) -> ESTRUTURA METÁLICA EM AÇO LAMINADO A-36 - 250MPa L 20X20X3,0 | E119: =IF(B119="SINAPI",IFERROR(INDEX(SINAPI!$C:$C,MATCH($C119,SINAPI!$A:$A,0)),""),IF(B119="COMPOSIÇÃO",IFERROR(INDEX(COMPOSIÇÃO!$D:$D,MATCH($C119,COMPOSIÇÃO!$A:$A,0)),""),"")) -> KG | F119: 1124.4 | G119: =IF(B119="SINAPI",IFERROR(INDEX(SINAPI!$D:$D,MATCH($C119,SINAPI!$A:$A,0)),0),IF(B119="COMPOSIÇÃO",IFERROR(INDEX(COMPOSIÇÃO!$G:$G,MATCH($C119,COMPOSIÇÃO!$A:$A,0)),0),0)) -> 12.6985 | H119: =G119*(1+$I$10) -> 15.29465275 | I119: =ROUND(F119*H119,2) -> 17197.31
A120: 7.1.2 | B120: COMPOSIÇÃO | C120: COMP-4890 | D120: =IF(B120="SINAPI",IFERROR(INDEX(SINAPI!$B:$B,MATCH($C120,SINAPI!$A:$A,0)),""),IF(B120="COMPOSIÇÃO",IFERROR(INDEX(COMPOSIÇÃO!$C:$C,MATCH($C120,COMPOSIÇÃO!$A:$A,0)),""),"")) -> ESTRUTURA METÁLICA EM AÇO LAMINADO A-36 - 250MPa L 40X40X5,0 | E120: =IF(B120="SINAPI",IFERROR(INDEX(SINAPI!$C:$C,MATCH($C120,SINAPI!$A:$A,0)),""),IF(B120="COMPOSIÇÃO",IFERROR(INDEX(COMPOSIÇÃO!$D:$D,MATCH($C120,COMPOSIÇÃO!$A:$A,0)),""),"")) -> KG | F120: 1413.38 | G120: =IF(B120="SINAPI",IFERROR(INDEX(SINAPI!$D:$D,MATCH($C120,SINAPI!$A:$A,0)),0),IF(B120="COMPOSIÇÃO",IFERROR(INDEX(COMPOSIÇÃO!$G:$G,MATCH($C120,COMPOSIÇÃO!$A:$A,0)),0),0)) -> 17.862994 | H120: 21.51500495 | I120: 30408.88
A121: 7.1.3 | B121: COMPOSIÇÃO | C121: COMP-2142 | D121: =IF(B121="SINAPI",IFERROR(INDEX(SINAPI!$B:$B,MATCH($C121,SINAPI!$A:$A,0)),""),IF(B121="COMPOSIÇÃO",IFERROR(INDEX(COMPOSIÇÃO!$C:$C,MATCH($C121,COMPOSIÇÃO!$A:$A,0)),""),"")) -> ESTRUTURA METÁLICA EM AÇO LAMINADO A-36 - 250MPa L 70X70X5,0 | E121: =IF(B121="SINAPI",IFERROR(INDEX(SINAPI!$C:$C,MATCH($C121,SINAPI!$A:$A,0)),""),IF(B121="COMPOSIÇÃO",IFERROR(INDEX(COMPOSIÇÃO!$D:$D,MATCH($C121,COMPOSIÇÃO!$A:$A,0)),""),"")) -> KG | F121: 1493.85 | G121: =IF(B121="SINAPI",IFERROR(INDEX(SINAPI!$D:$D,MATCH($C121,SINAPI!$A:$A,0)),0),IF(B121="COMPOSIÇÃO",IFERROR(INDEX(COMPOSIÇÃO!$G:$G,MATCH($C121,COMPOSIÇÃO!$A:$A,0)),0),0)) -> 18.37487717 | H121: 22.1315404 | I121: 33061.2
A122: 7.1.4 | B122: COMPOSIÇÃO | C122: COMP-7056 | D122: =IF(B122="SINAPI",IFERROR(INDEX(SINAPI!$B:$B,MATCH($C122,SINAPI!$A:$A,0)),""),IF(B122="COMPOSIÇÃO",IFERROR(INDEX(COMPOSIÇÃO!$C:$C,MATCH($C122,COMPOSIÇÃO!$A:$A,0)),""),"")) -> ESTRUTURA METÁLICA EM AÇO LAMINADO A-36 - 250MPa R8 - 8,0MM | E122: =IF(B122="SINAPI",IFERROR(INDEX(SINAPI!$C:$C,MATCH($C122,SINAPI!$A:$A,0)),""),IF(B122="COMPOSIÇÃO",IFERROR(INDEX(COMPOSIÇÃO!$D:$D,MATCH($C122,COMPOSIÇÃO!$A:$A,0)),""),"")) -> KG | F122: 75.82 | G122: =IF(B122="SINAPI",IFERROR(INDEX(SINAPI!$D:$D,MATCH($C122,SINAPI!$A:$A,0)),0),IF(B122="COMPOSIÇÃO",IFERROR(INDEX(COMPOSIÇÃO!$G:$G,MATCH($C122,COMPOSIÇÃO!$A:$A,0)),0),0)) -> 9.4685 | H122: 11.40429339 | I122: 864.67
A123: 7.1.5 | B123: COMPOSIÇÃO | C123: COMP-8946 | D123: =IF(B123="SINAPI",IFERROR(INDEX(SINAPI!$B:$B,MATCH($C123,SINAPI!$A:$A,0)),""),IF(B123="COMPOSIÇÃO",IFERROR(INDEX(COMPOSIÇÃO!$C:$C,MATCH($C123,COMPOSIÇÃO!$A:$A,0)),""),"")) -> ESTRUTURA METÁLICA EM AÇO ESTRUTURAL A -36, DOBRADO- U100X40X2,66 | E123: =IF(B123="SINAPI",IFERROR(INDEX(SINAPI!$C:$C,MATCH($C123,SINAPI!$A:$A,0)),""),IF(B123="COMPOSIÇÃO",IFERROR(INDEX(COMPOSIÇÃO!$D:$D,MATCH($C123,COMPOSIÇÃO!$A:$A,0)),""),"")) -> KG | F123: 2136.79 | G123: =IF(B123="SINAPI",IFERROR(INDEX(SINAPI!$D:$D,MATCH($C123,SINAPI!$A:$A,0)),0),IF(B123="COMPOSIÇÃO",IFERROR(INDEX(COMPOSIÇÃO!$G:$G,MATCH($C123,COMPOSIÇÃO!$A:$A,0)),0),0)) -> 14.9595 | H123: 18.01790431 | I123: 38500.48
A124: 7.1.6 | B124: COMPOSIÇÃO | C124: COMP-5617 | D124: =IF(B124="SINAPI",IFERROR(INDEX(SINAPI!$B:$B,MATCH($C124,SINAPI!$A:$A,0)),""),IF(B124="COMPOSIÇÃO",IFERROR(INDEX(COMPOSIÇÃO!$C:$C,MATCH($C124,COMPOSIÇÃO!$A:$A,0)),""),"")) -> ESTRUTURA METÁLICA EM AÇO ESTRUTURAL A -36, DOBRADO- U150X50X4,76 | E124: =IF(B124="SINAPI",IFERROR(INDEX(SINAPI!$C:$C,MATCH($C124,SINAPI!$A:$A,0)),""),IF(B124="COMPOSIÇÃO",IFERROR(INDEX(COMPOSIÇÃO!$D:$D,MATCH($C124,COMPOSIÇÃO!$A:$A,0)),""),"")) -> KG | F124: 1982.56 | G124: =IF(B124="SINAPI",IFERROR(INDEX(SINAPI!$D:$D,MATCH($C124,SINAPI!$A:$A,0)),0),IF(B124="COMPOSIÇÃO",IFERROR(INDEX(COMPOSIÇÃO!$G:$G,MATCH($C124,COMPOSIÇÃO!$A:$A,0)),0),0)) -> 16.0575 | H124: 19.3403856 | I124: 38343.47
A125: 7.1.7 | B125: COMPOSIÇÃO | C125: COMP-4559 | D125: =IF(B125="SINAPI",IFERROR(INDEX(SINAPI!$B:$B,MATCH($C125,SINAPI!$A:$A,0)),""),IF(B125="COMPOSIÇÃO",IFERROR(INDEX(COMPOSIÇÃO!$C:$C,MATCH($C125,COMPOSIÇÃO!$A:$A,0)),""),"")) -> ESTRUTURA METÁLICA EM AÇO ESTRUTURAL A -36, DOBRADO- U200X50X4,76 | E125: =IF(B125="SINAPI",IFERROR(INDEX(SINAPI!$C:$C,MATCH($C125,SINAPI!$A:$A,0)),""),IF(B125="COMPOSIÇÃO",IFERROR(INDEX(COMPOSIÇÃO!$D:$D,MATCH($C125,COMPOSIÇÃO!$A:$A,0)),""),"")) -> KG | F125: 1190.47 | G125: =IF(B125="SINAPI",IFERROR(INDEX(SINAPI!$D:$D,MATCH($C125,SINAPI!$A:$A,0)),0),IF(B125="COMPOSIÇÃO",IFERROR(INDEX(COMPOSIÇÃO!$G:$G,MATCH($C125,COMPOSIÇÃO!$A:$A,0)),0),0)) -> 10.6505 | H125: 12.82794812 | I125: 15271.29
A126: 7.1.8 | B126: COMPOSIÇÃO | C126: COMP-4726 | D126: =IF(B126="SINAPI",IFERROR(INDEX(SINAPI!$B:$B,MATCH($C126,SINAPI!$A:$A,0)),""),IF(B126="COMPOSIÇÃO",IFERROR(INDEX(COMPOSIÇÃO!$C:$C,MATCH($C126,COMPOSIÇÃO!$A:$A,0)),""),"")) -> ESTRUTURA METÁLICA EM AÇO ESTRUTURAL A -36, DOBRADO- C150X60X20X3,04 | E126: =IF(B126="SINAPI",IFERROR(INDEX(SINAPI!$C:$C,MATCH($C126,SINAPI!$A:$A,0)),""),IF(B126="COMPOSIÇÃO",IFERROR(INDEX(COMPOSIÇÃO!$D:$D,MATCH($C126,COMPOSIÇÃO!$A:$A,0)),""),"")) -> KG | F126: 2730.92 | G126: =IF(B126="SINAPI",IFERROR(INDEX(SINAPI!$D:$D,MATCH($C126,SINAPI!$A:$A,0)),0),IF(B126="COMPOSIÇÃO",IFERROR(INDEX(COMPOSIÇÃO!$G:$G,MATCH($C126,COMPOSIÇÃO!$A:$A,0)),0),0)) -> 9.5885 | H126: 11.54882686 | I126: 31538.92
A127: 7.1.9 | B127: COMPOSIÇÃO | C127: COMP-3579 | D127: =IF(B127="SINAPI",IFERROR(INDEX(SINAPI!$B:$B,MATCH($C127,SINAPI!$A:$A,0)),""),IF(B127="COMPOSIÇÃO",IFERROR(INDEX(COMPOSIÇÃO!$C:$C,MATCH($C127,COMPOSIÇÃO!$A:$A,0)),""),"")) -> ESTRUTURA METÁLICA EM AÇO ESTRUTURAL A -36, DOBRADO- C127X50X17X2.66 | E127: =IF(B127="SINAPI",IFERROR(INDEX(SINAPI!$C:$C,MATCH($C127,SINAPI!$A:$A,0)),""),IF(B127="COMPOSIÇÃO",IFERROR(INDEX(COMPOSIÇÃO!$D:$D,MATCH($C127,COMPOSIÇÃO!$A:$A,0)),""),"")) -> KG | F127: 5334.89 | G127: =IF(B127="SINAPI",IFERROR(INDEX(SINAPI!$D:$D,MATCH($C127,SINAPI!$A:$A,0)),0),IF(B127="COMPOSIÇÃO",IFERROR(INDEX(COMPOSIÇÃO!$G:$G,MATCH($C127,COMPOSIÇÃO!$A:$A,0)),0),0)) -> 15.5085 | H127: 18.67914496 | I127: 99651.18
A128: 7.2 | D128: Telhamento | I128: =SUM(I129:I130) -> 232352.76
A129: 7.2.1 | B129: SINAPI | C129: 94216 | D129: =IF(B129="SINAPI",IFERROR(INDEX(SINAPI!$B:$B,MATCH($C129,SINAPI!$A:$A,0)),""),IF(B129="COMPOSIÇÃO",IFERROR(INDEX(COMPOSIÇÃO!$C:$C,MATCH($C129,COMPOSIÇÃO!$A:$A,0)),""),"")) -> TELHAMENTO COM TELHA METÁLICA TERMOACÚSTICA E = 30 MM, COM ATÉ 2 ÁGUAS, INCLUSO IÇAMENTO. AF_07/2019 | E129: =IF(B129="SINAPI",IFERROR(INDEX(SINAPI!$C:$C,MATCH($C129,SINAPI!$A:$A,0)),""),IF(B129="COMPOSIÇÃO",IFERROR(INDEX(COMPOSIÇÃO!$D:$D,MATCH($C129,COMPOSIÇÃO!$A:$A,0)),""),"")) -> M2 | F129: 455.75 | G129: =IF(B129="SINAPI",IFERROR(INDEX(SINAPI!$D:$D,MATCH($C129,SINAPI!$A:$A,0)),0),IF(B129="COMPOSIÇÃO",IFERROR(INDEX(COMPOSIÇÃO!$G:$G,MATCH($C129,COMPOSIÇÃO!$A:$A,0)),0),0)) -> 229.74 | H129: =G129*(1+$I$10) -> 276.7093376 | I129: =ROUND(F129*H129,2) -> 126110.28
A130: 7.2.2 | B130: SINAPI | C130: 94213 | D130: =IF(B130="SINAPI",IFERROR(INDEX(SINAPI!$B:$B,MATCH($C130,SINAPI!$A:$A,0)),""),IF(B130="COMPOSIÇÃO",IFERROR(INDEX(COMPOSIÇÃO!$C:$C,MATCH($C130,COMPOSIÇÃO!$A:$A,0)),""),"")) -> TELHAMENTO COM TELHA DE AÇO/ALUMÍNIO E = 0,5 MM, COM ATÉ 2 ÁGUAS, INCLUSO IÇAMENTO. AF_07/2019 | E130: =IF(B130="SINAPI",IFERROR(INDEX(SINAPI!$C:$C,MATCH($C130,SINAPI!$A:$A,0)),""),IF(B130="COMPOSIÇÃO",IFERROR(INDEX(COMPOSIÇÃO!$D:$D,MATCH($C130,COMPOSIÇÃO!$A:$A,0)),""),"")) -> M2 | F130: 1134.37 | G130: =IF(B130="SINAPI",IFERROR(INDEX(SINAPI!$D:$D,MATCH($C130,SINAPI!$A:$A,0)),0),IF(B130="COMPOSIÇÃO",IFERROR(INDEX(COMPOSIÇÃO!$G:$G,MATCH($C130,COMPOSIÇÃO!$A:$A,0)),0),0)) -> 77.76 | H130: =G130*(1+$I$10) -> 93.65769171 | I130: 106242.48
A131: 7.3 | D131: Acabamento Metálico | I131: =SUM(I132:I137) -> 35646.39
A132: 7.3.1 | B132: COMPOSIÇÃO | C132: COMP-388053 | D132: =IF(B132="SINAPI",IFERROR(INDEX(SINAPI!$B:$B,MATCH($C132,SINAPI!$A:$A,0)),""),IF(B132="COMPOSIÇÃO",IFERROR(INDEX(COMPOSIÇÃO!$C:$C,MATCH($C132,COMPOSIÇÃO!$A:$A,0)),""),"")) -> CUMEEIRA DE ALUMÍNIO E=0.8mm | E132: =IF(B132="SINAPI",IFERROR(INDEX(SINAPI!$C:$C,MATCH($C132,SINAPI!$A:$A,0)),""),IF(B132="COMPOSIÇÃO",IFERROR(INDEX(COMPOSIÇÃO!$D:$D,MATCH($C132,COMPOSIÇÃO!$A:$A,0)),""),"")) -> M | F132: 104.2 | G132: =IF(B132="SINAPI",IFERROR(INDEX(SINAPI!$D:$D,MATCH($C132,SINAPI!$A:$A,0)),0),IF(B132="COMPOSIÇÃO",IFERROR(INDEX(COMPOSIÇÃO!$G:$G,MATCH($C132,COMPOSIÇÃO!$A:$A,0)),0),0)) -> 102.5502 | H132: =G132*(1+$I$10) -> 123.5161396 | I132: =ROUND(F132*H132,2) -> 12870.38
A133: 7.3.2 | B133: ORSE | C133: 9077 | D133: Cumeeira termoacústica | E133: M | F133: 37.11 | G133: 120.5 | H133: 145.1356977 | I133: 5385.99
A134: 7.3.3 | B134: COMPOSIÇÃO | C134: COMP-1459 | D134: =IF(B134="SINAPI",IFERROR(INDEX(SINAPI!$B:$B,MATCH($C134,SINAPI!$A:$A,0)),""),IF(B134="COMPOSIÇÃO",IFERROR(INDEX(COMPOSIÇÃO!$C:$C,MATCH($C134,COMPOSIÇÃO!$A:$A,0)),""),"")) -> RUFO EM ALUMÍNIO ESTAMPADO ESP=0,8mm COM DESENVOLVIMENTO DE 25cm | E134: =IF(B134="SINAPI",IFERROR(INDEX(SINAPI!$C:$C,MATCH($C134,SINAPI!$A:$A,0)),""),IF(B134="COMPOSIÇÃO",IFERROR(INDEX(COMPOSIÇÃO!$D:$D,MATCH($C134,COMPOSIÇÃO!$A:$A,0)),""),"")) -> M | F134: 27.39 | G134: =IF(B134="SINAPI",IFERROR(INDEX(SINAPI!$D:$D,MATCH($C134,SINAPI!$A:$A,0)),0),IF(B134="COMPOSIÇÃO",IFERROR(INDEX(COMPOSIÇÃO!$G:$G,MATCH($C134,COMPOSIÇÃO!$A:$A,0)),0),0)) -> 50.419776 | H134: 60.72787856 | I134: 1663.34
A135: 7.3.4 | B135: COMPOSIÇÃO | C135: COMP-6772 | D135: =IF(B135="SINAPI",IFERROR(INDEX(SINAPI!$B:$B,MATCH($C135,SINAPI!$A:$A,0)),""),IF(B135="COMPOSIÇÃO",IFERROR(INDEX(COMPOSIÇÃO!$C:$C,MATCH($C135,COMPOSIÇÃO!$A:$A,0)),""),"")) -> RUFO EM ALUMÍNIO ESTAMPADO ESP=0,8mm COM DESENVOLVIMENTO DE 45cm | E135: =IF(B135="SINAPI",IFERROR(INDEX(SINAPI!$C:$C,MATCH($C135,SINAPI!$A:$A,0)),""),IF(B135="COMPOSIÇÃO",IFERROR(INDEX(COMPOSIÇÃO!$D:$D,MATCH($C135,COMPOSIÇÃO!$A:$A,0)),""),"")) -> M | F135: 68.3 | G135: =IF(B135="SINAPI",IFERROR(INDEX(SINAPI!$D:$D,MATCH($C135,SINAPI!$A:$A,0)),0),IF(B135="COMPOSIÇÃO",IFERROR(INDEX(COMPOSIÇÃO!$G:$G,MATCH($C135,COMPOSIÇÃO!$A:$A,0)),0),0)) -> 73.403776 | H135: 88.41085677 | I135: 6038.46
A136: 7.3.5 | B136: COMPOSIÇÃO | C136: COMP-5864 | D136: =IF(B136="SINAPI",IFERROR(INDEX(SINAPI!$B:$B,MATCH($C136,SINAPI!$A:$A,0)),""),IF(B136="COMPOSIÇÃO",IFERROR(INDEX(COMPOSIÇÃO!$C:$C,MATCH($C136,COMPOSIÇÃO!$A:$A,0)),""),"")) -> RUFO EM ALUMÍNIO ESTAMPADO ESP=0,8mm COM DESENVOLVIMENTO DE 55cm | E136: =IF(B136="SINAPI",IFERROR(INDEX(SINAPI!$C:$C,MATCH($C136,SINAPI!$A:$A,0)),""),IF(B136="COMPOSIÇÃO",IFERROR(INDEX(COMPOSIÇÃO!$D:$D,MATCH($C136,COMPOSIÇÃO!$A:$A,0)),""),"")) -> M | F136: 74.22 | G136: =IF(B136="SINAPI",IFERROR(INDEX(SINAPI!$D:$D,MATCH($C136,SINAPI!$A:$A,0)),0),IF(B136="COMPOSIÇÃO",IFERROR(INDEX(COMPOSIÇÃO!$G:$G,MATCH($C136,COMPOSIÇÃO!$A:$A,0)),0),0)) -> 58.399776 | H136: 70.33935463 | I136: 5220.59
A137: 7.3.6 | B137: COMPOSIÇÃO | C137: COMP-6963 | D137: =IF(B137="SINAPI",IFERROR(INDEX(SINAPI!$B:$B,MATCH($C137,SINAPI!$A:$A,0)),""),IF(B137="COMPOSIÇÃO",IFERROR(INDEX(COMPOSIÇÃO!$C:$C,MATCH($C137,COMPOSIÇÃO!$A:$A,0)),""),"")) -> RUFO EM ALUMÍNIO ESTAMPADO ESP=0,8mm COM DESENVOLVIMENTO DE 45cm | E137: =IF(B137="SINAPI",IFERROR(INDEX(SINAPI!$C:$C,MATCH($C137,SINAPI!$A:$A,0)),""),IF(B137="COMPOSIÇÃO",IFERROR(INDEX(COMPOSIÇÃO!$D:$D,MATCH($C137,COMPOSIÇÃO!$A:$A,0)),""),"")) -> M | F137: 39 | G137: =IF(B137="SINAPI",IFERROR(INDEX(SINAPI!$D:$D,MATCH($C137,SINAPI!$A:$A,0)),0),IF(B137="COMPOSIÇÃO",IFERROR(INDEX(COMPOSIÇÃO!$G:$G,MATCH($C137,COMPOSIÇÃO!$A:$A,0)),0),0)) -> 95.109776 | H137: 114.5545535 | I137: 4467.63
A138: 8.0 | D138: PAREDES E PAINEIS | I138: =I139+I143+I150 -> 432334.39
A139: 8.1 | D139: Alvenaria | I139: =SUM(I140:I142) -> 329898.07
A140: 8.1.1 | B140: SINAPI | C140: 87507 | D140: =IF(B140="SINAPI",IFERROR(INDEX(SINAPI!$B:$B,MATCH($C140,SINAPI!$A:$A,0)),""),IF(B140="COMPOSIÇÃO",IFERROR(INDEX(COMPOSIÇÃO!$C:$C,MATCH($C140,COMPOSIÇÃO!$A:$A,0)),""),"")) -> ALVENARIA DE VEDAÇÃO DE BLOCOS CERÂMICOS FURADOS NA HORIZONTAL DE 9X14X19CM (ESPESSURA 9CM) DE PAREDES COM ÁREA LÍQUIDA MAIOR OU IGUAL A 6M² SEM VÃOS E ARGAMASSA DE ASSENTAMENTO COM PREPARO EM BETONEIRA. AF_06/2014 | E140: =IF(B140="SINAPI",IFERROR(INDEX(SINAPI!$C:$C,MATCH($C140,SINAPI!$A:$A,0)),""),IF(B140="COMPOSIÇÃO",IFERROR(INDEX(COMPOSIÇÃO!$D:$D,MATCH($C140,COMPOSIÇÃO!$A:$A,0)),""),"")) -> M2 | F140: 2907.82 | G140: =IF(B140="SINAPI",IFERROR(INDEX(SINAPI!$D:$D,MATCH($C140,SINAPI!$A:$A,0)),0),IF(B140="COMPOSIÇÃO",IFERROR(INDEX(COMPOSIÇÃO!$G:$G,MATCH($C140,COMPOSIÇÃO!$A:$A,0)),0),0)) -> 79.62 | H140: =G140*(1+$I$10) -> 95.89796057 | I140: =ROUND(F140*H140,2) -> 278854.01
A141: 8.1.2 | B141: SINAPI | C141: 87509 | D141: =IF(B141="SINAPI",IFERROR(INDEX(SINAPI!$B:$B,MATCH($C141,SINAPI!$A:$A,0)),""),IF(B141="COMPOSIÇÃO",IFERROR(INDEX(COMPOSIÇÃO!$C:$C,MATCH($C141,COMPOSIÇÃO!$A:$A,0)),""),"")) -> ALVENARIA DE VEDAÇÃO DE BLOCOS CERÂMICOS FURADOS NA HORIZONTAL DE 14X9X19CM (ESPESSURA 14CM, BLOCO DEITADO) DE PAREDES COM ÁREA LÍQUIDA MAIOR OU IGUAL A 6M² SEM VÃOS E ARGAMASSA DE ASSENTAMENTO COM PREPARO EM BETONEIRA. AF_06/2014 | E141: =IF(B141="SINAPI",IFERROR(INDEX(SINAPI!$C:$C,MATCH($C141,SINAPI!$A:$A,0)),""),IF(B141="COMPOSIÇÃO",IFERROR(INDEX(COMPOSIÇÃO!$D:$D,MATCH($C141,COMPOSIÇÃO!$A:$A,0)),""),"")) -> M2 | F141: 58.5 | G141: =IF(B141="SINAPI",IFERROR(INDEX(SINAPI!$D:$D,MATCH($C141,SINAPI!$A:$A,0)),0),IF(B141="COMPOSIÇÃO",IFERROR(INDEX(COMPOSIÇÃO!$G:$G,MATCH($C141,COMPOSIÇÃO!$A:$A,0)),0),0)) -> 122.81 | H141: =G141*(1+$I$10) -> 147.9179671 | I141: 8653.2
A142: 8.1.3 | B142: SINAPI | C142: 93202 | D142: =IF(B142="SINAPI",IFERROR(INDEX(SINAPI!$B:$B,MATCH($C142,SINAPI!$A:$A,0)),""),IF(B142="COMPOSIÇÃO",IFERROR(INDEX(COMPOSIÇÃO!$C:$C,MATCH($C142,COMPOSIÇÃO!$A:$A,0)),""),"")) -> FIXAÇÃO (ENCUNHAMENTO) DE ALVENARIA DE VEDAÇÃO COM TIJOLO MACIÇO. AF_03/2016 | E142: =IF(B142="SINAPI",IFERROR(INDEX(SINAPI!$C:$C,MATCH($C142,SINAPI!$A:$A,0)),""),IF(B142="COMPOSIÇÃO",IFERROR(INDEX(COMPOSIÇÃO!$D:$D,MATCH($C142,COMPOSIÇÃO!$A:$A,0)),""),"")) -> M | F142: 1519.66 | G142: =IF(B142="SINAPI",IFERROR(INDEX(SINAPI!$D:$D,MATCH($C142,SINAPI!$A:$A,0)),0),IF(B142="COMPOSIÇÃO",IFERROR(INDEX(COMPOSIÇÃO!$G:$G,MATCH($C142,COMPOSIÇÃO!$A:$A,0)),0),0)) -> 23.16 | H142: =G142*(1+$I$10) -> 27.89496065 | I142: 42390.86
A143: 8.2 | D143: Estruturas Diversas | I143: =SUM(I144:I149) -> 74900.14
A144: 8.2.1 | B144: ORSE | C144: 8637 | D144: Chapim de concreto pré-moldado | E144: M | F144: 171.66 | G144: 54.71 | H144: =G144*(1+$I$10) -> 65.89522008 | I144: =ROUND(F144*H144,2) -> 11311.57
A145: 8.2.2 | B145: COMPOSIÇÃO | C145: COMP-0510 | D145: =IF(B145="SINAPI",IFERROR(INDEX(SINAPI!$B:$B,MATCH($C145,SINAPI!$A:$A,0)),""),IF(B145="COMPOSIÇÃO",IFERROR(INDEX(COMPOSIÇÃO!$C:$C,MATCH($C145,COMPOSIÇÃO!$A:$A,0)),""),"")) -> CHAPIM EM GRANITO POLIDO L=23cm (CONFORME PROJETO) | E145: =IF(B145="SINAPI",IFERROR(INDEX(SINAPI!$C:$C,MATCH($C145,SINAPI!$A:$A,0)),""),IF(B145="COMPOSIÇÃO",IFERROR(INDEX(COMPOSIÇÃO!$D:$D,MATCH($C145,COMPOSIÇÃO!$A:$A,0)),""),"")) -> M2 | F145: 51.2 | G145: =IF(B145="SINAPI",IFERROR(INDEX(SINAPI!$D:$D,MATCH($C145,SINAPI!$A:$A,0)),0),IF(B145="COMPOSIÇÃO",IFERROR(INDEX(COMPOSIÇÃO!$G:$G,MATCH($C145,COMPOSIÇÃO!$A:$A,0)),0),0)) -> 232.806301 | H145: 280.4025304 | I145: 14356.61
A146: 8.2.3 | B146: COMPOSIÇÃO | C146: COMP-9071 | D146: =IF(B146="SINAPI",IFERROR(INDEX(SINAPI!$B:$B,MATCH($C146,SINAPI!$A:$A,0)),""),IF(B146="COMPOSIÇÃO",IFERROR(INDEX(COMPOSIÇÃO!$C:$C,MATCH($C146,COMPOSIÇÃO!$A:$A,0)),""),"")) -> CHAPIM EM GRANITO POLIDO L=21cm (CONFORME PROJETO) | E146: =IF(B146="SINAPI",IFERROR(INDEX(SINAPI!$C:$C,MATCH($C146,SINAPI!$A:$A,0)),""),IF(B146="COMPOSIÇÃO",IFERROR(INDEX(COMPOSIÇÃO!$D:$D,MATCH($C146,COMPOSIÇÃO!$A:$A,0)),""),"")) -> M2 | F146: 55.2 | G146: =IF(B146="SINAPI",IFERROR(INDEX(SINAPI!$D:$D,MATCH($C146,SINAPI!$A:$A,0)),0),IF(B146="COMPOSIÇÃO",IFERROR(INDEX(COMPOSIÇÃO!$G:$G,MATCH($C146,COMPOSIÇÃO!$A:$A,0)),0),0)) -> 224.353501 | H146: 270.2215925 | I146: 14916.23
A147: 8.2.4 | B147: COMPOSIÇÃO | C147: COMP-5600 | D147: =IF(B147="SINAPI",IFERROR(INDEX(SINAPI!$B:$B,MATCH($C147,SINAPI!$A:$A,0)),""),IF(B147="COMPOSIÇÃO",IFERROR(INDEX(COMPOSIÇÃO!$C:$C,MATCH($C147,COMPOSIÇÃO!$A:$A,0)),""),"")) -> VERGAS E CONTRAVERGAS EM CONCRETO ESTRUTURADO COM ACO/FORMAS | E147: =IF(B147="SINAPI",IFERROR(INDEX(SINAPI!$C:$C,MATCH($C147,SINAPI!$A:$A,0)),""),IF(B147="COMPOSIÇÃO",IFERROR(INDEX(COMPOSIÇÃO!$D:$D,MATCH($C147,COMPOSIÇÃO!$A:$A,0)),""),"")) -> M3 | F147: 12.79 | G147: =IF(B147="SINAPI",IFERROR(INDEX(SINAPI!$D:$D,MATCH($C147,SINAPI!$A:$A,0)),0),IF(B147="COMPOSIÇÃO",IFERROR(INDEX(COMPOSIÇÃO!$G:$G,MATCH($C147,COMPOSIÇÃO!$A:$A,0)),0),0)) -> 1084.23 | H147: 1305.896079 | I147: 16702.41
A148: 8.2.5 | B148: COMPOSIÇÃO | C148: COMP-8462 | D148: =IF(B148="SINAPI",IFERROR(INDEX(SINAPI!$B:$B,MATCH($C148,SINAPI!$A:$A,0)),""),IF(B148="COMPOSIÇÃO",IFERROR(INDEX(COMPOSIÇÃO!$C:$C,MATCH($C148,COMPOSIÇÃO!$A:$A,0)),""),"")) -> ASSENTO DE BANCO EM PEÇAS DE MADEIRA CERTIFICADA (MAÇARANDUBA, CUMARÚ OU IPÊ) ESP.=3cm | E148: =IF(B148="SINAPI",IFERROR(INDEX(SINAPI!$C:$C,MATCH($C148,SINAPI!$A:$A,0)),""),IF(B148="COMPOSIÇÃO",IFERROR(INDEX(COMPOSIÇÃO!$D:$D,MATCH($C148,COMPOSIÇÃO!$A:$A,0)),""),"")) -> M | F148: 14.64 | G148: =IF(B148="SINAPI",IFERROR(INDEX(SINAPI!$D:$D,MATCH($C148,SINAPI!$A:$A,0)),0),IF(B148="COMPOSIÇÃO",IFERROR(INDEX(COMPOSIÇÃO!$G:$G,MATCH($C148,COMPOSIÇÃO!$A:$A,0)),0),0)) -> 775.49117 | H148: 934.036946 | I148: 13674.3
A149: 8.2.6 | B149: SINAPI | C149: 100862 | D149: SUPORTE MÃO FRANCESA EM ACO, ABAS IGUAIS 40 CM, CAPACIDADE MINIMA 70 KG, BRANCO - FORNECIMENTO E INSTALAÇÃO. AF_01/2020 | E149: =IF(B149="SINAPI",IFERROR(INDEX(SINAPI!$C:$C,MATCH($C149,SINAPI!$A:$A,0)),""),IF(B149="COMPOSIÇÃO",IFERROR(INDEX(COMPOSIÇÃO!$D:$D,MATCH($C149,COMPOSIÇÃO!$A:$A,0)),""),"")) -> UN | F149: 80 | G149: =IF(B149="SINAPI",IFERROR(INDEX(SINAPI!$D:$D,MATCH($C149,SINAPI!$A:$A,0)),0),IF(B149="COMPOSIÇÃO",IFERROR(INDEX(COMPOSIÇÃO!$G:$G,MATCH($C149,COMPOSIÇÃO!$A:$A,0)),0),0)) -> 40.88 | H149: 49.2377371 | I149: 3939.02
A150: 8.3 | D150: Divisórias | I150: =SUM(I151) -> 27536.18
A151: 8.3.1 | B151: COMPOSIÇÃO | C151: COMP-9589 | D151: =IF(B151="SINAPI",IFERROR(INDEX(SINAPI!$B:$B,MATCH($C151,SINAPI!$A:$A,0)),""),IF(B151="COMPOSIÇÃO",IFERROR(INDEX(COMPOSIÇÃO!$C:$C,MATCH($C151,COMPOSIÇÃO!$A:$A,0)),""),"")) -> DIVISÓRIA DE GRANITO CINZA E=2cm | E151: =IF(B151="SINAPI",IFERROR(INDEX(SINAPI!$C:$C,MATCH($C151,SINAPI!$A:$A,0)),""),IF(B151="COMPOSIÇÃO",IFERROR(INDEX(COMPOSIÇÃO!$D:$D,MATCH($C151,COMPOSIÇÃO!$A:$A,0)),""),"")) -> M2 | F151: 37.85 | G151: =IF(B151="SINAPI",IFERROR(INDEX(SINAPI!$D:$D,MATCH($C151,SINAPI!$A:$A,0)),0),IF(B151="COMPOSIÇÃO",IFERROR(INDEX(COMPOSIÇÃO!$G:$G,MATCH($C151,COMPOSIÇÃO!$A:$A,0)),0),0)) -> 604.019101 | H151: =G151*(1+$I$10) -> 727.5081629 | I151: =ROUND(F151*H151,2) -> 27536.18
A152: 9.0 | D152: REVESTIMENTOS | I152: =I153+I157+I160+I164+I169 -> 681660.11
A153: 9.1 | D153: Revestimento de Parede em Massa | I153: =SUM(I154:I156) -> 332748.13
A154: 9.1.1 | B154: SINAPI | C154: 87894 | D154: =IF(B154="SINAPI",IFERROR(INDEX(SINAPI!$B:$B,MATCH($C154,SINAPI!$A:$A,0)),""),IF(B154="COMPOSIÇÃO",IFERROR(INDEX(COMPOSIÇÃO!$C:$C,MATCH($C154,COMPOSIÇÃO!$A:$A,0)),""),"")) -> CHAPISCO APLICADO EM ALVENARIA (SEM PRESENÇA DE VÃOS) E ESTRUTURAS DE CONCRETO DE FACHADA, COM COLHER DE PEDREIRO. ARGAMASSA TRAÇO 1:3 COM PREPARO EM BETONEIRA 400L. AF_06/2014 | E154: =IF(B154="SINAPI",IFERROR(INDEX(SINAPI!$C:$C,MATCH($C154,SINAPI!$A:$A,0)),""),IF(B154="COMPOSIÇÃO",IFERROR(INDEX(COMPOSIÇÃO!$D:$D,MATCH($C154,COMPOSIÇÃO!$A:$A,0)),""),"")) -> M2 | F154: 6388.54 | G154: =IF(B154="SINAPI",IFERROR(INDEX(SINAPI!$D:$D,MATCH($C154,SINAPI!$A:$A,0)),0),IF(B154="COMPOSIÇÃO",IFERROR(INDEX(COMPOSIÇÃO!$G:$G,MATCH($C154,COMPOSIÇÃO!$A:$A,0)),0),0)) -> 5.19 | H154: =G154*(1+$I$10) -> 6.251072787 | I154: =ROUND(F154*H154,2) -> 39935.23
A155: 9.1.2 | B155: SINAPI | C155: 87535 | D155: =IF(B155="SINAPI",IFERROR(INDEX(SINAPI!$B:$B,MATCH($C155,SINAPI!$A:$A,0)),""),IF(B155="COMPOSIÇÃO",IFERROR(INDEX(COMPOSIÇÃO!$C:$C,MATCH($C155,COMPOSIÇÃO!$A:$A,0)),""),"")) -> EMBOÇO, PARA RECEBIMENTO DE CERÂMICA, EM ARGAMASSA TRAÇO 1:2:8, PREPARO MECÂNICO COM BETONEIRA 400L, APLICADO MANUALMENTE EM FACES INTERNAS DE PAREDES, PARA AMBIENTE COM ÁREA MAIOR QUE 10M2, ESPESSURA DE 20MM, COM EXECUÇÃO DE TALISCAS. AF_06/2014 | E155: =IF(B155="SINAPI",IFERROR(INDEX(SINAPI!$C:$C,MATCH($C155,SINAPI!$A:$A,0)),""),IF(B155="COMPOSIÇÃO",IFERROR(INDEX(COMPOSIÇÃO!$D:$D,MATCH($C155,COMPOSIÇÃO!$A:$A,0)),""),"")) -> M2 | F155: 6388.54 | G155: =IF(B155="SINAPI",IFERROR(INDEX(SINAPI!$D:$D,MATCH($C155,SINAPI!$A:$A,0)),0),IF(B155="COMPOSIÇÃO",IFERROR(INDEX(COMPOSIÇÃO!$G:$G,MATCH($C155,COMPOSIÇÃO!$A:$A,0)),0),0)) -> 23.74 | H155: =G155*(1+$I$10) -> 28.59353911 | I155: 182670.97
A156: 9.1.3 | B156: SINAPI | C156: 87529 | D156: =IF(B156="SINAPI",IFERROR(INDEX(SINAPI!$B:$B,MATCH($C156,SINAPI!$A:$A,0)),""),IF(B156="COMPOSIÇÃO",IFERROR(INDEX(COMPOSIÇÃO!$C:$C,MATCH($C156,COMPOSIÇÃO!$A:$A,0)),""),"")) -> MASSA ÚNICA, PARA RECEBIMENTO DE PINTURA, EM ARGAMASSA TRAÇO 1:2:8, PREPARO MECÂNICO COM BETONEIRA 400L, APLICADA MANUALMENTE EM FACES INTERNAS DE PAREDES, ESPESSURA DE 20MM, COM EXECUÇÃO DE TALISCAS. AF_06/2014 | E156: =IF(B156="SINAPI",IFERROR(INDEX(SINAPI!$C:$C,MATCH($C156,SINAPI!$A:$A,0)),""),IF(B156="COMPOSIÇÃO",IFERROR(INDEX(COMPOSIÇÃO!$D:$D,MATCH($C156,COMPOSIÇÃO!$A:$A,0)),""),"")) -> M2 | F156: 3319.28 | G156: =IF(B156="SINAPI",IFERROR(INDEX(SINAPI!$D:$D,MATCH($C156,SINAPI!$A:$A,0)),0),IF(B156="COMPOSIÇÃO",IFERROR(INDEX(COMPOSIÇÃO!$G:$G,MATCH($C156,COMPOSIÇÃO!$A:$A,0)),0),0)) -> 27.55 | H156: =G156*(1+$I$10) -> 33.18247694 | I156: 110141.93
A157: 9.2 | D157: Revestimento de Teto em Massa | I157: =SUM(I158:I159) -> 17794.24
A158: 9.2.1 | B158: SINAPI | C158: 87893 | D158: =IF(B158="SINAPI",IFERROR(INDEX(SINAPI!$B:$B,MATCH($C158,SINAPI!$A:$A,0)),""),IF(B158="COMPOSIÇÃO",IFERROR(INDEX(COMPOSIÇÃO!$C:$C,MATCH($C158,COMPOSIÇÃO!$A:$A,0)),""),"")) -> CHAPISCO APLICADO EM ALVENARIA (SEM PRESENÇA DE VÃOS) E ESTRUTURAS DE CONCRETO DE FACHADA, COM COLHER DE PEDREIRO. ARGAMASSA TRAÇO 1:3 COM PREPARO MANUAL. AF_06/2014 | E158: =IF(B158="SINAPI",IFERROR(INDEX(SINAPI!$C:$C,MATCH($C158,SINAPI!$A:$A,0)),""),IF(B158="COMPOSIÇÃO",IFERROR(INDEX(COMPOSIÇÃO!$D:$D,MATCH($C158,COMPOSIÇÃO!$A:$A,0)),""),"")) -> M2 | F158: 573.5 | G158: =IF(B158="SINAPI",IFERROR(INDEX(SINAPI!$D:$D,MATCH($C158,SINAPI!$A:$A,0)),0),IF(B158="COMPOSIÇÃO",IFERROR(INDEX(COMPOSIÇÃO!$G:$G,MATCH($C158,COMPOSIÇÃO!$A:$A,0)),0),0)) -> 5.63 | H158: =G158*(1+$I$10) -> 6.781028862 | I158: =ROUND(F158*H158,2) -> 3888.92
A159: 9.2.2 | B159: SINAPI | C159: 87535 | D159: =IF(B159="SINAPI",IFERROR(INDEX(SINAPI!$B:$B,MATCH($C159,SINAPI!$A:$A,0)),""),IF(B159="COMPOSIÇÃO",IFERROR(INDEX(COMPOSIÇÃO!$C:$C,MATCH($C159,COMPOSIÇÃO!$A:$A,0)),""),"")) -> EMBOÇO, PARA RECEBIMENTO DE CERÂMICA, EM ARGAMASSA TRAÇO 1:2:8, PREPARO MECÂNICO COM BETONEIRA 400L, APLICADO MANUALMENTE EM FACES INTERNAS DE PAREDES, PARA AMBIENTE COM ÁREA MAIOR QUE 10M2, ESPESSURA DE 20MM, COM EXECUÇÃO DE TALISCAS. AF_06/2014 | E159: =IF(B159="SINAPI",IFERROR(INDEX(SINAPI!$C:$C,MATCH($C159,SINAPI!$A:$A,0)),""),IF(B159="COMPOSIÇÃO",IFERROR(INDEX(COMPOSIÇÃO!$D:$D,MATCH($C159,COMPOSIÇÃO!$A:$A,0)),""),"")) -> M2 | F159: 486.31 | G159: =IF(B159="SINAPI",IFERROR(INDEX(SINAPI!$D:$D,MATCH($C159,SINAPI!$A:$A,0)),0),IF(B159="COMPOSIÇÃO",IFERROR(INDEX(COMPOSIÇÃO!$G:$G,MATCH($C159,COMPOSIÇÃO!$A:$A,0)),0),0)) -> 23.74 | H159: =G159*(1+$I$10) -> 28.59353911 | I159: 13905.32
A160: 9.3 | D160: Revestimento Cerâmico | E160: =IF(B160="SINAPI",IFERROR(INDEX(SINAPI!$C:$C,MATCH($C160,SINAPI!$A:$A,0)),""),IF(B160="COMPOSIÇÃO",IFERROR(INDEX(COMPOSIÇÃO!$D:$D,MATCH($C160,COMPOSIÇÃO!$A:$A,0)),""),"")) ->  | I160: =SUM(I161:I163) -> 99113.81
A161: 9.3.1 | B161: COMPOSIÇÃO | C161: IFMT 233.08.2020 | D161: =IF(B161="SINAPI",IFERROR(INDEX(SINAPI!$B:$B,MATCH($C161,SINAPI!$A:$A,0)),""),IF(B161="COMPOSIÇÃO",IFERROR(INDEX(COMPOSIÇÃO!$C:$C,MATCH($C161,COMPOSIÇÃO!$A:$A,0)),""),"")) -> CANTONEIRA DE ALUMINIO 1"X1, PARA PROTECAO DE QUINA DE PAREDE | E161: =IF(B161="SINAPI",IFERROR(INDEX(SINAPI!$C:$C,MATCH($C161,SINAPI!$A:$A,0)),""),IF(B161="COMPOSIÇÃO",IFERROR(INDEX(COMPOSIÇÃO!$D:$D,MATCH($C161,COMPOSIÇÃO!$A:$A,0)),""),"")) -> M | F161: 33 | G161: =IF(B161="SINAPI",IFERROR(INDEX(SINAPI!$D:$D,MATCH($C161,SINAPI!$A:$A,0)),0),IF(B161="COMPOSIÇÃO",IFERROR(INDEX(COMPOSIÇÃO!$G:$G,MATCH($C161,COMPOSIÇÃO!$A:$A,0)),0),0)) -> 38.764 | H161: =G161*(1+$I$10) -> 46.68913016 | I161: =ROUND(F161*H161,2) -> 1540.74
A162: 9.3.2 | B162: COMPOSIÇÃO | C162: COMP-6004 | D162: =IF(B162="SINAPI",IFERROR(INDEX(SINAPI!$B:$B,MATCH($C162,SINAPI!$A:$A,0)),""),IF(B162="COMPOSIÇÃO",IFERROR(INDEX(COMPOSIÇÃO!$C:$C,MATCH($C162,COMPOSIÇÃO!$A:$A,0)),""),"")) -> REVESTIMENTO CERÂMICO PARA PAREDES INTERNAS COM PLACAS TIPO ESMALTADA EXTRA DE DIMENSÕES 10X10 CM APLICADAS EM AMBIENTES DE ÁREA MAIOR QUE 5 M² A MEIA ALTURA DAS PAREDES. AF_06/2014 | E162: =IF(B162="SINAPI",IFERROR(INDEX(SINAPI!$C:$C,MATCH($C162,SINAPI!$A:$A,0)),""),IF(B162="COMPOSIÇÃO",IFERROR(INDEX(COMPOSIÇÃO!$D:$D,MATCH($C162,COMPOSIÇÃO!$A:$A,0)),""),"")) -> M2 | F162: 1212.62 | G162: =IF(B162="SINAPI",IFERROR(INDEX(SINAPI!$D:$D,MATCH($C162,SINAPI!$A:$A,0)),0),IF(B162="COMPOSIÇÃO",IFERROR(INDEX(COMPOSIÇÃO!$G:$G,MATCH($C162,COMPOSIÇÃO!$A:$A,0)),0),0)) -> 56.5219 | H162: =G162*(1+$I$10) -> 68.0775551 | I162: 82552.2
A163: 9.3.3 | B163: SINAPI | C163: 87267 | D163: =IF(B163="SINAPI",IFERROR(INDEX(SINAPI!$B:$B,MATCH($C163,SINAPI!$A:$A,0)),""),IF(B163="COMPOSIÇÃO",IFERROR(INDEX(COMPOSIÇÃO!$C:$C,MATCH($C163,COMPOSIÇÃO!$A:$A,0)),""),"")) -> REVESTIMENTO CERÂMICO PARA PAREDES INTERNAS COM PLACAS TIPO ESMALTADA EXTRA DE DIMENSÕES 20X20 CM APLICADAS EM AMBIENTES DE ÁREA MAIOR QUE 5 M² A MEIA ALTURA DAS PAREDES. AF_06/2014 | E163: =IF(B163="SINAPI",IFERROR(INDEX(SINAPI!$C:$C,MATCH($C163,SINAPI!$A:$A,0)),""),IF(B163="COMPOSIÇÃO",IFERROR(INDEX(COMPOSIÇÃO!$D:$D,MATCH($C163,COMPOSIÇÃO!$A:$A,0)),""),"")) -> M2 | F163: 220.69 | G163: =IF(B163="SINAPI",IFERROR(INDEX(SINAPI!$D:$D,MATCH($C163,SINAPI!$A:$A,0)),0),IF(B163="COMPOSIÇÃO",IFERROR(INDEX(COMPOSIÇÃO!$G:$G,MATCH($C163,COMPOSIÇÃO!$A:$A,0)),0),0)) -> 56.51 | H163: =G163*(1+$I$10) -> 68.0632222 | I163: 15020.87
A164: 9.4 | D164: Revestimento de Forro em Gesso | I164: =SUM(I165:I168) -> 203071.92
A165: 9.4.1 | B165: COMPOSIÇÃO | C165: COMP-7702 | D165: =IF(B165="SINAPI",IFERROR(INDEX(SINAPI!$B:$B,MATCH($C165,SINAPI!$A:$A,0)),""),IF(B165="COMPOSIÇÃO",IFERROR(INDEX(COMPOSIÇÃO!$C:$C,MATCH($C165,COMPOSIÇÃO!$A:$A,0)),""),"")) -> FORRO EM PLACAS DE GESSO, PARA AMBIENTES COMERCIAIS. AF_05/2017_P | E165: =IF(B165="SINAPI",IFERROR(INDEX(SINAPI!$C:$C,MATCH($C165,SINAPI!$A:$A,0)),""),IF(B165="COMPOSIÇÃO",IFERROR(INDEX(COMPOSIÇÃO!$D:$D,MATCH($C165,COMPOSIÇÃO!$A:$A,0)),""),"")) -> M2 | F165: 1797.05 | G165: =IF(B165="SINAPI",IFERROR(INDEX(SINAPI!$D:$D,MATCH($C165,SINAPI!$A:$A,0)),0),IF(B165="COMPOSIÇÃO",IFERROR(INDEX(COMPOSIÇÃO!$G:$G,MATCH($C165,COMPOSIÇÃO!$A:$A,0)),0),0)) -> 56.811279 | H165: =G165*(1+$I$10) -> 68.42609637 | I165: =ROUND(F165*H165,2) -> 122965.12
A166: 9.4.2 | B166: COMPOSIÇÃO | C166: COMP-8777 | D166: =IF(B166="SINAPI",IFERROR(INDEX(SINAPI!$B:$B,MATCH($C166,SINAPI!$A:$A,0)),""),IF(B166="COMPOSIÇÃO",IFERROR(INDEX(COMPOSIÇÃO!$C:$C,MATCH($C166,COMPOSIÇÃO!$A:$A,0)),""),"")) -> TABICA METÁLICA 3x3cm PARA FORRO DE GESSO FORNECIMENTO E MONTAGEM | E166: =IF(B166="SINAPI",IFERROR(INDEX(SINAPI!$C:$C,MATCH($C166,SINAPI!$A:$A,0)),""),IF(B166="COMPOSIÇÃO",IFERROR(INDEX(COMPOSIÇÃO!$D:$D,MATCH($C166,COMPOSIÇÃO!$A:$A,0)),""),"")) -> M2 | F166: 1519.66 | G166: =IF(B166="SINAPI",IFERROR(INDEX(SINAPI!$D:$D,MATCH($C166,SINAPI!$A:$A,0)),0),IF(B166="COMPOSIÇÃO",IFERROR(INDEX(COMPOSIÇÃO!$G:$G,MATCH($C166,COMPOSIÇÃO!$A:$A,0)),0),0)) -> 15.41 | H166: =G166*(1+$I$10) -> 18.56050706 | I166: 28205.66
A167: 9.4.3 | B167: COMPOSIÇÃO | C167: COMP-0595 | D167: =IF(B167="SINAPI",IFERROR(INDEX(SINAPI!$B:$B,MATCH($C167,SINAPI!$A:$A,0)),""),IF(B167="COMPOSIÇÃO",IFERROR(INDEX(COMPOSIÇÃO!$C:$C,MATCH($C167,COMPOSIÇÃO!$A:$A,0)),""),"")) -> FORRO ACÚSTICO TIPO "SONEX" EM PLACAS DE FIBRA MINERAL C/PERFIL "T" EM AÇO - FORNECIMENTO E MONTAGEM | E167: =IF(B167="SINAPI",IFERROR(INDEX(SINAPI!$C:$C,MATCH($C167,SINAPI!$A:$A,0)),""),IF(B167="COMPOSIÇÃO",IFERROR(INDEX(COMPOSIÇÃO!$D:$D,MATCH($C167,COMPOSIÇÃO!$A:$A,0)),""),"")) -> M2 | F167: 211.5 | G167: =IF(B167="SINAPI",IFERROR(INDEX(SINAPI!$D:$D,MATCH($C167,SINAPI!$A:$A,0)),0),IF(B167="COMPOSIÇÃO",IFERROR(INDEX(COMPOSIÇÃO!$G:$G,MATCH($C167,COMPOSIÇÃO!$A:$A,0)),0),0)) -> 169.700071 | H167: =G167*(1+$I$10) -> 204.3945079 | I167: 43229.44
A168: 9.4.4 | B168: COMPOSIÇÃO | C168: COMP-5303 | D168: =IF(B168="SINAPI",IFERROR(INDEX(SINAPI!$B:$B,MATCH($C168,SINAPI!$A:$A,0)),""),IF(B168="COMPOSIÇÃO",IFERROR(INDEX(COMPOSIÇÃO!$C:$C,MATCH($C168,COMPOSIÇÃO!$A:$A,0)),""),"")) -> PERFIL DE ALUMÍNIO TIPO ( L- T- U ) | E168: =IF(B168="SINAPI",IFERROR(INDEX(SINAPI!$C:$C,MATCH($C168,SINAPI!$A:$A,0)),""),IF(B168="COMPOSIÇÃO",IFERROR(INDEX(COMPOSIÇÃO!$D:$D,MATCH($C168,COMPOSIÇÃO!$A:$A,0)),""),"")) -> M | F168: 86.7 | G168: =IF(B168="SINAPI",IFERROR(INDEX(SINAPI!$D:$D,MATCH($C168,SINAPI!$A:$A,0)),0),IF(B168="COMPOSIÇÃO",IFERROR(INDEX(COMPOSIÇÃO!$G:$G,MATCH($C168,COMPOSIÇÃO!$A:$A,0)),0),0)) -> 83.042 | H168: =G168*(1+$I$10) -> 100.0195735 | I168: 8671.7
A169: 9.5 | D169: Revestimento de Fachada | I169: =SUM(I170:I172) -> 28932.01
A170: 9.5.1 | B170: COMPOSIÇÃO | C170: COMP-785422 | D170: =IF(B170="SINAPI",IFERROR(INDEX(SINAPI!$B:$B,MATCH($C170,SINAPI!$A:$A,0)),""),IF(B170="COMPOSIÇÃO",IFERROR(INDEX(COMPOSIÇÃO!$C:$C,MATCH($C170,COMPOSIÇÃO!$A:$A,0)),""),"")) -> PLACA CIMENTÍCIA ESP = 8mm EM FACHADAS FIXADA EM ESTRUTURA METÁLICA | E170: =IF(B170="SINAPI",IFERROR(INDEX(SINAPI!$C:$C,MATCH($C170,SINAPI!$A:$A,0)),""),IF(B170="COMPOSIÇÃO",IFERROR(INDEX(COMPOSIÇÃO!$D:$D,MATCH($C170,COMPOSIÇÃO!$A:$A,0)),""),"")) -> M2 | F170: 97.44 | G170: =IF(B170="SINAPI",IFERROR(INDEX(SINAPI!$D:$D,MATCH($C170,SINAPI!$A:$A,0)),0),IF(B170="COMPOSIÇÃO",IFERROR(INDEX(COMPOSIÇÃO!$G:$G,MATCH($C170,COMPOSIÇÃO!$A:$A,0)),0),0)) -> 224.99882 | H170: =G170*(1+$I$10) -> 270.9988441 | I170: =ROUND(F170*H170,2) -> 26406.13
A171: 9.5.2 | B171: ORSE | C171: 9085 | D171: Moldura pre-moldada de concreto, pintada com selador acrílico e resina acrílica incolor (fornecimento e assentamento) | E171: M3 | F171: 0.91 | G171: 903.66 | H171: =G171*(1+$I$10) -> 1088.409332 | I171: 990.45
A172: 9.5.3 | B172: COMPOSIÇÃO | C172: COMP-2312 | D172: =IF(B172="SINAPI",IFERROR(INDEX(SINAPI!$B:$B,MATCH($C172,SINAPI!$A:$A,0)),""),IF(B172="COMPOSIÇÃO",IFERROR(INDEX(COMPOSIÇÃO!$C:$C,MATCH($C172,COMPOSIÇÃO!$A:$A,0)),""),"")) -> PINGADOR METÁLICO EM PERFIL "U" | E172: =IF(B172="SINAPI",IFERROR(INDEX(SINAPI!$C:$C,MATCH($C172,SINAPI!$A:$A,0)),""),IF(B172="COMPOSIÇÃO",IFERROR(INDEX(COMPOSIÇÃO!$D:$D,MATCH($C172,COMPOSIÇÃO!$A:$A,0)),""),"")) -> M | F172: 30.32 | G172: =IF(B172="SINAPI",IFERROR(INDEX(SINAPI!$D:$D,MATCH($C172,SINAPI!$A:$A,0)),0),IF(B172="COMPOSIÇÃO",IFERROR(INDEX(COMPOSIÇÃO!$G:$G,MATCH($C172,COMPOSIÇÃO!$A:$A,0)),0),0)) -> 42.045 | H172: =G172*(1+$I$10) -> 50.64091625 | I172: 1535.43
A173: 10.0 | D173: PAVIMENTAÇÃO | I173: =I174+I178+I191+I211+I215 -> 1441708.84
A174: 10.1 | D174: Base | I174: =SUM(I175:I177) -> 222334.48
A175: 10.1.1 | B175: COMPOSIÇÃO | C175: IFMT 234.08.2020 | D175: =IF(B175="SINAPI",IFERROR(INDEX(SINAPI!$B:$B,MATCH($C175,SINAPI!$A:$A,0)),""),IF(B175="COMPOSIÇÃO",IFERROR(INDEX(COMPOSIÇÃO!$C:$C,MATCH($C175,COMPOSIÇÃO!$A:$A,0)),""),"")) -> LASTRO DE CONCRETO, PREPARO MECÂNICO, INCLUSOS ADITIVO IMPERMEABILIZANTE, LANÇAMENTO E ADENSAMENTO | E175: =IF(B175="SINAPI",IFERROR(INDEX(SINAPI!$C:$C,MATCH($C175,SINAPI!$A:$A,0)),""),IF(B175="COMPOSIÇÃO",IFERROR(INDEX(COMPOSIÇÃO!$D:$D,MATCH($C175,COMPOSIÇÃO!$A:$A,0)),""),"")) -> M3 | F175: 100.87 | G175: =IF(B175="SINAPI",IFERROR(INDEX(SINAPI!$D:$D,MATCH($C175,SINAPI!$A:$A,0)),0),IF(B175="COMPOSIÇÃO",IFERROR(INDEX(COMPOSIÇÃO!$G:$G,MATCH($C175,COMPOSIÇÃO!$A:$A,0)),0),0)) -> 542.31 | H175: =G175*(1+$I$10) -> 653.1829062 | I175: =ROUND(F175*H175,2) -> 65886.56
A176: 10.1.2 | B176: COMPOSIÇÃO | C176: COMP-222437 | D176: =IF(B176="SINAPI",IFERROR(INDEX(SINAPI!$B:$B,MATCH($C176,SINAPI!$A:$A,0)),""),IF(B176="COMPOSIÇÃO",IFERROR(INDEX(COMPOSIÇÃO!$C:$C,MATCH($C176,COMPOSIÇÃO!$A:$A,0)),""),"")) -> REGULARIZAÇÃO DE BASE - CONTRAPISO | E176: =IF(B176="SINAPI",IFERROR(INDEX(SINAPI!$C:$C,MATCH($C176,SINAPI!$A:$A,0)),""),IF(B176="COMPOSIÇÃO",IFERROR(INDEX(COMPOSIÇÃO!$D:$D,MATCH($C176,COMPOSIÇÃO!$A:$A,0)),""),"")) -> M2 | F176: 69.12 | G176: =IF(B176="SINAPI",IFERROR(INDEX(SINAPI!$D:$D,MATCH($C176,SINAPI!$A:$A,0)),0),IF(B176="COMPOSIÇÃO",IFERROR(INDEX(COMPOSIÇÃO!$G:$G,MATCH($C176,COMPOSIÇÃO!$A:$A,0)),0),0)) -> 45.754361 | H176: =G176*(1+$I$10) -> 55.10863988 | I176: 3809.11
A177: 10.1.3 | B177: COMPOSIÇÃO | C177: COMP-222438 | D177: =IF(B177="SINAPI",IFERROR(INDEX(SINAPI!$B:$B,MATCH($C177,SINAPI!$A:$A,0)),""),IF(B177="COMPOSIÇÃO",IFERROR(INDEX(COMPOSIÇÃO!$C:$C,MATCH($C177,COMPOSIÇÃO!$A:$A,0)),""),"")) -> REGULARIZACAO DE PISO/BASE EM ARGAMASSA TRACO 1:3 (CIMENTO E AREIA GROSSA SEM PENEIRAR), ESPESSURA 3,0CM, PREPARO MECANICO | E177: =IF(B177="SINAPI",IFERROR(INDEX(SINAPI!$C:$C,MATCH($C177,SINAPI!$A:$A,0)),""),IF(B177="COMPOSIÇÃO",IFERROR(INDEX(COMPOSIÇÃO!$D:$D,MATCH($C177,COMPOSIÇÃO!$A:$A,0)),""),"")) -> M2 | F177: 2769.78 | G177: =IF(B177="SINAPI",IFERROR(INDEX(SINAPI!$D:$D,MATCH($C177,SINAPI!$A:$A,0)),0),IF(B177="COMPOSIÇÃO",IFERROR(INDEX(COMPOSIÇÃO!$G:$G,MATCH($C177,COMPOSIÇÃO!$A:$A,0)),0),0)) -> 45.754361 | H177: =G177*(1+$I$10) -> 55.10863988 | I177: 152638.81
A178: 10.2 | D178: Acabamento | I178: =SUM(I179:I190) -> 477182.14
A179: 10.2.1 | B179: COMPOSIÇÃO | C179: IFMT 235.08.2020 | D179: =COMPOSIÇÃO!C2878 -> PISO INDUSTRIAL ALTA RESISTENCIA, ESPESSURA 12MM, INCLUSO JUNTAS DE DILATACAO PLASTICAS E POLIMENTO MECANIZADO | E179: =IF(B179="SINAPI",IFERROR(INDEX(SINAPI!$C:$C,MATCH($C179,SINAPI!$A:$A,0)),""),IF(B179="COMPOSIÇÃO",IFERROR(INDEX(COMPOSIÇÃO!$D:$D,MATCH($C179,COMPOSIÇÃO!$A:$A,0)),""),"")) -> M2 | F179: 2475.2 | G179: =IF(B179="SINAPI",IFERROR(INDEX(SINAPI!$D:$D,MATCH($C179,SINAPI!$A:$A,0)),0),IF(B179="COMPOSIÇÃO",IFERROR(INDEX(COMPOSIÇÃO!$G:$G,MATCH($C179,COMPOSIÇÃO!$A:$A,0)),0),0)) -> 100.6202664 | H179: =G179*(1+$I$10) -> 121.1916395 | I179: =ROUND(F179*H179,2) -> 299973.55
A180: 10.2.2 | B180: COMPOSIÇÃO | C180: COMP-6074 | D180: =IF(B180="SINAPI",IFERROR(INDEX(SINAPI!$B:$B,MATCH($C180,SINAPI!$A:$A,0)),""),IF(B180="COMPOSIÇÃO",IFERROR(INDEX(COMPOSIÇÃO!$C:$C,MATCH($C180,COMPOSIÇÃO!$A:$A,0)),""),"")) -> GRANITO POLIDO E=2cm, CINZA, ARGAMASSA DE CIMENTO E AREIA 1:4, C/ REJUNTAMENTO | E180: =IF(B180="SINAPI",IFERROR(INDEX(SINAPI!$C:$C,MATCH($C180,SINAPI!$A:$A,0)),""),IF(B180="COMPOSIÇÃO",IFERROR(INDEX(COMPOSIÇÃO!$D:$D,MATCH($C180,COMPOSIÇÃO!$A:$A,0)),""),"")) -> M2 | F180: 9.51 | G180: =IF(B180="SINAPI",IFERROR(INDEX(SINAPI!$D:$D,MATCH($C180,SINAPI!$A:$A,0)),0),IF(B180="COMPOSIÇÃO",IFERROR(INDEX(COMPOSIÇÃO!$G:$G,MATCH($C180,COMPOSIÇÃO!$A:$A,0)),0),0)) -> 358.659101 | H180: 431.9853846 | I180: 4108.18
A181: 10.2.3 | B181: COMPOSIÇÃO | C181: COMP-5935 | D181: =IF(B181="SINAPI",IFERROR(INDEX(SINAPI!$B:$B,MATCH($C181,SINAPI!$A:$A,0)),""),IF(B181="COMPOSIÇÃO",IFERROR(INDEX(COMPOSIÇÃO!$C:$C,MATCH($C181,COMPOSIÇÃO!$A:$A,0)),""),"")) -> GRANITO CINZA SEM POLIMENTO, PEÇAS 50x50cm | E181: =IF(B181="SINAPI",IFERROR(INDEX(SINAPI!$C:$C,MATCH($C181,SINAPI!$A:$A,0)),""),IF(B181="COMPOSIÇÃO",IFERROR(INDEX(COMPOSIÇÃO!$D:$D,MATCH($C181,COMPOSIÇÃO!$A:$A,0)),""),"")) -> M2 | F181: 120.06 | G181: =IF(B181="SINAPI",IFERROR(INDEX(SINAPI!$D:$D,MATCH($C181,SINAPI!$A:$A,0)),0),IF(B181="COMPOSIÇÃO",IFERROR(INDEX(COMPOSIÇÃO!$G:$G,MATCH($C181,COMPOSIÇÃO!$A:$A,0)),0),0)) -> 354.197901 | H181: 426.6121118 | I181: 51219.05
A182: 10.2.4 | B182: COMPOSIÇÃO | C182: IFMT 241.08.2020 | D182: =IF(B182="SINAPI",IFERROR(INDEX(SINAPI!$B:$B,MATCH($C182,SINAPI!$A:$A,0)),""),IF(B182="COMPOSIÇÃO",IFERROR(INDEX(COMPOSIÇÃO!$C:$C,MATCH($C182,COMPOSIÇÃO!$A:$A,0)),""),"")) -> PISO VINILICO SEMIFLEXIVEL PADRAO LISO, ESPESSURA 2MM, FIXADO COM COLA | E182: =IF(B182="SINAPI",IFERROR(INDEX(SINAPI!$C:$C,MATCH($C182,SINAPI!$A:$A,0)),""),IF(B182="COMPOSIÇÃO",IFERROR(INDEX(COMPOSIÇÃO!$D:$D,MATCH($C182,COMPOSIÇÃO!$A:$A,0)),""),"")) -> M2 | F182: 174.52 | G182: =IF(B182="SINAPI",IFERROR(INDEX(SINAPI!$D:$D,MATCH($C182,SINAPI!$A:$A,0)),0),IF(B182="COMPOSIÇÃO",IFERROR(INDEX(COMPOSIÇÃO!$G:$G,MATCH($C182,COMPOSIÇÃO!$A:$A,0)),0),0)) -> 101.1611 | H182: 121.8430442 | I182: 21264.05
A183: 10.2.5 | B183: COMPOSIÇÃO | C183: COMP-2801 | D183: =IF(B183="SINAPI",IFERROR(INDEX(SINAPI!$B:$B,MATCH($C183,SINAPI!$A:$A,0)),""),IF(B183="COMPOSIÇÃO",IFERROR(INDEX(COMPOSIÇÃO!$C:$C,MATCH($C183,COMPOSIÇÃO!$A:$A,0)),""),"")) -> GRANITO POLIDO E=2cm, CINZA, ARGAMASSA DE CIMENTO E AREIA 1:4, C/ REJUNTAMENTO | E183: =IF(B183="SINAPI",IFERROR(INDEX(SINAPI!$C:$C,MATCH($C183,SINAPI!$A:$A,0)),""),IF(B183="COMPOSIÇÃO",IFERROR(INDEX(COMPOSIÇÃO!$D:$D,MATCH($C183,COMPOSIÇÃO!$A:$A,0)),""),"")) -> M | F183: 51.12 | G183: =IF(B183="SINAPI",IFERROR(INDEX(SINAPI!$D:$D,MATCH($C183,SINAPI!$A:$A,0)),0),IF(B183="COMPOSIÇÃO",IFERROR(INDEX(COMPOSIÇÃO!$G:$G,MATCH($C183,COMPOSIÇÃO!$A:$A,0)),0),0)) -> 206.357301 | H183: 248.5461481 | I183: 12705.68
A184: 10.2.6 | B184: COMPOSIÇÃO | C184: COMP-8083 | D184: =IF(B184="SINAPI",IFERROR(INDEX(SINAPI!$B:$B,MATCH($C184,SINAPI!$A:$A,0)),""),IF(B184="COMPOSIÇÃO",IFERROR(INDEX(COMPOSIÇÃO!$C:$C,MATCH($C184,COMPOSIÇÃO!$A:$A,0)),""),"")) -> DEGRAU INDUSTRIAL MONOLÍTICO C/PINGADEIRA | E184: =IF(B184="SINAPI",IFERROR(INDEX(SINAPI!$C:$C,MATCH($C184,SINAPI!$A:$A,0)),""),IF(B184="COMPOSIÇÃO",IFERROR(INDEX(COMPOSIÇÃO!$D:$D,MATCH($C184,COMPOSIÇÃO!$A:$A,0)),""),"")) -> M | F184: 18 | G184: =IF(B184="SINAPI",IFERROR(INDEX(SINAPI!$D:$D,MATCH($C184,SINAPI!$A:$A,0)),0),IF(B184="COMPOSIÇÃO",IFERROR(INDEX(COMPOSIÇÃO!$G:$G,MATCH($C184,COMPOSIÇÃO!$A:$A,0)),0),0)) -> 73.955 | H184: 89.07477611 | I184: 1603.35
A185: 10.2.7 | B185: COMPOSIÇÃO | C185: COMP-6762 | D185: =IF(B185="SINAPI",IFERROR(INDEX(SINAPI!$B:$B,MATCH($C185,SINAPI!$A:$A,0)),""),IF(B185="COMPOSIÇÃO",IFERROR(INDEX(COMPOSIÇÃO!$C:$C,MATCH($C185,COMPOSIÇÃO!$A:$A,0)),""),"")) -> PATAMAR INDUSTRIAL MONOLÍTICO C/PINGADEIRA | E185: =IF(B185="SINAPI",IFERROR(INDEX(SINAPI!$C:$C,MATCH($C185,SINAPI!$A:$A,0)),""),IF(B185="COMPOSIÇÃO",IFERROR(INDEX(COMPOSIÇÃO!$D:$D,MATCH($C185,COMPOSIÇÃO!$A:$A,0)),""),"")) -> M2 | F185: 4.45 | G185: =IF(B185="SINAPI",IFERROR(INDEX(SINAPI!$D:$D,MATCH($C185,SINAPI!$A:$A,0)),0),IF(B185="COMPOSIÇÃO",IFERROR(INDEX(COMPOSIÇÃO!$G:$G,MATCH($C185,COMPOSIÇÃO!$A:$A,0)),0),0)) -> 96.635 | H185: 116.3916029 | I185: 517.94
A186: 10.2.8 | B186: COMPOSIÇÃO | C186: COMP-2124 | D186: =IF(B186="SINAPI",IFERROR(INDEX(SINAPI!$B:$B,MATCH($C186,SINAPI!$A:$A,0)),""),IF(B186="COMPOSIÇÃO",IFERROR(INDEX(COMPOSIÇÃO!$C:$C,MATCH($C186,COMPOSIÇÃO!$A:$A,0)),""),"")) -> RODAPE VINILICO ALTURA 5CM, ESPESSURA 1MM, FIXADO COM COLA | E186: =IF(B186="SINAPI",IFERROR(INDEX(SINAPI!$C:$C,MATCH($C186,SINAPI!$A:$A,0)),""),IF(B186="COMPOSIÇÃO",IFERROR(INDEX(COMPOSIÇÃO!$D:$D,MATCH($C186,COMPOSIÇÃO!$A:$A,0)),""),"")) -> M2 | F186: 60.27 | G186: =IF(B186="SINAPI",IFERROR(INDEX(SINAPI!$D:$D,MATCH($C186,SINAPI!$A:$A,0)),0),IF(B186="COMPOSIÇÃO",IFERROR(INDEX(COMPOSIÇÃO!$G:$G,MATCH($C186,COMPOSIÇÃO!$A:$A,0)),0),0)) -> 27.03368 | H186: 32.56059757 | I186: 1962.43
A187: 10.2.9 | B187: COMPOSIÇÃO | C187: COMP-5349 | D187: =IF(B187="SINAPI",IFERROR(INDEX(SINAPI!$B:$B,MATCH($C187,SINAPI!$A:$A,0)),""),IF(B187="COMPOSIÇÃO",IFERROR(INDEX(COMPOSIÇÃO!$C:$C,MATCH($C187,COMPOSIÇÃO!$A:$A,0)),""),"")) -> TESTEIRA PARA PISO VINÍLICO 7,5CM | E187: =IF(B187="SINAPI",IFERROR(INDEX(SINAPI!$C:$C,MATCH($C187,SINAPI!$A:$A,0)),""),IF(B187="COMPOSIÇÃO",IFERROR(INDEX(COMPOSIÇÃO!$D:$D,MATCH($C187,COMPOSIÇÃO!$A:$A,0)),""),"")) -> M | F187: 103 | G187: =IF(B187="SINAPI",IFERROR(INDEX(SINAPI!$D:$D,MATCH($C187,SINAPI!$A:$A,0)),0),IF(B187="COMPOSIÇÃO",IFERROR(INDEX(COMPOSIÇÃO!$G:$G,MATCH($C187,COMPOSIÇÃO!$A:$A,0)),0),0)) -> 37.49568 | H187: 45.16150769 | I187: 4651.64
A188: 10.2.10 | B188: SINAPI | C188: 98679 | D188: =IF(B188="SINAPI",IFERROR(INDEX(SINAPI!$B:$B,MATCH($C188,SINAPI!$A:$A,0)),""),IF(B188="COMPOSIÇÃO",IFERROR(INDEX(COMPOSIÇÃO!$C:$C,MATCH($C188,COMPOSIÇÃO!$A:$A,0)),""),"")) -> PISO CIMENTADO, TRAÇO 1:3 (CIMENTO E AREIA), ACABAMENTO LISO, ESPESSURA 2,0 CM, PREPARO MECÂNICO DA ARGAMASSA. AF_09/2020 | E188: =IF(B188="SINAPI",IFERROR(INDEX(SINAPI!$C:$C,MATCH($C188,SINAPI!$A:$A,0)),""),IF(B188="COMPOSIÇÃO",IFERROR(INDEX(COMPOSIÇÃO!$D:$D,MATCH($C188,COMPOSIÇÃO!$A:$A,0)),""),"")) -> M2 | F188: 9.39 | G188: =IF(B188="SINAPI",IFERROR(INDEX(SINAPI!$D:$D,MATCH($C188,SINAPI!$A:$A,0)),0),IF(B188="COMPOSIÇÃO",IFERROR(INDEX(COMPOSIÇÃO!$G:$G,MATCH($C188,COMPOSIÇÃO!$A:$A,0)),0),0)) -> 28.33 | H188: 34.12194452 | I188: 320.41
A189: 10.2.11 | B189: COMPOSIÇÃO | C189: COMP-8949 | D189: =IF(B189="SINAPI",IFERROR(INDEX(SINAPI!$B:$B,MATCH($C189,SINAPI!$A:$A,0)),""),IF(B189="COMPOSIÇÃO",IFERROR(INDEX(COMPOSIÇÃO!$C:$C,MATCH($C189,COMPOSIÇÃO!$A:$A,0)),""),"")) -> PEITORIL EM GRANITO CINZA LARGURA = 19,0 cm ESPESSURA VARIÁVEL E PINGADEIRA | E189: =IF(B189="SINAPI",IFERROR(INDEX(SINAPI!$C:$C,MATCH($C189,SINAPI!$A:$A,0)),""),IF(B189="COMPOSIÇÃO",IFERROR(INDEX(COMPOSIÇÃO!$D:$D,MATCH($C189,COMPOSIÇÃO!$A:$A,0)),""),"")) -> M2 | F189: 297.75 | G189: =IF(B189="SINAPI",IFERROR(INDEX(SINAPI!$D:$D,MATCH($C189,SINAPI!$A:$A,0)),0),IF(B189="COMPOSIÇÃO",IFERROR(INDEX(COMPOSIÇÃO!$G:$G,MATCH($C189,COMPOSIÇÃO!$A:$A,0)),0),0)) -> 209.0777673 | H189: 251.8228018 | I189: 74980.24
A190: 10.2.12 | B190: SINAPI | C190: 98689 | D190: =IF(B190="SINAPI",IFERROR(INDEX(SINAPI!$B:$B,MATCH($C190,SINAPI!$A:$A,0)),""),IF(B190="COMPOSIÇÃO",IFERROR(INDEX(COMPOSIÇÃO!$C:$C,MATCH($C190,COMPOSIÇÃO!$A:$A,0)),""),"")) -> SOLEIRA EM GRANITO, LARGURA 15 CM, ESPESSURA 2,0 CM. AF_09/2020 | E190: =IF(B190="SINAPI",IFERROR(INDEX(SINAPI!$C:$C,MATCH($C190,SINAPI!$A:$A,0)),""),IF(B190="COMPOSIÇÃO",IFERROR(INDEX(COMPOSIÇÃO!$D:$D,MATCH($C190,COMPOSIÇÃO!$A:$A,0)),""),"")) -> M | F190: 41.6 | G190: =IF(B190="SINAPI",IFERROR(INDEX(SINAPI!$D:$D,MATCH($C190,SINAPI!$A:$A,0)),0),IF(B190="COMPOSIÇÃO",IFERROR(INDEX(COMPOSIÇÃO!$G:$G,MATCH($C190,COMPOSIÇÃO!$A:$A,0)),0),0)) -> 77.35 | H190: 93.163869 | I190: 3875.62
A191: 10.3 | D191: Pavimentação externa | I191: =SUM(I192:I210) -> 452254.06
A192: 10.3.1 | D192: Sub-leito
A193: 10.3.1.1 | B193: SINAPI | C193: 100577 | D193: =IF(B193="SINAPI",IFERROR(INDEX(SINAPI!$B:$B,MATCH($C193,SINAPI!$A:$A,0)),""),IF(B193="COMPOSIÇÃO",IFERROR(INDEX(COMPOSIÇÃO!$C:$C,MATCH($C193,COMPOSIÇÃO!$A:$A,0)),""),"")) -> REGULARIZAÇÃO E COMPACTAÇÃO DE SUBLEITO DE SOLO PREDOMINANTEMENTE ARENOSO. AF_11/2019 | E193: =IF(B193="SINAPI",IFERROR(INDEX(SINAPI!$C:$C,MATCH($C193,SINAPI!$A:$A,0)),""),IF(B193="COMPOSIÇÃO",IFERROR(INDEX(COMPOSIÇÃO!$D:$D,MATCH($C193,COMPOSIÇÃO!$A:$A,0)),""),"")) -> M2 | F193: 6400 | G193: =IF(B193="SINAPI",IFERROR(INDEX(SINAPI!$D:$D,MATCH($C193,SINAPI!$A:$A,0)),0),IF(B193="COMPOSIÇÃO",IFERROR(INDEX(COMPOSIÇÃO!$G:$G,MATCH($C193,COMPOSIÇÃO!$A:$A,0)),0),0)) -> 0.78 | H193: =G193*(1+$I$10) -> 0.9394675866 | I193: =ROUND(F193*H193,2) -> 6012.59
A194: 10.3.2 | D194: Sub-base
A195: 10.3.2.1 | B195: SINAPI | C195: 96388 | D195: =IF(B195="SINAPI",IFERROR(INDEX(SINAPI!$B:$B,MATCH($C195,SINAPI!$A:$A,0)),""),IF(B195="COMPOSIÇÃO",IFERROR(INDEX(COMPOSIÇÃO!$C:$C,MATCH($C195,COMPOSIÇÃO!$A:$A,0)),""),"")) -> EXECUÇÃO E COMPACTAÇÃO DE BASE E OU SUB BASE PARA PAVIMENTAÇÃO DE SOLOS DE COMPORTAMENTO LATERÍTICO (ARENOSO) - EXCLUSIVE SOLO, ESCAVAÇÃO, CARGA E TRANSPORTE. AF_11/2019 | E195: =IF(B195="SINAPI",IFERROR(INDEX(SINAPI!$C:$C,MATCH($C195,SINAPI!$A:$A,0)),""),IF(B195="COMPOSIÇÃO",IFERROR(INDEX(COMPOSIÇÃO!$D:$D,MATCH($C195,COMPOSIÇÃO!$A:$A,0)),""),"")) -> M3 | F195: =2452*0.3 -> 735.6 | G195: =IF(B195="SINAPI",IFERROR(INDEX(SINAPI!$D:$D,MATCH($C195,SINAPI!$A:$A,0)),0),IF(B195="COMPOSIÇÃO",IFERROR(INDEX(COMPOSIÇÃO!$G:$G,MATCH($C195,COMPOSIÇÃO!$A:$A,0)),0),0)) -> 7.84 | H195: =G195*(1+$I$10) -> 9.442853691 | I195: =ROUND(F195*H195,2) -> 6946.16
A196: 10.3.2.2 | B196: SINAPI | C196: 100981 | D196: =IF(B196="SINAPI",IFERROR(INDEX(SINAPI!$B:$B,MATCH($C196,SINAPI!$A:$A,0)),""),IF(B196="COMPOSIÇÃO",IFERROR(INDEX(COMPOSIÇÃO!$C:$C,MATCH($C196,COMPOSIÇÃO!$A:$A,0)),""),"")) -> CARGA, MANOBRA E DESCARGA DE ENTULHO EM CAMINHÃO BASCULANTE 6 M³ - CARGA COM ESCAVADEIRA HIDRÁULICA (CAÇAMBA DE 0,80 M³ / 111 HP) E DESCARGA LIVRE (UNIDADE: M3). AF_07/2020 | E196: =IF(B196="SINAPI",IFERROR(INDEX(SINAPI!$C:$C,MATCH($C196,SINAPI!$A:$A,0)),""),IF(B196="COMPOSIÇÃO",IFERROR(INDEX(COMPOSIÇÃO!$D:$D,MATCH($C196,COMPOSIÇÃO!$A:$A,0)),""),"")) -> M3 | F196: =F195*1.3 -> 956.28 | G196: =IF(B196="SINAPI",IFERROR(INDEX(SINAPI!$D:$D,MATCH($C196,SINAPI!$A:$A,0)),0),IF(B196="COMPOSIÇÃO",IFERROR(INDEX(COMPOSIÇÃO!$G:$G,MATCH($C196,COMPOSIÇÃO!$A:$A,0)),0),0)) -> 6.46 | H196: =G196*(1+$I$10) -> 7.78071873 | I196: 7440.55
A197: 10.3.2.3 | B197: SINAPI | C197: 100575 | D197: =IF(B197="SINAPI",IFERROR(INDEX(SINAPI!$B:$B,MATCH($C197,SINAPI!$A:$A,0)),""),IF(B197="COMPOSIÇÃO",IFERROR(INDEX(COMPOSIÇÃO!$C:$C,MATCH($C197,COMPOSIÇÃO!$A:$A,0)),""),"")) -> REGULARIZAÇÃO DE SUPERFÍCIES COM MOTONIVELADORA. AF_11/2019 | E197: =IF(B197="SINAPI",IFERROR(INDEX(SINAPI!$C:$C,MATCH($C197,SINAPI!$A:$A,0)),""),IF(B197="COMPOSIÇÃO",IFERROR(INDEX(COMPOSIÇÃO!$D:$D,MATCH($C197,COMPOSIÇÃO!$A:$A,0)),""),"")) -> M2 | F197: 6400 | G197: =IF(B197="SINAPI",IFERROR(INDEX(SINAPI!$D:$D,MATCH($C197,SINAPI!$A:$A,0)),0),IF(B197="COMPOSIÇÃO",IFERROR(INDEX(COMPOSIÇÃO!$G:$G,MATCH($C197,COMPOSIÇÃO!$A:$A,0)),0),0)) -> 0.07 | H197: =G197*(1+$I$10) -> 0.08431119367 | I197: 539.59
A198: 10.3.3 | D198: Base
A199: 10.3.3.1 | B199: SINAPI | C199: 96388 | D199: =IF(B199="SINAPI",IFERROR(INDEX(SINAPI!$B:$B,MATCH($C199,SINAPI!$A:$A,0)),""),IF(B199="COMPOSIÇÃO",IFERROR(INDEX(COMPOSIÇÃO!$C:$C,MATCH($C199,COMPOSIÇÃO!$A:$A,0)),""),"")) -> EXECUÇÃO E COMPACTAÇÃO DE BASE E OU SUB BASE PARA PAVIMENTAÇÃO DE SOLOS DE COMPORTAMENTO LATERÍTICO (ARENOSO) - EXCLUSIVE SOLO, ESCAVAÇÃO, CARGA E TRANSPORTE. AF_11/2019 | E199: =IF(B199="SINAPI",IFERROR(INDEX(SINAPI!$C:$C,MATCH($C199,SINAPI!$A:$A,0)),""),IF(B199="COMPOSIÇÃO",IFERROR(INDEX(COMPOSIÇÃO!$D:$D,MATCH($C199,COMPOSIÇÃO!$A:$A,0)),""),"")) -> M3 | F199: =2452*0.3 -> 735.6 | G199: =IF(B199="SINAPI",IFERROR(INDEX(SINAPI!$D:$D,MATCH($C199,SINAPI!$A:$A,0)),0),IF(B199="COMPOSIÇÃO",IFERROR(INDEX(COMPOSIÇÃO!$G:$G,MATCH($C199,COMPOSIÇÃO!$A:$A,0)),0),0)) -> 7.84 | H199: =G199*(1+$I$10) -> 9.442853691 | I199: =ROUND(F199*H199,2) -> 6946.16
A200: 10.3.3.2 | B200: SINAPI | C200: 101115 | D200: =IF(B200="SINAPI",IFERROR(INDEX(SINAPI!$B:$B,MATCH($C200,SINAPI!$A:$A,0)),""),IF(B200="COMPOSIÇÃO",IFERROR(INDEX(COMPOSIÇÃO!$C:$C,MATCH($C200,COMPOSIÇÃO!$A:$A,0)),""),"")) -> ESCAVAÇÃO HORIZONTAL EM SOLO DE 1A CATEGORIA COM TRATOR DE ESTEIRAS (150HP/LÂMINA: 3,18M3). AF_07/2020 | E200: =IF(B200="SINAPI",IFERROR(INDEX(SINAPI!$C:$C,MATCH($C200,SINAPI!$A:$A,0)),""),IF(B200="COMPOSIÇÃO",IFERROR(INDEX(COMPOSIÇÃO!$D:$D,MATCH($C200,COMPOSIÇÃO!$A:$A,0)),""),"")) -> M3 | F200: 735.6 | G200: =IF(B200="SINAPI",IFERROR(INDEX(SINAPI!$D:$D,MATCH($C200,SINAPI!$A:$A,0)),0),IF(B200="COMPOSIÇÃO",IFERROR(INDEX(COMPOSIÇÃO!$G:$G,MATCH($C200,COMPOSIÇÃO!$A:$A,0)),0),0)) -> 2.44 | H200: =G200*(1+$I$10) -> 2.938847322 | I200: 2161.82
A201: 10.3.3.3 | B201: SINAPI | C201: 93595 | D201: =IF(B201="SINAPI",IFERROR(INDEX(SINAPI!$B:$B,MATCH($C201,SINAPI!$A:$A,0)),""),IF(B201="COMPOSIÇÃO",IFERROR(INDEX(COMPOSIÇÃO!$C:$C,MATCH($C201,COMPOSIÇÃO!$A:$A,0)),""),"")) -> TRANSPORTE COM CAMINHÃO BASCULANTE DE 10 M³, EM VIA URBANA EM REVESTIMENTO PRIMÁRIO (UNIDADE: TXKM). AF_07/2020 | E201: =IF(B201="SINAPI",IFERROR(INDEX(SINAPI!$C:$C,MATCH($C201,SINAPI!$A:$A,0)),""),IF(B201="COMPOSIÇÃO",IFERROR(INDEX(COMPOSIÇÃO!$D:$D,MATCH($C201,COMPOSIÇÃO!$A:$A,0)),""),"")) -> TXKM | F201: =735*1.3*5 -> 4777.5 | G201: =IF(B201="SINAPI",IFERROR(INDEX(SINAPI!$D:$D,MATCH($C201,SINAPI!$A:$A,0)),0),IF(B201="COMPOSIÇÃO",IFERROR(INDEX(COMPOSIÇÃO!$G:$G,MATCH($C201,COMPOSIÇÃO!$A:$A,0)),0),0)) -> 1.28 | H201: =G201*(1+$I$10) -> 1.541690398 | I201: 7365.43
A202: 10.3.3.4 | B202: SINAPI | C202: 93594 | D202: =IF(B202="SINAPI",IFERROR(INDEX(SINAPI!$B:$B,MATCH($C202,SINAPI!$A:$A,0)),""),IF(B202="COMPOSIÇÃO",IFERROR(INDEX(COMPOSIÇÃO!$C:$C,MATCH($C202,COMPOSIÇÃO!$A:$A,0)),""),"")) -> TRANSPORTE COM CAMINHÃO BASCULANTE DE 10 M³, EM VIA URBANA EM LEITO NATURAL (UNIDADE: TXKM). AF_07/2020 | E202: =IF(B202="SINAPI",IFERROR(INDEX(SINAPI!$C:$C,MATCH($C202,SINAPI!$A:$A,0)),""),IF(B202="COMPOSIÇÃO",IFERROR(INDEX(COMPOSIÇÃO!$D:$D,MATCH($C202,COMPOSIÇÃO!$A:$A,0)),""),"")) -> TXKM | F202: =735*1.3*2 -> 1911 | G202: =IF(B202="SINAPI",IFERROR(INDEX(SINAPI!$D:$D,MATCH($C202,SINAPI!$A:$A,0)),0),IF(B202="COMPOSIÇÃO",IFERROR(INDEX(COMPOSIÇÃO!$G:$G,MATCH($C202,COMPOSIÇÃO!$A:$A,0)),0),0)) -> 1.48 | H202: =G202*(1+$I$10) -> 1.782579523 | I202: 3406.51
A203: 10.3.3.5 | B203: COMPOSIÇÃO | C203: COMP-105 | D203: =IF(B203="SINAPI",IFERROR(INDEX(SINAPI!$B:$B,MATCH($C203,SINAPI!$A:$A,0)),""),IF(B203="COMPOSIÇÃO",IFERROR(INDEX(COMPOSIÇÃO!$C:$C,MATCH($C203,COMPOSIÇÃO!$A:$A,0)),""),"")) -> INDENIZACAO DE MATERIAL DE JAZIDA | E203: =IF(B203="SINAPI",IFERROR(INDEX(SINAPI!$C:$C,MATCH($C203,SINAPI!$A:$A,0)),""),IF(B203="COMPOSIÇÃO",IFERROR(INDEX(COMPOSIÇÃO!$D:$D,MATCH($C203,COMPOSIÇÃO!$A:$A,0)),""),"")) -> UN | F203: =735*0.5 -> 367.5 | G203: =IF(B203="SINAPI",IFERROR(INDEX(SINAPI!$D:$D,MATCH($C203,SINAPI!$A:$A,0)),0),IF(B203="COMPOSIÇÃO",IFERROR(INDEX(COMPOSIÇÃO!$G:$G,MATCH($C203,COMPOSIÇÃO!$A:$A,0)),0),0)) -> 16.87 | H203: =G203*(1+$I$10) -> 20.31899767 | I203: 7467.23
A204: 10.3.4 | D204: Pavimentação externa
A205: 10.3.4.1 | B205: SINAPI | C205: 92396 | D205: =IF(B205="SINAPI",IFERROR(INDEX(SINAPI!$B:$B,MATCH($C205,SINAPI!$A:$A,0)),""),IF(B205="COMPOSIÇÃO",IFERROR(INDEX(COMPOSIÇÃO!$C:$C,MATCH($C205,COMPOSIÇÃO!$A:$A,0)),""),"")) -> EXECUÇÃO DE PASSEIO EM PISO INTERTRAVADO, COM BLOCO RETANGULAR COR NATURAL DE 20 X 10 CM, ESPESSURA 6 CM. AF_12/2015 | E205: =IF(B205="SINAPI",IFERROR(INDEX(SINAPI!$C:$C,MATCH($C205,SINAPI!$A:$A,0)),""),IF(B205="COMPOSIÇÃO",IFERROR(INDEX(COMPOSIÇÃO!$D:$D,MATCH($C205,COMPOSIÇÃO!$A:$A,0)),""),"")) -> M2 | F205: 1758.59 | G205: =IF(B205="SINAPI",IFERROR(INDEX(SINAPI!$D:$D,MATCH($C205,SINAPI!$A:$A,0)),0),IF(B205="COMPOSIÇÃO",IFERROR(INDEX(COMPOSIÇÃO!$G:$G,MATCH($C205,COMPOSIÇÃO!$A:$A,0)),0),0)) -> 71.11 | H205: =G205*(1+$I$10) -> 85.64812831 | I205: =ROUND(F205*H205,2) -> 150619.94
... 818 more rows

Sheet COMPOSIÇÃO
A6: SERVIÇO PUBLICO FEDERAL
A7: INSTITUTO FEDERAL DE EDUCAÇÃO, CIÊNCIA E TECNOLOGIA DE MATO GROSSO
A8: =ORÇAMENTO!A6 -> CAMPUS SINOP
C10: COMPOSIÇÃO NÃO DESONERADO
A11: =ORÇAMENTO!A10 & " " & ORÇAMENTO!B10 -> OBRA: IMPLANTAÇÃO DO CAMPUS SINOP
A12: TABELA SINAPI | B12: ENCARGOS SOCIAIS SOBRE PREÇOS DA MÃO-DE-OBRA: 113,04%(HORA) 71,63%(MÊS) | D12: ORSE - AGOSTO/2021
B13: DATA DE EMISSÃO: 20/09/2021 | D13: SEINFRA - MARÇO/2021
B14: DATA REFERÊNCIA TÉCNICA: 20/09/2021 | D14: SCO-RJ - SETEMBRO/2021
D15: GOINFRA - OUTUBRO/2021
D16: SETOP - JULHO/2021
A17: CLASSE/TIPO | B17: CÓDIGOS/ SINAPI | C17: DESCRIÇÃO | D17: UND | E17: COEFICIENTE | F17: PREÇO UNITÁRIO | G17: PREÇO TOTAL
A18: COMP-264922 | B18: =IFERROR(INDEX(COMPOSIÇÕES_IFMT!$B:$B,MATCH($A18,COMPOSIÇÕES_IFMT!$A:$A,0)),"") ->  | C18: PCMAT - PROGRAMA DE CONDIÇÕES E MEIO AMBIENTE DO TRABALHO NA INDÚSTRIA DA CONSTRUÇÃO | D18: UND | G18: =G21 -> 734.68
A19: =IFERROR(INDEX(SINAPI!$E:$E,MATCH($B19,SINAPI!$A:$A,0)),"") -> COMPOSIÇÃO | B19: 100309 | C19: =IFERROR(INDEX(SINAPI!$B:$B,MATCH($B19,SINAPI!$A:$A,0)),"") -> TÉCNICO EM SEGURANÇA DO TRABALHO COM ENCARGOS COMPLEMENTARES | D19: =IFERROR(INDEX(SINAPI!$C:$C,MATCH($B19,SINAPI!$A:$A,0)),"") -> H | E19: 20 | F19: =IFERROR(INDEX(SINAPI!$D:$D,MATCH($B19,SINAPI!$A:$A,0)),0) -> 25.51 | G19: =IFERROR(F19*E19,0) -> 510.2
A20: =IFERROR(INDEX(SINAPI!$E:$E,MATCH($B20,SINAPI!$A:$A,0)),"") -> COMPOSIÇÃO | B20: 90772 | C20: =IFERROR(INDEX(SINAPI!$B:$B,MATCH($B20,SINAPI!$A:$A,0)),"") -> AUXILIAR DE ESCRITORIO COM ENCARGOS COMPLEMENTARES | D20: =IFERROR(INDEX(SINAPI!$C:$C,MATCH($B20,SINAPI!$A:$A,0)),"") -> H | E20: 16 | F20: =IFERROR(INDEX(SINAPI!$D:$D,MATCH($B20,SINAPI!$A:$A,0)),0) -> 14.03 | G20: 224.48
F21: TOTAL | G21: =SUM(G19:G20) -> 734.68
A24: CLASSE/TIPO | B24: CÓDIGOS/ SINAPI | C24: DESCRIÇÃO | D24: UND | E24: COEFICIENTE | F24: PREÇO UNITÁRIO | G24: PREÇO TOTAL
A25: COMP-1940 | B25: =IFERROR(INDEX(COMPOSIÇÕES_IFMT!$B:$B,MATCH($A25,COMPOSIÇÕES_IFMT!$A:$A,0)),"") ->  | C25: PPRA - PROGRAMA DE PREVENÇÃO DE RISCOS AMBIENTAIS | D25: UND | G25: =G28 -> 892.84
A26: =IFERROR(INDEX(SINAPI!$E:$E,MATCH($B26,SINAPI!$A:$A,0)),"") -> COMPOSIÇÃO | B26: 100309 | C26: =IFERROR(INDEX(SINAPI!$B:$B,MATCH($B26,SINAPI!$A:$A,0)),"") -> TÉCNICO EM SEGURANÇA DO TRABALHO COM ENCARGOS COMPLEMENTARES | D26: =IFERROR(INDEX(SINAPI!$C:$C,MATCH($B26,SINAPI!$A:$A,0)),"") -> H | E26: 24 | F26: =IFERROR(INDEX(SINAPI!$D:$D,MATCH($B26,SINAPI!$A:$A,0)),0) -> 25.51 | G26: =IFERROR(F26*E26,0) -> 612.24
A27: =IFERROR(INDEX(SINAPI!$E:$E,MATCH($B27,SINAPI!$A:$A,0)),"") -> COMPOSIÇÃO | B27: 90772 | C27: =IFERROR(INDEX(SINAPI!$B:$B,MATCH($B27,SINAPI!$A:$A,0)),"") -> AUXILIAR DE ESCRITORIO COM ENCARGOS COMPLEMENTARES | D27: =IFERROR(INDEX(SINAPI!$C:$C,MATCH($B27,SINAPI!$A:$A,0)),"") -> H | E27: 20 | F27: =IFERROR(INDEX(SINAPI!$D:$D,MATCH($B27,SINAPI!$A:$A,0)),0) -> 14.03 | G27: 280.6
F28: TOTAL | G28: =SUM(G26:G27) -> 892.84
A31: CLASSE/TIPO | B31: CÓDIGOS/ SINAPI | C31: DESCRIÇÃO | D31: UND | E31: COEFICIENTE | F31: PREÇO UNITÁRIO | G31: PREÇO TOTAL
A32: COMP-729139 | B32: =IFERROR(INDEX(COMPOSIÇÕES_IFMT!$B:$B,MATCH($A32,COMPOSIÇÕES_IFMT!$A:$A,0)),"") ->  | C32: PCMSO - PROGRAMA DE CONTROLE MÉDICO E MEIO AMBIENTE DO TRABALHO NA INDÚSTRIA DA CONSTRUÇÃO | D32: UND | G32: =G35 -> 948.96
A33: =IFERROR(INDEX(SINAPI!$E:$E,MATCH($B33,SINAPI!$A:$A,0)),"") -> COMPOSIÇÃO | B33: 90772 | C33: =IFERROR(INDEX(SINAPI!$B:$B,MATCH($B33,SINAPI!$A:$A,0)),"") -> AUXILIAR DE ESCRITORIO COM ENCARGOS COMPLEMENTARES | D33: =IFERROR(INDEX(SINAPI!$C:$C,MATCH($B33,SINAPI!$A:$A,0)),"") -> H | E33: 24 | F33: =IFERROR(INDEX(SINAPI!$D:$D,MATCH($B33,SINAPI!$A:$A,0)),0) -> 14.03 | G33: =IFERROR(F33*E33,0) -> 336.72
A34: =IFERROR(INDEX(SINAPI!$E:$E,MATCH($B34,SINAPI!$A:$A,0)),"") -> COMPOSIÇÃO | B34: 100309 | C34: =IFERROR(INDEX(SINAPI!$B:$B,MATCH($B34,SINAPI!$A:$A,0)),"") -> TÉCNICO EM SEGURANÇA DO TRABALHO COM ENCARGOS COMPLEMENTARES | D34: =IFERROR(INDEX(SINAPI!$C:$C,MATCH($B34,SINAPI!$A:$A,0)),"") -> H | E34: 24 | F34: =IFERROR(INDEX(SINAPI!$D:$D,MATCH($B34,SINAPI!$A:$A,0)),0) -> 25.51 | G34: 612.24
F35: TOTAL | G35: =SUM(G33:G34) -> 948.96
A38: CLASSE/TIPO | B38: CÓDIGOS/ SINAPI | C38: DESCRIÇÃO | D38: UND | E38: COEFICIENTE | F38: PREÇO UNITÁRIO | G38: PREÇO TOTAL
A39: COMP-6982 | B39: =IFERROR(INDEX(COMPOSIÇÕES_IFMT!$B:$B,MATCH($A39,COMPOSIÇÕES_IFMT!$A:$A,0)),"") ->  | C39: ENTRADA PROVISÓRIAS DE ÁGUA (UND) | D39: UND | G39: =G47 -> 302.735
A40: =IFERROR(INDEX(SINAPI!$E:$E,MATCH($B40,SINAPI!$A:$A,0)),"") -> INSUMO | B40: 3529 | C40: =IFERROR(INDEX(SINAPI!$B:$B,MATCH($B40,SINAPI!$A:$A,0)),"") -> JOELHO PVC, SOLDAVEL, 90 GRAUS, 25 MM, PARA AGUA FRIA PREDIAL | D40: =IFERROR(INDEX(SINAPI!$C:$C,MATCH($B40,SINAPI!$A:$A,0)),"") -> UN | E40: 2 | F40: =IFERROR(INDEX(SINAPI!$D:$D,MATCH($B40,SINAPI!$A:$A,0)),0) -> 0.78 | G40: =IFERROR(F40*E40,0) -> 1.56
A41: =IFERROR(INDEX(SINAPI!$E:$E,MATCH($B41,SINAPI!$A:$A,0)),"") -> INSUMO | B41: 119 | C41: =IFERROR(INDEX(SINAPI!$B:$B,MATCH($B41,SINAPI!$A:$A,0)),"") -> ADESIVO PLASTICO PARA PVC, BISNAGA COM 75 GR | D41: =IFERROR(INDEX(SINAPI!$C:$C,MATCH($B41,SINAPI!$A:$A,0)),"") -> UN | E41: 0.5 | F41: =IFERROR(INDEX(SINAPI!$D:$D,MATCH($B41,SINAPI!$A:$A,0)),0) -> 8.99 | G41: 4.495
A42: =IFERROR(INDEX(SINAPI!$E:$E,MATCH($B42,SINAPI!$A:$A,0)),"") -> INSUMO | B42: 9868 | C42: =IFERROR(INDEX(SINAPI!$B:$B,MATCH($B42,SINAPI!$A:$A,0)),"") -> TUBO PVC, SOLDAVEL, DN 25 MM, AGUA FRIA (NBR-5648) | D42: =IFERROR(INDEX(SINAPI!$C:$C,MATCH($B42,SINAPI!$A:$A,0)),"") -> M | E42: 10 | F42: =IFERROR(INDEX(SINAPI!$D:$D,MATCH($B42,SINAPI!$A:$A,0)),0) -> 3.98 | G42: 39.8
A43: =IFERROR(INDEX(SINAPI!$E:$E,MATCH($B43,SINAPI!$A:$A,0)),"") -> INSUMO | B43: 38383 | C43: =IFERROR(INDEX(SINAPI!$B:$B,MATCH($B43,SINAPI!$A:$A,0)),"") -> LIXA D'AGUA EM FOLHA, GRAO 100 | D43: =IFERROR(INDEX(SINAPI!$C:$C,MATCH($B43,SINAPI!$A:$A,0)),"") -> UN | E43: 2 | F43: =IFERROR(INDEX(SINAPI!$D:$D,MATCH($B43,SINAPI!$A:$A,0)),0) -> 2.19 | G43: 4.38
A44: =IFERROR(INDEX(SINAPI!$E:$E,MATCH($B44,SINAPI!$A:$A,0)),"") -> COMPOSIÇÃO | B44: 88267 | C44: =IFERROR(INDEX(SINAPI!$B:$B,MATCH($B44,SINAPI!$A:$A,0)),"") -> ENCANADOR OU BOMBEIRO HIDRÁULICO COM ENCARGOS COMPLEMENTARES | D44: =IFERROR(INDEX(SINAPI!$C:$C,MATCH($B44,SINAPI!$A:$A,0)),"") -> H | E44: 2 | F44: =IFERROR(INDEX(SINAPI!$D:$D,MATCH($B44,SINAPI!$A:$A,0)),0) -> 19.92 | G44: 39.84
A45: =IFERROR(INDEX(SINAPI!$E:$E,MATCH($B45,SINAPI!$A:$A,0)),"") -> COMPOSIÇÃO | B45: 88248 | C45: =IFERROR(INDEX(SINAPI!$B:$B,MATCH($B45,SINAPI!$A:$A,0)),"") -> AUXILIAR DE ENCANADOR OU BOMBEIRO HIDRÁULICO COM ENCARGOS COMPLEMENTARES | D45: =IFERROR(INDEX(SINAPI!$C:$C,MATCH($B45,SINAPI!$A:$A,0)),"") -> H | E45: 2 | F45: =IFERROR(INDEX(SINAPI!$D:$D,MATCH($B45,SINAPI!$A:$A,0)),0) -> 15.08 | G45: 30.16
A46: TAXA | B46: TAXA SINOP | C46: TAXA DE LIGAÇAO DE ÁGUA | D46: UN | E46: 1 | F46: 182.5 | G46: 182.5
F47: TOTAL | G47: =SUM(G40:G46) -> 302.735
A50: CLASSE/TIPO | B50: CÓDIGOS/ SINAPI | C50: DESCRIÇÃO | D50: UND | E50: COEFICIENTE | F50: PREÇO UNITÁRIO | G50: PREÇO TOTAL
A51: COMP-879649 | B51: =IFERROR(INDEX(COMPOSIÇÕES_IFMT!$B:$B,MATCH($A51,COMPOSIÇÕES_IFMT!$A:$A,0)),"") ->  | C51: TRANSPORTE DE COLETA E DESCARTES DE MATERIAIS | D51: M3 | G51: =G56 -> 59.004
A52: =IFERROR(INDEX(SINAPI!$E:$E,MATCH($B52,SINAPI!$A:$A,0)),"") -> COMPOSIÇÃO | B52: 95875 | C52: =IFERROR(INDEX(SINAPI!$B:$B,MATCH($B52,SINAPI!$A:$A,0)),"") -> TRANSPORTE COM CAMINHÃO BASCULANTE DE 10 M³, EM VIA URBANA PAVIMENTADA, DMT ATÉ 30 KM (UNIDADE: M3XKM). AF_07/2020 | D52: =IFERROR(INDEX(SINAPI!$C:$C,MATCH($B52,SINAPI!$A:$A,0)),"") -> M3XKM | E52: 10 | F52: =IFERROR(INDEX(SINAPI!$D:$D,MATCH($B52,SINAPI!$A:$A,0)),0) -> 1.75 | G52: =IFERROR(F52*E52,0) -> 17.5
A53: =IFERROR(INDEX(SINAPI!$E:$E,MATCH($B53,SINAPI!$A:$A,0)),"") -> COMPOSIÇÃO | B53: 88281 | C53: =IFERROR(INDEX(SINAPI!$B:$B,MATCH($B53,SINAPI!$A:$A,0)),"") -> MOTORISTA DE BASCULANTE COM ENCARGOS COMPLEMENTARES | D53: =IFERROR(INDEX(SINAPI!$C:$C,MATCH($B53,SINAPI!$A:$A,0)),"") -> H | E53: 1 | F53: =IFERROR(INDEX(SINAPI!$D:$D,MATCH($B53,SINAPI!$A:$A,0)),0) -> 15.23 | G53: 15.23
A54: =IFERROR(INDEX(SINAPI!$E:$E,MATCH($B54,SINAPI!$A:$A,0)),"") -> COMPOSIÇÃO | B54: 5680 | C54: =IFERROR(INDEX(SINAPI!$B:$B,MATCH($B54,SINAPI!$A:$A,0)),"") -> RETROESCAVADEIRA SOBRE RODAS COM CARREGADEIRA, TRAÇÃO 4X2, POTÊNCIA LÍQ. 79 HP, CAÇAMBA CARREG. CAP. MÍN. 1 M3, CAÇAMBA RETRO CAP. 0,20 M3, PESO OPERACIONAL MÍN. 6.570 KG, PROFUNDIDADE ESCAVAÇÃO MÁX. 4,37 M - CHP DIURNO. AF_06/2014 | D54: =IFERROR(INDEX(SINAPI!$C:$C,MATCH($B54,SINAPI!$A:$A,0)),"") -> CHP | E54: 0.2 | F54: =IFERROR(INDEX(SINAPI!$D:$D,MATCH($B54,SINAPI!$A:$A,0)),0) -> 95.46 | G54: 19.092
A55: =IFERROR(INDEX(SINAPI!$E:$E,MATCH($B55,SINAPI!$A:$A,0)),"") -> COMPOSIÇÃO | B55: 5681 | C55: =IFERROR(INDEX(SINAPI!$B:$B,MATCH($B55,SINAPI!$A:$A,0)),"") -> RETROESCAVADEIRA SOBRE RODAS COM CARREGADEIRA, TRAÇÃO 4X2, POTÊNCIA LÍQ. 79 HP, CAÇAMBA CARREG. CAP. MÍN. 1 M3, CAÇAMBA RETRO CAP. 0,20 M3, PESO OPERACIONAL MÍN. 6.570 KG, PROFUNDIDADE ESCAVAÇÃO MÁX. 4,37 M - CHI DIURNO. AF_06/2014 | D55: =IFERROR(INDEX(SINAPI!$C:$C,MATCH($B55,SINAPI!$A:$A,0)),"") -> CHI | E55: 0.2 | F55: =IFERROR(INDEX(SINAPI!$D:$D,MATCH($B55,SINAPI!$A:$A,0)),0) -> 35.91 | G55: 7.182
F56: TOTAL | G56: =SUM(G52:G55) -> 59.004
A59: CLASSE/TIPO | B59: CÓDIGOS/ SINAPI | C59: DESCRIÇÃO | D59: UND | E59: COEFICIENTE | F59: PREÇO UNITÁRIO | G59: PREÇO TOTAL
A60: COMP-1294 | B60: =IFERROR(INDEX(COMPOSIÇÕES_IFMT!$B:$B,MATCH($A60,COMPOSIÇÕES_IFMT!$A:$A,0)),"") ->  | C60: APILOAMENTO DE FUNDO DE VALA COM COMPACTADOR DE SOLOS DE PERCUSSÃO (SOQUETE) | D60: M2 | G60: =G64 -> 31.4375
A61: =IFERROR(INDEX(SINAPI!$E:$E,MATCH($B61,SINAPI!$A:$A,0)),"") -> COMPOSIÇÃO | B61: 88316 | C61: =IFERROR(INDEX(SINAPI!$B:$B,MATCH($B61,SINAPI!$A:$A,0)),"") -> SERVENTE COM ENCARGOS COMPLEMENTARES | D61: =IFERROR(INDEX(SINAPI!$C:$C,MATCH($B61,SINAPI!$A:$A,0)),"") -> H | E61: 1.7 | F61: =IFERROR(INDEX(SINAPI!$D:$D,MATCH($B61,SINAPI!$A:$A,0)),0) -> 15.65 | G61: =IFERROR(F61*E61,0) -> 26.605
A62: =IFERROR(INDEX(SINAPI!$E:$E,MATCH($B62,SINAPI!$A:$A,0)),"") -> COMPOSIÇÃO | B62: 91533 | C62: =IFERROR(INDEX(SINAPI!$B:$B,MATCH($B62,SINAPI!$A:$A,0)),"") -> COMPACTADOR DE SOLOS DE PERCUSSÃO (SOQUETE) COM MOTOR A GASOLINA 4 TEMPOS, POTÊNCIA 4 CV - CHP DIURNO. AF_08/2015 | D62: =IFERROR(INDEX(SINAPI!$C:$C,MATCH($B62,SINAPI!$A:$A,0)),"") -> CHP | E62: 0.125 | F62: =IFERROR(INDEX(SINAPI!$D:$D,MATCH($B62,SINAPI!$A:$A,0)),0) -> 22.83 | G62: 2.85375
A63: =IFERROR(INDEX(SINAPI!$E:$E,MATCH($B63,SINAPI!$A:$A,0)),"") -> COMPOSIÇÃO | B63: 91534 | C63: =IFERROR(INDEX(SINAPI!$B:$B,MATCH($B63,SINAPI!$A:$A,0)),"") -> COMPACTADOR DE SOLOS DE PERCUSSÃO (SOQUETE) COM MOTOR A GASOLINA 4 TEMPOS, POTÊNCIA 4 CV - CHI DIURNO. AF_08/2015 | D63: =IFERROR(INDEX(SINAPI!$C:$C,MATCH($B63,SINAPI!$A:$A,0)),"") -> CHI | E63: 0.125 | F63: =IFERROR(INDEX(SINAPI!$D:$D,MATCH($B63,SINAPI!$A:$A,0)),0) -> 15.83 | G63: 1.97875
F64: TOTAL | G64: =SUM(G61:G63) -> 31.4375
A67: CLASSE/TIPO | B67: CÓDIGOS/ SINAPI | C67: DESCRIÇÃO | D67: UND | E67: COEFICIENTE | F67: PREÇO UNITÁRIO | G67: PREÇO TOTAL
A68: COMP-352975 | B68: =IFERROR(INDEX(COMPOSIÇÕES_IFMT!$B:$B,MATCH($A68,COMPOSIÇÕES_IFMT!$A:$A,0)),"") ->  | C68: ESCADA DE MADEIRA COM PATAMAR-LARGURA 1,2 m | D68: M | G68: =G75 -> 277.1394
A69: =IFERROR(INDEX(SINAPI!$E:$E,MATCH($B69,SINAPI!$A:$A,0)),"") -> INSUMO | B69: 6193 | C69: =IFERROR(INDEX(SINAPI!$B:$B,MATCH($B69,SINAPI!$A:$A,0)),"") -> TABUA NAO APARELHADA *2,5 X 20* CM, EM MACARANDUBA, ANGELIM OU EQUIVALENTE DA REGIAO - BRUTA | D69: =IFERROR(INDEX(SINAPI!$C:$C,MATCH($B69,SINAPI!$A:$A,0)),"") -> M | E69: 8 | F69: =IFERROR(INDEX(SINAPI!$D:$D,MATCH($B69,SINAPI!$A:$A,0)),0) -> 10.74 | G69: =IFERROR(F69*E69,0) -> 85.92
A70: =IFERROR(INDEX(SINAPI!$E:$E,MATCH($B70,SINAPI!$A:$A,0)),"") -> INSUMO | B70: 4491 | C70: =IFERROR(INDEX(SINAPI!$B:$B,MATCH($B70,SINAPI!$A:$A,0)),"") -> PONTALETE *7,5 X 7,5* CM EM PINUS, MISTA OU EQUIVALENTE DA REGIAO - BRUTA | D70: =IFERROR(INDEX(SINAPI!$C:$C,MATCH($B70,SINAPI!$A:$A,0)),"") -> M | E70: 6 | F70: =IFERROR(INDEX(SINAPI!$D:$D,MATCH($B70,SINAPI!$A:$A,0)),0) -> 8.13 | G70: 48.78
A71: =IFERROR(INDEX(SINAPI!$E:$E,MATCH($B71,SINAPI!$A:$A,0)),"") -> INSUMO | B71: 5061 | C71: =IFERROR(INDEX(SINAPI!$B:$B,MATCH($B71,SINAPI!$A:$A,0)),"") -> PREGO DE ACO POLIDO COM CABECA 18 X 27 (2 1/2 X 10) | D71: =IFERROR(INDEX(SINAPI!$C:$C,MATCH($B71,SINAPI!$A:$A,0)),"") -> KG | E71: 0.16 | F71: =IFERROR(INDEX(SINAPI!$D:$D,MATCH($B71,SINAPI!$A:$A,0)),0) -> 22.95 | G71: 3.672
A72: =IFERROR(INDEX(SINAPI!$E:$E,MATCH($B72,SINAPI!$A:$A,0)),"") -> INSUMO | B72: 4460 | C72: =IFERROR(INDEX(SINAPI!$B:$B,MATCH($B72,SINAPI!$A:$A,0)),"") -> SARRAFO NAO APARELHADO *2,5 X 10* CM, EM MACARANDUBA, ANGELIM OU EQUIVALENTE DA REGIAO - BRUTA | D72: =IFERROR(INDEX(SINAPI!$C:$C,MATCH($B72,SINAPI!$A:$A,0)),"") -> M | E72: 2.2 | F72: =IFERROR(INDEX(SINAPI!$D:$D,MATCH($B72,SINAPI!$A:$A,0)),0) -> 5.36 | G72: 11.792
A73: =IFERROR(INDEX(SINAPI!$E:$E,MATCH($B73,SINAPI!$A:$A,0)),"") -> COMPOSIÇÃO | B73: 88239 | C73: =IFERROR(INDEX(SINAPI!$B:$B,MATCH($B73,SINAPI!$A:$A,0)),"") -> AJUDANTE DE CARPINTEIRO COM ENCARGOS COMPLEMENTARES | D73: =IFERROR(INDEX(SINAPI!$C:$C,MATCH($B73,SINAPI!$A:$A,0)),"") -> H | E73: 3.532 | F73: =IFERROR(INDEX(SINAPI!$D:$D,MATCH($B73,SINAPI!$A:$A,0)),0) -> 16.3 | G73: 57.5716
A74: =IFERROR(INDEX(SINAPI!$E:$E,MATCH($B74,SINAPI!$A:$A,0)),"") -> COMPOSIÇÃO | B74: 88262 | C74: =IFERROR(INDEX(SINAPI!$B:$B,MATCH($B74,SINAPI!$A:$A,0)),"") -> CARPINTEIRO DE FORMAS COM ENCARGOS COMPLEMENTARES | D74: =IFERROR(INDEX(SINAPI!$C:$C,MATCH($B74,SINAPI!$A:$A,0)),"") -> H | E74: 3.532 | F74: =IFERROR(INDEX(SINAPI!$D:$D,MATCH($B74,SINAPI!$A:$A,0)),0) -> 19.65 | G74: 69.4038
F75: TOTAL | G75: =SUM(G69:G74) -> 277.1394
A78: CLASSE/TIPO | B78: CÓDIGOS/ SINAPI | C78: DESCRIÇÃO | D78: UND | E78: COEFICIENTE | F78: PREÇO UNITÁRIO | G78: PREÇO TOTAL
A79: COMP-0967 | B79: =IFERROR(INDEX(COMPOSIÇÕES_IFMT!$B:$B,MATCH($A79,COMPOSIÇÕES_IFMT!$A:$A,0)),"") ->  | C79: ESTRUTURA METÁLICA EM AÇO LAMINADO A-36 - 250MPa L 20X20X3,0 | D79: KG | G79: =G84 -> 12.6985
A80: INSUMO | B80: I0468/SEINFRA | C80: CANTONEIRA DE FERRO 3/4" x 1/8" (L X E) (0,88KG/M) | D80: KG | E80: 1 | F80: 8.17 | G80: =IFERROR(F80*E80,0) -> 8.17
A81: =IFERROR(INDEX(SINAPI!$E:$E,MATCH($B81,SINAPI!$A:$A,0)),"") -> COMPOSIÇÃO | B81: 88315 | C81: =IFERROR(INDEX(SINAPI!$B:$B,MATCH($B81,SINAPI!$A:$A,0)),"") -> SERRALHEIRO COM ENCARGOS COMPLEMENTARES | D81: =IFERROR(INDEX(SINAPI!$C:$C,MATCH($B81,SINAPI!$A:$A,0)),"") -> H | E81: 0.12 | F81: =IFERROR(INDEX(SINAPI!$D:$D,MATCH($B81,SINAPI!$A:$A,0)),0) -> 19.75 | G81: 2.37
A82: =IFERROR(INDEX(SINAPI!$E:$E,MATCH($B82,SINAPI!$A:$A,0)),"") -> COMPOSIÇÃO | B82: 88316 | C82: =IFERROR(INDEX(SINAPI!$B:$B,MATCH($B82,SINAPI!$A:$A,0)),"") -> SERVENTE COM ENCARGOS COMPLEMENTARES | D82: =IFERROR(INDEX(SINAPI!$C:$C,MATCH($B82,SINAPI!$A:$A,0)),"") -> H | E82: 0.12 | F82: =IFERROR(INDEX(SINAPI!$D:$D,MATCH($B82,SINAPI!$A:$A,0)),0) -> 15.65 | G82: 1.878
A83: =IFERROR(INDEX(SINAPI!$E:$E,MATCH($B83,SINAPI!$A:$A,0)),"") -> COMPOSIÇÃO | B83: 98746 | C83: =IFERROR(INDEX(SINAPI!$B:$B,MATCH($B83,SINAPI!$A:$A,0)),"") -> SOLDA DE TOPO EM CHAPA/PERFIL/TUBO DE AÇO CHANFRADO, ESPESSURA=1/4''. AF_06/2018 | D83: =IFERROR(INDEX(SINAPI!$C:$C,MATCH($B83,SINAPI!$A:$A,0)),"") -> M | E83: 0.006 | F83: =IFERROR(INDEX(SINAPI!$D:$D,MATCH($B83,SINAPI!$A:$A,0)),0) -> 46.75 | G83: 0.2805
F84: TOTAL | G84: =SUM(G80:G83) -> 12.6985
A87: CLASSE/TIPO | B87: CÓDIGOS/ SINAPI | C87: DESCRIÇÃO | D87: UND | E87: COEFICIENTE | F87: PREÇO UNITÁRIO | G87: PREÇO TOTAL
A88: COMP-4890 | B88: =IFERROR(INDEX(COMPOSIÇÕES_IFMT!$B:$B,MATCH($A88,COMPOSIÇÕES_IFMT!$A:$A,0)),"") ->  | C88: ESTRUTURA METÁLICA EM AÇO LAMINADO A-36 - 250MPa L 40X40X5,0 | D88: KG | G88: =G93 -> 17.862994
A89: =IFERROR(INDEX(SINAPI!$E:$E,MATCH($B89,SINAPI!$A:$A,0)),"") -> INSUMO | B89: 574 | C89: =IFERROR(INDEX(SINAPI!$B:$B,MATCH($B89,SINAPI!$A:$A,0)),"") -> CANTONEIRA (ABAS IGUAIS) EM FERRO GALVANIZADO, 38,1 MM X 3,17 MM (L X E), 3,48 KG/M | D89: =IFERROR(INDEX(SINAPI!$C:$C,MATCH($B89,SINAPI!$A:$A,0)),"") -> M | E89: 0.2941 | F89: =IFERROR(INDEX(SINAPI!$D:$D,MATCH($B89,SINAPI!$A:$A,0)),0) -> 45.34 | G89: =IFERROR(F89*E89,0) -> 13.334494
A90: =IFERROR(INDEX(SINAPI!$E:$E,MATCH($B90,SINAPI!$A:$A,0)),"") -> COMPOSIÇÃO | B90: 88315 | C90: =IFERROR(INDEX(SINAPI!$B:$B,MATCH($B90,SINAPI!$A:$A,0)),"") -> SERRALHEIRO COM ENCARGOS COMPLEMENTARES | D90: =IFERROR(INDEX(SINAPI!$C:$C,MATCH($B90,SINAPI!$A:$A,0)),"") -> H | E90: 0.12 | F90: =IFERROR(INDEX(SINAPI!$D:$D,MATCH($B90,SINAPI!$A:$A,0)),0) -> 19.75 | G90: 2.37
A91: =IFERROR(INDEX(SINAPI!$E:$E,MATCH($B91,SINAPI!$A:$A,0)),"") -> COMPOSIÇÃO | B91: 88316 | C91: =IFERROR(INDEX(SINAPI!$B:$B,MATCH($B91,SINAPI!$A:$A,0)),"") -> SERVENTE COM ENCARGOS COMPLEMENTARES | D91: =IFERROR(INDEX(SINAPI!$C:$C,MATCH($B91,SINAPI!$A:$A,0)),"") -> H | E91: 0.12 | F91: =IFERROR(INDEX(SINAPI!$D:$D,MATCH($B91,SINAPI!$A:$A,0)),0) -> 15.65 | G91: 1.878
A92: =IFERROR(INDEX(SINAPI!$E:$E,MATCH($B92,SINAPI!$A:$A,0)),"") -> COMPOSIÇÃO | B92: 98746 | C92: =IFERROR(INDEX(SINAPI!$B:$B,MATCH($B92,SINAPI!$A:$A,0)),"") -> SOLDA DE TOPO EM CHAPA/PERFIL/TUBO DE AÇO CHANFRADO, ESPESSURA=1/4''. AF_06/2018 | D92: =IFERROR(INDEX(SINAPI!$C:$C,MATCH($B92,SINAPI!$A:$A,0)),"") -> M | E92: 0.006 | F92: =IFERROR(INDEX(SINAPI!$D:$D,MATCH($B92,SINAPI!$A:$A,0)),0) -> 46.75 | G92: 0.2805
F93: TOTAL | G93: =SUM(G89:G92) -> 17.862994
A96: CLASSE/TIPO | B96: CÓDIGOS/ SINAPI | C96: DESCRIÇÃO | D96: UND | E96: COEFICIENTE | F96: PREÇO UNITÁRIO | G96: PREÇO TOTAL
A97: COMP-2142 | B97: =IFERROR(INDEX(COMPOSIÇÕES_IFMT!$B:$B,MATCH($A97,COMPOSIÇÕES_IFMT!$A:$A,0)),"") ->  | C97: ESTRUTURA METÁLICA EM AÇO LAMINADO A-36 - 250MPa L 70X70X5,0 | D97: KG | G97: =G102 -> 18.37487717
A98: =IFERROR(INDEX(SINAPI!$E:$E,MATCH($B98,SINAPI!$A:$A,0)),"") -> INSUMO | B98: 568 | C98: =IFERROR(INDEX(SINAPI!$B:$B,MATCH($B98,SINAPI!$A:$A,0)),"") -> CANTONEIRA (ABAS IGUAIS) EM FERRO GALVANIZADO, 50,8 MM X 9,53 MM (L X E), 6,99 KG/M | D98: =IFERROR(INDEX(SINAPI!$C:$C,MATCH($B98,SINAPI!$A:$A,0)),"") -> M | E98: 0.14492754 | F98: =IFERROR(INDEX(SINAPI!$D:$D,MATCH($B98,SINAPI!$A:$A,0)),0) -> 95.54 | G98: =IFERROR(F98*E98,0) -> 13.84637717
A99: =IFERROR(INDEX(SINAPI!$E:$E,MATCH($B99,SINAPI!$A:$A,0)),"") -> COMPOSIÇÃO | B99: 88315 | C99: =IFERROR(INDEX(SINAPI!$B:$B,MATCH($B99,SINAPI!$A:$A,0)),"") -> SERRALHEIRO COM ENCARGOS COMPLEMENTARES | D99: =IFERROR(INDEX(SINAPI!$C:$C,MATCH($B99,SINAPI!$A:$A,0)),"") -> H | E99: 0.12 | F99: =IFERROR(INDEX(SINAPI!$D:$D,MATCH($B99,SINAPI!$A:$A,0)),0) -> 19.75 | G99: 2.37
A100: =IFERROR(INDEX(SINAPI!$E:$E,MATCH($B100,SINAPI!$A:$A,0)),"") -> COMPOSIÇÃO | B100: 88316 | C100: =IFERROR(INDEX(SINAPI!$B:$B,MATCH($B100,SINAPI!$A:$A,0)),"") -> SERVENTE COM ENCARGOS COMPLEMENTARES | D100: =IFERROR(INDEX(SINAPI!$C:$C,MATCH($B100,SINAPI!$A:$A,0)),"") -> H | E100: 0.12 | F100: =IFERROR(INDEX(SINAPI!$D:$D,MATCH($B100,SINAPI!$A:$A,0)),0) -> 15.65 | G100: 1.878
A101: =IFERROR(INDEX(SINAPI!$E:$E,MATCH($B101,SINAPI!$A:$A,0)),"") -> COMPOSIÇÃO | B101: 98746 | C101: =IFERROR(INDEX(SINAPI!$B:$B,MATCH($B101,SINAPI!$A:$A,0)),"") -> SOLDA DE TOPO EM CHAPA/PERFIL/TUBO DE AÇO CHANFRADO, ESPESSURA=1/4''. AF_06/2018 | D101: =IFERROR(INDEX(SINAPI!$C:$C,MATCH($B101,SINAPI!$A:$A,0)),"") -> M | E101: 0.006 | F101: =IFERROR(INDEX(SINAPI!$D:$D,MATCH($B101,SINAPI!$A:$A,0)),0) -> 46.75 | G101: 0.2805
F102: TOTAL | G102: =SUM(G98:G101) -> 18.37487717
A105: CLASSE/TIPO | B105: CÓDIGOS/ SINAPI | C105: DESCRIÇÃO | D105: UND | E105: COEFICIENTE | F105: PREÇO UNITÁRIO | G105: PREÇO TOTAL
A106: COMP-7056 | B106: =IFERROR(INDEX(COMPOSIÇÕES_IFMT!$B:$B,MATCH($A106,COMPOSIÇÕES_IFMT!$A:$A,0)),"") ->  | C106: ESTRUTURA METÁLICA EM AÇO LAMINADO A-36 - 250MPa R8 - 8,0MM | D106: KG | G106: =G111 -> 9.4685
A107: INSUMO | B107: 43053 | C107: ACO CA-25, 6,3 MM OU 8,0 MM, VERGALHAO | D107: =IFERROR(INDEX(SINAPI!$C:$C,MATCH($B107,SINAPI!$A:$A,0)),"") -> KG | E107: 1 | F107: 4.94 | G107: =IFERROR(F107*E107,0) -> 4.94
A108: =IFERROR(INDEX(SINAPI!$E:$E,MATCH($B108,SINAPI!$A:$A,0)),"") -> COMPOSIÇÃO | B108: 88315 | C108: =IFERROR(INDEX(SINAPI!$B:$B,MATCH($B108,SINAPI!$A:$A,0)),"") -> SERRALHEIRO COM ENCARGOS COMPLEMENTARES | D108: =IFERROR(INDEX(SINAPI!$C:$C,MATCH($B108,SINAPI!$A:$A,0)),"") -> H | E108: 0.12 | F108: =IFERROR(INDEX(SINAPI!$D:$D,MATCH($B108,SINAPI!$A:$A,0)),0) -> 19.75 | G108: 2.37
A109: =IFERROR(INDEX(SINAPI!$E:$E,MATCH($B109,SINAPI!$A:$A,0)),"") -> COMPOSIÇÃO | B109: 88316 | C109: =IFERROR(INDEX(SINAPI!$B:$B,MATCH($B109,SINAPI!$A:$A,0)),"") -> SERVENTE COM ENCARGOS COMPLEMENTARES | D109: =IFERROR(INDEX(SINAPI!$C:$C,MATCH($B109,SINAPI!$A:$A,0)),"") -> H | E109: 0.12 | F109: =IFERROR(INDEX(SINAPI!$D:$D,MATCH($B109,SINAPI!$A:$A,0)),0) -> 15.65 | G109: 1.878
A110: =IFERROR(INDEX(SINAPI!$E:$E,MATCH($B110,SINAPI!$A:$A,0)),"") -> COMPOSIÇÃO | B110: 98746 | C110: =IFERROR(INDEX(SINAPI!$B:$B,MATCH($B110,SINAPI!$A:$A,0)),"") -> SOLDA DE TOPO EM CHAPA/PERFIL/TUBO DE AÇO CHANFRADO, ESPESSURA=1/4''. AF_06/2018 | D110: =IFERROR(INDEX(SINAPI!$C:$C,MATCH($B110,SINAPI!$A:$A,0)),"") -> M | E110: 0.006 | F110: =IFERROR(INDEX(SINAPI!$D:$D,MATCH($B110,SINAPI!$A:$A,0)),0) -> 46.75 | G110: 0.2805
F111: TOTAL | G111: =SUM(G107:G110) -> 9.4685
A114: CLASSE/TIPO | B114: CÓDIGOS/ SINAPI | C114: DESCRIÇÃO | D114: UND | E114: COEFICIENTE | F114: PREÇO UNITÁRIO | G114: PREÇO TOTAL
A115: COMP-8946 | B115: =IFERROR(INDEX(COMPOSIÇÕES_IFMT!$B:$B,MATCH($A115,COMPOSIÇÕES_IFMT!$A:$A,0)),"") ->  | C115: ESTRUTURA METÁLICA EM AÇO ESTRUTURAL A -36, DOBRADO- U100X40X2,66 | D115: KG | G115: =G120 -> 14.9595
A116: =IFERROR(INDEX(SINAPI!$E:$E,MATCH($B116,SINAPI!$A:$A,0)),"") -> INSUMO | B116: 40598 | C116: =IFERROR(INDEX(SINAPI!$B:$B,MATCH($B116,SINAPI!$A:$A,0)),"") -> PERFIL UDC ("U" DOBRADO DE CHAPA) SIMPLES DE ACO LAMINADO, GALVANIZADO, ASTM A36, 127 X 50 MM, E= 3 MM | D116: =IFERROR(INDEX(SINAPI!$C:$C,MATCH($B116,SINAPI!$A:$A,0)),"") -> KG | E116: 0.95 | F116: =IFERROR(INDEX(SINAPI!$D:$D,MATCH($B116,SINAPI!$A:$A,0)),0) -> 10.98 | G116: =IFERROR(F116*E116,0) -> 10.431
A117: =IFERROR(INDEX(SINAPI!$E:$E,MATCH($B117,SINAPI!$A:$A,0)),"") -> COMPOSIÇÃO | B117: 88315 | C117: =IFERROR(INDEX(SINAPI!$B:$B,MATCH($B117,SINAPI!$A:$A,0)),"") -> SERRALHEIRO COM ENCARGOS COMPLEMENTARES | D117: =IFERROR(INDEX(SINAPI!$C:$C,MATCH($B117,SINAPI!$A:$A,0)),"") -> H | E117: 0.12 | F117: =IFERROR(INDEX(SINAPI!$D:$D,MATCH($B117,SINAPI!$A:$A,0)),0) -> 19.75 | G117: 2.37
A118: =IFERROR(INDEX(SINAPI!$E:$E,MATCH($B118,SINAPI!$A:$A,0)),"") -> COMPOSIÇÃO | B118: 88316 | C118: =IFERROR(INDEX(SINAPI!$B:$B,MATCH($B118,SINAPI!$A:$A,0)),"") -> SERVENTE COM ENCARGOS COMPLEMENTARES | D118: =IFERROR(INDEX(SINAPI!$C:$C,MATCH($B118,SINAPI!$A:$A,0)),"") -> H | E118: 0.12 | F118: =IFERROR(INDEX(SINAPI!$D:$D,MATCH($B118,SINAPI!$A:$A,0)),0) -> 15.65 | G118: 1.878
A119: =IFERROR(INDEX(SINAPI!$E:$E,MATCH($B119,SINAPI!$A:$A,0)),"") -> COMPOSIÇÃO | B119: 98746 | C119: =IFERROR(INDEX(SINAPI!$B:$B,MATCH($B119,SINAPI!$A:$A,0)),"") -> SOLDA DE TOPO EM CHAPA/PERFIL/TUBO DE AÇO CHANFRADO, ESPESSURA=1/4''. AF_06/2018 | D119: =IFERROR(INDEX(SINAPI!$C:$C,MATCH($B119,SINAPI!$A:$A,0)),"") -> M | E119: 0.006 | F119: =IFERROR(INDEX(SINAPI!$D:$D,MATCH($B119,SINAPI!$A:$A,0)),0) -> 46.75 | G119: 0.2805
F120: TOTAL | G120: =SUM(G116:G119) -> 14.9595
A123: CLASSE/TIPO | B123: CÓDIGOS/ SINAPI | C123: DESCRIÇÃO | D123: UND | E123: COEFICIENTE | F123: PREÇO UNITÁRIO | G123: PREÇO TOTAL
A124: COMP-5617 | B124: =IFERROR(INDEX(COMPOSIÇÕES_IFMT!$B:$B,MATCH($A124,COMPOSIÇÕES_IFMT!$A:$A,0)),"") ->  | C124: ESTRUTURA METÁLICA EM AÇO ESTRUTURAL A -36, DOBRADO- U150X50X4,76 | D124: KG | G124: =G129 -> 16.0575
A125: =IFERROR(INDEX(SINAPI!$E:$E,MATCH($B125,SINAPI!$A:$A,0)),"") -> INSUMO | B125: 40598 | C125: =IFERROR(INDEX(SINAPI!$B:$B,MATCH($B125,SINAPI!$A:$A,0)),"") -> PERFIL UDC ("U" DOBRADO DE CHAPA) SIMPLES DE ACO LAMINADO, GALVANIZADO, ASTM A36, 127 X 50 MM, E= 3 MM | D125: =IFERROR(INDEX(SINAPI!$C:$C,MATCH($B125,SINAPI!$A:$A,0)),"") -> KG | E125: 1.05 | F125: =IFERROR(INDEX(SINAPI!$D:$D,MATCH($B125,SINAPI!$A:$A,0)),0) -> 10.98 | G125: =IFERROR(F125*E125,0) -> 11.529
A126: =IFERROR(INDEX(SINAPI!$E:$E,MATCH($B126,SINAPI!$A:$A,0)),"") -> COMPOSIÇÃO | B126: 88315 | C126: =IFERROR(INDEX(SINAPI!$B:$B,MATCH($B126,SINAPI!$A:$A,0)),"") -> SERRALHEIRO COM ENCARGOS COMPLEMENTARES | D126: =IFERROR(INDEX(SINAPI!$C:$C,MATCH($B126,SINAPI!$A:$A,0)),"") -> H | E126: 0.12 | F126: =IFERROR(INDEX(SINAPI!$D:$D,MATCH($B126,SINAPI!$A:$A,0)),0) -> 19.75 | G126: 2.37
A127: =IFERROR(INDEX(SINAPI!$E:$E,MATCH($B127,SINAPI!$A:$A,0)),"") -> COMPOSIÇÃO | B127: 88316 | C127: =IFERROR(INDEX(SINAPI!$B:$B,MATCH($B127,SINAPI!$A:$A,0)),"") -> SERVENTE COM ENCARGOS COMPLEMENTARES | D127: =IFERROR(INDEX(SINAPI!$C:$C,MATCH($B127,SINAPI!$A:$A,0)),"") -> H | E127: 0.12 | F127: =IFERROR(INDEX(SINAPI!$D:$D,MATCH($B127,SINAPI!$A:$A,0)),0) -> 15.65 | G127: 1.878
A128: =IFERROR(INDEX(SINAPI!$E:$E,MATCH($B128,SINAPI!$A:$A,0)),"") -> COMPOSIÇÃO | B128: 98746 | C128: =IFERROR(INDEX(SINAPI!$B:$B,MATCH($B128,SINAPI!$A:$A,0)),"") -> SOLDA DE TOPO EM CHAPA/PERFIL/TUBO DE AÇO CHANFRADO, ESPESSURA=1/4''. AF_06/2018 | D128: =IFERROR(INDEX(SINAPI!$C:$C,MATCH($B128,SINAPI!$A:$A,0)),"") -> M | E128: 0.006 | F128: =IFERROR(INDEX(SINAPI!$D:$D,MATCH($B128,SINAPI!$A:$A,0)),0) -> 46.75 | G128: 0.2805
F129: TOTAL | G129: =SUM(G125:G128) -> 16.0575
A132: CLASSE/TIPO | B132: CÓDIGOS/ SINAPI | C132: DESCRIÇÃO | D132: UND | E132: COEFICIENTE | F132: PREÇO UNITÁRIO | G132: PREÇO TOTAL
A133: COMP-4559 | B133: =IFERROR(INDEX(COMPOSIÇÕES_IFMT!$B:$B,MATCH($A133,COMPOSIÇÕES_IFMT!$A:$A,0)),"") ->  | C133: ESTRUTURA METÁLICA EM AÇO ESTRUTURAL A -36, DOBRADO- U200X50X4,76 | D133: KG | G133: =G138 -> 10.6505
A134: =IFERROR(INDEX(SINAPI!$E:$E,MATCH($B134,SINAPI!$A:$A,0)),"") -> INSUMO | B134: 43083 | C134: PERFIL "U" ENRIJECIDO DE ACO GALVANIZADO, DOBRADO, 150 X 60 X 20 MM, E = 3,00 MM OU 200 X 75 X 25 MM, E = 3,75 MM | D134: KG | E134: 1 | F134: 5.06 | G134: =IFERROR(F134*E134,0) -> 5.06
A135: =IFERROR(INDEX(SINAPI!$E:$E,MATCH($B135,SINAPI!$A:$A,0)),"") -> COMPOSIÇÃO | B135: 88315 | C135: =IFERROR(INDEX(SINAPI!$B:$B,MATCH($B135,SINAPI!$A:$A,0)),"") -> SERRALHEIRO COM ENCARGOS COMPLEMENTARES | D135: =IFERROR(INDEX(SINAPI!$C:$C,MATCH($B135,SINAPI!$A:$A,0)),"") -> H | E135: 0.15 | F135: =IFERROR(INDEX(SINAPI!$D:$D,MATCH($B135,SINAPI!$A:$A,0)),0) -> 19.75 | G135: 2.9625
A136: =IFERROR(INDEX(SINAPI!$E:$E,MATCH($B136,SINAPI!$A:$A,0)),"") -> COMPOSIÇÃO | B136: 88316 | C136: =IFERROR(INDEX(SINAPI!$B:$B,MATCH($B136,SINAPI!$A:$A,0)),"") -> SERVENTE COM ENCARGOS COMPLEMENTARES | D136: =IFERROR(INDEX(SINAPI!$C:$C,MATCH($B136,SINAPI!$A:$A,0)),"") -> H | E136: 0.15 | F136: =IFERROR(INDEX(SINAPI!$D:$D,MATCH($B136,SINAPI!$A:$A,0)),0) -> 15.65 | G136: 2.3475
A137: =IFERROR(INDEX(SINAPI!$E:$E,MATCH($B137,SINAPI!$A:$A,0)),"") -> COMPOSIÇÃO | B137: 98746 | C137: =IFERROR(INDEX(SINAPI!$B:$B,MATCH($B137,SINAPI!$A:$A,0)),"") -> SOLDA DE TOPO EM CHAPA/PERFIL/TUBO DE AÇO CHANFRADO, ESPESSURA=1/4''. AF_06/2018 | D137: =IFERROR(INDEX(SINAPI!$C:$C,MATCH($B137,SINAPI!$A:$A,0)),"") -> M | E137: 0.006 | F137: =IFERROR(INDEX(SINAPI!$D:$D,MATCH($B137,SINAPI!$A:$A,0)),0) -> 46.75 | G137: 0.2805
F138: TOTAL | G138: =SUM(G134:G137) -> 10.6505
A141: CLASSE/TIPO | B141: CÓDIGOS/ SINAPI | C141: DESCRIÇÃO | D141: UND | E141: COEFICIENTE | F141: PREÇO UNITÁRIO | G141: PREÇO TOTAL
A142: COMP-4726 | B142: =IFERROR(INDEX(COMPOSIÇÕES_IFMT!$B:$B,MATCH($A142,COMPOSIÇÕES_IFMT!$A:$A,0)),"") ->  | C142: ESTRUTURA METÁLICA EM AÇO ESTRUTURAL A -36, DOBRADO- C150X60X20X3,04 | D142: KG | G142: =G147 -> 9.5885
A143: INSUMO | B143: 43083 | C143: PERFIL "U" ENRIJECIDO DE ACO GALVANIZADO, DOBRADO, 150 X 60 X 20 MM, E = 3,00 MM OU 200 X 75 X 25 MM, E = 3,75 MM | D143: KG | E143: 1 | F143: 5.06 | G143: =IFERROR(F143*E143,0) -> 5.06
A144: =IFERROR(INDEX(SINAPI!$E:$E,MATCH($B144,SINAPI!$A:$A,0)),"") -> COMPOSIÇÃO | B144: 88315 | C144: =IFERROR(INDEX(SINAPI!$B:$B,MATCH($B144,SINAPI!$A:$A,0)),"") -> SERRALHEIRO COM ENCARGOS COMPLEMENTARES | D144: =IFERROR(INDEX(SINAPI!$C:$C,MATCH($B144,SINAPI!$A:$A,0)),"") -> H | E144: 0.12 | F144: =IFERROR(INDEX(SINAPI!$D:$D,MATCH($B144,SINAPI!$A:$A,0)),0) -> 19.75 | G144: 2.37
A145: =IFERROR(INDEX(SINAPI!$E:$E,MATCH($B145,SINAPI!$A:$A,0)),"") -> COMPOSIÇÃO | B145: 88316 | C145: =IFERROR(INDEX(SINAPI!$B:$B,MATCH($B145,SINAPI!$A:$A,0)),"") -> SERVENTE COM ENCARGOS COMPLEMENTARES | D145: =IFERROR(INDEX(SINAPI!$C:$C,MATCH($B145,SINAPI!$A:$A,0)),"") -> H | E145: 0.12 | F145: =IFERROR(INDEX(SINAPI!$D:$D,MATCH($B145,SINAPI!$A:$A,0)),0) -> 15.65 | G145: 1.878
A146: =IFERROR(INDEX(SINAPI!$E:$E,MATCH($B146,SINAPI!$A:$A,0)),"") -> COMPOSIÇÃO | B146: 98746 | C146: =IFERROR(INDEX(SINAPI!$B:$B,MATCH($B146,SINAPI!$A:$A,0)),"") -> SOLDA DE TOPO EM CHAPA/PERFIL/TUBO DE AÇO CHANFRADO, ESPESSURA=1/4''. AF_06/2018 | D146: =IFERROR(INDEX(SINAPI!$C:$C,MATCH($B146,SINAPI!$A:$A,0)),"") -> M | E146: 0.006 | F146: =IFERROR(INDEX(SINAPI!$D:$D,MATCH($B146,SINAPI!$A:$A,0)),0) -> 46.75 | G146: 0.2805
F147: TOTAL | G147: =SUM(G143:G146) -> 9.5885
A150: CLASSE/TIPO | B150: CÓDIGOS/ SINAPI | C150: DESCRIÇÃO | D150: UND | E150: COEFICIENTE | F150: PREÇO UNITÁRIO | G150: PREÇO TOTAL
A151: COMP-3579 | B151: =IFERROR(INDEX(COMPOSIÇÕES_IFMT!$B:$B,MATCH($A151,COMPOSIÇÕES_IFMT!$A:$A,0)),"") ->  | C151: ESTRUTURA METÁLICA EM AÇO ESTRUTURAL A -36, DOBRADO- C127X50X17X2.66 | D151: KG | G151: =G156 -> 15.5085
A152: =IFERROR(INDEX(SINAPI!$E:$E,MATCH($B152,SINAPI!$A:$A,0)),"") -> INSUMO | B152: 40598 | C152: =IFERROR(INDEX(SINAPI!$B:$B,MATCH($B152,SINAPI!$A:$A,0)),"") -> PERFIL UDC ("U" DOBRADO DE CHAPA) SIMPLES DE ACO LAMINADO, GALVANIZADO, ASTM A36, 127 X 50 MM, E= 3 MM | D152: =IFERROR(INDEX(SINAPI!$C:$C,MATCH($B152,SINAPI!$A:$A,0)),"") -> KG | E152: 1 | F152: =IFERROR(INDEX(SINAPI!$D:$D,MATCH($B152,SINAPI!$A:$A,0)),0) -> 10.98 | G152: =IFERROR(F152*E152,0) -> 10.98
A153: =IFERROR(INDEX(SINAPI!$E:$E,MATCH($B153,SINAPI!$A:$A,0)),"") -> COMPOSIÇÃO | B153: 88315 | C153: =IFERROR(INDEX(SINAPI!$B:$B,MATCH($B153,SINAPI!$A:$A,0)),"") -> SERRALHEIRO COM ENCARGOS COMPLEMENTARES | D153: =IFERROR(INDEX(SINAPI!$C:$C,MATCH($B153,SINAPI!$A:$A,0)),"") -> H | E153: 0.12 | F153: =IFERROR(INDEX(SINAPI!$D:$D,MATCH($B153,SINAPI!$A:$A,0)),0) -> 19.75 | G153: 2.37
A154: =IFERROR(INDEX(SINAPI!$E:$E,MATCH($B154,SINAPI!$A:$A,0)),"") -> COMPOSIÇÃO | B154: 88316 | C154: =IFERROR(INDEX(SINAPI!$B:$B,MATCH($B154,SINAPI!$A:$A,0)),"") -> SERVENTE COM ENCARGOS COMPLEMENTARES | D154: =IFERROR(INDEX(SINAPI!$C:$C,MATCH($B154,SINAPI!$A:$A,0)),"") -> H | E154: 0.12 | F154: =IFERROR(INDEX(SINAPI!$D:$D,MATCH($B154,SINAPI!$A:$A,0)),0) -> 15.65 | G154: 1.878
A155: =IFERROR(INDEX(SINAPI!$E:$E,MATCH($B155,SINAPI!$A:$A,0)),"") -> COMPOSIÇÃO | B155: 98746 | C155: =IFERROR(INDEX(SINAPI!$B:$B,MATCH($B155,SINAPI!$A:$A,0)),"") -> SOLDA DE TOPO EM CHAPA/PERFIL/TUBO DE AÇO CHANFRADO, ESPESSURA=1/4''. AF_06/2018 | D155: =IFERROR(INDEX(SINAPI!$C:$C,MATCH($B155,SINAPI!$A:$A,0)),"") -> M | E155: 0.006 | F155: =IFERROR(INDEX(SINAPI!$D:$D,MATCH($B155,SINAPI!$A:$A,0)),0) -> 46.75 | G155: 0.2805
F156: TOTAL | G156: =SUM(G152:G155) -> 15.5085
A159: CLASSE/TIPO | B159: CÓDIGOS/ SINAPI | C159: DESCRIÇÃO | D159: UND | E159: COEFICIENTE | F159: PREÇO UNITÁRIO | G159: PREÇO TOTAL
A160: COMP-331649 | B160: =IFERROR(INDEX(COMPOSIÇÕES_IFMT!$B:$B,MATCH($A160,COMPOSIÇÕES_IFMT!$A:$A,0)),"") ->  | C160: TELHA EM ALUMÍNIO C/MIOLO POLIURETANO, TRAPEZOIDAL, PRÉ-PINTADA EM UMA FACE | D160: M2 | G160: =G167 -> 197.76894
A161: =IFERROR(INDEX(SINAPI!$E:$E,MATCH($B161,SINAPI!$A:$A,0)),"") -> INSUMO | B161: 39522 | C161: =IFERROR(INDEX(SINAPI!$B:$B,MATCH($B161,SINAPI!$A:$A,0)),"") -> TELHA TERMOISOLANTE REVESTIDA EM ACO GALVANIZADO, FACES SUPERIOR E INFERIOR EM TELHA TRAPEZOIDAL (SEM ACESSORIOS DE FIXACAO), REVESTIMENTO COM ESPESSURA DE 0,50 MM COM PRE-PINTURA NAS DUAS FACES, NUCLEO EM POLIESTIRENO (EPS) DE 50 MM | D161: =IFERROR(INDEX(SINAPI!$C:$C,MATCH($B161,SINAPI!$A:$A,0)),"") -> M2 | E161: 1 | F161: =IFERROR(INDEX(SINAPI!$D:$D,MATCH($B161,SINAPI!$A:$A,0)),0) -> 188.28 | G161: =IFERROR(F161*E161,0) -> 188.28
A162: =IFERROR(INDEX(SINAPI!$E:$E,MATCH($B162,SINAPI!$A:$A,0)),"") -> INSUMO | B162: 11029 | C162: =IFERROR(INDEX(SINAPI!$B:$B,MATCH($B162,SINAPI!$A:$A,0)),"") -> HASTE RETA PARA GANCHO DE FERRO GALVANIZADO, COM ROSCA 1/4 " X 30 CM PARA FIXACAO DE TELHA METALICA, INCLUI PORCA E ARRUELAS DE VEDACAO | D162: =IFERROR(INDEX(SINAPI!$C:$C,MATCH($B162,SINAPI!$A:$A,0)),"") -> CJ | E162: 4.15 | F162: =IFERROR(INDEX(SINAPI!$D:$D,MATCH($B162,SINAPI!$A:$A,0)),0) -> 1.76 | G162: 7.304
A163: =IFERROR(INDEX(SINAPI!$E:$E,MATCH($B163,SINAPI!$A:$A,0)),"") -> COMPOSIÇÃO | B163: 88316 | C163: =IFERROR(INDEX(SINAPI!$B:$B,MATCH($B163,SINAPI!$A:$A,0)),"") -> SERVENTE COM ENCARGOS COMPLEMENTARES | D163: =IFERROR(INDEX(SINAPI!$C:$C,MATCH($B163,SINAPI!$A:$A,0)),"") -> H | E163: 0.062 | F163: =IFERROR(INDEX(SINAPI!$D:$D,MATCH($B163,SINAPI!$A:$A,0)),0) -> 15.65 | G163: 0.9703
A164: =IFERROR(INDEX(SINAPI!$E:$E,MATCH($B164,SINAPI!$A:$A,0)),"") -> COMPOSIÇÃO | B164: 88323 | C164: =IFERROR(INDEX(SINAPI!$B:$B,MATCH($B164,SINAPI!$A:$A,0)),"") -> TELHADISTA COM ENCARGOS COMPLEMENTARES | D164: =IFERROR(INDEX(SINAPI!$C:$C,MATCH($B164,SINAPI!$A:$A,0)),"") -> H | E164: 0.056 | F164: =IFERROR(INDEX(SINAPI!$D:$D,MATCH($B164,SINAPI!$A:$A,0)),0) -> 21.12 | G164: 1.18272
A165: =IFERROR(INDEX(SINAPI!$E:$E,MATCH($B165,SINAPI!$A:$A,0)),"") -> COMPOSIÇÃO | B165: 93281 | C165: =IFERROR(INDEX(SINAPI!$B:$B,MATCH($B165,SINAPI!$A:$A,0)),"") -> GUINCHO ELÉTRICO DE COLUNA, CAPACIDADE 400 KG, COM MOTO FREIO, MOTOR TRIFÁSICO DE 1,25 CV - CHP DIURNO. AF_03/2016 | D165: =IFERROR(INDEX(SINAPI!$C:$C,MATCH($B165,SINAPI!$A:$A,0)),"") -> CHP | E165: 0.0009 | F165: =IFERROR(INDEX(SINAPI!$D:$D,MATCH($B165,SINAPI!$A:$A,0)),0) -> 15.76 | G165: 0.014184
A166: =IFERROR(INDEX(SINAPI!$E:$E,MATCH($B166,SINAPI!$A:$A,0)),"") -> COMPOSIÇÃO | B166: 93282 | C166: =IFERROR(INDEX(SINAPI!$B:$B,MATCH($B166,SINAPI!$A:$A,0)),"") -> GUINCHO ELÉTRICO DE COLUNA, CAPACIDADE 400 KG, COM MOTO FREIO, MOTOR TRIFÁSICO DE 1,25 CV - CHI DIURNO. AF_03/2016 | D166: =IFERROR(INDEX(SINAPI!$C:$C,MATCH($B166,SINAPI!$A:$A,0)),"") -> CHI | E166: 0.0012 | F166: =IFERROR(INDEX(SINAPI!$D:$D,MATCH($B166,SINAPI!$A:$A,0)),0) -> 14.78 | G166: 0.017736
F167: TOTAL | G167: =SUM(G161:G166) -> 197.76894
A170: CLASSE/TIPO | B170: CÓDIGOS/ SINAPI | C170: DESCRIÇÃO | D170: UND | E170: COEFICIENTE | F170: PREÇO UNITÁRIO | G170: PREÇO TOTAL
A171: COMP-7737 | B171: =IFERROR(INDEX(COMPOSIÇÕES_IFMT!$B:$B,MATCH($A171,COMPOSIÇÕES_IFMT!$A:$A,0)),"") ->  | C171: TELHA DE ALUMÍNIO, TRAPEZOIDAL e = 0,7mm | D171: M2 | G171: =G178 -> 64.48894
A172: =IFERROR(INDEX(SINAPI!$E:$E,MATCH($B172,SINAPI!$A:$A,0)),"") -> INSUMO | B172: 11029 | C172: =IFERROR(INDEX(SINAPI!$B:$B,MATCH($B172,SINAPI!$A:$A,0)),"") -> HASTE RETA PARA GANCHO DE FERRO GALVANIZADO, COM ROSCA 1/4 " X 30 CM PARA FIXACAO DE TELHA METALICA, INCLUI PORCA E ARRUELAS DE VEDACAO | D172: =IFERROR(INDEX(SINAPI!$C:$C,MATCH($B172,SINAPI!$A:$A,0)),"") -> CJ | E172: 4.15 | F172: =IFERROR(INDEX(SINAPI!$D:$D,MATCH($B172,SINAPI!$A:$A,0)),0) -> 1.76 | G172: =IFERROR(F172*E172,0) -> 7.304
A173: =IFERROR(INDEX(SINAPI!$E:$E,MATCH($B173,SINAPI!$A:$A,0)),"") -> INSUMO | B173: 25007 | C173: =IFERROR(INDEX(SINAPI!$B:$B,MATCH($B173,SINAPI!$A:$A,0)),"") -> TELHA ONDULADA EM ACO ZINCADO, ALTURA DE 17 MM, ESPESSURA DE 0,50 MM, LARGURA UTIL DE APROXIMADAMENTE 985 MM, SEM PINTURA | D173: =IFERROR(INDEX(SINAPI!$C:$C,MATCH($B173,SINAPI!$A:$A,0)),"") -> M2 | E173: 1 | F173: =IFERROR(INDEX(SINAPI!$D:$D,MATCH($B173,SINAPI!$A:$A,0)),0) -> 55 | G173: 55
A174: =IFERROR(INDEX(SINAPI!$E:$E,MATCH($B174,SINAPI!$A:$A,0)),"") -> COMPOSIÇÃO | B174: 88316 | C174: =IFERROR(INDEX(SINAPI!$B:$B,MATCH($B174,SINAPI!$A:$A,0)),"") -> SERVENTE COM ENCARGOS COMPLEMENTARES | D174: =IFERROR(INDEX(SINAPI!$C:$C,MATCH($B174,SINAPI!$A:$A,0)),"") -> H | E174: 0.062 | F174: =IFERROR(INDEX(SINAPI!$D:$D,MATCH($B174,SINAPI!$A:$A,0)),0) -> 15.65 | G174: 0.9703
A175: =IFERROR(INDEX(SINAPI!$E:$E,MATCH($B175,SINAPI!$A:$A,0)),"") -> COMPOSIÇÃO | B175: 88323 | C175: =IFERROR(INDEX(SINAPI!$B:$B,MATCH($B175,SINAPI!$A:$A,0)),"") -> TELHADISTA COM ENCARGOS COMPLEMENTARES | D175: =IFERROR(INDEX(SINAPI!$C:$C,MATCH($B175,SINAPI!$A:$A,0)),"") -> H | E175: 0.056 | F175: =IFERROR(INDEX(SINAPI!$D:$D,MATCH($B175,SINAPI!$A:$A,0)),0) -> 21.12 | G175: 1.18272
A176: =IFERROR(INDEX(SINAPI!$E:$E,MATCH($B176,SINAPI!$A:$A,0)),"") -> COMPOSIÇÃO | B176: 93281 | C176: =IFERROR(INDEX(SINAPI!$B:$B,MATCH($B176,SINAPI!$A:$A,0)),"") -> GUINCHO ELÉTRICO DE COLUNA, CAPACIDADE 400 KG, COM MOTO FREIO, MOTOR TRIFÁSICO DE 1,25 CV - CHP DIURNO. AF_03/2016 | D176: =IFERROR(INDEX(SINAPI!$C:$C,MATCH($B176,SINAPI!$A:$A,0)),"") -> CHP | E176: 0.0009 | F176: =IFERROR(INDEX(SINAPI!$D:$D,MATCH($B176,SINAPI!$A:$A,0)),0) -> 15.76 | G176: 0.014184
A177: =IFERROR(INDEX(SINAPI!$E:$E,MATCH($B177,SINAPI!$A:$A,0)),"") -> COMPOSIÇÃO | B177: 93282 | C177: =IFERROR(INDEX(SINAPI!$B:$B,MATCH($B177,SINAPI!$A:$A,0)),"") -> GUINCHO ELÉTRICO DE COLUNA, CAPACIDADE 400 KG, COM MOTO FREIO, MOTOR TRIFÁSICO DE 1,25 CV - CHI DIURNO. AF_03/2016 | D177: =IFERROR(INDEX(SINAPI!$C:$C,MATCH($B177,SINAPI!$A:$A,0)),"") -> CHI | E177: 0.0012 | F177: =IFERROR(INDEX(SINAPI!$D:$D,MATCH($B177,SINAPI!$A:$A,0)),0) -> 14.78 | G177: 0.017736
F178: TOTAL | G178: =SUM(G172:G177) -> 64.48894
A181: CLASSE/TIPO | B181: CÓDIGOS/ SINAPI | C181: DESCRIÇÃO | D181: UND | E181: COEFICIENTE | F181: PREÇO UNITÁRIO | G181: PREÇO TOTAL
A182: COMP-388053 | B182: =IFERROR(INDEX(COMPOSIÇÕES_IFMT!$B:$B,MATCH($A182,COMPOSIÇÕES_IFMT!$A:$A,0)),"") ->  | C182: CUMEEIRA DE ALUMÍNIO E=0.8mm | D182: M | G182: =G186 -> 102.5502
A183: INSUMO | B183: 00720/ORSE | C183: Cumeeira alumínio 0,8 mm (2,71 kg/m2) | D183: M | E183: 1 | F183: 81.02 | G183: =IFERROR(F183*E183,0) -> 81.02
A184: =IFERROR(INDEX(SINAPI!$E:$E,MATCH($B184,SINAPI!$A:$A,0)),"") -> COMPOSIÇÃO | B184: 88323 | C184: =IFERROR(INDEX(SINAPI!$B:$B,MATCH($B184,SINAPI!$A:$A,0)),"") -> TELHADISTA COM ENCARGOS COMPLEMENTARES | D184: =IFERROR(INDEX(SINAPI!$C:$C,MATCH($B184,SINAPI!$A:$A,0)),"") -> H | E184: 0.56 | F184: =IFERROR(INDEX(SINAPI!$D:$D,MATCH($B184,SINAPI!$A:$A,0)),0) -> 21.12 | G184: 11.8272
A185: =IFERROR(INDEX(SINAPI!$E:$E,MATCH($B185,SINAPI!$A:$A,0)),"") -> COMPOSIÇÃO | B185: 88316 | C185: =IFERROR(INDEX(SINAPI!$B:$B,MATCH($B185,SINAPI!$A:$A,0)),"") -> SERVENTE COM ENCARGOS COMPLEMENTARES | D185: =IFERROR(INDEX(SINAPI!$C:$C,MATCH($B185,SINAPI!$A:$A,0)),"") -> H | E185: 0.62 | F185: =IFERROR(INDEX(SINAPI!$D:$D,MATCH($B185,SINAPI!$A:$A,0)),0) -> 15.65 | G185: 9.703
F186: TOTAL | G186: =SUM(G183:G185) -> 102.5502
A189: CLASSE/TIPO | B189: CÓDIGOS/ SINAPI | C189: DESCRIÇÃO | D189: UND | E189: COEFICIENTE | F189: PREÇO UNITÁRIO | G189: PREÇO TOTAL
A190: COMP-0294 | B190: =IFERROR(INDEX(COMPOSIÇÕES_IFMT!$B:$B,MATCH($A190,COMPOSIÇÕES_IFMT!$A:$A,0)),"") ->  | C190: CUMEEIRA TERMOACÚSTICA | D190: M | G190: =G197 -> 141.669776
A191: INSUMO | B191: 09363/ORSE | C191: Cumeeira termoacustica | D191: M | E191: 1 | F191: 112.94 | G191: =IFERROR(F191*E191,0) -> 112.94
A192: =IFERROR(INDEX(SINAPI!$E:$E,MATCH($B192,SINAPI!$A:$A,0)),"") -> INSUMO | B192: 11029 | C192: =IFERROR(INDEX(SINAPI!$B:$B,MATCH($B192,SINAPI!$A:$A,0)),"") -> HASTE RETA PARA GANCHO DE FERRO GALVANIZADO, COM ROSCA 1/4 " X 30 CM PARA FIXACAO DE TELHA METALICA, INCLUI PORCA E ARRUELAS DE VEDACAO | D192: =IFERROR(INDEX(SINAPI!$C:$C,MATCH($B192,SINAPI!$A:$A,0)),"") -> CJ | E192: 4 | F192: =IFERROR(INDEX(SINAPI!$D:$D,MATCH($B192,SINAPI!$A:$A,0)),0) -> 1.76 | G192: 7.04
A193: =IFERROR(INDEX(SINAPI!$E:$E,MATCH($B193,SINAPI!$A:$A,0)),"") -> COMPOSIÇÃO | B193: 88323 | C193: =IFERROR(INDEX(SINAPI!$B:$B,MATCH($B193,SINAPI!$A:$A,0)),"") -> TELHADISTA COM ENCARGOS COMPLEMENTARES | D193: =IFERROR(INDEX(SINAPI!$C:$C,MATCH($B193,SINAPI!$A:$A,0)),"") -> H | E193: 0.56 | F193: =IFERROR(INDEX(SINAPI!$D:$D,MATCH($B193,SINAPI!$A:$A,0)),0) -> 21.12 | G193: 11.8272
A194: =IFERROR(INDEX(SINAPI!$E:$E,MATCH($B194,SINAPI!$A:$A,0)),"") -> COMPOSIÇÃO | B194: 88316 | C194: =IFERROR(INDEX(SINAPI!$B:$B,MATCH($B194,SINAPI!$A:$A,0)),"") -> SERVENTE COM ENCARGOS COMPLEMENTARES | D194: =IFERROR(INDEX(SINAPI!$C:$C,MATCH($B194,SINAPI!$A:$A,0)),"") -> H | E194: 0.62 | F194: =IFERROR(INDEX(SINAPI!$D:$D,MATCH($B194,SINAPI!$A:$A,0)),0) -> 15.65 | G194: 9.703
A195: =IFERROR(INDEX(SINAPI!$E:$E,MATCH($B195,SINAPI!$A:$A,0)),"") -> COMPOSIÇÃO | B195: 93281 | C195: =IFERROR(INDEX(SINAPI!$B:$B,MATCH($B195,SINAPI!$A:$A,0)),"") -> GUINCHO ELÉTRICO DE COLUNA, CAPACIDADE 400 KG, COM MOTO FREIO, MOTOR TRIFÁSICO DE 1,25 CV - CHP DIURNO. AF_03/2016 | D195: =IFERROR(INDEX(SINAPI!$C:$C,MATCH($B195,SINAPI!$A:$A,0)),"") -> CHP | E195: 0.009 | F195: =IFERROR(INDEX(SINAPI!$D:$D,MATCH($B195,SINAPI!$A:$A,0)),0) -> 15.76 | G195: 0.14184
A196: =IFERROR(INDEX(SINAPI!$E:$E,MATCH($B196,SINAPI!$A:$A,0)),"") -> COMPOSIÇÃO | B196: 93282 | C196: =IFERROR(INDEX(SINAPI!$B:$B,MATCH($B196,SINAPI!$A:$A,0)),"") -> GUINCHO ELÉTRICO DE COLUNA, CAPACIDADE 400 KG, COM MOTO FREIO, MOTOR TRIFÁSICO DE 1,25 CV - CHI DIURNO. AF_03/2016 | D196: =IFERROR(INDEX(SINAPI!$C:$C,MATCH($B196,SINAPI!$A:$A,0)),"") -> CHI | E196: 0.0012 | F196: =IFERROR(INDEX(SINAPI!$D:$D,MATCH($B196,SINAPI!$A:$A,0)),0) -> 14.78 | G196: 0.017736
F197: TOTAL | G197: =SUM(G191:G196) -> 141.669776
A200: CLASSE/TIPO | B200: CÓDIGOS/ SINAPI | C200: DESCRIÇÃO | D200: UND | E200: COEFICIENTE | F200: PREÇO UNITÁRIO | G200: PREÇO TOTAL
A201: COMP-1459 | B201: =IFERROR(INDEX(COMPOSIÇÕES_IFMT!$B:$B,MATCH($A201,COMPOSIÇÕES_IFMT!$A:$A,0)),"") ->  | C201: RUFO EM ALUMÍNIO ESTAMPADO ESP=0,8mm COM DESENVOLVIMENTO DE 25cm | D201: M | G201: =G207 -> 50.419776
A202: =IFERROR(INDEX(SINAPI!$E:$E,MATCH($B202,SINAPI!$A:$A,0)),"") -> INSUMO | B202: 40873 | C202: =IFERROR(INDEX(SINAPI!$B:$B,MATCH($B202,SINAPI!$A:$A,0)),"") -> RUFO INTERNO/EXTERNO DE CHAPA DE ACO GALVANIZADA NUM 24, CORTE 25 CM | D202: =IFERROR(INDEX(SINAPI!$C:$C,MATCH($B202,SINAPI!$A:$A,0)),"") -> M | E202: 1 | F202: =IFERROR(INDEX(SINAPI!$D:$D,MATCH($B202,SINAPI!$A:$A,0)),0) -> 28.73 | G202: =IFERROR(F202*E202,0) -> 28.73
A203: =IFERROR(INDEX(SINAPI!$E:$E,MATCH($B203,SINAPI!$A:$A,0)),"") -> COMPOSIÇÃO | B203: 88323 | C203: =IFERROR(INDEX(SINAPI!$B:$B,MATCH($B203,SINAPI!$A:$A,0)),"") -> TELHADISTA COM ENCARGOS COMPLEMENTARES | D203: =IFERROR(INDEX(SINAPI!$C:$C,MATCH($B203,SINAPI!$A:$A,0)),"") -> H | E203: 0.56 | F203: =IFERROR(INDEX(SINAPI!$D:$D,MATCH($B203,SINAPI!$A:$A,0)),0) -> 21.12 | G203: 11.8272
A204: =IFERROR(INDEX(SINAPI!$E:$E,MATCH($B204,SINAPI!$A:$A,0)),"") -> COMPOSIÇÃO | B204: 88316 | C204: =IFERROR(INDEX(SINAPI!$B:$B,MATCH($B204,SINAPI!$A:$A,0)),"") -> SERVENTE COM ENCARGOS COMPLEMENTARES | D204: =IFERROR(INDEX(SINAPI!$C:$C,MATCH($B204,SINAPI!$A:$A,0)),"") -> H | E204: 0.62 | F204: =IFERROR(INDEX(SINAPI!$D:$D,MATCH($B204,SINAPI!$A:$A,0)),0) -> 15.65 | G204: 9.703
A205: =IFERROR(INDEX(SINAPI!$E:$E,MATCH($B205,SINAPI!$A:$A,0)),"") -> COMPOSIÇÃO | B205: 93281 | C205: =IFERROR(INDEX(SINAPI!$B:$B,MATCH($B205,SINAPI!$A:$A,0)),"") -> GUINCHO ELÉTRICO DE COLUNA, CAPACIDADE 400 KG, COM MOTO FREIO, MOTOR TRIFÁSICO DE 1,25 CV - CHP DIURNO. AF_03/2016 | D205: =IFERROR(INDEX(SINAPI!$C:$C,MATCH($B205,SINAPI!$A:$A,0)),"") -> CHP | E205: 0.009 | F205: =IFERROR(INDEX(SINAPI!$D:$D,MATCH($B205,SINAPI!$A:$A,0)),0) -> 15.76 | G205: 0.14184
A206: =IFERROR(INDEX(SINAPI!$E:$E,MATCH($B206,SINAPI!$A:$A,0)),"") -> COMPOSIÇÃO | B206: 93282 | C206: =IFERROR(INDEX(SINAPI!$B:$B,MATCH($B206,SINAPI!$A:$A,0)),"") -> GUINCHO ELÉTRICO DE COLUNA, CAPACIDADE 400 KG, COM MOTO FREIO, MOTOR TRIFÁSICO DE 1,25 CV - CHI DIURNO. AF_03/2016 | D206: =IFERROR(INDEX(SINAPI!$C:$C,MATCH($B206,SINAPI!$A:$A,0)),"") -> CHI | E206: 0.0012 | F206: =IFERROR(INDEX(SINAPI!$D:$D,MATCH($B206,SINAPI!$A:$A,0)),0) -> 14.78 | G206: 0.017736
F207: TOTAL | G207: =SUM(G202:G206) -> 50.419776
A210: CLASSE/TIPO | B210: CÓDIGOS/ SINAPI | C210: DESCRIÇÃO | D210: UND | E210: COEFICIENTE | F210: PREÇO UNITÁRIO | G210: PREÇO TOTAL
A211: COMP-6772 | B211: =IFERROR(INDEX(COMPOSIÇÕES_IFMT!$B:$B,MATCH($A211,COMPOSIÇÕES_IFMT!$A:$A,0)),"") ->  | C211: RUFO EM ALUMÍNIO ESTAMPADO ESP=0,8mm COM DESENVOLVIMENTO DE 45cm | D211: M | G211: =G217 -> 73.403776
A212: =IFERROR(INDEX(SINAPI!$E:$E,MATCH($B212,SINAPI!$A:$A,0)),"") -> INSUMO | B212: 40873 | C212: =IFERROR(INDEX(SINAPI!$B:$B,MATCH($B212,SINAPI!$A:$A,0)),"") -> RUFO INTERNO/EXTERNO DE CHAPA DE ACO GALVANIZADA NUM 24, CORTE 25 CM | D212: =IFERROR(INDEX(SINAPI!$C:$C,MATCH($B212,SINAPI!$A:$A,0)),"") -> M | E212: 1.8 | F212: =IFERROR(INDEX(SINAPI!$D:$D,MATCH($B212,SINAPI!$A:$A,0)),0) -> 28.73 | G212: =IFERROR(F212*E212,0) -> 51.714
A213: =IFERROR(INDEX(SINAPI!$E:$E,MATCH($B213,SINAPI!$A:$A,0)),"") -> COMPOSIÇÃO | B213: 88323 | C213: =IFERROR(INDEX(SINAPI!$B:$B,MATCH($B213,SINAPI!$A:$A,0)),"") -> TELHADISTA COM ENCARGOS COMPLEMENTARES | D213: =IFERROR(INDEX(SINAPI!$C:$C,MATCH($B213,SINAPI!$A:$A,0)),"") -> H | E213: 0.56 | F213: =IFERROR(INDEX(SINAPI!$D:$D,MATCH($B213,SINAPI!$A:$A,0)),0) -> 21.12 | G213: 11.8272
A214: =IFERROR(INDEX(SINAPI!$E:$E,MATCH($B214,SINAPI!$A:$A,0)),"") -> COMPOSIÇÃO | B214: 88316 | C214: =IFERROR(INDEX(SINAPI!$B:$B,MATCH($B214,SINAPI!$A:$A,0)),"") -> SERVENTE COM ENCARGOS COMPLEMENTARES | D214: =IFERROR(INDEX(SINAPI!$C:$C,MATCH($B214,SINAPI!$A:$A,0)),"") -> H | E214: 0.62 | F214: =IFERROR(INDEX(SINAPI!$D:$D,MATCH($B214,SINAPI!$A:$A,0)),0) -> 15.65 | G214: 9.703
A215: =IFERROR(INDEX(SINAPI!$E:$E,MATCH($B215,SINAPI!$A:$A,0)),"") -> COMPOSIÇÃO | B215: 93281 | C215: =IFERROR(INDEX(SINAPI!$B:$B,MATCH($B215,SINAPI!$A:$A,0)),"") -> GUINCHO ELÉTRICO DE COLUNA, CAPACIDADE 400 KG, COM MOTO FREIO, MOTOR TRIFÁSICO DE 1,25 CV - CHP DIURNO. AF_03/2016 | D215: =IFERROR(INDEX(SINAPI!$C:$C,MATCH($B215,SINAPI!$A:$A,0)),"") -> CHP | E215: 0.009 | F215: =IFERROR(INDEX(SINAPI!$D:$D,MATCH($B215,SINAPI!$A:$A,0)),0) -> 15.76 | G215: 0.14184
A216: =IFERROR(INDEX(SINAPI!$E:$E,MATCH($B216,SINAPI!$A:$A,0)),"") -> COMPOSIÇÃO | B216: 93282 | C216: =IFERROR(INDEX(SINAPI!$B:$B,MATCH($B216,SINAPI!$A:$A,0)),"") -> GUINCHO ELÉTRICO DE COLUNA, CAPACIDADE 400 KG, COM MOTO FREIO, MOTOR TRIFÁSICO DE 1,25 CV - CHI DIURNO. AF_03/2016 | D216: =IFERROR(INDEX(SINAPI!$C:$C,MATCH($B216,SINAPI!$A:$A,0)),"") -> CHI | E216: 0.0012 | F216: =IFERROR(INDEX(SINAPI!$D:$D,MATCH($B216,SINAPI!$A:$A,0)),0) -> 14.78 | G216: 0.017736
F217: TOTAL | G217: =SUM(G212:G216) -> 73.403776
A220: CLASSE/TIPO | B220: CÓDIGOS/ SINAPI | C220: DESCRIÇÃO | D220: UND | E220: COEFICIENTE | F220: PREÇO UNITÁRIO | G220: PREÇO TOTAL
A221: COMP-5864 | B221: =IFERROR(INDEX(COMPOSIÇÕES_IFMT!$B:$B,MATCH($A221,COMPOSIÇÕES_IFMT!$A:$A,0)),"") ->  | C221: RUFO EM ALUMÍNIO ESTAMPADO ESP=0,8mm COM DESENVOLVIMENTO DE 55cm | D221: M | G221: =G227 -> 58.399776
A222: =IFERROR(INDEX(SINAPI!$E:$E,MATCH($B222,SINAPI!$A:$A,0)),"") -> INSUMO | B222: 1114 | C222: =IFERROR(INDEX(SINAPI!$B:$B,MATCH($B222,SINAPI!$A:$A,0)),"") -> RUFO INTERNO DE CHAPA DE ACO GALVANIZADA NUM 26, CORTE 50 CM | D222: =IFERROR(INDEX(SINAPI!$C:$C,MATCH($B222,SINAPI!$A:$A,0)),"") -> M | E222: 1 | F222: =IFERROR(INDEX(SINAPI!$D:$D,MATCH($B222,SINAPI!$A:$A,0)),0) -> 36.71 | G222: =IFERROR(F222*E222,0) -> 36.71
A223: =IFERROR(INDEX(SINAPI!$E:$E,MATCH($B223,SINAPI!$A:$A,0)),"") -> COMPOSIÇÃO | B223: 88323 | C223: =IFERROR(INDEX(SINAPI!$B:$B,MATCH($B223,SINAPI!$A:$A,0)),"") -> TELHADISTA COM ENCARGOS COMPLEMENTARES | D223: =IFERROR(INDEX(SINAPI!$C:$C,MATCH($B223,SINAPI!$A:$A,0)),"") -> H | E223: 0.56 | F223: =IFERROR(INDEX(SINAPI!$D:$D,MATCH($B223,SINAPI!$A:$A,0)),0) -> 21.12 | G223: 11.8272
A224: =IFERROR(INDEX(SINAPI!$E:$E,MATCH($B224,SINAPI!$A:$A,0)),"") -> COMPOSIÇÃO | B224: 88316 | C224: =IFERROR(INDEX(SINAPI!$B:$B,MATCH($B224,SINAPI!$A:$A,0)),"") -> SERVENTE COM ENCARGOS COMPLEMENTARES | D224: =IFERROR(INDEX(SINAPI!$C:$C,MATCH($B224,SINAPI!$A:$A,0)),"") -> H | E224: 0.62 | F224: =IFERROR(INDEX(SINAPI!$D:$D,MATCH($B224,SINAPI!$A:$A,0)),0) -> 15.65 | G224: 9.703
A225: =IFERROR(INDEX(SINAPI!$E:$E,MATCH($B225,SINAPI!$A:$A,0)),"") -> COMPOSIÇÃO | B225: 93281 | C225: =IFERROR(INDEX(SINAPI!$B:$B,MATCH($B225,SINAPI!$A:$A,0)),"") -> GUINCHO ELÉTRICO DE COLUNA, CAPACIDADE 400 KG, COM MOTO FREIO, MOTOR TRIFÁSICO DE 1,25 CV - CHP DIURNO. AF_03/2016 | D225: =IFERROR(INDEX(SINAPI!$C:$C,MATCH($B225,SINAPI!$A:$A,0)),"") -> CHP | E225: 0.009 | F225: =IFERROR(INDEX(SINAPI!$D:$D,MATCH($B225,SINAPI!$A:$A,0)),0) -> 15.76 | G225: 0.14184
A226: =IFERROR(INDEX(SINAPI!$E:$E,MATCH($B226,SINAPI!$A:$A,0)),"") -> COMPOSIÇÃO | B226: 93282 | C226: =IFERROR(INDEX(SINAPI!$B:$B,MATCH($B226,SINAPI!$A:$A,0)),"") -> GUINCHO ELÉTRICO DE COLUNA, CAPACIDADE 400 KG, COM MOTO FREIO, MOTOR TRIFÁSICO DE 1,25 CV - CHI DIURNO. AF_03/2016 | D226: =IFERROR(INDEX(SINAPI!$C:$C,MATCH($B226,SINAPI!$A:$A,0)),"") -> CHI | E226: 0.0012 | F226: =IFERROR(INDEX(SINAPI!$D:$D,MATCH($B226,SINAPI!$A:$A,0)),0) -> 14.78 | G226: 0.017736
F227: TOTAL | G227: =SUM(G222:G226) -> 58.399776
A230: CLASSE/TIPO | B230: CÓDIGOS/ SINAPI | C230: DESCRIÇÃO | D230: UND | E230: COEFICIENTE | F230: PREÇO UNITÁRIO | G230: PREÇO TOTAL
A231: COMP-6963 | B231: =IFERROR(INDEX(COMPOSIÇÕES_IFMT!$B:$B,MATCH($A231,COMPOSIÇÕES_IFMT!$A:$A,0)),"") ->  | C231: RUFO EM ALUMÍNIO ESTAMPADO ESP=0,8mm COM DESENVOLVIMENTO DE 45cm | D231: M | G231: =G237 -> 95.109776
A232: =IFERROR(INDEX(SINAPI!$E:$E,MATCH($B232,SINAPI!$A:$A,0)),"") -> INSUMO | B232: 1114 | C232: =IFERROR(INDEX(SINAPI!$B:$B,MATCH($B232,SINAPI!$A:$A,0)),"") -> RUFO INTERNO DE CHAPA DE ACO GALVANIZADA NUM 26, CORTE 50 CM | D232: =IFERROR(INDEX(SINAPI!$C:$C,MATCH($B232,SINAPI!$A:$A,0)),"") -> M | E232: 2 | F232: =IFERROR(INDEX(SINAPI!$D:$D,MATCH($B232,SINAPI!$A:$A,0)),0) -> 36.71 | G232: =IFERROR(F232*E232,0) -> 73.42
A233: =IFERROR(INDEX(SINAPI!$E:$E,MATCH($B233,SINAPI!$A:$A,0)),"") -> COMPOSIÇÃO | B233: 88323 | C233: =IFERROR(INDEX(SINAPI!$B:$B,MATCH($B233,SINAPI!$A:$A,0)),"") -> TELHADISTA COM ENCARGOS COMPLEMENTARES | D233: =IFERROR(INDEX(SINAPI!$C:$C,MATCH($B233,SINAPI!$A:$A,0)),"") -> H | E233: 0.56 | F233: =IFERROR(INDEX(SINAPI!$D:$D,MATCH($B233,SINAPI!$A:$A,0)),0) -> 21.12 | G233: 11.8272
A234: =IFERROR(INDEX(SINAPI!$E:$E,MATCH($B234,SINAPI!$A:$A,0)),"") -> COMPOSIÇÃO | B234: 88316 | C234: =IFERROR(INDEX(SINAPI!$B:$B,MATCH($B234,SINAPI!$A:$A,0)),"") -> SERVENTE COM ENCARGOS COMPLEMENTARES | D234: =IFERROR(INDEX(SINAPI!$C:$C,MATCH($B234,SINAPI!$A:$A,0)),"") -> H | E234: 0.62 | F234: =IFERROR(INDEX(SINAPI!$D:$D,MATCH($B234,SINAPI!$A:$A,0)),0) -> 15.65 | G234: 9.703
A235: =IFERROR(INDEX(SINAPI!$E:$E,MATCH($B235,SINAPI!$A:$A,0)),"") -> COMPOSIÇÃO | B235: 93281 | C235: =IFERROR(INDEX(SINAPI!$B:$B,MATCH($B235,SINAPI!$A:$A,0)),"") -> GUINCHO ELÉTRICO DE COLUNA, CAPACIDADE 400 KG, COM MOTO FREIO, MOTOR TRIFÁSICO DE 1,25 CV - CHP DIURNO. AF_03/2016 | D235: =IFERROR(INDEX(SINAPI!$C:$C,MATCH($B235,SINAPI!$A:$A,0)),"") -> CHP | E235: 0.009 | F235: =IFERROR(INDEX(SINAPI!$D:$D,MATCH($B235,SINAPI!$A:$A,0)),0) -> 15.76 | G235: 0.14184
A236: =IFERROR(INDEX(SINAPI!$E:$E,MATCH($B236,SINAPI!$A:$A,0)),"") -> COMPOSIÇÃO | B236: 93282 | C236: =IFERROR(INDEX(SINAPI!$B:$B,MATCH($B236,SINAPI!$A:$A,0)),"") -> GUINCHO ELÉTRICO DE COLUNA, CAPACIDADE 400 KG, COM MOTO FREIO, MOTOR TRIFÁSICO DE 1,25 CV - CHI DIURNO. AF_03/2016 | D236: =IFERROR(INDEX(SINAPI!$C:$C,MATCH($B236,SINAPI!$A:$A,0)),"") -> CHI | E236: 0.0012 | F236: =IFERROR(INDEX(SINAPI!$D:$D,MATCH($B236,SINAPI!$A:$A,0)),0) -> 14.78 | G236: 0.017736
F237: TOTAL | G237: =SUM(G232:G236) -> 95.109776
A240: CLASSE/TIPO | B240: CÓDIGOS/ SINAPI | C240: DESCRIÇÃO | D240: UND | E240: COEFICIENTE | F240: PREÇO UNITÁRIO | G240: PREÇO TOTAL
A241: COMP-0510 | B241: =IFERROR(INDEX(COMPOSIÇÕES_IFMT!$B:$B,MATCH($A241,COMPOSIÇÕES_IFMT!$A:$A,0)),"") ->  | C241: CHAPIM EM GRANITO POLIDO L=23cm (CONFORME PROJETO) | D241: M2 | G241: =G247 -> 232.806301
A242: =IFERROR(INDEX(SINAPI!$E:$E,MATCH($B242,SINAPI!$A:$A,0)),"") -> INSUMO | B242: 1380 | C242: =IFERROR(INDEX(SINAPI!$B:$B,MATCH($B242,SINAPI!$A:$A,0)),"") -> CIMENTO BRANCO | D242: =IFERROR(INDEX(SINAPI!$C:$C,MATCH($B242,SINAPI!$A:$A,0)),"") -> KG | E242: 0.7 | F242: =IFERROR(INDEX(SINAPI!$D:$D,MATCH($B242,SINAPI!$A:$A,0)),0) -> 2.07 | G242: =IFERROR(F242*E242,0) -> 1.449
A243: =IFERROR(INDEX(SINAPI!$E:$E,MATCH($B243,SINAPI!$A:$A,0)),"") -> INSUMO | B243: 11795 | C243: =IFERROR(INDEX(SINAPI!$B:$B,MATCH($B243,SINAPI!$A:$A,0)),"") -> GRANITO PARA BANCADA, POLIDO, TIPO ANDORINHA/ QUARTZ/ CASTELO/ CORUMBA OU OUTROS EQUIVALENTES DA REGIAO, E= *2,5* CM | D243: =IFERROR(INDEX(SINAPI!$C:$C,MATCH($B243,SINAPI!$A:$A,0)),"") -> M2 | E243: 0.23 | F243: =IFERROR(INDEX(SINAPI!$D:$D,MATCH($B243,SINAPI!$A:$A,0)),0) -> 422.64 | G243: 97.2072
A244: =IFERROR(INDEX(SINAPI!$E:$E,MATCH($B244,SINAPI!$A:$A,0)),"") -> COMPOSIÇÃO | B244: 88274 | C244: =IFERROR(INDEX(SINAPI!$B:$B,MATCH($B244,SINAPI!$A:$A,0)),"") -> MARMORISTA/GRANITEIRO COM ENCARGOS COMPLEMENTARES | D244: =IFERROR(INDEX(SINAPI!$C:$C,MATCH($B244,SINAPI!$A:$A,0)),"") -> H | E244: 4.8 | F244: =IFERROR(INDEX(SINAPI!$D:$D,MATCH($B244,SINAPI!$A:$A,0)),0) -> 20.13 | G244: 96.624
A245: =IFERROR(INDEX(SINAPI!$E:$E,MATCH($B245,SINAPI!$A:$A,0)),"") -> COMPOSIÇÃO | B245: 88316 | C245: =IFERROR(INDEX(SINAPI!$B:$B,MATCH($B245,SINAPI!$A:$A,0)),"") -> SERVENTE COM ENCARGOS COMPLEMENTARES | D245: =IFERROR(INDEX(SINAPI!$C:$C,MATCH($B245,SINAPI!$A:$A,0)),"") -> H | E245: 2.3 | F245: =IFERROR(INDEX(SINAPI!$D:$D,MATCH($B245,SINAPI!$A:$A,0)),0) -> 15.65 | G245: 35.995
A246: =IFERROR(INDEX(SINAPI!$E:$E,MATCH($B246,SINAPI!$A:$A,0)),"") -> COMPOSIÇÃO | B246: 88631 | C246: =IFERROR(INDEX(SINAPI!$B:$B,MATCH($B246,SINAPI!$A:$A,0)),"") -> ARGAMASSA TRAÇO 1:4 (EM VOLUME DE CIMENTO E AREIA MÉDIA ÚMIDA), PREPARO MANUAL. AF_08/2019 | D246: =IFERROR(INDEX(SINAPI!$C:$C,MATCH($B246,SINAPI!$A:$A,0)),"") -> M3 | E246: 0.0033 | F246: =IFERROR(INDEX(SINAPI!$D:$D,MATCH($B246,SINAPI!$A:$A,0)),0) -> 463.97 | G246: 1.531101
F247: TOTAL | G247: =SUM(G242:G246) -> 232.806301
A250: CLASSE/TIPO | B250: CÓDIGOS/ SINAPI | C250: DESCRIÇÃO | D250: UND | E250: COEFICIENTE | F250: PREÇO UNITÁRIO | G250: PREÇO TOTAL
A251: COMP-9071 | B251: =IFERROR(INDEX(COMPOSIÇÕES_IFMT!$B:$B,MATCH($A251,COMPOSIÇÕES_IFMT!$A:$A,0)),"") ->  | C251: CHAPIM EM GRANITO POLIDO L=21cm (CONFORME PROJETO) | D251: M2 | G251: =G257 -> 224.353501
A252: =IFERROR(INDEX(SINAPI!$E:$E,MATCH($B252,SINAPI!$A:$A,0)),"") -> INSUMO | B252: 1380 | C252: =IFERROR(INDEX(SINAPI!$B:$B,MATCH($B252,SINAPI!$A:$A,0)),"") -> CIMENTO BRANCO | D252: =IFERROR(INDEX(SINAPI!$C:$C,MATCH($B252,SINAPI!$A:$A,0)),"") -> KG | E252: 0.7 | F252: =IFERROR(INDEX(SINAPI!$D:$D,MATCH($B252,SINAPI!$A:$A,0)),0) -> 2.07 | G252: =IFERROR(F252*E252,0) -> 1.449
A253: =IFERROR(INDEX(SINAPI!$E:$E,MATCH($B253,SINAPI!$A:$A,0)),"") -> INSUMO | B253: 11795 | C253: =IFERROR(INDEX(SINAPI!$B:$B,MATCH($B253,SINAPI!$A:$A,0)),"") -> GRANITO PARA BANCADA, POLIDO, TIPO ANDORINHA/ QUARTZ/ CASTELO/ CORUMBA OU OUTROS EQUIVALENTES DA REGIAO, E= *2,5* CM | D253: =IFERROR(INDEX(SINAPI!$C:$C,MATCH($B253,SINAPI!$A:$A,0)),"") -> M2 | E253: 0.21 | F253: =IFERROR(INDEX(SINAPI!$D:$D,MATCH($B253,SINAPI!$A:$A,0)),0) -> 422.64 | G253: 88.7544
A254: =IFERROR(INDEX(SINAPI!$E:$E,MATCH($B254,SINAPI!$A:$A,0)),"") -> COMPOSIÇÃO | B254: 88274 | C254: =IFERROR(INDEX(SINAPI!$B:$B,MATCH($B254,SINAPI!$A:$A,0)),"") -> MARMORISTA/GRANITEIRO COM ENCARGOS COMPLEMENTARES | D254: =IFERROR(INDEX(SINAPI!$C:$C,MATCH($B254,SINAPI!$A:$A,0)),"") -> H | E254: 4.8 | F254: =IFERROR(INDEX(SINAPI!$D:$D,MATCH($B254,SINAPI!$A:$A,0)),0) -> 20.13 | G254: 96.624
A255: =IFERROR(INDEX(SINAPI!$E:$E,MATCH($B255,SINAPI!$A:$A,0)),"") -> COMPOSIÇÃO | B255: 88316 | C255: =IFERROR(INDEX(SINAPI!$B:$B,MATCH($B255,SINAPI!$A:$A,0)),"") -> SERVENTE COM ENCARGOS COMPLEMENTARES | D255: =IFERROR(INDEX(SINAPI!$C:$C,MATCH($B255,SINAPI!$A:$A,0)),"") -> H | E255: 2.3 | F255: =IFERROR(INDEX(SINAPI!$D:$D,MATCH($B255,SINAPI!$A:$A,0)),0) -> 15.65 | G255: 35.995
A256: =IFERROR(INDEX(SINAPI!$E:$E,MATCH($B256,SINAPI!$A:$A,0)),"") -> COMPOSIÇÃO | B256: 88631 | C256: =IFERROR(INDEX(SINAPI!$B:$B,MATCH($B256,SINAPI!$A:$A,0)),"") -> ARGAMASSA TRAÇO 1:4 (EM VOLUME DE CIMENTO E AREIA MÉDIA ÚMIDA), PREPARO MANUAL. AF_08/2019 | D256: =IFERROR(INDEX(SINAPI!$C:$C,MATCH($B256,SINAPI!$A:$A,0)),"") -> M3 | E256: 0.0033 | F256: =IFERROR(INDEX(SINAPI!$D:$D,MATCH($B256,SINAPI!$A:$A,0)),0) -> 463.97 | G256: 1.531101
... 2513 more rows

Sheet BDI
A6: SERVIÇO PUBLICO FEDERAL
A7: INSTITUTO FEDERAL DE EDUCAÇÃO, CIÊNCIA E TECNOLOGIA DE MATO GROSSO
A8: =ORÇAMENTO!A6 -> CAMPUS SINOP
B10: CALCULO DO BDI NÃO DESONERADO
B12: CALCULO DO BDI
A13: AC | B13: ADMINISTRAÇÃO CENTRAL DA OBRA | C13: 0.0353
A14: S | B14: TAXA REPRESENTATIVA DE SEGUROS | C14: 0.0042
A15: R | B15: TAXA REPRESENTATIVA DE RISCOS | C15: 0.0104
A16: G | B16: TAXA REPRESENTATIVA DE GARANTIAS | C16: 0.002
A17: DF | B17: TAXA REPRESENTATIVA DAS DESPESAS FINANCEIRAS | C17: 0.0105
A18: L | B18: TAXA REPRESENTATIVA DO LUCRO | C18: 0.0691
A20: I | B20: TAXA REPRESENTATIVA DA INCIDENCIA DE IMPOSTOS | C20: =C21+C22+C23+C24 -> 0.0565
B21: Contribuição Previdenciária sobre a Renda Bruta (CPRB) Lei 13.161/2015 | C21: 0
B22: COFINS | C22: 0.03
B23: PIS | C23: 0.0065
B24: ISS (BASE DE CALCULO 40% E ISSQN 5%) | C24: 0.02
B26: CALCULO DO BDI | C26: =(((1+(C13+C14+C15+C16))*(1+C17)*(1+C18))/(1-C20))-1 -> 0.2044456238
B27: VALOR TOTAL DO BDI | C27: =C26 -> 0.2044456238
B28: BDI= (((1+(AC+S+R+G))*(1+DF)*(1+L))/(1-I))-1
B29: Formula BDI - Paragrafo nº39 do Acórdão nº 2.369/2011 Plenario . Processo nº TC 025.990/2008-2
B30: As taxas Acórdão nº 2622/2013 Plenário. TC 036.076/2011-2 sessão:25/09/13

Sheet COTAÇAO
A6: SERVIÇO PUBLICO FEDERAL
A7: INSTITUTO FEDERAL DE EDUCAÇÃO, CIÊNCIA E TECNOLOGIA DE MATO GROSSO
A8: =ORÇAMENTO!A6 -> CAMPUS SINOP
A10: COTAÇÃO
A13: COTAÇÃO 1 | B13: Fita dupla face 25mm x 20m | C13: Preço | D13: Frete | E13: Total | F13: Data
A14: Bite peças e tintas | B14: https://www.bite.com.br/fita-dupla-face-vhb-4910-25mmx20m-3m/p?idsku=30238&utm_source=google&utm_medium=cpc&utm_campaign=vtex_vtex_ads&gclid=EAIaIQobChMIzenzyPqT6wIVkw2RCh1EJgNJEAkYCCABEgKqC_D_BwE | C14: 86.9 | D14: 55.52 | E14: =C14+D14 -> 142.42 | F14: acessado 29/10/2021
A15: Anhanguera Ferramentas | B15: https://www.anhangueraferramentas.com.br/produto/fita-dupla-face-transparente-25mm-x-20m-4910-vhb-3m-106579?utm_source=google&utm_medium=cpc&utm_campaign=&gclid=EAIaIQobChMIzenzyPqT6wIVkw2RCh1EJgNJEAkYASABEgJet_D_BwE | C15: 100.7 | D15: 19.99 | E15: 120.69 | F15: acessado 29/10/2021
D16: Mediana | E16: =MEDIAN(E14:E15) -> 131.555
A19: COTAÇÃO 2 | B19: PÓRTICO DE ENTRADA COM ESTRUTURA EM CHAPA METALICA, PILAR COM ALTRUA DE 8,30 M E OUTRO COM 7,25 M, E VIGA COM 16,30 M DE COMPRIMENTO POR 1,50 M DE ALTURA, COM ALTURA UTIL 4,70 M, COM BASE EM CONCRETO ARMADO DIMENSIONADO PARA SUPORTAR TODA A ESTRUTURA, PINTADO COM FUNDO ANTI-CORROSIVO, REVESTICO EM ALUMINIO COMPOSTO ( ACM ) 3MM NAS CORES VERDE, BRANCA E VERMELHO CONFORME DETALHAMENTO DA FACHADA. INCLUSO AS INSTALAÇÕES E CONFECÇÃO DE LETRAS TIPO CAIXA ALTA EM INOX CONFORME DETALHAMENTO ESPECIFICO. | C19: Preço | D19: Frete | E19: Total | F19: Data
A20: Cotação da Planilha Orçamentária - Obra de Implantação do Campus de São Miguel - IFRO | C20: =84340*1.39 -> 117232.6 | D20: 0 | E20: =C20+D20 -> 117232.6 | F20: Out/2021
A21: Obs: Foi atualizado considerando o mesmo aumento percentual do item Castelo D'Água | D21: Mediana | E21: =MEDIAN(E20) -> 117232.6
A24: COTAÇÃO 3 | B24: Cabo de cobre coberto de XLPE 16mm2 - 15kv | C24: Preço | D24: Frete | E24: Total | F24: Data
A25: Eletro Soares Materiais para Construção | C25: 47.8 | D25: 0 | E25: =C25+D25 -> 47.8 | F25: Out/2021
D26: Mediana | E26: =MEDIAN(E25) -> 47.8

Sheet CURVA ABC
A5: INSTITUTO FEDERAL DE EDUCAÇÃO, CIÊNCIA E TECNOLOGIA DE MATO GROSSO
A6: CAMPUS SINOP
A8: CURVA ABC
A9: LOCAL: | B9: SINOP | H9: BDI: | I9: 0.2044456238 | J9: FAIXAS DE CORTE
A10: OBRA: | B10: IMPLANTAÇÃO DO CAMPUS | E10: ORSE - AGOSTO/2021 | H10: SEINFRA - MARÇO/2021 | J10: A | K10: B | L10: C
D11: TABELA SINAPI - DATA DE EMISSÃO: 20/09/2021 | E11: GOINFRA - OUTUBRO/2021 | H11: SETOP - JULHO/2021 | J11: 0.8 | K11: 0.95 | L11: 1
D12: SINAPI DATA REFERÊNCIA TÉCNICA: 20/09/2021 - NÃO DESONERADO | E12: SCO-RJ - SETEMBRO/2021
A13: ITEM | B13: REFERÊNCIA | C13: CÓDIGO | D13: DESCRIÇÃO DETALHADA | E13: UND | F13: QTD | G13: VALOR UNIT (R$) | H13: VALOR UNIT c/ BDI (R$) | I13: VALOR TOTAL (R$) | J13: % ITEM | K13: % ACUM | L13: CLASSE
A14: 19.1.30 | B14: COMPOSIÇÃO | C14: COMP-SESC-06 | D14: FORNECIMENTO E INSTALAÇÃO DE AR CONDICIONADO SPLIT INVERTER, 36000 BTU/H, PISO TETO | E14: UN | F14: 31 | G14: 11459.61 | H14: 13802.47711 | I14: 427876.79 | J14: =I14/$I$877 -> 0.03854009691 | K14: =J14 -> 0.03854009691 | L14: =IF(K14<=$J$11,"A",IF(K14<=$K$11,"B","C")) -> A
A15: 5.2.9 | B15: SINAPI | C15: 92452 | D15: MONTAGEM E DESMONTAGEM DE FÔRMA DE VIGA, ESCORAMENTO METÁLICO, PÉ-DIREITO SIMPLES, EM CHAPA DE MADEIRA RESINADA, 2 UTILIZAÇÕES. AF_09/2020 | E15: M2 | F15: 2731.5 | G15: 125.79 | H15: 151.507215 | I15: 413841.96 | J15: =I15/$I$877 -> 0.03727593928 | K15: =K14+J15 -> 0.0758160362 | L15: =IF(K15<=$J$11,"A",IF(K15<=$K$11,"B","C")) -> A
A16: 12.1.6 | B16: SCO - RJ | C16: IT 25.66.0162 | D16: Cubículo de med.,proteção e trans. em média tensão, classe 17,5/24KV, uso externo, em conformidade com a Norma NBR-IEC 62271-200, para instalações cuja carga seja inferior a 3300KVA, para proteção de um ou mais transformadores. Classe de tensão 15KV, Corrente nominal de 630A. Classe de tensão 15KV, Corrente nominal de 630A. Disjuntor a Vácuo motorizado, com relés de proteção microprocessados, em chapa de aço carbono 14 (MSG), com pintura eletrostática. Disjuntor: Marca ABB, modelo: VD4/R, isolação a vácuo, classe 17,5/24KV - 16KA-630A. Conf. Projeto Transformador trifásico, 13.8KV/220-127volt, 500KVA, com buchas de AT, instaladas na lateral, com flange para AT e para BT, a seco, no cubículo. | E16: cj | F16: 3 | G16: 108885.64 | H16: 131146.8326 | I16: 393440.5 | J16: 0.03543832092 | K16: =K15+J16 -> 0.1112543571 | L16: A
A17: 10.2.1 | B17: COMPOSIÇÃO | C17: IFMT 235.08.2020 | D17: PISO INDUSTRIAL ALTA RESISTENCIA, ESPESSURA 12MM, INCLUSO JUNTAS DE DILATACAO PLASTICAS E POLIMENTO MECANIZADO | E17: M2 | F17: 2475.2 | G17: 100.6202664 | H17: 121.1916395 | I17: 299973.55 | J17: 0.02701948308 | K17: 0.1382738402 | L17: A
A18: 8.1.1 | B18: SINAPI | C18: 87507 | D18: ALVENARIA DE VEDAÇÃO DE BLOCOS CERÂMICOS FURADOS NA HORIZONTAL DE 9X14X19CM (ESPESSURA 9CM) DE PAREDES COM ÁREA LÍQUIDA MAIOR OU IGUAL A 6M² SEM VÃOS E ARGAMASSA DE ASSENTAMENTO COM PREPARO EM BETONEIRA. AF_06/2014 | E18: M2 | F18: 2907.82 | G18: 79.62 | H18: 95.89796057 | I18: 278854.01 | J18: 0.02511718518 | K18: 0.1633910254 | L18: A
A19: 4.1.1 | B19: COMPOSIÇÃO | C19: COMP-111 | D19: ESTACA HÉLICE CONTÍNUA, DIÂMETRO DE 20 CM, COMPRIMENTO TOTAL ATÉ 15 M, PERFURATRIZ COM TORQUE DE 170 KN.M (EXCLUSIVE MOBILIZAÇÃO E DESMOBILIZAÇÃO). | E19: M3 | F19: 1692 | G19: 134.7763613 | H19: 162.3307986 | I19: 274663.71 | J19: 0.02473975277 | K19: 0.1881307782 | L19: A
A20: 1.1 | B20: SINAPI | C20: 93567 | D20: ENGENHEIRO CIVIL DE OBRA PLENO COM ENCARGOS COMPLEMENTARES | E20: MES | F20: 12 | G20: 18632.83 | H20: 22442.23055 | I20: 269306.77 | J20: 0.02425723773 | K20: 0.2123880159 | L20: A
A21: 11.3.2 | B21: COMPOSIÇÃO | C21: COMP-154929 | D21: GRADIL FRONTAL - COM INFRAESTRUTURA EM CONCRETO ARMADO | E21: M | F21: 144 | G21: 1120.174018 | H21: 1349.188694 | I21: 194283.17 | J21: 0.01749964564 | K21: 0.2298876615 | L21: A
A22: 9.1.2 | B22: SINAPI | C22: 87535 | D22: EMBOÇO, PARA RECEBIMENTO DE CERÂMICA, EM ARGAMASSA TRAÇO 1:2:8, PREPARO MECÂNICO COM BETONEIRA 400L, APLICADO MANUALMENTE EM FACES INTERNAS DE PAREDES, PARA AMBIENTE COM ÁREA MAIOR QUE 10M2, ESPESSURA DE 20MM, COM EXECUÇÃO DE TALISCAS. AF_06/2014 | E22: M2 | F22: 6388.54 | G22: 23.74 | H22: 28.59353911 | I22: 182670.97 | J22: 0.01645370128 | K22: 0.2463413628 | L22: A
A23: 11.2.2 | B23: COMPOSIÇÃO | C23: IFMT 248.08.2020 | D23: JANELA DE ALUMÍNIO DE CORRER COM 6 FOLHAS (2 VENEZIANAS FIXAS, 2 VENEZIANAS DE CORRER E 2 PARA VIDRO), COM VIDROS, BATENTE, ACABAMENTO COM A CETATO OU BRILHANTE E FERRAGENS. EXCLUSIVE ALIZAR E CONTRAMARCO. FORNE CIMENTO E INSTALAÇÃO. AF_12/2019 | E23: M2 | F23: 174.24 | G23: 782.2132 | H23: 942.1332656 | I23: 164157.3 | J23: 0.01478612161 | K23: 0.2611274844 | L23: A
A24: 5.2.10 | B24: SINAPI | C24: 92726 | D24: CONCRETAGEM DE VIGAS E LAJES, FCK=20 MPA, PARA LAJES MACIÇAS OU NERVURADAS COM USO DE BOMBA EM EDIFICAÇÃO COM ÁREA MÉDIA DE LAJES MAIOR QUE 20 M² - LANÇAMENTO, ADENSAMENTO E ACABAMENTO. AF_12/2015 | E24: M3 | F24: 237.25 | G24: 556.95 | H24: 670.8159902 | I24: 159151.09 | J24: 0.01433519783 | K24: 0.2754626823 | L24: A
A25: 10.1.3 | B25: COMPOSIÇÃO | C25: COMP-222438 | D25: REGULARIZACAO DE PISO/BASE EM ARGAMASSA TRACO 1:3 (CIMENTO E AREIA GROSSA SEM PENEIRAR), ESPESSURA 3,0CM, PREPARO MECANICO | E25: M2 | F25: 2769.78 | G25: 45.754361 | H25: 55.10863988 | I25: 152638.81 | J25: 0.01374861798 | K25: 0.2892113002 | L25: A
A26: 10.3.1 | B26: SINAPI | C26: 92396 | D26: EXECUÇÃO DE PASSEIO EM PISO INTERTRAVADO, COM BLOCO RETANGULAR COR NATURAL DE 20 X 10 CM, ESPESSURA 6 CM. AF_12/2015 | E26: M2 | F26: 1758.59 | G26: 71.11 | H26: 85.64812831 | I26: 150619.94 | J26: 0.01356677254 | K26: 0.3027780728 | L26: A
A27: 10.4.1 | B27: SINAPI | C27: 92396 | D27: EXECUÇÃO DE PASSEIO EM PISO INTERTRAVADO, COM BLOCO RETANGULAR COR NATURAL DE 20 X 10 CM, ESPESSURA 6 CM. AF_12/2015 | E27: M2 | F27: 1758.59 | G27: 71.11 | H27: 85.64812831 | I27: 150619.94 | J27: 0.01356677254 | K27: 0.3163448453 | L27: A
A28: 10.3.3 | B28: SINAPI | C28: 92398 | D28: EXECUÇÃO DE PÁTIO/ESTACIONAMENTO EM PISO INTERTRAVADO, COM BLOCO RETANGULAR COR NATURAL DE 20 X 10 CM, ESPESSURA 8 CM. AF_12/2015 | E28: M2 | F28: 1603.78 | G28: 75.87 | H28: 91.38128948 | I28: 146555.48 | J28: 0.0132006749 | K28: 0.3295455202 | L28: A
A29: 13.1.4.1 | B29: SCO-RJ | C29: AP 35.15.0050 | D29: CASTELO D'ÁGUA COM DIÂMETRO DE 2,387 M (ALTURA 12,40 M), COM CAIXA D'ÁGUA DE 30.000 LITROS E RESERVA DE INCÊNDIO DE 20.000 LITROS - COM 50.000 LITROS, COMPLETA COM BASE, GUARDA-CORPO, ESCADA METÁLICA COM PROTEÇÃO, PORTA METÁLICA PARA ACESSO AO BARRILETE E IMPERMEABILIZADA | E29: UN | F29: 1 | G29: 118000 | H29: 142124.5836 | I29: 142124.58 | J29: 0.01280157095 | K29: 0.3423470912 | L29: A
A30: 20.8 | B30: COMPOSIÇÃO | C30: COMP-956512 | D30: PÓRTICO DE ENTRADA COM ESTRUTURA EM CHAPA METALICA, PILAR COM ALTRUA DE 8,30 M E OUTRO COM 7,25 M, E VIGA COM 16,30 M DE COMPRIMENTO POR 1,50 M DE ALTURA, COM ALTURA UTIL 4,70 M, COM BASE EM CONCRETO ARMADO DIMENSIONADO PARA SUPORTAR TODA A ESTRUTURA, PINTADO COM FUNDO ANTI-CORROSIVO, REVESTICO EM ALUMINIO COMPOSTO ( ACM ) 3MM NAS CORES VERDE, BRANCA E VERMELHO CONFORME DETALHAMENTO DA FACHADA. INCLUSO AS INSTALAÇÕES E CONFECÇÃO DE LETRAS TIPO CAIXA ALTA EM INOX CONFORME DETALHAMENTO ESPECIFICO. | E30: UN | F30: 1 | G30: 117232.6 | H30: 141200.292 | I30: 141200.29 | J30: 0.01271831749 | K30: 0.3550654087 | L30: A
A31: 5.1.5 | B31: COMPOSIÇÃO | C31: COMP-92414 | D31: MONTAGEM E DESMONTAGEM DE FÔRMA DE PILARES RETANGULARES E ESTRUTURAS SIMILARES COM ÁREA MÉDIA DAS SEÇÕES MENOR OU IGUAL A 0,25 M², PÉ-DIREITO SIMPLES, EM CHAPA DE MADEIRA COMPENSADA RESINADA, 2 UTILIZAÇÕES. AF_12/2015 | E31: M2 | F31: 968.3 | G31: 115.63414 | H31: 139.2750339 | I31: 134860.02 | J31: 0.01214723108 | K31: 0.3672126397 | L31: A
A32: 7.2.1 | B32: SINAPI | C32: 94216 | D32: TELHAMENTO COM TELHA METÁLICA TERMOACÚSTICA E = 30 MM, COM ATÉ 2 ÁGUAS, INCLUSO IÇAMENTO. AF_07/2019 | E32: M2 | F32: 455.75 | G32: 229.74 | H32: 276.7093376 | I32: 126110.28 | J32: 0.01135911675 | K32: 0.3785717565 | L32: A
A33: 9.4.1 | B33: COMPOSIÇÃO | C33: COMP-7702 | D33: FORRO EM PLACAS DE GESSO, PARA AMBIENTES COMERCIAIS. AF_05/2017_P | E33: M2 | F33: 1797.05 | G33: 56.811279 | H33: 68.42609637 | I33: 122965.12 | J33: 0.01107582312 | K33: 0.3896475796 | L33: A
A34: 11.3.1 | B34: SINAPI | C34: 98522 | D34: ALAMBRADO EM MOURÕES DE CONCRETO, COM TELA DE ARAME GALVANIZADO (INCLUSIVE MURETA EM CONCRETO). AF_05/2018 | E34: M | F34: 750 | G34: 130.96 | H34: 157.7341989 | I34: 118300.65 | J34: 0.01065568085 | K34: 0.4003032605 | L34: A
A35: 9.1.3 | B35: SINAPI | C35: 87529 | D35: MASSA ÚNICA, PARA RECEBIMENTO DE PINTURA, EM ARGAMASSA TRAÇO 1:2:8, PREPARO MECÂNICO COM BETONEIRA 400L, APLICADA MANUALMENTE EM FACES INTERNAS DE PAREDES, ESPESSURA DE 20MM, COM EXECUÇÃO DE TALISCAS. AF_06/2014 | E35: M2 | F35: 3319.28 | G35: 27.55 | H35: 33.18247694 | I35: 110141.93 | J35: 0.009920801398 | K35: 0.4102240619 | L35: A
A36: 5.3.1 | B36: SINAPI | C36: 92768 | D36: ARMAÇÃO DE LAJE DE UMA ESTRUTURA CONVENCIONAL DE CONCRETO ARMADO EM UM EDIFÍCIO DE MÚLTIPLOS PAVIMENTOS UTILIZANDO AÇO CA-60 DE 5,0 MM - MONTAGEM. AF_12/2015 | E36: KG | F36: 5195.9 | G36: 17.31 | H36: 20.84895375 | I36: 108329.08 | J36: 0.009757512769 | K36: 0.4199815746 | L36: A
A37: 11.5.2 | B37: COMPOSIÇÃO | C37: COMP-6455 | D37: GUARDA-CORPO EM TUBO SUPERIOR DE AÇO GALVANIZADO D=3" 80mm | E37: M | F37: 112.5 | G37: 791.42656 | H37: 953.2302567 | I37: 107238.4 | J37: 0.009659272074 | K37: 0.4296408467 | L37: A
A38: 5.3.5 | B38: SINAPI | C38: 92490 | D38: MONTAGEM E DESMONTAGEM DE FÔRMA DE LAJE NERVURADA COM CUBETA E ASSOALHO, PÉ-DIREITO SIMPLES, EM CHAPA DE MADEIRA COMPENSADA RESINADA, 8 UTILIZAÇÕES. AF_09/2020 | E38: M2 | F38: 2092.1 | G38: 42.25 | H38: 50.88782761 | I38: 106462.42 | J38: 0.009589377317 | K38: 0.439230224 | L38: A
A39: 7.2.2 | B39: SINAPI | C39: 94213 | D39: TELHAMENTO COM TELHA DE AÇO/ALUMÍNIO E = 0,5 MM, COM ATÉ 2 ÁGUAS, INCLUSO IÇAMENTO. AF_07/2019 | E39: M2 | F39: 1134.37 | G39: 77.76 | H39: 93.65769171 | I39: 106242.48 | J39: 0.009569566687 | K39: 0.4487997907 | L39: A
A40: 7.1.9 | B40: COMPOSIÇÃO | C40: COMP-3579 | D40: ESTRUTURA METÁLICA EM AÇO ESTRUTURAL A -36, DOBRADO- C127X50X17X2.66 | E40: KG | F40: 5334.89 | G40: 15.5085 | H40: 18.67914496 | I40: 99651.18 | J40: 0.00897586928 | K40: 0.45777566 | L40: A
A41: 1.7 | B41: COMPOSIÇÃO | C41: COMP-02 | D41: VIGIA NOTURNO - 2 VIGIAS COM ENCARGOS COMPLEMENTARES | E41: MES | F41: 12 | G41: 6201.9 | H41: 7469.851314 | I41: 89638.22 | J41: 0.008073973085 | K41: 0.4658496331 | L41: A
A42: 11.4.1 | B42: COMPOSIÇÃO | C42: COMP-0911 | D42: BRISE EM CHAPA DE ALUMÍNIO 0,8mm ANODIZADO BRANCO (FORNECIMENTO E MONTAGEM) | E42: M2 | F42: 307.75 | G42: 241.111 | H42: 290.4050888 | I42: 89372.17 | J42: 0.008050009194 | K42: 0.4738996423 | L42: A
A43: 5.2.4 | B43: SINAPI | C43: 92763 | D43: ARMAÇÃO DE PILAR OU VIGA DE UMA ESTRUTURA CONVENCIONAL DE CONCRETO ARMADO EM UM EDIFÍCIO DE MÚLTIPLOS PAVIMENTOS UTILIZANDO AÇO CA-50 DE 12,5 MM - MONTAGEM. AF_12/2015 | E43: KG | F43: 5208.5 | G43: 14.12 | H43: 17.00677221 | I43: 88579.77 | J43: 0.007978635439 | K43: 0.4818782777 | L43: A
A44: 1.4 | B44: SINAPI | C44: 94295 | D44: MESTRE DE OBRAS COM ENCARGOS COMPLEMENTARES | E44: MES | F44: 12 | G44: 6069.52 | H44: 7310.406803 | I44: 87724.88 | J44: 0.007901633031 | K44: 0.4897799107 | L44: A
A45: 10.4.3 | B45: SINAPI | C45: 94991 | D45: EXECUÇÃO DE PASSEIO (CALÇADA) OU PISO DE CONCRETO COM CONCRETO MOLDADO IN LOCO, USINADO, ACABAMENTO CONVENCIONAL, NÃO ARMADO. AF_07/2016 | E45: M3 | F45: 109.07 | G45: 653.79 | H45: 787.4545044 | I45: 85887.66 | J45: 0.007736149325 | K45: 0.49751606 | L45: A
A46: 1.6 | B46: COMPOSIÇÃO | C46: COMP-01 | D46: VIGILANCIA DE OBRA DIURNA - 2 VIGIAS COM ENCARGOS COMPLEMENTARES | E46: MES | F46: 12 | G46: 5848.00875 | H46: 7043.608547 | I46: 84523.3 | J46: 0.007613257484 | K46: 0.5051293175 | L46: A
A47: 5.3.2 | B47: SINAPI | C47: 92771 | D47: ARMAÇÃO DE LAJE DE UMA ESTRUTURA CONVENCIONAL DE CONCRETO ARMADO EM UM EDIFÍCIO DE MÚLTIPLOS PAVIMENTOS UTILIZANDO AÇO CA-50 DE 10,0 MM - MONTAGEM. AF_12/2015 | E47: KG | F47: 4331.5 | G47: 16.01 | H47: 19.28317444 | I47: 83525.07 | J47: 0.007523344027 | K47: 0.5126526616 | L47: A
A48: 9.3.2 | B48: COMPOSIÇÃO | C48: COMP-6004 | D48: REVESTIMENTO CERÂMICO PARA PAREDES INTERNAS COM PLACAS TIPO ESMALTADA EXTRA DE DIMENSÕES 10X10 CM APLICADAS EM AMBIENTES DE ÁREA MAIOR QUE 5 M² A MEIA ALTURA DAS PAREDES. AF_06/2014 | E48: M2 | F48: 1212.62 | G48: 56.5219 | H48: 68.0775551 | I48: 82552.2 | J48: 0.00743571482 | K48: 0.5200883764 | L48: A
A49: 3.3.4 | B49: SINAPI | C49: 94319 | D49: ATERRO MANUAL DE VALAS COM SOLO ARGILO-ARENOSO E COMPACTAÇÃO MECANIZADA. AF_05/2016 | E49: M3 | F49: 1980.88 | G49: 34.12 | H49: 41.09568468 | I49: 81405.62 | J49: 0.007332439051 | K49: 0.5274208154 | L49: A
A50: 10.3.4 | B50: SINAPI | C50: 92399 | D50: EXECUÇÃO DE VIA EM PISO INTERTRAVADO, COM BLOCO RETANGULAR COR NATURAL DE 20 X 10 CM, ESPESSURA 8 CM. AF_12/2015 | E50: M2 | F50: 848.7 | G50: 77.31 | H50: 93.11569118 | I50: 79027.29 | J50: 0.007118216007 | K50: 0.5345390314 | L50: A
A51: 5.1.6 | B51: SINAPI | C51: 92722 | D51: CONCRETAGEM DE PILARES, FCK = 25 MPA, COM USO DE BOMBA EM EDIFICAÇÃO COM SEÇÃO MÉDIA DE PILARES MAIOR QUE 0,25 M² - LANÇAMENTO, ADENSAMENTO E ACABAMENTO. AF_12/2015 | E51: M3 | F51: 109.2 | G51: 576.2 | H51: 694.0015684 | I51: 75784.97 | J51: 0.00682617089 | K51: 0.5413652023 | L51: A
A52: 5.1.4 | B52: SINAPI | C52: 92764 | D52: ARMAÇÃO DE PILAR OU VIGA DE UMA ESTRUTURA CONVENCIONAL DE CONCRETO ARMADO EM UM EDIFÍCIO DE MÚLTIPLOS PAVIMENTOS UTILIZANDO AÇO CA-50 DE 16,0 MM - MONTAGEM. AF_12/2015 | E52: KG | F52: 4546.1 | G52: 13.74 | H52: 16.54908287 | I52: 75233.79 | J52: 0.006776524517 | K52: 0.5481417268 | L52: A
A53: 10.2.11 | B53: COMPOSIÇÃO | C53: COMP-8949 | D53: PEITORIL EM GRANITO CINZA LARGURA = 19,0 cm ESPESSURA VARIÁVEL E PINGADEIRA | E53: M2 | F53: 297.75 | G53: 209.0777673 | H53: 251.8228018 | I53: 74980.24 | J53: 0.006753686537 | K53: 0.5548954134 | L53: A
A54: 5.2.1 | B54: SINAPI | C54: 92759 | D54: ARMAÇÃO DE PILAR OU VIGA DE UMA ESTRUTURA CONVENCIONAL DE CONCRETO ARMADO EM UM EDIFÍCIO DE MÚLTIPLOS PAVIMENTOS UTILIZANDO AÇO CA-60 DE 5,0 MM - MONTAGEM. AF_12/2015 | E54: KG | F54: 3379.2 | G54: 18.39 | H54: 22.14975502 | I54: 74848.45 | J54: 0.006741815832 | K54: 0.5616372292 | L54: A
A55: 11.5.1 | B55: SINAPI | C55: 99837 | D55: GUARDA-CORPO DE AÇO GALVANIZADO DE 1,10M, MONTANTES TUBULARES DE 1.1/4" ESPAÇADOS DE 1,20M, TRAVESSA SUPERIOR DE 1.1/2", GRADIL FORMADO POR TUBOS HORIZONTAIS DE 1" E VERTICAIS DE 3/4", FIXADO COM CHUMBADOR MECÂNICO. AF_04/2019_P | E55: M | F55: 96.54 | G55: 630.18 | H55: 759.0175432 | I55: 73275.55 | J55: 0.006600140191 | K55: 0.5682373694 | L55: A
A56: 12.6.6 | B56: COMPOSIÇÃO | C56: COMP-286613 | D56: CAIXA DE PASSAGEM EM PVC (REF. CEMAR OU SIMILAR) - 120X120X75MM-SOBREPOR | E56: UN | F56: 57 | G56: 1065.56 | H56: 1283.409079 | I56: 73154.32 | J56: 0.006589220655 | K56: 0.5748265901 | L56: A
A57: 12.10.12 | B57: COMPOSIÇÃO | C57: COMP-6619A | D57: POSTE CURVO TELECÔNICO DE ENGASTAR, GALVANIZADO A FOGO, H(TOTAL)= 10 METROS, DA FORTLIGHT OU SIMILAR DUPLO | E57: un | F57: 22 | G57: 2630.1486 | H57: 3167.870971 | I57: 69693.16 | J57: 0.006277463988 | K57: 0.581104054 | L57: A
A58: 10.1.1 | B58: COMPOSIÇÃO | C58: IFMT 234.08.2020 | D58: LASTRO DE CONCRETO, PREPARO MECÂNICO, INCLUSOS ADITIVO IMPERMEABILIZANTE, LANÇAMENTO E ADENSAMENTO | E58: M3 | F58: 100.87 | G58: 542.31 | H58: 653.1829062 | I58: 65886.56 | J58: 0.005934592544 | K58: 0.5870386466 | L58: A
A59: 1.3 | B59: SINAPI | C59: 100321 | D59: TÉCNICO EM SEGURANÇA DO TRABALHO COM ENCARGOS COMPLEMENTARES | E59: MES | F59: 12 | G59: 4526.9 | H59: 5452.404894 | I59: 65428.86 | J59: 0.005893366185 | K59: 0.5929320128 | L59: A
A60: 5.1.4 | B60: SINAPI | C60: 92764 | D60: ARMAÇÃO DE PILAR OU VIGA DE UMA ESTRUTURA CONVENCIONAL DE CONCRETO ARMADO EM UM EDIFÍCIO DE MÚLTIPLOS PAVIMENTOS UTILIZANDO AÇO CA-50 DE 16,0 MM - MONTAGEM. AF_12/2015 | E60: KG | F60: 3948.5 | G60: 13.74 | H60: 16.54908287 | I60: 65344.05 | J60: 0.005885727103 | K60: 0.5988177399 | L60: A
A61: 2.13 | B61: SINAPI | C61: 98459 | D61: TAPUME COM TELHA METÁLICA. AF_05/2018 | E61: M2 | F61: 596 | G61: 85.51 | H61: 102.9921453 | I61: 61383.32 | J61: 0.005528972725 | K61: 0.6043467126 | L61: A
A62: 13.5.2.1.1 | B62: SINAPI | C62: 92336 | D62: TUBO DE AÇO GALVANIZADO COM COSTURA, CLASSE MÉDIA, CONEXÃO RANHURADA, DN 65 (2 1/2"), INSTALADO EM PRUMADAS - FORNECIMENTO E INSTALAÇÃO. AF_10/2020 | E62: M | F62: 346 | G62: 145 | H62: 174.6446154 | I62: 60427.04 | J62: 0.005442837827 | K62: 0.6097895504 | L62: A
A63: 5.3.1 | B63: SINAPI | C63: 92770 | D63: ARMAÇÃO DE LAJE DE UMA ESTRUTURA CONVENCIONAL DE CONCRETO ARMADO EM UM EDIFÍCIO DE MÚLTIPLOS PAVIMENTOS UTILIZANDO AÇO CA-50 DE 8,0 MM - MONTAGEM. AF_12/2015 | E63: KG | F63: 2822.6 | G63: 17.42 | H63: 20.98144277 | I63: 59222.22 | J63: 0.005334316213 | K63: 0.6151238666 | L63: A
A64: 16.1.1 | B64: COMPOSIÇÃO | C64: IFMT 247.08.2020 | D64: PLANTIO DE GRAMA EM PLACAS COM TERRA PRETA | E64: M2 | F64: 2503.38 | G64: 18.945707 | H64: 22.81907389 | I64: 57124.81 | J64: 0.005145396444 | K64: 0.6202692631 | L64: A
A65: 11.5.3 | B65: SINAPI | C65: 99855 | D65: CORRIMÃO SIMPLES, DIÂMETRO EXTERNO = 1 1/2", EM AÇO GALVANIZADO. AF_04/2019_P | E65: M | F65: 396.26 | G65: 115.42 | H65: 139.0171139 | I65: 55086.92 | J65: 0.004961837812 | K65: 0.6252311009 | L65: A
A66: 15.1.2 | B66: SINAPI | C66: 88497 | D66: APLICAÇÃO E LIXAMENTO DE MASSA LÁTEX EM PAREDES, DUAS DEMÃOS. AF_06/2014 | E66: M2 | F66: 3620.57 | G66: 12.37 | H66: 14.89899237 | I66: 53942.84 | J66: 0.004858787226 | K66: 0.6300898881 | L66: A
A67: 4.2.7 | B67: SINAPI | C67: 96557 | D67: CONCRETAGEM DE BLOCOS DE COROAMENTO E VIGAS BALDRAMES, FCK 30 MPA, COM USO DE BOMBA  LANÇAMENTO, ADENSAMENTO E ACABAMENTO. AF_06/2017 | E67: M3 | F67: 72.2 | G67: 610.04 | H67: 734.7600083 | I67: 53049.67 | J67: 0.004778336827 | K67: 0.634868225 | L67: A
A68: 15.1.3 | B68: SINAPI | C68: 88489 | D68: APLICAÇÃO MANUAL DE PINTURA COM TINTA LÁTEX ACRÍLICA EM PAREDES, DUAS DEMÃOS. AF_06/2014 | E68: M2 | F68: 3620.57 | G68: 11.98 | H68: 14.42925857 | I68: 52242.14 | J68: 0.00470560027 | K68: 0.6395738252 | L68: A
A69: 5.2.1 | B69: SINAPI | C69: 95943 | D69: ARMAÇÃO DE ESCADA, DE UMA ESTRUTURA CONVENCIONAL DE CONCRETO ARMADO UTILIZANDO AÇO CA-60 DE 5,0 MM - MONTAGEM. AF_11/2020 | E69: KG | F69: 1836.1 | G69: 23.28 | H69: 28.03949412 | I69: 51483.32 | J69: 0.004637251163 | K69: 0.6442110764 | L69: A
A70: 10.2.3 | B70: COMPOSIÇÃO | C70: COMP-5935 | D70: GRANITO CINZA SEM POLIMENTO, PEÇAS 50x50cm | E70: M2 | F70: 120.06 | G70: 354.197901 | H70: 426.6121118 | I70: 51219.05 | J70: 0.004613447602 | K70: 0.648824524 | L70: A
A71: 12.7.14 | B71: SINAPI | C71: 92996 | D71: CABO DE COBRE FLEXÍVEL ISOLADO, 150 MM², ANTI-CHAMA 0,6/1,0 KV, PARA DISTRIBUIÇÃO - FORNECIMENTO E INSTALAÇÃO. AF_12/2015 | E71: M | F71: 262.8 | G71: 160.69 | H71: 193.5423673 | I71: 50862.93 | J71: 0.004581370846 | K71: 0.6534058948 | L71: A
A72: 5.3.1 | B72: SINAPI | C72: 92769 | D72: ARMAÇÃO DE LAJE DE UMA ESTRUTURA CONVENCIONAL DE CONCRETO ARMADO EM UM EDIFÍCIO DE MÚLTIPLOS PAVIMENTOS UTILIZANDO AÇO CA-50 DE 6,3 MM - MONTAGEM. AF_12/2015 | E72: KG | F72: 2378 | G72: 17.61 | H72: 21.21028743 | I72: 50438.06 | J72: 0.00454310158 | K72: 0.6579489964 | L72: A
A73: 5.2.7 | B73: SINAPI | C73: 92764 | D73: ARMAÇÃO DE PILAR OU VIGA DE UMA ESTRUTURA CONVENCIONAL DE CONCRETO ARMADO EM UM EDIFÍCIO DE MÚLTIPLOS PAVIMENTOS UTILIZANDO AÇO CA-50 DE 16,0 MM - MONTAGEM. AF_12/2015 | E73: KG | F73: 2961.82 | G73: 13.74 | H73: 16.54908287 | I73: 49015.4 | J73: 0.004414958489 | K73: 0.6623639549 | L73: A
A74: 11.2.1 | B74: COMPOSIÇÃO | C74: COMP-079083 | D74: JANELA ALUMINIO, BASCULANTE, SERIE 25 - COM VIDRO TEMPERADO E=6MM, COM SISTEMA DE REGULAGEM INTERNO - FORNECIMENTO E INSTALAÇÃO | E74: M2 | F74: 124.44 | G74: 326.927 | H74: 393.7657944 | I74: 49000.22 | J74: 0.004413591183 | K74: 0.6667775461 | L74: A
A75: 5.3.7 | B75: SINAPI | C75: 92726 | D75: CONCRETAGEM DE VIGAS E LAJES, FCK=20 MPA, PARA LAJES MACIÇAS OU NERVURADAS COM USO DE BOMBA EM EDIFICAÇÃO COM ÁREA MÉDIA DE LAJES MAIOR QUE 20 M² - LANÇAMENTO, ADENSAMENTO E ACABAMENTO. AF_12/2015 | E75: M3 | F75: 71.7 | G75: 556.95 | H75: 670.8159902 | I75: 48097.51 | J75: 0.004332281489 | K75: 0.6711098276 | L75: A
A76: 12.7.12 | B76: SINAPI | C76: 92992 | D76: CABO DE COBRE FLEXÍVEL ISOLADO, 95 MM², ANTI-CHAMA 0,6/1,0 KV, PARA DISTRIBUIÇÃO - FORNECIMENTO E INSTALAÇÃO. AF_12/2015 | E76: M | F76: 395.1 | G76: 100.25 | H76: 120.7456738 | I76: 47706.62 | J76: 0.004297072899 | K76: 0.6754069005 | L76: A
A77: 6.2.2 | B77: SINAPI | C77: 98546 | D77: IMPERMEABILIZAÇÃO DE SUPERFÍCIE COM MANTA ASFÁLTICA, UMA CAMADA, INCLUSIVE APLICAÇÃO DE PRIMER ASFÁLTICO, E=3MM. AF_06/2018 | E77: M2 | F77: 420.28 | G77: 93.93 | H77: 113.1335774 | I77: 47547.78 | J77: 0.004282765722 | K77: 0.6796896662 | L77: A
A78: 5.2.3 | B78: SINAPI | C78: 92761 | D78: ARMAÇÃO DE PILAR OU VIGA DE UMA ESTRUTURA CONVENCIONAL DE CONCRETO ARMADO EM UM EDIFÍCIO DE MÚLTIPLOS PAVIMENTOS UTILIZANDO AÇO CA-50 DE 8,0 MM - MONTAGEM. AF_12/2015 | E78: KG | F78: 2140.6 | G78: 18.08 | H78: 21.77637688 | I78: 46614.51 | J78: 0.0041987034 | K78: 0.6838883696 | L78: A
A79: 5.1.2 | B79: SINAPI | C79: 92762 | D79: ARMAÇÃO DE PILAR OU VIGA DE UMA ESTRUTURA CONVENCIONAL DE CONCRETO ARMADO EM UM EDIFÍCIO DE MÚLTIPLOS PAVIMENTOS UTILIZANDO AÇO CA-50 DE 10,0 MM - MONTAGEM. AF_12/2015 | E79: KG | F79: 2232.5 | G79: 16.53 | H79: 19.90948616 | I79: 44447.93 | J79: =I79/$I$877 -> 0.004003553289 | K79: 0.6878919229 | L79: =IF(K79<=$J$11,"A",IF(K79<=$K$11,"B","C")) -> A
A80: 1.5 | B80: SINAPI | C80: 93563 | D80: ALMOXARIFE COM ENCARGOS COMPLEMENTARES | E80: MES | F80: 12 | G80: 3044.84 | H80: 3667.344213 | I80: 44008.13 | J80: 0.003963939234 | K80: =K79+J80 -> 0.6918558621 | L80: A
A81: 9.4.3 | B81: COMPOSIÇÃO | C81: COMP-0595 | D81: FORRO ACÚSTICO TIPO "SONEX" EM PLACAS DE FIBRA MINERAL C/PERFIL "T" EM AÇO - FORNECIMENTO E MONTAGEM | E81: M2 | F81: 211.5 | G81: 169.700071 | H81: 204.3945079 | I81: 43229.44 | J81: 0.003893800379 | K81: 0.6957496625 | L81: A
A82: 19.1.29 | B82: COMPOSIÇÃO | C82: COMP-SESC-04 | D82: FORNECIMENTO E INSTALAÇÃO DE AR CONDICIONADO SPLIT INVERTER, 24000 BTU/H DE PAREDE | E82: UN | F82: 7 | G82: 5047.61 | H82: 6079.571775 | I82: 42557 | J82: 0.003833231768 | K82: 0.6995828943 | L82: A
A83: 8.1.3 | B83: SINAPI | C83: 93202 | D83: FIXAÇÃO (ENCUNHAMENTO) DE ALVENARIA DE VEDAÇÃO COM TIJOLO MACIÇO. AF_03/2016 | E83: M | F83: 1519.66 | G83: 23.16 | H83: 27.89496065 | I83: 42390.86 | J83: 0.003818267059 | K83: 0.7034011613 | L83: A
A84: 11.1.1 | B84: SINAPI | C84: 91341 | D84: PORTA EM ALUMÍNIO DE ABRIR TIPO VENEZIANA COM GUARNIÇÃO, FIXAÇÃO COM PARAFUSOS - FORNECIMENTO E INSTALAÇÃO. 0,90M x 2,10M | E84: M2 | F84: 62.37 | G84: 532.56 | H84: 641.4395614 | I84: 40006.59 | J84: 0.003603508982 | K84: 0.7070046703 | L84: A
A85: 9.1.1 | B85: SINAPI | C85: 87894 | D85: CHAPISCO APLICADO EM ALVENARIA (SEM PRESENÇA DE VÃOS) E ESTRUTURAS DE CONCRETO DE FACHADA, COM COLHER DE PEDREIRO. ARGAMASSA TRAÇO 1:3 COM PREPARO EM BETONEIRA 400L. AF_06/2014 | E85: M2 | F85: 6388.54 | G85: 5.19 | H85: 6.251072787 | I85: 39935.23 | J85: 0.003597081381 | K85: 0.7106017517 | L85: A
A86: 5.1.1 | B86: SINAPI | C86: 92759 | D86: ARMAÇÃO DE PILAR OU VIGA DE UMA ESTRUTURA CONVENCIONAL DE CONCRETO ARMADO EM UM EDIFÍCIO DE MÚLTIPLOS PAVIMENTOS UTILIZANDO AÇO CA-60 DE 5,0 MM - MONTAGEM. AF_12/2015 | E86: KG | F86: 1801.4 | G86: 18.39 | H86: 22.14975502 | I86: 39900.57 | J86: 0.003593959454 | K86: 0.7141957111 | L86: A
A87: 12.10.11 | B87: COMPOSIÇÃO | C87: COMP-7221 | D87: LUMINÁRIA EM LED PARA ILUMINAÇÃO PÚBLICA,150W,BIVOLT,SELO A INMETRO,CORPO EM ALUMÍNIO INJ,FP 0,97, PROT. DPS 10KV, IP66, IK09, TEMP. COR 5000K, IRC= OU 70%, V. ÚTIL 50.000H, 135 LM/W.GAR.5 ANOS, MODELO FLEDSS09P 150 - 150W FORTLIGHT OU SIMILAR | E87: un | F87: 22 | G87: 1503.24 | H87: 1810.57084 | I87: 39832.56 | J87: 0.003587833597 | K87: 0.7177835447 | L87: A
A88: 3.1.2 | B88: COMPOSIÇÃO | C88: COMP-879649 | D88: TRANSPORTE DE COLETA E DESCARTES DE MATERIAIS | E88: M3 | F88: 556.25 | G88: 59.004 | H88: 71.06710959 | I88: 39531.08 | J88: 0.003560678424 | K88: 0.7213442232 | L88: A
A89: 12.7.11 | B89: SINAPI | C89: 92990 | D89: CABO DE COBRE FLEXÍVEL ISOLADO, 70 MM², ANTI-CHAMA 0,6/1,0 KV, PARA DISTRIBUIÇÃO - FORNECIMENTO E INSTALAÇÃO. AF_12/2015 | E89: M | F89: 428.7 | G89: 75.78 | H89: 91.27288937 | I89: 39128.69 | J89: 0.003524433996 | K89: 0.7248686572 | L89: A
A90: 12.7.2 | B90: SINAPI | C90: 91926 | D90: CABO DE COBRE FLEXÍVEL ISOLADO, 2,5 MM², ANTI-CHAMA 450/750 V, PARA CIRCUITOS TERMINAIS - FORNECIMENTO E INSTALAÇÃO. AF_12/2015 | E90: M | F90: 8175.75 | G90: 3.94 | H90: 4.745515758 | I90: 38798.15 | J90: 0.003494661304 | K90: 0.7283633185 | L90: A
A91: 7.1.5 | B91: COMPOSIÇÃO | C91: COMP-8946 | D91: ESTRUTURA METÁLICA EM AÇO ESTRUTURAL A -36, DOBRADO- U100X40X2,66 | E91: KG | F91: 2136.79 | G91: 14.9595 | H91: 18.01790431 | I91: 38500.48 | J91: 0.003467849309 | K91: 0.7318311678 | L91: A
A92: 4.2.6 | B92: SINAPI | C92: 92269 | D92: FABRICAÇÃO DE FÔRMA PARA PILARES E ESTRUTURAS SIMILARES, EM MADEIRA SERRADA, E=25 MM. AF_09/2020 | E92: M2 | F92: 235.5 | G92: 135.58 | H92: 163.2987377 | I92: 38456.85 | J92: 0.003463919429 | K92: 0.7352950872 | L92: A
A93: 7.1.6 | B93: COMPOSIÇÃO | C93: COMP-5617 | D93: ESTRUTURA METÁLICA EM AÇO ESTRUTURAL A -36, DOBRADO- U150X50X4,76 | E93: KG | F93: 1982.56 | G93: 16.0575 | H93: 19.3403856 | I93: 38343.47 | J93: 0.003453706965 | K93: 0.7387487942 | L93: A
A94: 13.2.4.6 | B94: SINAPI | C94: 92917 | D94: ARMAÇÃO DE ESTRUTURAS DE CONCRETO ARMADO, EXCETO VIGAS, PILARES, LAJES E FUNDAÇÕES, UTILIZANDO AÇO CA-50 DE 8,0 MM - MONTAGEM. AF_12/2015 | E94: KG | F94: 1658.85 | G94: 18.72 | H94: 22.54722208 | I94: 37402.46 | J94: 0.00336894748 | K94: 0.7421177416 | L94: A
A95: 18.11.3 | B95: SINAPI | C95: 92984 | D95: CABO DE COBRE FLEXÍVEL ISOLADO, 25 MM², ANTI-CHAMA 0,6/1,0 KV, PARA DISTRIBUIÇÃO - FORNECIMENTO E INSTALAÇÃO. AF_12/2015 | E95: M | F95: 1040 | G95: 28.77 | H95: 34.6519006 | I95: 36037.98 | J95: 0.003246044829 | K95: 0.7453637865 | L95: A
A96: 12.7.15 | B96: SINAPI | C96: 93000 | D96: CABO DE COBRE FLEXÍVEL ISOLADO, 240 MM², ANTI-CHAMA 0,6/1,0 KV, PARA DISTRIBUIÇÃO - FORNECIMENTO E INSTALAÇÃO. AF_12/2015 | E96: M | F96: 114.3 | G96: 258.43 | H96: 311.2648826 | I96: 35577.58 | J96: 0.003204575273 | K96: 0.7485683617 | L96: A
A97: 7.1.3 | B97: COMPOSIÇÃO | C97: COMP-2142 | D97: ESTRUTURA METÁLICA EM AÇO LAMINADO A-36 - 250MPa L 70X70X5,0 | E97: KG | F97: 1493.85 | G97: 18.37487717 | H97: 22.1315404 | I97: 33061.2 | J97: 0.002977917667 | K97: 0.7515462794 | L97: A
A98: 15.3.4 | B98: COMPOSIÇÃO | C98: IFMT 223.07.2020 | D98: FUNDO ANTICORROSIVO A BASE DE OXIDO DE FERRO (ZARCAO), DUAS DEMAOS | E98: M2 | F98: 1390.22 | G98: 19.4374 | H98: 23.41129137 | I98: 32546.85 | J98: 0.002931588678 | K98: 0.7544778681 | L98: A
A99: 11.4.2 | B99: COMPOSIÇÃO | C99: COMP-2284 | D99: BRISE EM PERFIL "C" DE ALUMÍNIO DOBRADO ANODIZADO BRANCO (FORNECIEMNTO E MONTAGEM) | E99: M2 | F99: 104.89 | G99: 256.0084 | H99: 308.348197 | I99: 32342.64 | J99: 0.002913194894 | K99: 0.757391063 | L99: A
A100: 15.3.2 | B100: COMPOSIÇÃO | C100: IFMT 221.07.2020 | D100: PINTURA ESMALTE FOSCO, DUAS DEMAOS, SOBRE SUPERFICIE METALICA, INCLUSO UMA DEMAO DE FUNDO ANTICORROSIVO. UTILIZACAO DE REVOLVER ( AR-COMPRIMIDO). | E100: M2 | F100: 1612.53 | G100: 16.38622 | H100: 19.73631097 | I100: 31825.39 | J100: 0.002866604695 | K100: 0.7602576677 | L100: A
A101: 7.1.8 | B101: COMPOSIÇÃO | C101: COMP-4726 | D101: ESTRUTURA METÁLICA EM AÇO ESTRUTURAL A -36, DOBRADO- C150X60X20X3,04 | E101: KG | F101: 2730.92 | G101: 9.5885 | H101: 11.54882686 | I101: 31538.92 | J101: 0.002840801515 | K101: 0.7630984692 | L101: A
A102: 15.1.4 | B102: SINAPI | C102: 88426 | D102: APLICAÇÃO MANUAL DE PINTURA COM TINTA TEXTURIZADA ACRÍLICA EM PANOS CEGOS DE FACHADA (SEM PRESENÇA DE VÃOS) DE EDIFÍCIOS DE MÚLTIPLOS PAVIMENTOS, DUAS CORES. AF_06/2014 | E102: M2 | F102: 1635.95 | G102: 15.73 | H102: 18.94592966 | I102: 30994.59 | J102: 0.002791772142 | K102: 0.7658902413 | L102: A
A103: 12.1.46 | B103: ORSE | C103: 9512 | D103: Painel modular 1700x600x400mm com tampa traseira e lateral, placa de montagem e porta dianteira, com base soleira | E103: cj | F103: 1 | G103: 25646.48 | H103: 30889.7906 | I103: 30889.79 | J103: 0.002782332503 | K103: 0.7686725738 | L103: A
A104: 7.1.2 | B104: COMPOSIÇÃO | C104: COMP-4890 | D104: ESTRUTURA METÁLICA EM AÇO LAMINADO A-36 - 250MPa L 40X40X5,0 | E104: KG | F104: 1413.38 | G104: 17.862994 | H104: 21.51500495 | I104: 30408.88 | J104: 0.002739015552 | K104: 0.7714115894 | L104: A
A105: 2.5 | B105: SINAPI | C105: 93212 | D105: EXECUÇÃO DE SANITÁRIO E VESTIÁRIO EM CANTEIRO DE OBRA EM CHAPA DE MADEIRA COMPENSADA, NÃO INCLUSO MOBILIÁRIO. AF_02/2016 | E105: M2 | F105: 30.1 | G105: 814.28 | H105: 980.7559825 | I105: 29520.76 | J105: 0.002659020022 | K105: 0.7740706094 | L105: A
A106: 12.2.1.1 | B106: SINAPI | C106: 91854 | D106: ELETRODUTO FLEXÍVEL CORRUGADO, PVC, DN 25 MM (3/4"), PARA CIRCUITOS TERMINAIS, INSTALADO EM PAREDE - FORNECIMENTO E INSTALAÇÃO. AF_12/2015 | E106: M | F106: 3477.19 | G106: 7.03 | H106: 8.467252735 | I106: 29442.25 | J106: 0.002651948399 | K106: 0.7767225578 | L106: A
A107: 5.1.2 | B107: SINAPI | C107: 92762 | D107: ARMAÇÃO DE PILAR OU VIGA DE UMA ESTRUTURA CONVENCIONAL DE CONCRETO ARMADO EM UM EDIFÍCIO DE MÚLTIPLOS PAVIMENTOS UTILIZANDO AÇO CA-50 DE 10,0 MM - MONTAGEM. AF_12/2015 | E107: KG | F107: 1448.1 | G107: 16.53 | H107: 19.90948616 | I107: 28830.93 | J107: 0.002596885043 | K107: 0.7793194429 | L107: A
A108: 2.1 | B108: SINAPI | C108: 99059 | D108: LOCACAO CONVENCIONAL DE OBRA, UTILIZANDO GABARITO DE TÁBUAS CORRIDAS PONTALETADAS A CADA 2,00M - 2 UTILIZAÇÕES. AF_10/2018 | E108: M | F108: 569 | G108: 41.85 | H108: 50.40604936 | I108: 28681.04 | J108: 0.002583384019 | K108: 0.7819028269 | L108: A
A109: 1.2 | B109: COMPOSIÇÃO | C109: IFMT 242.08.2020 | D109: ENGENHEIRO ELETRICISTA COM ENCARGOS COMPLEMENTARES | E109: MES | F109: 1.5 | G109: 15858.63 | H109: 19100.8575 | I109: 28651.29 | J109: 0.00258070435 | K109: 0.7844835312 | L109: A
A110: 3.3.7 | B110: COMPOSIÇÃO | C110: IFMT 231.08.2020 | D110: BASE DE SOLO COMPACTACAO 100% PROCTOR MODIFICADO, EXCLUSIVE ESCAVACAO, CARGA E TRANSPORTE | E110: M3 | F110: 339.15 | G110: 69.36769605 | H110: 83.54961794 | I110: 28335.85 | J110: 0.002552291759 | K110: 0.787035823 | L110: A
A111: 9.4.2 | B111: COMPOSIÇÃO | C111: COMP-8777 | D111: TABICA METÁLICA 3x3cm PARA FORRO DE GESSO FORNECIMENTO E MONTAGEM | E111: M2 | F111: 1519.66 | G111: 15.41 | H111: 18.56050706 | I111: 28205.66 | J111: 0.00254056517 | K111: 0.7895763882 | L111: A
A112: 12.7.3 | B112: SINAPI | C112: 91928 | D112: CABO DE COBRE FLEXÍVEL ISOLADO, 4 MM², ANTI-CHAMA 450/750 V, PARA CIRCUITOS TERMINAIS - FORNECIMENTO E INSTALAÇÃO. AF_12/2015 | E112: M | F112: 3561.75 | G112: 6.56 | H112: 7.901163292 | I112: 28141.97 | J112: 0.002534828428 | K112: 0.7921112166 | L112: A
A113: 4.2.1 | B113: SINAPI | C113: 96543 | D113: ARMAÇÃO DE BLOCO, VIGA BALDRAME E SAPATA UTILIZANDO AÇO CA-60 DE 5 MM - MONTAGEM. AF_06/2017 | E113: KG | F113: 1124.6 | G113: 20.59 | H113: 24.79953539 | I113: 27889.56 | J113: 0.002512093132 | K113: 0.7946233097 | L113: A
A114: 8.3.1 | B114: COMPOSIÇÃO | C114: COMP-9589 | D114: DIVISÓRIA DE GRANITO CINZA E=2cm | E114: M2 | F114: 37.85 | G114: 604.019101 | H114: 727.5081629 | I114: 27536.18 | J114: 0.002480263175 | K114: 0.7971035729 | L114: A
A115: 10.5.2 | B115: COMPOSIÇÃO | C115: COMP-1625 | D115: PISO TÁTIL DE ALERTA/DIRECIONAL EM PLACAS PRÉ-MOLDADAS - 5MPa | E115: M | F115: 896.5 | G115: 25.174101 | H115: 30.32083578 | I115: 27182.63 | J115: 0.002448417907 | K115: 0.7995519908 | L115: A
A116: 12.7.9 | B116: SINAPI | C116: 92986 | D116: CABO DE COBRE FLEXÍVEL ISOLADO, 35 MM², ANTI-CHAMA 0,6/1,0 KV, PARA DISTRIBUIÇÃO - FORNECIMENTO E INSTALAÇÃO. AF_12/2015 | E116: M | F116: 571.4 | G116: 39.1 | H116: 47.09382389 | I116: 26909.41 | J116: 0.002423808193 | K116: 0.801975799 | L116: B
A117: 9.5.1 | B117: COMPOSIÇÃO | C117: COMP-785422 | D117: PLACA CIMENTÍCIA ESP = 8mm EM FACHADAS FIXADA EM ESTRUTURA METÁLICA | E117: M2 | F117: 97.44 | G117: 224.99882 | H117: 270.9988441 | I117: 26406.13 | J117: 0.002378476312 | K117: 0.8043542753 | L117: B
A118: 10.3.5 | B118: SINAPI | C118: 94268 | D118: GUIA (MEIO-FIO) E SARJETA CONJUGADOS DE CONCRETO, MOLDADA IN LOCO EM TRECHO CURVO COM EXTRUSORA, 45 CM BASE (15 CM BASE DA GUIA + 30 CM BASE DA SARJETA) X 22 CM ALTURA. AF_06/2016 | E118: M | F118: 441.84 | G118: 49.55 | H118: 59.68028066 | I118: 26369.14 | J118: 0.002375144516 | K118: 0.8067294198 | L118: B
A119: 5.1.3 | B119: SINAPI | C119: 92763 | D119: ARMAÇÃO DE PILAR OU VIGA DE UMA ESTRUTURA CONVENCIONAL DE CONCRETO ARMADO EM UM EDIFÍCIO DE MÚLTIPLOS PAVIMENTOS UTILIZANDO AÇO CA-50 DE 12,5 MM - MONTAGEM. AF_12/2015 | E119: KG | F119: 1542.2 | G119: 14.12 | H119: 17.00677221 | I119: 26227.84 | J119: 0.002362417217 | K119: 0.809091837 | L119: B
A120: 5.3.3 | B120: SINAPI | C120: 92772 | D120: ARMAÇÃO DE LAJE DE UMA ESTRUTURA CONVENCIONAL DE CONCRETO ARMADO EM UM EDIFÍCIO DE MÚLTIPLOS PAVIMENTOS UTILIZANDO AÇO CA-50 DE 12,5 MM - MONTAGEM. AF_12/2015 | E120: KG | F120: 1575.1 | G120: 13.72 | H120: 16.52499396 | I120: 26028.52 | J120: 0.00234446389 | K120: 0.8114363009 | L120: B
A121: 13.4.1.2 | B121: SINAPI | C121: 89580 | D121: TUBO PVC, SÉRIE R, ÁGUA PLUVIAL, DN 150 MM, FORNECIDO E INSTALADO EM CONDUTORES VERTICAIS DE ÁGUAS PLUVIAIS. AF_12/2014 | E121: M | F121: 252.45 | G121: 84.89 | H121: 102.245389 | I121: 25811.85 | J121: 0.002324947798 | K121: 0.8137612487 | L121: B
A122: 12.3.1 | B122: COMPOSIÇÃO | C122: COMP-5784 | D122: LUMINÁRIA LED COMPLETA (2 X 40)W | E122: UN | F122: 392 | G122: 54.637263 | H122: 65.80761232 | I122: 25796.58 | J122: 0.002323572385 | K122: 0.8160848211 | L122: B
A123: 13.4.3.1 | B123: COMPOSIÇÃO | C123: COMP-0567 | D123: CAIXA DE AREIA COM GRELHA E FUNDO COM BRITA- 80X80X60CM EM ALVENARIA - EXECUÇÃO | E123: UN | F123: 28 | G123: 723.265017 | H123: 871.1333846 | I123: 24391.73 | J123: 0.002197033492 | K123: 0.8182818546 | L123: B
A124: 10.4.2 | B124: SINAPI | C124: 93679 | D124: EXECUÇÃO DE PASSEIO EM PISO INTERTRAVADO, COM BLOCO RETANGULAR COLORIDO DE 20 X 10 CM, ESPESSURA 6 CM. AF_12/2015 | E124: M2 | F124: 251.36 | G124: 79.25 | H124: 95.45231569 | I124: 23992.89 | J124: 0.002161108823 | K124: 0.8204429634 | L124: B
A125: 4.2.2 | B125: SINAPI | C125: 96546 | D125: ARMAÇÃO DE BLOCO, VIGA BALDRAME OU SAPATA UTILIZANDO AÇO CA-50 DE 10 MM - MONTAGEM. AF_06/2017 | E125: KG | F125: 1120.5 | G125: 17.53 | H125: 21.11393179 | I125: 23658.16 | J125: 0.002130958726 | K125: 0.8225739222 | L125: B
A126: 12.10.13 | B126: COMPOSIÇÃO | C126: COMP-6619B | D126: POSTE CURVO TELECÔNICO DE ENGASTAR, GALVANIZADO A FOGO, H(TOTAL)= 9 METROS, DA FORTLIGHT OU SIMILAR DUPLO | E126: un | F126: 8 | G126: 2322.6786 | H126: 2797.540075 | I126: 22380.32 | J126: 0.00201585999 | K126: 0.8245897821 | L126: B
A127: 12.10.14 | B127: COMPOSIÇÃO | C127: COMP-6619C | D127: POSTE CURVO TELECÔNICO DE ENGASTAR, GALVANIZADO A FOGO, H(TOTAL)= 9 METROS, DA FORTLIGHT OU SIMILAR SIMPLES | E127: un | F127: 8 | G127: 2247.5486 | H127: 2707.050076 | I127: 21656.4 | J127: 0.001950654427 | K127: 0.8265404366 | L127: B
A128: 18.16.1 | B128: COMPOSIÇÃO | C128: COMP-415164 | D128: GRADIL COM MONTANTES EM TUBO GALVANIZADO 2" E FECHAMENTO EM BARRA CHATA 1" X 1/4" - VEÍCULO DUAS FOLHAS- 2,50X2X2 | E128: M² | F128: 20 | G128: 894.8655 | H128: 1077.816835 | I128: 21556.34 | J128: 0.001941641735 | K128: 0.8284820783 | L128: B
A129: 10.2.4 | B129: COMPOSIÇÃO | C129: IFMT 241.08.2020 | D129: PISO VINILICO SEMIFLEXIVEL PADRAO LISO, ESPESSURA 2MM, FIXADO COM COLA | E129: M2 | F129: 174.52 | G129: 101.1611 | H129: 121.8430442 | I129: 21264.05 | J129: 0.001915314331 | K129: 0.8303973926 | L129: B
A130: 5.1.4 | B130: SINAPI | C130: 92765 | D130: ARMAÇÃO DE PILAR OU VIGA DE UMA ESTRUTURA CONVENCIONAL DE CONCRETO ARMADO EM UM EDIFÍCIO DE MÚLTIPLOS PAVIMENTOS UTILIZANDO AÇO CA-50 DE 20,0 MM - MONTAGEM. AF_12/2015 | E130: KG | F130: 1066.9 | G130: 15.79 | H130: 19.0181964 | I130: 20290.51 | J130: 0.001827624774 | K130: 0.8322250174 | L130: B
A131: 2.4 | B131: SINAPI | C131: 93210 | D131: EXECUÇÃO DE REFEITÓRIO EM CANTEIRO DE OBRA EM CHAPA DE MADEIRA COMPENSADA, NÃO INCLUSO MOBILIÁRIO E EQUIPAMENTOS. AF_02/2016 | E131: M2 | F131: 33.54 | G131: 495.11 | H131: 596.3330728 | I131: 20001.01 | J131: 0.001801548674 | K131: 0.8340265661 | L131: B
A132: 4.1.9 | B132: SINAPI | C132: 96558 | D132: CONCRETAGEM DE SAPATAS, FCK 30 MPA, COM USO DE BOMBA  LANÇAMENTO, ADENSAMENTO E ACABAMENTO. AF_11/2016 | E132: M3 | F132: 26 | G132: 615.76 | H132: 741.6494373 | I132: 19282.89 | J132: 0.001736865534 | K132: 0.8357634316 | L132: B
A133: 13.3.3.1 | B133: COMPOSIÇÃO | C133: COMP-74125/002 | D133: ESPELHO CRISTAL ESPESSURA 4MM, COM MOLDURA EM ALUMINIO E COMPENSADO 6MM PLASTIFICADO COLADO | E133: M2 | F133: 23.84 | G133: 666.5568 | H133: 802.8314208 | I133: 19139.5 | J133: 0.001723949983 | K133: 0.8374873816 | L133: B
A134: 14.6 | B134: COMPOSIÇÃO | C134: COMP-4346 | D134: ESPUMA ELASTOMÉRICA ,INCLUSIVE FITA DE VEDAÇÃO PARA TUBULAÇÃO RÍGIDA DE 22MM | E134: M | F134: 172.15 | G134: 89.518 | H134: 107.8195634 | I134: 18561.14 | J134: 0.001671855429 | K134: 0.839159237 | L134: B
A135: 14.5 | B135: SINAPI | C135: 97335 | D135: TUBO EM COBRE RÍGIDO, DN 22 MM, CLASSE A, SEM ISOLAMENTO, INSTALADO EM PRUMADA  FORNECIMENTO E INSTALAÇÃO. AF_12/2015 | E135: M | F135: 172.15 | G135: 88.67 | H135: 106.7981935 | I135: 18385.31 | J135: 0.001656017914 | K135: 0.8408152549 | L135: B
A136: 5.1.4 | B136: SINAPI | C136: 92765 | D136: ARMAÇÃO DE PILAR OU VIGA DE UMA ESTRUTURA CONVENCIONAL DE CONCRETO ARMADO EM UM EDIFÍCIO DE MÚLTIPLOS PAVIMENTOS UTILIZANDO AÇO CA-50 DE 20,0 MM - MONTAGEM. AF_12/2015 | E136: KG | F136: 947.8 | G136: 15.79 | H136: 19.0181964 | I136: 18025.45 | J136: 0.001623604286 | K136: 0.8424388592 | L136: B
A137: 20.3 | B137: COMPOSIÇÃO | C137: IFMT 244.08.2020 | D137: ELABORAÇÃO DE PROJETO "AS BUILT" ARQUITETÔNICO E COMPLEMENTARES, EXCLUSIVE ELÉTRICO, E REGULAIZAÇÃO PERANTE A PREFEITURA | E137: M2 | F137: 2500 | G137: 5.86224 | H137: 7.060749314 | I137: 17651.87 | J137: 0.001589954857 | K137: 0.8440288141 | L137: B
A138: 20.5 | B138: COMPOSIÇÃO | C138: IFMT 246.08.2020 | D138: ELABORAÇÃO DE PROJETO "AS BUILT" DE SEGURANÇA DO TRABALHO E REGULAIZAÇÃO PERANTE O CORPO DE BOMBEIRO | E138: M2 | F138: 2500 | G138: 5.86224 | H138: 7.060749314 | I138: 17651.87 | J138: 0.001589954857 | K138: 0.8456187689 | L138: B
A139: 13.4.1.1 | B139: SINAPI | C139: 89512 | D139: TUBO PVC, SÉRIE R, ÁGUA PLUVIAL, DN 100 MM, FORNECIDO E INSTALADO EM RAMAL DE ENCAMINHAMENTO. AF_12/2014 | E139: M | F139: 230.06 | G139: 62.37 | H139: 75.12127356 | I139: 17282.4 | J139: 0.001556675628 | K139: 0.8471754446 | L139: B
A140: 7.1.1 | B140: COMPOSIÇÃO | C140: COMP-0967 | D140: ESTRUTURA METÁLICA EM AÇO LAMINADO A-36 - 250MPa L 20X20X3,0 | E140: KG | F140: 1124.4 | G140: 12.6985 | H140: 15.29465275 | I140: 17197.31 | J140: 0.001549011327 | K140: 0.8487244559 | L140: B
A141: 2.9 | B141: SINAPI | C141: 93584 | D141: EXECUÇÃO DE DEPÓSITO EM CANTEIRO DE OBRA EM CHAPA DE MADEIRA COMPENSADA, NÃO INCLUSO MOBILIÁRIO. AF_04/2016 | E141: M2 | F141: 20.79 | G141: 681.31 | H141: 820.6008479 | I141: 17060.29 | J141: 0.00153666954 | K141: 0.8502611254 | L141: B
A142: 20.4 | B142: COMPOSIÇÃO | C142: IFMT 245.08.2020 | D142: ELABORAÇÃO DE PROJETO "AS BUILT" ELÉTRICO E REGULAIZAÇÃO PERANTE AS CONCESSIONÁRIAS | E142: M2 | F142: 2500 | G142: 5.6407 | H142: 6.79391643 | I142: 16984.79 | J142: 0.001529869037 | K142: 0.8517909945 | L142: B
A143: 8.2.4 | B143: COMPOSIÇÃO | C143: COMP-5600 | D143: VERGAS E CONTRAVERGAS EM CONCRETO ESTRUTURADO COM ACO/FORMAS | E143: M3 | F143: 12.79 | G143: 1084.23 | H143: 1305.896079 | I143: 16702.41 | J143: =I143/$I$877 -> 0.001504434256 | K143: 0.8532954287 | L143: =IF(K143<=$J$11,"A",IF(K143<=$K$11,"B","C")) -> B
A144: 12.1.4 | B144: COMPOSIÇÃO | C144: COMP-97 | D144: CABO DE COBRE #35MM² ISOLAÇÃO 12/20KV | E144: M | F144: 126 | G144: 108.3393 | H144: 130.4887958 | I144: 16441.59 | J144: 0.001480941446 | K144: =K143+J144 -> 0.8547763702 | L144: B
A145: 4.2.3 | B145: SINAPI | C145: 96547 | D145: ARMAÇÃO DE BLOCO, VIGA BALDRAME OU SAPATA UTILIZANDO AÇO CA-50 DE 12,5 MM - MONTAGEM. AF_06/2017 | E145: KG | F145: 913.6 | G145: 14.92 | H145: 17.97032871 | I145: 16417.69 | J145: 0.001478788704 | K145: 0.8562551589 | L145: B
A146: 12.7.13 | B146: SINAPI | C146: 92994 | D146: CABO DE COBRE FLEXÍVEL ISOLADO, 120 MM², ANTI-CHAMA 0,6/1,0 KV, PARA DISTRIBUIÇÃO - FORNECIMENTO E INSTALAÇÃO. AF_12/2015 | E146: M | F146: 104.2 | G146: 129.97 | H146: 156.5417977 | I146: 16311.66 | J146: 0.001469238276 | K146: 0.8577243972 | L146: B
A147: 12.1.7 | B147: ORSE | C147: 9510 | D147: Eletroduto em ferro galvanizado pesado sem costura 4" x 3m | E147: br | F147: 18 | G147: 749.19 | H147: 902.3586169 | I147: 16242.46 | J147: 0.001463005232 | K147: 0.8591874024 | L147: B
A148: 14.2 | B148: SINAPI | C148: 97328 | D148: TUBO EM COBRE FLEXÍVEL, DN 3/8", COM ISOLAMENTO, INSTALADO EM RAMAL DE ALIMENTAÇÃO DE AR CONDICIONADO COM CONDENSADORA INDIVIDUAL  FORNECIMENTO E INSTALAÇÃO. AF_12/2015 | E148: M | F148: 244.8 | G148: 54.92 | H148: 66.14815366 | I148: 16193.07 | J148: 0.001458556532 | K148: 0.8606459589 | L148: B
A149: 5.2.1 | B149: SINAPI | C149: 95946 | D149: ARMAÇÃO DE ESCADA, DE UMA ESTRUTURA CONVENCIONAL DE CONCRETO ARMADO UTILIZANDO AÇO CA-50 DE 10,0 MM - MONTAGEM. AF_11/2020 | E149: KG | F149: 750 | G149: 17.34 | H149: 20.88508712 | I149: 15663.82 | J149: 0.001410885458 | K149: 0.8620568444 | L149: B
A150: 7.1.7 | B150: COMPOSIÇÃO | C150: COMP-4559 | D150: ESTRUTURA METÁLICA EM AÇO ESTRUTURAL A -36, DOBRADO- U200X50X4,76 | E150: KG | F150: 1190.47 | G150: 10.6505 | H150: 12.82794812 | I150: 15271.29 | J150: 0.001375529148 | K150: 0.8634323735 | L150: B
A151: 12.9.2 | B151: COMPOSIÇÃO | C151: COMP-74131/008 | D151: QUADRO DE DISTRIBUICAO DE ENERGIA DE EMBUTIR, EM CHAPA METALICA, PARA 50 DISJUNTORES TERMOMAGNETICOS MONOPOLARES, COM BARRAMENTO TRIFASICO E NEUTRO, FORNECIMENTO E INSTALACAO | E151: UN | F151: 8 | G151: 1582.68 | H151: 1906.252 | I151: 15250.02 | J151: 0.001373613298 | K151: 0.8648059868 | L151: B
A152: 9.3.3 | B152: SINAPI | C152: 87267 | D152: REVESTIMENTO CERÂMICO PARA PAREDES INTERNAS COM PLACAS TIPO ESMALTADA EXTRA DE DIMENSÕES 20X20 CM APLICADAS EM AMBIENTES DE ÁREA MAIOR QUE 5 M² A MEIA ALTURA DAS PAREDES. AF_06/2014 | E152: M2 | F152: 220.69 | G152: 56.51 | H152: 68.0632222 | I152: 15020.87 | J152: 0.001352973097 | K152: 0.8661589599 | L152: B
A153: 8.2.3 | B153: COMPOSIÇÃO | C153: COMP-9071 | D153: CHAPIM EM GRANITO POLIDO L=21cm (CONFORME PROJETO) | E153: M2 | F153: 55.2 | G153: 224.353501 | H153: 270.2215925 | I153: 14916.23 | J153: 0.00134354787 | K153: 0.8675025078 | L153: B
A154: 13.4.4.1 | B154: COMPOSIÇÃO | C154: COMP-9980 | D154: CALHA EM CHAPA DE AÇO GALVANIZADO Nº20, DESENVOLVIMENTO 140cm | E154: M | F154: 74.22 | G154: 163.453776 | H154: 196.8711852 | I154: 14611.78 | J154: 0.00131612518 | K154: 0.868818633 | L154: B
A155: 20.1 | B155: COMPOSIÇÃO | C155: COMP-943603 | D155: LIMPEZA FINAL DA OBRA | E155: M2 | F155: 4614.67 | G155: 2.605 | H155: 3.13758085 | I155: 14478.9 | J155: 0.001304156295 | K155: 0.8701227893 | L155: B
A156: 8.2.2 | B156: COMPOSIÇÃO | C156: COMP-0510 | D156: CHAPIM EM GRANITO POLIDO L=23cm (CONFORME PROJETO) | E156: M2 | F156: 51.2 | G156: 232.806301 | H156: 280.4025304 | I156: 14356.61 | J156: 0.001293141282 | K156: 0.8714159305 | L156: B
A157: 12.11.2.1 | B157: COMPOSIÇÃO | C157: COMP-527329 | D157: BARRA CHATA EM ALUMÍNIO 7/8" X 1/8 X 3,0M (70MM²) - COM FUROS ∅7MM | E157: UN | F157: 250 | G157: 47.298 | H157: 56.96786911 | I157: 14241.97 | J157: 0.001282815326 | K157: 0.8726987459 | L157: B
A158: 3.3.6 | B158: COMPOSIÇÃO | C158: IFMT 230.08.2020 | D158: COMPACTACAO MECANICA C/ CONTROLE DO GC>=95% DO PN (AREAS) (C/MONIVELADORA 140 HP E ROLO COMPRESSOR VIBRATORIO 80 HP) | E158: M3 | F158: 1706.25 | G158: 6.90905 | H158: 8.321575037 | I158: 14198.69 | J158: 0.001278916972 | K158: 0.8739776628 | L158: B
A159: 13.3.4.2 | B159: COMPOSIÇÃO | C159: COMP-9756 | D159: BANCADA DE GRANITO CINZA E=2cm | E159: m2 | F159: 25.85 | G159: 453.4242 | H159: 546.1247934 | I159: 14117.33 | J159: 0.001271588642 | K159: 0.8752492515 | L159: B
A160: 6.2.1 | B160: SINAPI | C160: 98563 | D160: PROTEÇÃO MECÂNICA DE SUPERFÍCIE HORIZONTAL COM ARGAMASSA DE CIMENTO E AREIA, TRAÇO 1:3, E=2CM. AF_06/2018 | E160: M2 | F160: 420.28 | G160: 27.64 | H160: 33.29087704 | I160: 13991.49 | J160: 0.00126025387 | K160: 0.8765095054 | L160: B
A161: 12.9.3 | B161: COMPOSIÇÃO | C161: COMP-320527 | D161: QUADRO DE DISTRIBUICAO DE ENERGIA EM CHAPA METALICA PINTADA, DE EMBUTIR, BARRAMENTO TRIFASICO 225A , PARA DISJUNTOR GERAL TIPO DIN, COM PORTA, PARA 70 DISJUNTORES TERMOMAGNETICOS UNIPOLARES MONOPOLARES, COM BARRAMENTO TRIFASICO E NEUTRO, FORNECIMENTO E INSTALACAO | E161: UN | F161: 6 | G161: 1925.5973 | H161: 2319.277241 | I161: 13915.66 | J161: 0.001253423643 | K161: 0.877762929 | L161: B
A162: 9.2.2 | B162: SINAPI | C162: 87535 | D162: EMBOÇO, PARA RECEBIMENTO DE CERÂMICA, EM ARGAMASSA TRAÇO 1:2:8, PREPARO MECÂNICO COM BETONEIRA 400L, APLICADO MANUALMENTE EM FACES INTERNAS DE PAREDES, PARA AMBIENTE COM ÁREA MAIOR QUE 10M2, ESPESSURA DE 20MM, COM EXECUÇÃO DE TALISCAS. AF_06/2014 | E162: M2 | F162: 486.31 | G162: 23.74 | H162: 28.59353911 | I162: 13905.32 | J162: 0.00125249229 | K162: 0.8790154213 | L162: B
A163: 13.5.1.4.7 | B163: COMPOSIÇÃO | C163: COMP-814083 | D163: DETECTORES DE FUMAÇA ÓPTICO ENDEREÇÁVEL ILUMAC OU SIMILAR | E163: UN | F163: 46 | G163: 246.8766 | H163: 297.3494405 | I163: 13678.07 | J163: 0.001232023227 | K163: 0.8802474445 | L163: B
A164: 8.2.5 | B164: COMPOSIÇÃO | C164: COMP-8462 | D164: ASSENTO DE BANCO EM PEÇAS DE MADEIRA CERTIFICADA (MAÇARANDUBA, CUMARÚ OU IPÊ) ESP.=3cm | E164: M | F164: 14.64 | G164: 775.49117 | H164: 934.036946 | I164: 13674.3 | J164: 0.001231683652 | K164: 0.8814791282 | L164: B
A165: 19.1.28 | B165: COMPOSIÇÃO | C165: COMP-SESC-03 | D165: FORNECIMENTO E INSTALAÇÃO DE AR CONDICIONADO SPLIT INVERTER, 18000 BTU/H DE PAREDE | E165: UN | F165: 3 | G165: 3759.95 | H165: 4528.655323 | I165: 13585.97 | J165: 0.001223727514 | K165: 0.8827028557 | L165: B
A166: 16.1.2 | B166: SINAPI | C166: 98520 | D166: APLICAÇÃO DE ADUBO EM SOLO. AF_05/2018 | E166: M2 | F166: 2503.38 | G166: 4.47 | H166: 5.383871938 | I166: 13477.88 | J166: 0.001213991536 | K166: 0.8839168472 | L166: B
A167: 13.2.3.5 | B167: COMPOSIÇÃO | C167: COMP-7053 | D167: CALHA/CANALETA DE CONCRETO SIMPLES, TIPO MEIA CANA, D = 50 CM, PARA AGUA PLUVIAL | E167: M | F167: 15 | G167: 739.5566639 | H167: 890.7557874 | I167: 13361.34 | J167: 0.001203494442 | K167: 0.8851203417 | L167: B
A168: 11.1.7 | B168: SINAPI | C168: 91341 | D168: PORTA EM ALUMÍNIO DE ABRIR TIPO VENEZIANA COM GUARNIÇÃO, FIXAÇÃO COM PARAFUSOS - FORNECIMENTO E INSTALAÇÃO. AF_12/2019 | E168: M2 | F168: 20.48 | G168: 532.56 | H168: 641.4395614 | I168: 13136.68 | J168: 0.001183258667 | K168: 0.8863036003 | L168: B
A169: 7.3.1 | B169: COMPOSIÇÃO | C169: COMP-388053 | D169: CUMEEIRA DE ALUMÍNIO E=0.8mm | E169: M | F169: 104.2 | G169: 102.5502 | H169: 123.5161396 | I169: 12870.38 | J169: 0.001159272258 | K169: 0.8874628726 | L169: B
A170: 19.1.27 | B170: COMPOSIÇÃO | C170: COMP-SESC-02 | D170: FORNECIMENTO E INSTALAÇÃO DE AR CONDICIONADO SPLIT INVERTER, 12000 BTU/H DE PAREDE | E170: UN | F170: 4 | G170: 2660.02 | H170: 3203.849448 | I170: 12815.4 | J170: 0.001154320051 | K170: 0.8886171926 | L170: B
A171: 4.1.8 | B171: SINAPI | C171: 92269 | D171: FABRICAÇÃO DE FÔRMA PARA PILARES E ESTRUTURAS SIMILARES, EM MADEIRA SERRADA, E=25 MM. AF_09/2020 | E171: M2 | F171: 78 | G171: 135.58 | H171: 163.2987377 | I171: 12737.3 | J171: 0.001147285359 | K171: 0.889764478 | L171: B
A172: 10.2.5 | B172: COMPOSIÇÃO | C172: COMP-2801 | D172: GRANITO POLIDO E=2cm, CINZA, ARGAMASSA DE CIMENTO E AREIA 1:4, C/ REJUNTAMENTO | E172: M | F172: 51.12 | G172: 206.357301 | H172: 248.5461481 | I172: 12705.68 | J172: 0.001144437254 | K172: 0.8909089153 | L172: B
A173: 12.8.19 | B173: COMPOSIÇÃO | C173: COMP-4192 | D173: SUPORTE PARA CABOS DE AÇO 38X90MM | E173: UN | F173: 246 | G173: 42.25 | H173: 50.88782761 | I173: 12518.41 | J173: 0.001127569305 | K173: 0.8920364846 | L173: B
A174: 12.7.4 | B174: SINAPI | C174: 91930 | D174: CABO DE COBRE FLEXÍVEL ISOLADO, 6 MM², ANTI-CHAMA 450/750 V, PARA CIRCUITOS TERMINAIS - FORNECIMENTO E INSTALAÇÃO. AF_12/2015 | E174: M | F174: 1132.95 | G174: 9.03 | H174: 10.87614398 | I174: 12322.13 | J174: 0.001109889799 | K174: 0.8931463744 | L174: B
A175: 14.4 | B175: SINAPI | C175: 97330 | D175: TUBO EM COBRE FLEXÍVEL, DN 5/8", COM ISOLAMENTO, INSTALADO EM RAMAL DE ALIMENTAÇÃO DE AR CONDICIONADO COM CONDENSADORA INDIVIDUAL  FORNECIMENTO E INSTALAÇÃO. AF_12/2015 | E175: M | F175: 121.1 | G175: 84.4 | H175: 101.6552106 | I175: 12310.45 | J175: 0.001108837748 | K175: 0.8942552121 | L175: B
A176: 12.5.6 | B176: SINAPI | C176: 92000 | D176: TOMADA BAIXA DE EMBUTIR (1 MÓDULO), 2P+T 10 A, INCLUINDO SUPORTE E PLACA - FORNECIMENTO E INSTALAÇÃO. AF_12/2015 | E176: UN | F176: 465 | G176: 21.26 | H176: 25.60651396 | I176: 11907.03 | J176: 0.001072500544 | K176: 0.8953277126 | L176: B
A177: 11.1.2 | B177: SINAPI | C177: 91341 | D177: PORTA EM ALUMÍNIO DE ABRIR TIPO VENEZIANA COM GUARNIÇÃO, FIXAÇÃO COM PARAFUSOS - FORNECIMENTO E INSTALAÇÃO. 0,80M x 2,10M | E177: M2 | F177: 18.48 | G177: 532.56 | H177: 641.4395614 | I177: 11853.8 | J177: 0.001067705965 | K177: 0.8963954186 | L177: B
A178: 12.12.1.1 | B178: COMPOSIÇÃO | C178: COMP-249549 | D178: CABO UTP 4 PARES CAT6 | E178: M | F178: 2637 | G178: 3.704 | H178: 4.461266591 | I178: 11764.36 | J178: 0.001059649846 | K178: 0.8974550685 | L178: B
A179: 19.1.26 | B179: COMPOSIÇÃO | C179: COMP-SESC-01 | D179: FORNECIMENTO E INSTALAÇÃO DE AR CONDICIONADO SPLIT INVERTER, 9000 BTU/H DE PAREDE | E179: UN | F179: 4 | G179: 2417.32 | H179: 2911.530495 | I179: 11646.12 | J179: 0.001048999628 | K179: 0.8985040681 | L179: B
A180: 12.12.2.2 | B180: COMPOSIÇÃO | C180: COMP-2577 | D180: ELETRODUTO DE PVC RIGIDO ROSCAVEL DE 2 " - FORNECIMENTO E INSTALAÇÃO | E180: M | F180: 585 | G180: 16.461 | H180: 19.82637941 | I180: 11598.43 | J180: 0.001044704052 | K180: 0.8995487721 | L180: B
A181: 3.3.2 | B181: SINAPI | C181: 93368 | D181: REATERRO MECANIZADO DE VALA COM ESCAVADEIRA HIDRÁULICA (CAPACIDADE DA CAÇAMBA: 0,8 M³ / POTÊNCIA: 111 HP), LARGURA ATÉ 1,5 M, PROFUNDIDADE DE 1,5 A 3,0 M, COM SOLO DE 1ª CATEGORIA EM LOCAIS COM BAIXO NÍVEL DE INTERFERÊNCIA. AF_04/2016 | E181: M3 | F181: 803.58 | G181: 11.95 | H181: 14.3931252 | I181: 11566.03 | J181: 0.00104178569 | K181: 0.9005905578 | L181: B
A182: 6.1.1 | B182: COMPOSIÇÃO | C182: IFMT 232.08.2020 | D182: IMPERMEABILIZACAO DE ESTRUTURAS ENTERRADAS, COM TINTA ASFALTICA, DUAS DEMAOS. | E182: M2 | F182: 650.2 | G182: 14.46 | H182: 17.41628372 | I182: 11324.07 | J182: 0.001019991655 | K182: 0.9016105495 | L182: B
A183: 8.2.1 | B183: ORSE | C183: 8637 | D183: Chapim de concreto pré-moldado | E183: M | F183: 171.66 | G183: 54.71 | H183: 65.89522008 | I183: 11311.57 | J183: 0.001018865744 | K183: 0.9026294152 | L183: B
A184: 2.7 | B184: SINAPI | C184: 93582 | D184: EXECUÇÃO DE CENTRAL DE ARMADURA EM CANTEIRO DE OBRA, NÃO INCLUSO MOBILIÁRIO E EQUIPAMENTOS. AF_04/2016 | E184: M2 | F184: 41.09 | G184: 222.9 | H184: 268.4709295 | I184: 11031.47 | J184: 0.0009936363291 | K184: 0.9036230516 | L184: B
A185: 2.2 | B185: SINAPI | C185: 93207 | D185: EXECUÇÃO DE ESCRITÓRIO EM CANTEIRO DE OBRA EM CHAPA DE MADEIRA COMPENSADA, NÃO INCLUSO MOBILIÁRIO E EQUIPAMENTOS. AF_02/2016 | E185: M2 | F185: 10 | G185: 897.55 | H185: 1081.05017 | I185: 10810.5 | J185: 0.0009737329236 | K185: 0.9045967845 | L185: B
A186: 10.2.3 | B186: SINAPI | C186: 93595 | D186: TRANSPORTE COM CAMINHÃO BASCULANTE DE 10 M³, EM VIA URBANA EM REVESTIMENTO PRIMÁRIO (UNIDADE: TXKM). AF_07/2020 | E186: TXKM | F186: 7000 | G186: 1.28 | H186: 1.541690398 | I186: 10791.83 | J186: 0.0009720512629 | K186: 0.9055688357 | L186: B
A187: 13.3.2.5 | B187: COMPOSIÇÃO | C187: COMP-5778 | D187: CUBA DE EMBUTIR EM AÇO INOX, C/ DIAMETRO DE 40cm E PROFUNDIDADE DE 50cm, C/VALVULA E SIFÃO | E187: UN | F187: 9 | G187: 972.6554 | H187: 1171.51054 | I187: 10543.59 | J187: 0.0009496915699 | K187: 0.9065185273 | L187: B
A188: 3.3.5 | B188: COMPOSIÇÃO | C188: COMP-1294 | D188: APILOAMENTO DE FUNDO DE VALA COM COMPACTADOR DE SOLOS DE PERCUSSÃO (SOQUETE) | E188: M2 | F188: 274.63 | G188: 31.4375 | H188: 37.8647593 | I188: 10398.8 | J188: 0.0009366499169 | K188: 0.9074551772 | L188: B
A189: 12.7.7 | B189: SINAPI | C189: 91935 | D189: CABO DE COBRE FLEXÍVEL ISOLADO, 16 MM², ANTI-CHAMA 0,6/1,0 KV, PARA CIRCUITOS TERMINAIS - FORNECIMENTO E INSTALAÇÃO. AF_12/2015 | E189: M | F189: 346.35 | G189: 24.54 | H189: 29.55709561 | I189: 10237.1 | J189: 0.0009220851314 | K189: 0.9083772624 | L189: B
A190: 20.6 | B190: ORSE | C190: 2496 | D190: Regularização mecanizada de áreas | E190: M2 | F190: 10000 | G190: 0.83 | H190: 0.9996898677 | I190: 9996.9 | J190: 0.0009004496244 | K190: 0.909277712 | L190: B
A191: 5.2.1 | B191: SINAPI | C191: 95947 | D191: ARMAÇÃO DE ESCADA, DE UMA ESTRUTURA CONVENCIONAL DE CONCRETO ARMADO UTILIZANDO AÇO CA-50 DE 12,5 MM - MONTAGEM. AF_11/2020 | E191: KG | F191: 579.2 | G191: 14.13 | H191: 17.01881666 | I191: 9857.3 | J191: 0.0008878754496 | K191: 0.9101655874 | L191: B
A192: 13.2.1.3 | B192: SINAPI | C192: 89580 | D192: TUBO PVC, SÉRIE R, ÁGUA PLUVIAL, DN 150 MM, FORNECIDO E INSTALADO EM CONDUTORES VERTICAIS DE ÁGUAS PLUVIAIS. AF_12/2014 | E192: M | F192: 95.51 | G192: 84.89 | H192: 102.245389 | I192: 9765.46 | J192: 0.0008796031559 | K192: 0.9110451906 | L192: B
A193: 12.2.1.4 | B193: SINAPI | C193: 97668 | D193: ELETRODUTO FLEXÍVEL CORRUGADO, PEAD, DN 63 (2") - FORNECIMENTO E INSTALAÇÃO. AF_04/2016 | E193: M | F193: 806.7 | G193: 9.82 | H193: 11.82765603 | I193: 9541.37 | J193: 0.0008594187231 | K193: 0.9119046093 | L193: B
A194: 13.2.3.3 | B194: SINAPI | C194: 97907 | D194: CAIXA ENTERRADA HIDRÁULICA RETANGULAR, EM ALVENARIA COM BLOCOS DE CONCRETO, DIMENSÕES INTERNAS: 0,8X0,8X0,6 M PARA REDE DE ESGOTO. AF_12/2020 | E194: UN | F194: 15 | G194: 522.07 | H194: 628.8049268 | I194: 9432.07 | J194: 0.0008495737567 | K194: 0.9127541831 | L194: B
A195: 11.2.4 | B195: COMPOSIÇÃO | C195: COMP-9488 | D195: VIDRO TEMPERADO INCOLOR, ESPESSURA 6MM, FORNECIMENTO E INSTALACAO, INCLUSIVE MASSA PARA VEDACAO | E195: M2 | F195: 20.48 | G195: 362.49 | H195: 436.5994942 | I195: 8941.56 | J195: 0.0008053921059 | K195: 0.9135595752 | L195: B
A196: 2.8 | B196: SINAPI | C196: 93583 | D196: EXECUÇÃO DE CENTRAL DE FÔRMAS, PRODUÇÃO DE ARGAMASSA OU CONCRETO EM CANTEIRO DE OBRA, NÃO INCLUSO MOBILIÁRIO E EQUIPAMENTOS. AF_04/2016 | E196: M2 | F196: 20 | G196: 369.58 | H196: 445.1390136 | I196: 8902.78 | J196: 0.0008018990794 | K196: 0.9143614743 | L196: B
A197: 13.2.4.9 | B197: SINAPI | C197: 94965 | D197: CONCRETO FCK = 25MPA, TRAÇO 1:2,3:2,7 (EM MASSA SECA DE CIMENTO/ AREIA MÉDIA/ BRITA 1) - PREPARO MECÂNICO COM BETONEIRA 400 L. AF_05/2021 | E197: M3 | F197: 18.35 | G197: 393.57 | H197: 474.0336642 | I197: 8698.52 | J197: 0.0007835007919 | K197: 0.915144975 | L197: B
A198: 9.4.4 | B198: COMPOSIÇÃO | C198: COMP-5303 | D198: PERFIL DE ALUMÍNIO TIPO ( L- T- U ) | E198: M | F198: 86.7 | G198: 83.042 | H198: 100.0195735 | I198: 8671.7 | J198: 0.0007810850371 | K198: 0.9159260601 | L198: B
A199: 13.5.1.1.1 | B199: SINAPI | C199: 95746 | D199: ELETRODUTO DE AÇO GALVANIZADO, CLASSE LEVE, DN 25 MM (1), APARENTE, INSTALADO EM TETO - FORNECIMENTO E INSTALAÇÃO. AF_11/2016_P | E199: M | F199: 315 | G199: 22.81 | H199: 27.47340468 | I199: 8654.12 | J199: 0.0007795015558 | K199: 0.9167055616 | L199: B
A200: 8.1.2 | B200: SINAPI | C200: 87509 | D200: ALVENARIA DE VEDAÇÃO DE BLOCOS CERÂMICOS FURADOS NA HORIZONTAL DE 14X9X19CM (ESPESSURA 14CM, BLOCO DEITADO) DE PAREDES COM ÁREA LÍQUIDA MAIOR OU IGUAL A 6M² SEM VÃOS E ARGAMASSA DE ASSENTAMENTO COM PREPARO EM BETONEIRA. AF_06/2014 | E200: M2 | F200: 58.5 | G200: 122.81 | H200: 147.9179671 | I200: 8653.2 | J200: 0.0007794186888 | K200: 0.9174849803 | L200: B
A201: 12.11.3.7 | B201: COMPOSIÇÃO | C201: COMP-0592 | D201: CLIPS PARA EMENDA DE RE-BAR GALVANIZADOS - 10MM (5/8'') | E201: UND | F201: 615 | G201: 11.632 | H201: 14.0101115 | I201: 8616.22 | J201: 0.0007760877935 | K201: 0.9182610681 | L201: B
A202: 2.3 | B202: SINAPI | C202: 93208 | D202: EXECUÇÃO DE ALMOXARIFADO EM CANTEIRO DE OBRA EM CHAPA DE MADEIRA COMPENSADA, INCLUSO PRATELEIRAS. AF_02/2016 | E202: M2 | F202: 10.04 | G202: 706.98 | H202: 851.5189671 | I202: 8549.25 | J202: 0.0007700556124 | K202: 0.9190311237 | L202: B
A203: 13.5.2.3.4 | B203: SINAPI | C203: 96765 | D203: ABRIGO PARA HIDRANTE, 90X60X17CM, COM REGISTRO GLOBO ANGULAR 45 GRAUS 2 1/2", ADAPTADOR STORZ 2 1/2", MANGUEIRA DE INCÊNDIO 20M, REDUÇÃO 2 1/2" X 1 1/2" E ESGUICHO EM LATÃO 1 1/2" - FORNECIMENTO E INSTALAÇÃO. AF_10/2020 | E203: UN | F203: 5 | G203: 1345.51 | H203: 1620.593631 | I203: 8102.97 | J203: 0.0007298578852 | K203: 0.9197609816 | L203: B
A204: 17.1 | B204: COMPOSIÇÃO | C204: COMP-389493 | D204: CONJUNTO DE MASTRO P/ TRÊS BANDEIRAS E PEDESTAL | E204: UN | F204: 1 | G204: 6699.71292 | H204: 8069.439907 | I204: 8069.44 | J204: 0.0007268377414 | K204: 0.9204878194 | L204: B
A205: 2.6 | B205: SINAPI | C205: 93243 | D205: EXECUÇÃO DE RESERVATÓRIO ELEVADO DE ÁGUA (2000 LITROS) EM CANTEIRO DE OBRA, APOIADO EM ESTRUTURA DE MADEIRA. AF_02/2016 | E205: UN | F205: 1 | G205: 6677.92 | H205: 8043.19152 | I205: 8043.19 | J205: 0.0007244733282 | K205: 0.9212122927 | L205: B
... 672 more rows

Sheet CRONOGRAMA
A5: INSTITUTO FEDERAL DE EDUCAÇÃO, CIÊNCIA E TECNOLOGIA DE MATO GROSSO
A6: =ORÇAMENTO!A6 -> CAMPUS SINOP
A9: CRONOGRAMA FÍSICO-FINANCEIRO NÃO DESONERADO
A10: OBRA: | B10: =ORÇAMENTO!B10 -> IMPLANTAÇÃO DO CAMPUS SINOP
A11: ITEM | B11: DESCRIÇÃO / ETAPA | C11: TOTAL | E11: PERÍODO DE EXECUÇÃO DA OBRA | W11: TOTAL
C12: VALOR (R$) | D12: (%) | E12: mês 01 | F12: mês 02 | G12: mês 03 | H12: mês 04 | I12: mês 05 | J12: mês 06 | K12: mês 07 | L12: mês 08 | M12: mês 09 | N12: mês 10 | O12: mês 11 | P12: mês 12 | Q12: mês 13 | R12: mês 14 | S12: mês 15 | T12: mês 16 | U12: mês 17 | V12: mês 18
A13: 1.0 | B13: =IFERROR(INDEX(ORÇAMENTO!$D$1:$D$1500,MATCH($A13,ORÇAMENTO!$A$1:$A$1500,0)),"") -> ADMINISTRAÇÃO E CONTROLE | C13: =IFERROR(INDEX(ORÇAMENTO!$I$1:$I$1500,MATCH($A13,ORÇAMENTO!$A$1:$A$1500,0)),0) -> 672384.68 | D13: =IFERROR(C13/$C$55,"") -> 0.06056362798 | E13: =IFERROR($C13*E14,"") -> 11996.03264 | F13: 25336.64028 | G13: 30594.84755 | H13: 43794.00218 | I13: 52723.85299 | J13: 57961.15005 | K13: 61796.30258 | L13: 52995.78576 | M13: 38722.69317 | N13: 62805.79983 | O13: 54300.30639 | P13: 71376.99114 | Q13: 5437.681797 | R13: 37736.59434 | S13: 44854.10601 | T13: 14827.02648 | U13: 1564.622476 | V13: 3560.244338 | W13: =SUM(E13:V13) -> 672384.68
E14: =(E15+E17+E19+E21+E23+E25+E27+E29+E31+E33+E35+E37+E39+E41+E43+E45+E47+E49+E51+E53)/($C$55-$C$13) -> 0.01784102612 | F14: 0.03768176319 | G14: 0.04550199976 | H14: 0.06513236171 | I14: 0.07841322767 | J14: 0.08620236566 | K14: 0.09190617279 | L14: 0.07881765801 | M14: 0.05759008841 | N14: 0.09340754139 | O14: 0.08075779833 | P14: 0.1061549932 | Q14: 0.008087158971 | R14: 0.05612351896 | S14: 0.06670899463 | T14: 0.02205140439 | U14: 0.002326975201 | V14: 0.005294951601 | W14: 1
A15: 2.0 | B15: =IFERROR(INDEX(ORÇAMENTO!$D$1:$D$1500,MATCH($A15,ORÇAMENTO!$A$1:$A$1500,0)),"") -> SERVIÇOS PRELIMINARES | C15: =IFERROR(INDEX(ORÇAMENTO!$I$1:$I$1500,MATCH($A15,ORÇAMENTO!$A$1:$A$1500,0)),0) -> 209407.58 | D15: =IFERROR(C15/$C$55,"") -> 0.01886194488 | E15: =IFERROR($C15*E16,"") -> 104703.79 | F15: 104703.79 | G15: 0 | H15: 0 | I15: 0 | J15: 0 | K15: 0 | L15: 0 | M15: 0 | N15: 0 | O15: 0 | P15: 0 | Q15: 0 | R15: 0 | S15: 0 | T15: 0 | U15: 0 | V15: 0 | W15: 209407.58
E16: 0.5 | F16: 0.5 | W16: 1
A17: 3.0 | B17: =IFERROR(INDEX(ORÇAMENTO!$D$1:$D$1500,MATCH($A17,ORÇAMENTO!$A$1:$A$1500,0)),"") -> MOVIMENTAÇÃO DE TERRA | C17: =IFERROR(INDEX(ORÇAMENTO!$I$1:$I$1500,MATCH($A17,ORÇAMENTO!$A$1:$A$1500,0)),0) -> 219647.81 | D17: =IFERROR(C17/$C$55,"") -> 0.01978431194 | E17: =IFERROR($C17*E18,"") -> 0 | F17: 109823.905 | G17: 109823.905 | H17: 0 | I17: 0 | J17: 0 | K17: 0 | L17: 0 | M17: 0 | N17: 0 | O17: 0 | P17: 0 | Q17: 0 | R17: 0 | S17: 0 | T17: 0 | U17: 0 | V17: 0 | W17: 219647.81
F18: 0.5 | G18: 0.5 | W18: 1
A19: 4.0 | B19: =IFERROR(INDEX(ORÇAMENTO!$D$1:$D$1500,MATCH($A19,ORÇAMENTO!$A$1:$A$1500,0)),"") -> INFRAESTRUTURA | C19: =IFERROR(INDEX(ORÇAMENTO!$I$1:$I$1500,MATCH($A19,ORÇAMENTO!$A$1:$A$1500,0)),0) -> 501618.3 | D19: =IFERROR(C19/$C$55,"") -> 0.04518220747 | E19: =IFERROR($C19*E20,"") -> 0 | F19: 0 | G19: 150485.49 | H19: 351132.81 | I19: 0 | J19: 0 | K19: 0 | L19: 0 | M19: 0 | N19: 0 | O19: 0 | P19: 0 | Q19: 0 | R19: 0 | S19: 0 | T19: 0 | U19: 0 | V19: 0 | W19: 501618.3
G20: 0.3 | H20: 0.7 | W20: 1
A21: 5.0 | B21: =IFERROR(INDEX(ORÇAMENTO!$D$1:$D$1500,MATCH($A21,ORÇAMENTO!$A$1:$A$1500,0)),"") -> SUPERESTRUTURA | C21: =IFERROR(INDEX(ORÇAMENTO!$I$1:$I$1500,MATCH($A21,ORÇAMENTO!$A$1:$A$1500,0)),0) -> 1935201.42 | D21: =IFERROR(C21/$C$55,"") -> 0.174309175 | E21: =IFERROR($C21*E22,"") -> 0 | F21: 0 | G21: 0 | H21: 193520.142 | I21: 580560.426 | J21: 677320.497 | K21: 483800.355 | L21: 0 | M21: 0 | N21: 0 | O21: 0 | P21: 0 | Q21: 0 | R21: 0 | S21: 0 | T21: 0 | U21: 0 | V21: 0 | W21: 1935201.42
H22: 0.1 | I22: 0.3 | J22: 0.35 | K22: 0.25 | W22: 1
A23: 6.0 | B23: =IFERROR(INDEX(ORÇAMENTO!$D$1:$D$1500,MATCH($A23,ORÇAMENTO!$A$1:$A$1500,0)),"") -> IMPERMEABILIZAÇÕES | C23: =IFERROR(INDEX(ORÇAMENTO!$I$1:$I$1500,MATCH($A23,ORÇAMENTO!$A$1:$A$1500,0)),0) -> 80707.84 | D23: =IFERROR(C23/$C$55,"") -> 0.007269587994 | E23: =IFERROR($C23*E24,"") -> 0 | F23: 0 | G23: 0 | H23: 0 | I23: 16141.568 | J23: 0 | K23: 0 | L23: 64566.272 | M23: 0 | N23: 0 | O23: 0 | P23: 0 | Q23: 0 | R23: 0 | S23: 0 | T23: 0 | U23: 0 | V23: 0 | W23: 80707.84
I24: 0.2 | L24: 0.8 | W24: 1
A25: 7.0 | B25: =IFERROR(INDEX(ORÇAMENTO!$D$1:$D$1500,MATCH($A25,ORÇAMENTO!$A$1:$A$1500,0)),"") -> COBERTURA | C25: =IFERROR(INDEX(ORÇAMENTO!$I$1:$I$1500,MATCH($A25,ORÇAMENTO!$A$1:$A$1500,0)),0) -> 572836.55 | D25: =IFERROR(C25/$C$55,"") -> 0.05159704071 | E25: =IFERROR($C25*E26,"") -> 0 | F25: 0 | G25: 0 | H25: 0 | I25: 0 | J25: 0 | K25: 200492.7925 | L25: 343701.93 | M25: 0 | N25: 28641.8275 | O25: 0 | P25: 0 | Q25: 0 | R25: 0 | S25: 0 | T25: 0 | U25: 0 | V25: 0 | W25: 572836.55
K26: 0.35 | L26: 0.6 | N26: 0.05 | W26: 1
A27: 8.0 | B27: =IFERROR(INDEX(ORÇAMENTO!$D$1:$D$1500,MATCH($A27,ORÇAMENTO!$A$1:$A$1500,0)),"") -> PAREDES E PAINEIS | C27: =IFERROR(INDEX(ORÇAMENTO!$I$1:$I$1500,MATCH($A27,ORÇAMENTO!$A$1:$A$1500,0)),0) -> 432334.39 | D27: =IFERROR(C27/$C$55,"") -> 0.03894160581 | E27: =IFERROR($C27*E28,"") -> 0 | F27: 0 | G27: 0 | H27: 0 | I27: 86466.878 | J27: 86466.878 | K27: 108083.5975 | L27: 108083.5975 | M27: 43233.439 | N27: 0 | O27: 0 | P27: 0 | Q27: 0 | R27: 0 | S27: 0 | T27: 0 | U27: 0 | V27: 0 | W27: 432334.39
I28: 0.2 | J28: 0.2 | K28: 0.25 | L28: 0.25 | M28: 0.1 | W28: 1
A29: 9.0 | B29: =IFERROR(INDEX(ORÇAMENTO!$D$1:$D$1500,MATCH($A29,ORÇAMENTO!$A$1:$A$1500,0)),"") -> REVESTIMENTOS | C29: =IFERROR(INDEX(ORÇAMENTO!$I$1:$I$1500,MATCH($A29,ORÇAMENTO!$A$1:$A$1500,0)),0) -> 681660.11 | D29: =IFERROR(C29/$C$55,"") -> 0.06139909272 | E29: =IFERROR($C29*E30,"") -> 0 | F29: 0 | G29: 0 | H29: 0 | I29: 0 | J29: 0 | K29: 102249.0165 | L29: 170415.0275 | M29: 238581.0385 | N29: 170415.0275 | O29: 0 | P29: 0 | Q29: 0 | R29: 0 | S29: 0 | T29: 0 | U29: 0 | V29: 0 | W29: 681660.11
K30: 0.15 | L30: 0.25 | M30: 0.35 | N30: 0.25 | W30: 1
A31: 10.0 | B31: =IFERROR(INDEX(ORÇAMENTO!$D$1:$D$1500,MATCH($A31,ORÇAMENTO!$A$1:$A$1500,0)),"") -> PAVIMENTAÇÃO | C31: =IFERROR(INDEX(ORÇAMENTO!$I$1:$I$1500,MATCH($A31,ORÇAMENTO!$A$1:$A$1500,0)),0) -> 1441708.84 | D31: =IFERROR(C31/$C$55,"") -> 0.1298588746 | E31: =IFERROR($C31*E32,"") -> 0 | F31: 0 | G31: 0 | H31: 0 | I31: 0 | J31: 0 | K31: 0 | L31: 0 | M31: 144170.884 | N31: 504598.094 | O31: 360427.21 | P31: 432512.652 | Q31: 0 | R31: 0 | S31: 0 | T31: 0 | U31: 0 | V31: 0 | W31: 1441708.84
M32: 0.1 | N32: 0.35 | O32: 0.25 | P32: 0.3 | W32: 1
A33: 11.0 | B33: =IFERROR(INDEX(ORÇAMENTO!$D$1:$D$1500,MATCH($A33,ORÇAMENTO!$A$1:$A$1500,0)),"") -> ESQUADRIAS E FERRAGENS | C33: =IFERROR(INDEX(ORÇAMENTO!$I$1:$I$1500,MATCH($A33,ORÇAMENTO!$A$1:$A$1500,0)),0) -> 966750.43 | D33: =IFERROR(C33/$C$55,"") -> 0.08707800034 | E33: =IFERROR($C33*E34,"") -> 0 | F33: 0 | G33: 0 | H33: 0 | I33: 0 | J33: 0 | K33: 0 | L33: 0 | M33: 0 | N33: 0 | O33: 0 | P33: 290025.129 | Q33: 0 | R33: 290025.129 | S33: 386700.172 | T33: 0 | U33: 0 | V33: 0 | W33: 966750.43
N34: 0 | P34: 0.3 | R34: 0.3 | S34: 0.4 | W34: 1
A35: 12.0 | B35: =IFERROR(INDEX(ORÇAMENTO!$D$1:$D$1500,MATCH($A35,ORÇAMENTO!$A$1:$A$1500,0)),"") -> INSTALAÇÃO ELÉTRICA | C35: =IFERROR(INDEX(ORÇAMENTO!$I$1:$I$1500,MATCH($A35,ORÇAMENTO!$A$1:$A$1500,0)),0) -> 1426983.73 | D35: =IFERROR(C35/$C$55,"") -> 0.1285325415 | E35: =IFERROR($C35*E36,"") -> 71349.1865 | F35: 71349.1865 | G35: 71349.1865 | H35: 71349.1865 | I35: 71349.1865 | J35: 71349.1865 | K35: 0 | L35: 71349.1865 | M35: 142698.373 | N35: 142698.373 | O35: 285396.746 | P35: 356745.9325 | Q35: 0 | R35: 0 | S35: 0 | T35: 0 | U35: 0 | V35: 0 | W35: 1426983.73
E36: 0.05 | F36: 0.05 | G36: 0.05 | H36: 0.05 | I36: 0.05 | J36: 0.05 | L36: 0.05 | M36: 0.1 | N36: 0.1 | O36: 0.2 | P36: 0.25 | W36: 1
A37: 13.0 | B37: =IFERROR(INDEX(ORÇAMENTO!$D$1:$D$1500,MATCH($A37,ORÇAMENTO!$A$1:$A$1500,0)),"") -> INSTALAÇÃO - ÁGUAS | C37: =IFERROR(INDEX(ORÇAMENTO!$I$1:$I$1500,MATCH($A37,ORÇAMENTO!$A$1:$A$1500,0)),0) -> 639313.17 | D37: =IFERROR(C37/$C$55,"") -> 0.05758478166 | E37: =IFERROR($C37*E38,"") -> 0 | F37: 0 | G37: 95896.9755 | H37: 31965.6585 | I37: 31965.6585 | J37: 63931.317 | K37: 63931.317 | L37: 63931.317 | M37: 31965.6585 | N37: 127862.634 | O37: 127862.634 | P37: 0 | Q37: 0 | R37: 0 | S37: 0 | T37: 0 | U37: 0 | V37: 0 | W37: 639313.17
G38: 0.15 | H38: 0.05 | I38: 0.05 | J38: 0.1 | K38: 0.1 | L38: 0.1 | M38: 0.05 | N38: 0.2 | O38: 0.2 | W38: 1
A39: 14.0 | B39: =IFERROR(INDEX(ORÇAMENTO!$D$1:$D$1500,MATCH($A39,ORÇAMENTO!$A$1:$A$1500,0)),"") -> CLIMATIZAÇÃO | C39: =IFERROR(INDEX(ORÇAMENTO!$I$1:$I$1500,MATCH($A39,ORÇAMENTO!$A$1:$A$1500,0)),0) -> 74124.77 | D39: =IFERROR(C39/$C$55,"") -> 0.006676631886 | E39: =IFERROR($C39*E40,"") -> 0 | F39: 0 | G39: 0 | H39: 0 | I39: 0 | J39: 0 | K39: 0 | L39: 0 | M39: 0 | N39: 0 | O39: 0 | P39: 0 | Q39: 18531.1925 | R39: 18531.1925 | S39: 18531.1925 | T39: 18531.1925 | U39: 0 | V39: 0 | W39: 74124.77
L40: 0 | M40: 0 | N40: 0 | O40: 0 | P40: 0 | Q40: 0.25 | R40: 0.25 | S40: 0.25 | T40: 0.25 | W40: 1
A41: 15.0 | B41: =IFERROR(INDEX(ORÇAMENTO!$D$1:$D$1500,MATCH($A41,ORÇAMENTO!$A$1:$A$1500,0)),"") -> PINTURA | C41: =IFERROR(INDEX(ORÇAMENTO!$I$1:$I$1500,MATCH($A41,ORÇAMENTO!$A$1:$A$1500,0)),0) -> 219385.79 | D41: =IFERROR(C41/$C$55,"") -> 0.01976071104 | E41: =IFERROR($C41*E42,"") -> 0 | F41: 0 | G41: 0 | H41: 0 | I41: 0 | J41: 0 | K41: 0 | L41: 0 | M41: 0 | N41: 0 | O41: 0 | P41: 0 | Q41: 65815.737 | R41: 65815.737 | S41: 65815.737 | T41: 21938.579 | U41: 0 | V41: 0 | W41: 219385.79
O42: 0 | P42: 0 | Q42: 0.3 | R42: 0.3 | S42: 0.3 | T42: 0.1 | W42: 1
A43: 16.0 | B43: =IFERROR(INDEX(ORÇAMENTO!$D$1:$D$1500,MATCH($A43,ORÇAMENTO!$A$1:$A$1500,0)),"") -> PAISAGISMO | C43: =IFERROR(INDEX(ORÇAMENTO!$I$1:$I$1500,MATCH($A43,ORÇAMENTO!$A$1:$A$1500,0)),0) -> 80899.12 | D43: =IFERROR(C43/$C$55,"") -> 0.007286817135 | E43: =IFERROR($C43*E44,"") -> 0 | F43: 0 | G43: 0 | H43: 0 | I43: 0 | J43: 0 | K43: 0 | L43: 0 | M43: 0 | N43: 0 | O43: 0 | P43: 0 | Q43: 0 | R43: 0 | S43: 0 | T43: 24269.736 | U43: 24269.736 | V43: 32359.648 | W43: 80899.12
Q44: 0 | R44: 0 | S44: 0 | T44: 0.3 | U44: 0.3 | V44: 0.4 | W44: 1
A45: 17.0 | B45: =IFERROR(INDEX(ORÇAMENTO!$D$1:$D$1500,MATCH($A45,ORÇAMENTO!$A$1:$A$1500,0)),"") -> URBANIZAÇÃO | C45: =IFERROR(INDEX(ORÇAMENTO!$I$1:$I$1500,MATCH($A45,ORÇAMENTO!$A$1:$A$1500,0)),0) -> 10939.15 | D45: =IFERROR(C45/$C$55,"") -> 0.0009853208003 | E45: =IFERROR($C45*E46,"") -> 2187.83 | F45: 0 | G45: 0 | H45: 0 | I45: 0 | J45: 0 | K45: 0 | L45: 0 | M45: 0 | N45: 0 | O45: 0 | P45: 4375.66 | Q45: 0 | R45: 0 | S45: 4375.66 | T45: 0 | U45: 0 | V45: 0 | W45: 10939.15
E46: 0.2 | P46: 0.4 | S46: 0.4 | W46: 1
A47: 18.0 | B47: =IFERROR(INDEX(ORÇAMENTO!$D$1:$D$1500,MATCH($A47,ORÇAMENTO!$A$1:$A$1500,0)),"") -> GUARITA E PÓRTICO | C47: =IFERROR(INDEX(ORÇAMENTO!$I$1:$I$1500,MATCH($A47,ORÇAMENTO!$A$1:$A$1500,0)),0) -> 156727.56 | D47: =IFERROR(C47/$C$55,"") -> 0.01411690349 | E47: =IFERROR($C47*E48,"") -> 7836.378 | F47: 15672.756 | G47: 47018.268 | H47: 31345.512 | I47: 31345.512 | J47: 0 | K47: 0 | L47: 0 | M47: 0 | N47: 0 | O47: 0 | P47: 23509.134 | Q47: 0 | R47: 0 | S47: 0 | T47: 0 | U47: 0 | V47: 0 | W47: 156727.56
E48: 0.05 | F48: 0.1 | G48: 0.3 | H48: 0.2 | I48: 0.2 | P48: 0.15 | W48: 1
A49: 19.0 | B49: =IFERROR(INDEX(ORÇAMENTO!$D$1:$D$1500,MATCH($A49,ORÇAMENTO!$A$1:$A$1500,0)),"") -> EQUIPAMENTOS | C49: =IFERROR(INDEX(ORÇAMENTO!$I$1:$I$1500,MATCH($A49,ORÇAMENTO!$A$1:$A$1500,0)),0) -> 550836.03 | D49: =IFERROR(C49/$C$55,"") -> 0.0496153904 | E49: =IFERROR($C49*E50,"") -> 0 | F49: 0 | G49: 0 | H49: 0 | I49: 0 | J49: 0 | K49: 0 | L49: 0 | M49: 0 | N49: 0 | O49: 0 | P49: 0 | Q49: 0 | R49: 165250.809 | S49: 220334.412 | T49: 165250.809 | U49: 0 | V49: 0 | W49: 550836.03
O50: 0 | P50: 0 | Q50: 0 | R50: 0.3 | S50: 0.4 | T50: 0.3 | W50: 1
A51: 20.0 | B51: =IFERROR(INDEX(ORÇAMENTO!$D$1:$D$1500,MATCH($A51,ORÇAMENTO!$A$1:$A$1500,0)),"") -> SERVIÇOS COMPLEMENTARES | C51: =IFERROR(INDEX(ORÇAMENTO!$I$1:$I$1500,MATCH($A51,ORÇAMENTO!$A$1:$A$1500,0)),0) -> 228652.97 | D51: =IFERROR(C51/$C$55,"") -> 0.02059543268 | E51: =IFERROR($C51*E52,"") -> 0 | F51: 91461.188 | G51: 0 | H51: 0 | I51: 0 | J51: 0 | K51: 0 | L51: 0 | M51: 0 | N51: 0 | O51: 68595.891 | P51: 0 | Q51: 0 | R51: 45730.594 | S51: 0 | T51: 0 | U51: 0 | V51: 22865.297 | W51: 228652.97
F52: 0.4 | O52: 0.3 | R52: 0.2 | V52: 0.1 | W52: 1
A53: 0 | B53: =IFERROR(INDEX(ORÇAMENTO!$D$1:$D$987,MATCH($A53,ORÇAMENTO!$A$1:$A$987,0)),"") ->  | C53: =IFERROR(INDEX(ORÇAMENTO!$I$1:$I$987,MATCH($A53,ORÇAMENTO!$A$1:$A$987,0)),0) -> 0 | D53: =IFERROR(C53/$C$55,"") -> 0 | E53: =IFERROR($C53*E54,"") -> 0 | F53: 0 | G53: 0 | H53: 0 | I53: 0 | J53: 0 | K53: 0 | L53: 0 | M53: 0 | N53: 0 | O53: 0 | P53: 0 | Q53: 0 | R53: 0 | S53: 0 | T53: 0 | U53: 0 | V53: 0 | W53: 0
W54: 0
B55: TOTAL | C55: =SUM(C13:C54) -> 11102120.24 | D55: =SUM(D13:D54) -> 1 | E55: =E13+E15+E17+E19+E21+E23+E25+E27+E29+E31+E33+E35+E37+E39+E41+E43+E45+E47+E49+E51 -> 198073.2171 | F55: 418347.4658 | G55: 505168.6726 | H55: 723107.3112 | I55: 870553.082 | J55: 957029.0286 | K55: 1020353.381 | L55: 875043.1163 | M55: 639372.0862 | N55: 1037021.756 | O55: 896582.7874 | P55: 1178545.499 | Q55: 89784.6113 | R55: 623090.0558 | S55: 740611.2795 | T55: 244817.343 | U55: 25834.35848 | V55: 58785.18934 | W55: 11102120.24
E56: =E55/$C$55 -> 0.01784102612 | F56: 0.03768176319 | G56: 0.04550199976 | H56: 0.06513236171 | I56: 0.07841322767 | J56: 0.08620236566 | K56: 0.09190617279 | L56: 0.07881765801 | M56: 0.05759008841 | N56: 0.09340754139 | O56: 0.08075779833 | P56: 0.1061549932 | Q56: 0.008087158971 | R56: 0.05612351896 | S56: 0.06670899463 | T56: 0.02205140439 | U56: 0.002326975201 | V56: 0.005294951601 | W56: 1
B57: VALOR TOTAL ACUMULADO | E57: =E55 -> 198073.2171 | F57: =F55+E57 -> 616420.6829 | G57: 1121589.355 | H57: 1844696.667 | I57: 2715249.749 | J57: 3672278.777 | K57: 4692632.158 | L57: 5567675.275 | M57: 6207047.361 | N57: 7244069.117 | O57: 8140651.904 | P57: 9319197.403 | Q57: =Q55+M57 -> 6296831.972 | R57: 7867159.172 | S57: 8881263.183 | T57: =T55+O57 -> 8385469.247 | U57: 9345031.761 | V57: =V55+U57 -> 9403816.95

Sheet Declaração
D7: INSTITUTO FEDERAL DE EDUCAÇÃO CIÊNCIAS E TECNOLOGIA DE MATO GROSSO
D8: CAMPUS -SINOP
D11: DECLARAÇÃO USO PLANILHA SINAPI
D13: Eu, Fatima Elizabete dos Reis Matias, Engenheira Civil , CREA-MT 07101/D, declaro para todos os fins, que os preços unitários da planilha orçamentária da obra IMPLANTAÇÃO DO CAMPUS SINOP - Instituto Federal de Mato Grosso , estão de acordo com o SINAPI-MT de referência tecnica Agosto 2021 e ORSE de referência técnica de agosto/2021. Os preços dos insumos não encontrados no SINAPI e ORSE, utilizou-se os preços de outras tabelas oficiais como por exemplo do sinduson/MT, como tambem, os insumos não encontrados em nenhuma dessas tabelas oficiais foram cotados por pesquisa de preço em lojas físicas e/ou virtuais.
D18: Utlilizou-se o BDI de 20,44 para tabela SINAPI não desonerada
D19: Cuiabá, 29 de outubro de 2021.

Sheet quantitativo (hidden)
E1: Resumo de Materiais (Moldados in Loco)
E2: Pavimento | F2: Elemento | G2: Peso do aço | H2: Volume de | I2: Área de forma | J2: Consumo de | K2: Peso treliças
G3: #ERROR! | H3: concreto (m³) | I3: (m²) | J3: aço (kg/m³) | K3: (kg)
E4: Forro | F4: Vigas | G4: 4857.7 | H4: 63.2 | I4: 727 | J4: 76.8
F5: Pilares | G5: 4473.5 | H5: 43.4 | I5: 434.6 | J5: 103.1
F6: Lajes | G6: 5816.5 | H6: 106.9 | I6: 1067.9 | J6: 54.4
F7: Escadas | G7: - | H7: - | I7: - | J7: -
F8: Fundações | G8: - | H8: - | I8: - | J8: -
F9: Reservatórios | G9: - | H9: - | I9: - | J9: -
F10: Muros | G10: - | H10: - | I10: - | J10: -
F11: Total | G11: 15147.7 | H11: 213.5 | I11: 2229.5 | J11: 58.58 | K11: 0.0
E12: Terreo | F12: Vigas | G12: 8440.4 | H12: 79.1 | I12: 860.5 | J12: 106.7
F13: Pilares | G13: 4819.9 | H13: 46 | I13: 473.7 | J13: 104.8
F14: Lajes | G14: 10669.1 | H14: 122.9 | I14: 1024.1 | J14: 86.8
F15: Escadas | G15: 1942.2 | H15: 20.35 | I15: 210.2 | J15: 95.44
F16: Fundações | G16: - | H16: - | I16: - | J16: -
F17: Reservatórios | G17: - | H17: - | I17: - | J17: -
F18: Muros | G18: - | H18: - | I18: - | J18: -
F19: Total | G19: 25871.6 | H19: 268.35 | I19: 2568.5 | J19: 98.43 | K19: 0.0
E20: Baldrame | F20: Vigas | G20: 4598.7 | H20: 74.5 | I20: 933.7 | J20: 61.7
F21: Pilares | G21: 1111.3 | H21: 5.9 | I21: 60 | J21: 189.4
F22: Lajes | G22: - | H22: - | I22: - | J22: -
F23: Escadas | G23: - | H23: - | I23: - | J23: -
F24: Fundações | G24: 3337.3 | H24: 72.2 | I24: 235.5 | J24: 46.3
F25: Total | G25: 9047.3 | H25: 152.6 | I25: 1229.2 | J25: 74.35 | K25: 0.0
E27: Aço | F27: Diâmetro | G27: Peso + 10 % (kg)
G28: Vigas | H28: Pilares | I28: Lajes | J28: Escadas | K28: Fundações | L28: Reservatórios | M28: Muros | N28: Total
E29: CA50 | F29: 2021-03-06 | G29: 39.5 | I29: 2378 | J29: 46.3 | K29: 16.6 | N29: 2480.4
E30: CA50 | F30: 8.0 | G30: 2140.6 | I30: 2822.6 | K30: 162.1 | N30: 5125.3
E31: CA50 | F31: 10.0 | G31: 2232.5 | H31: 1448.1 | I31: 4331.5 | J31: 750 | K31: 1120.5 | N31: 9882.6
E32: CA50 | F32: 2021-05-12 | G32: 5208.5 | H32: 1542.2 | I32: 1575.1 | J32: 579.2 | K32: 913.6 | N32: 9818.6
E33: CA50 | F33: 16.0 | G33: 3948.5 | H33: 4546.1 | J33: 460.6 | N33: 8955.2
E34: CA50 | F34: 20.0 | G34: 947.8 | H34: 1066.9 | N34: 2014.7
E35: CA60 | F35: 5.0 | G35: 3379.2 | H35: 1801.4 | I35: 5195.9 | J35: 1836.1 | K35: 1124.6 | N35: 13337.2
G37: Vigas | H37: Pilares | I37: Lajes | J37: Escadas | K37: Fundações | L37: Reservatórios | M37: Muro | N37: Total
E38: Peso total | F38: CA50 | G38: 14517.6 | H38: 8603.3 | I38: 11289.7 | J38: 1836.1 | K38: 2219.8 | N38: 38466.5
E39: #ERROR! | F39: CA60 | G39: 3379.2 | H39: 1801.4 | I39: 5195.9 | J39: 1836.1 | K39: 1124.6 | N39: 13337.2
F40: Total | G40: 17896.7 | H40: 10404.7 | I40: 16485.6 | J40: 3672.2 | K40: 3337.3 | N40: 51796.5
E41: Volume concreto (m³) | F41: C-30 | G41: 216.9 | H41: 95.2 | I41: 229.8 | J41: 20.35 | K41: 72.2 | N41: 634.45
E42: Área de forma (m²) | G42: 2521.3 | H42: 968.3 | I42: 2092.1 | J42: 210.2 | K42: 235.5 | N42: 6027.4
E43: Consumo de aço (kgf/m³) | G43: 82.5 | H43: 109.2 | I43: 71.7 | J43: 98.43 | K43: 46.3 | N43: 298.93
E45: Observação. Não estão incluidos - concreto e ferragem das estacas
E52: GUARITA
E54: Resumo de Materiais (Moldados in Loco)
E56: Pavimento | F56: Elemento | G56: Peso do aço +10 % (kg) | H56: Volume de concreto (m³) | I56: Área de forma (m²) | J56: Consumo de aço (kg/m³) | K56: Peso treliças (kg)
E57: FORRO | F57: Vigas | G57: 37.8 | H57: 0.9 | I57: 15.0 | J57: 39.9
F58: Pilares | G58: 52.4 | H58: 0.4 | I58: 2021-03-08 | J58: 134.4
F59: Lajes | G59: 2021-08-22 | H59: 2021-01-01 | I59: 2021-01-11 | J59: 2021-06-20
F60: Escadas | G60: 0.0 | H60: 0.0 | I60: 0.0 | J60: 0.0
F61: Fundações | G61: 0.0 | H61: 0.0 | I61: 0.0 | J61: 0.0
F62: Total | G62: 113.0 | H62: 2021-04-02 | I62: 34.4 | J62: 46.2 | K62: 0.0
E63: FUNDAÇÃO | F63: Vigas | G63: 48.2 | H63: 2021-02-01 | I63: 2021-07-19 | J63: 38.8
F64: Pilares | G64: 27.0 | H64: 0.2 | I64: 2021-07-03 | J64: 156.6
F65: Lajes | G65: 0.0 | H65: 0.0 | I65: 0.0 | J65: 0.0
F66: Escadas | G66: 0.0 | H66: 0.0 | I66: 0.0 | J66: 0.0
F67: Fundações | G67: 2021-04-15 | H67: 0.5 | I67: 2021-08-02 | J67: 31.6
F68: Total | G68: 90.6 | H68: 2021-09-01 | I68: 2021-01-26 | J68: 47.6 | K68: 0.0
E70: Aço | F70: Diâmetro (mm) | G70: Quantidade + 10 % (Barras)
G71: Vigas | H71: Pilares | I71: Lajes | J71: Escadas | K71: Fundações | L71: Total
E72: CA50 | F72: 2021-03-06 | G72: 4 | K72: 6 | L72: 10
E73: CA50 | F73: 8.0 | G73: 11 | L73: 11
E74: CA50 | F74: 10.0 | H74: 9 | L74: 9
E75: CA60 | F75: 5.0
E77: Aço | F77: Diâmetro (mm) | G77: Peso + 10 % (kg)
G78: Vigas | H78: Pilares | I78: Lajes | J78: Escadas | K78: Fundações | L78: Total
E79: CA50 | F79: 2021-03-06 | G79: 2021-02-09 | K79: 2021-04-15 | L79: 2021-06-24
E80: CA50 | F80: 8.0 | G80: 43.1 | L80: 43.1
E81: CA50 | F81: 10.0 | H81: 64.0 | L81: 64.0
E82: CA60 | F82: 5.0 | G82: 33.7 | H82: 2021-04-15 | I82: 2021-08-22 | L82: 71.9
G84: Vigas | H84: Pilares | I84: Lajes | J84: Escadas | K84: Fundações | L84: Total
E85: Peso total + 10% (kg) | F85: CA50 | G85: 52.3 | H85: 64.0 | K85: 2021-04-15 | L85: 131.7
F86: CA60 | G86: 33.7 | H86: 2021-04-15 | I86: 2021-08-22 | L86: 71.9
F87: Total | G87: 86.0 | H87: 79.4 | I87: 2021-08-22 | K87: 2021-04-15 | L87: 203.6
E88: Volume concreto (m³) | F88: C-25 | H88: 0.6 | I88: 2021-01-01 | K88: 0.5 | L88: 2021-02-02
F89: C-30 | G89: 2021-02-02 | L89: 2021-02-02
F90: Total | G90: 2021-02-02 | H90: 0.6 | I90: 2021-01-01 | K90: 0.5 | L90: 2021-03-04
E91: Área de forma (m²) | G91: 34.7 | H91: 12.0 | I91: 2021-01-11 | K91: 2021-08-02 | L91: 60.6
E92: Consumo de aço (kg/m³) | G92: 39.3 | H92: 141.2 | I92: 2021-06-20 | K92: 31.6 | L92: 46.8

Sheet COMPOSIÇÕES_IFMT (hidden)
A3: AUTORES DA COMPOSIÇÕES
A4: AUTOR DERCIDIO = | B4: .00X/D
A5: AUTOR FATIMA = | B5: .00X/F
A6: AUTOR MARIA CLARA = | B6: .00X/M
A7: AUTOR = | B7: .00X/?
A8: AUTOR = | B8: .00X/?
A9: AUTOR = | B9: .00X/?
A10: IFMT/Nº.MES.ANO
A12: REFERENCIA | B12: PINI 09.001.0000
A13: CLASSE/TIPO | B13: CÓDIGOS | C13: DESCRIÇÃO | D13: UNID.
A14: IFMT 001.05.2018 | B14: .001/D | C14: CONDUTOR QUADRADO EM CHAPA DE AÇO GALVANIZADO NÚMERO 24, 50MM, INCLUSO TRANSPORTE VERTICAL, FORNECIMENTO E INSTALAÇÃO | D14: M | E14: COEFICIENTE | F14: PREÇO UNITÁRIO (R$) | G14: PREÇO TOTAL (R$)
A15: INSUMO | B15: 13388 | C15: SOLDA EM BARRA DE ESTANHO-CHUMBO 50/50 | D15: KG | E15: 0.04 | G15: =E15*F15 -> 0
A16: INSUMO | B16: 40870 | C16: CALHA QUADRADA DE CHAPA DE ACO GALVANIZADA NUM 24, CORTE 50 CM (COLETADO CAIXA) | D16: M | E16: 1.03 | G16: 0
A17: COMPOSICAO | B17: 88316 | C17: SERVENTE COM ENCARGOS COMPLEMENTARES | D17: H | E17: 0.8 | G17: 0
A18: COMPOSICAO | B18: 88323 | C18: TELHADISTA COM ENCARGOS COMPLEMENTARES | D18: H | E18: 0.8 | G18: 0
G19: 0
G20: 0
G21: 0
G22: 0
G23: 0
G24: 0
G25: 0
G26: 0
G27: 0
G28: 0
G29: 0
G30: 0
G31: 0
G32: 0
G33: 0
G34: 0
F35: TOTAL
A37: REFERENCIA | B37: DIVERSAS
A38: CLASSE/TIPO | B38: CÓDIGOS | C38: DESCRIÇÃO | D38: UNID.
A39: IFMT 002.05.2018 | B39: .002/D | C39: LIMPEZA E MANUTENÇÃO DE CALHAS COM RETIRADA DA VEDAÇÃO EXISTENTE E APLICAÇÃO DE VEDAÇÃO DE POLIURETANO PU | D39: M | E39: COEFICIENTE | F39: PREÇO UNITÁRIO (R$) | G39: PREÇO TOTAL (R$)
A40: INSUMO | B40: 142 | C40: SELANTE ELASTICO MONOCOMPONENTE A BASE DE POLIURETANO PARA JUNTAS DIVERSAS 310ML | D40: 310ML | E40: 0.081 | G40: =E40*F40 -> 0
A41: COMPOSICAO | B41: 88316 | C41: SERVENTE COM ENCARGOS COMPLEMENTARES | D41: H | E41: 0.371 | G41: 0
A42: COMPOSICAO | B42: 88323 | C42: TELHADISTA COM ENCARGOS COMPLEMENTARES | D42: H | E42: 0.277 | G42: 0
A43: INSUMO | B43: 6 | C43: DETERGENTE AMONIACO (AMONIA DILUIDA) | D43: L | E43: 0.4 | G43: 0
A44: COTAÇÃO | B44: MERCADO LIVRE | C44: LAVA - JATO ÁGUA FRIA PRESSÃO 1700 PSI | D44: LOC/UN | E44: 0.22 | G44: 0
G45: 0
G46: 0
G47: 0
G48: 0
G49: 0
G50: 0
G51: 0
G52: 0
G53: 0
G54: 0
G55: 0
G56: 0
G57: 0
G58: 0
G59: 0
F60: TOTAL | G60: =SUM(G40:G59) -> 0
A62: REFERENCIA | B62: DIVERSAS
A63: CLASSE/TIPO | B63: CÓDIGOS | C63: DESCRIÇÃO | D63: UNID.
A64: IFMT 003.05.2018 | B64: .003/D | C64: SUPORTE PARA FIXAÇÃO DE CALHA METÁLICA EM BARRA CHATA DE FERRO 1 1/2" X 1/2".FORNECIMENTO E INSTALAÇÃO | D64: UN | E64: COEFICIENTE | F64: PREÇO UNITÁRIO (R$) | G64: PREÇO TOTAL (R$)
A65: INSUMO | B65: 557 | C65: BARRA DE FERRO RETANGULAR, BARRA CHATA, 1 1/2" X 1/2" (L X E), 3,79 KG/M | D65: M | E65: 1.05 | G65: =E65*F65 -> 0
A66: COMPOSICAO | B66: 88315 | C66: SERRALHEIRO COM ENCARGOS COMPLEMENTARES | D66: H | E66: 0.35 | G66: 0
A67: COMPOSICAO | B67: 88316 | C67: SERVENTE COM ENCARGOS COMPLEMENTARES | D67: H | E67: 0.25 | G67: 0
A68: INSUMO | B68: 39914 | C68: SOLDA EM VARETA FOSCOPER, D = *2,5* MM X COMPRIMENTO 500MM | D68: KG | E68: 0.11 | G68: 0
G69: 0
G70: 0
G71: 0
G72: 0
G73: 0
G74: 0
G75: 0
G76: 0
G77: 0
G78: 0
G79: 0
G80: 0
G81: 0
G82: 0
G83: 0
G84: 0
F85: TOTAL | G85: =SUM(G65:G84) -> 0
A87: REFERENCIA | B87: DIVERSAS
A88: CLASSE/TIPO | B88: CÓDIGOS | C88: DESCRIÇÃO | D88: UNID.
A89: IFMT 004.05.2018 | B89: .004/D | C89: RETIRADA E RECOLOCAÇÃO DE TELHA METÁLICAS PARA REMOÇÃO DE CALHAS DANIFICADAS | D89: M | E89: COEFICIENTE | F89: PREÇO UNITÁRIO (R$) | G89: PREÇO TOTAL (R$)
A90: COMPOSICAO | B90: 88316 | C90: SERVENTE COM ENCARGOS COMPLEMENTARES | D90: H | E90: 0.3228 | G90: =E90*F90 -> 0
A91: COMPOSICAO | B91: 88323 | C91: TELHADISTA COM ENCARGOS COMPLEMENTARES | D91: H | E91: 0.2724 | G91: 0
G92: 0
G93: 0
G94: 0
G95: 0
G96: 0
G97: 0
G98: 0
G99: 0
G100: 0
G101: 0
G102: 0
G103: 0
G104: 0
G105: 0
G106: 0
G107: 0
G108: 0
G109: 0
F110: TOTAL | G110: =SUM(G90:G109) -> 0
A112: REFERENCIA | B112: PINI 05.008.0001
A113: CLASSE/TIPO | B113: CÓDIGOS | C113: DESCRIÇÃO | D113: UNID.
A114: IFMT 005.05.2018 | B114: .005/D | C114: LIMPEZA DO SUBSTRATO COM APLICAÇÃO DE ÁGUA FRIA COM DETERGENTE | D114: M² | E114: COEFICIENTE | F114: PREÇO UNITÁRIO (R$) | G114: PREÇO TOTAL (R$)
A115: COMPOSICAO | B115: 88316 | C115: SERVENTE COM ENCARGOS COMPLEMENTARES | D115: H | E115: 0.11 | G115: =E115*F115 -> 0
A116: INSUMO | B116: 6 | C116: DETERGENTE AMONIACO (AMONIA DILUIDA) | D116: L | E116: 0.4 | G116: 0
A117: COTAÇÃO | B117: MERCADO LIVRE | C117: LAVA - JATO ÁGUA FRIA PRESSÃO 1700 PSI | D117: LOC/UN | E117: 0.22 | G117: 0
G118: 0
G119: 0
G120: 0
G121: 0
G122: 0
G123: 0
G124: 0
G125: 0
G126: 0
G127: 0
G128: 0
G129: 0
G130: 0
G131: 0
G132: 0
G133: 0
G134: 0
F135: TOTAL | G135: =SUM(G115:G134) -> 0
A137: REFERENCIA | B137: ORSE/ 04865
A138: CLASSE/TIPO | B138: CÓDIGOS | C138: DESCRIÇÃO | D138: UNID.
A139: IFMT 006.05.2018 | B139: .006/D | C139: LIMPEZA DE CALHAS GALVANIZADAS | D139: M | E139: COEFICIENTE | F139: PREÇO UNITÁRIO (R$) | G139: PREÇO TOTAL (R$)
A140: COMPOSICAO | B140: 88316 | C140: SERVENTE COM ENCARGOS COMPLEMENTARES | D140: H | E140: 1 | G140: =E140*F140 -> 0
G141: 0
G142: 0
G143: 0
G144: 0
G145: 0
G146: 0
G147: 0
G148: 0
G149: 0
G150: 0
G151: 0
G152: 0
G153: 0
G154: 0
G155: 0
G156: 0
G157: 0
G158: 0
G159: 0
F160: TOTAL | G160: =SUM(G140:G159) -> 0
A162: REFERENCIA | B162: ORSE/ 04740
A163: CLASSE/TIPO | B163: CÓDIGOS | C163: DESCRIÇÃO | D163: UNID.
A164: IFMT 007.05.2018 | B164: .007/D | C164: ANDAIME METÁLICO FACHADEIRO - LOCAÇÃO MENSAL, MONTAGEM, DESMONTAGEM E TRANSPORTE (TUBULAR TIPO TORRE) | D164: M2/MÊS | E164: COEFICIENTE | F164: PREÇO UNITÁRIO (R$) | G164: PREÇO TOTAL (R$)
A165: COMPOSIÇÃO | B165: 88278 | C165: MONTADOR DE ESTRUTURA METÁLICA COM ENCARGOS COMPLEMENTARES | D165: H | E165: 0.08 | G165: =E165*F165 -> 0
A166: COMPOSIÇÃO | B166: 88316 | C166: SERVENTE COM ENCARGOS COMPLEMENTARES | D166: H | E166: 0.16 | G166: 0
A167: COMPOSIÇÃO | B167: 91120 | C167: TRANSPORTE HORIZONTAL, TUBOS DE AÇO CARBONO LEVE OU MÉDIO, PRETO OU GALVANIZADO, COM DIÂMETRO MAIOR QUE 40 MM E MENOR OU IGUAL A 65 MM, MANUAL, 30M. AF_06/2015 | D167: M | E167: 5.5769 | G167: 0
A168: INSUMO | B168: 10527 | C168: LOCACAO DE ANDAIME METALICO TUBULAR DE ENCAIXE, TIPO DE TORRE, COM LARGURA DE 1 ATE 1,5 M E ALTURA DE *1,00* M | D168: M/MÊS | E168: 1.03 | G168: 0
G169: 0
G170: 0
G171: 0
G172: 0
G173: 0
G174: 0
G175: 0
G176: 0
G177: 0
G178: 0
G179: 0
G180: 0
G181: 0
G182: 0
G183: 0
G184: 0
F185: TOTAL | G185: =SUM(G165:G184) -> 0
A187: REFERENCIA | B187: SINAPI-02.INEL.ELCA.002/02
A188: CLASSE/TIPO | B188: CÓDIGOS | C188: DESCRIÇÃO | D188: UNID.
A189: IFMT 008.05.2018 | B189: .008/D | C189: ELETROCALHA LISA OU PERFURADA EM AÇO GALVANIZADO, LARGURA 100MM E ALTURA 50MM, INCLUSIVE EMENDA E FIXAÇÃO - FORNECIMENTO E INSTALAÇÃO. | D189: M | E189: COEFICIENTE | F189: PREÇO UNITÁRIO (R$) | G189: PREÇO TOTAL (R$)
A190: COMPOSIÇÃO | B190: 88264 | C190: ELETRICISTA COM ENCARGOS COMPLEMENTARES | D190: H | E190: 0.91 | G190: =E190*F190 -> 0
A191: COMPOSIÇÃO | B191: 88247 | C191: AUXILIAR DE ELETRICISTA COM ENCARGOS COMPLEMENTARES | D191: H | E191: 0.91 | G191: 0
A192: INSUMO | C192: ELETROCALHA LISA OU PERFURADA EM CHAPA DE AÇO GALVANIZADO, LARGURA 100 MM E ALTURA 50 MM | D192: UN | E192: 0.982 | G192: 0
A193: COMPOSIÇÃO | C193: EMENDA PARA ELETROCALHA, LISA OU PERFURADA EM AÇO GALVANIZADO, LARGURA 100MM E ALTURA 50MM - FORNECIMENTO E INSTALAÇÃO. | E193: 0.333 | G193: 0
A194: COMPOSIÇÃO | B194: 91170 | C194: FIXAÇÃO DE TUBOS HORIZONTAIS DE PVC, CPVC OU COBRE DIÂMETROS MENORES OU IGUAIS A 40 MM OU ELETROCALHAS ATÉ 150MM DE LARGURA, COM ABRAÇADEIRA METÁLICA RÍGIDA TIPO D 1/2, FIXADA EM PERFILADO EM LAJE. AF_05/2015 | D194: M | E194: 1 | G194: 0
G195: 0
G196: 0
G197: 0
G198: 0
G199: 0
G200: 0
G201: 0
G202: 0
G203: 0
G204: 0
G205: 0
G206: 0
G207: 0
G208: 0
G209: 0
F210: TOTAL | G210: =SUM(G190:G209) -> 0
... 9363 more rows

Sheet SINAPI (hidden)
A1: 97141 | B1: ASSENTAMENTO DE TUBO DE FERRO FUNDIDO PARA REDE DE ÁGUA, DN 80 MM, JUNTA ELÁSTICA, INSTALADO EM LOCAL COM NÍVEL ALTO DE INTERFERÊNCIAS (NÃO INCLUI FORNECIMENTO). AF_11/2017 | C1: M | D1: 5.89 | E1: COMPOSIÇÃO | G1: SINOP
A2: 97142 | B2: ASSENTAMENTO DE TUBO DE FERRO FUNDIDO PARA REDE DE ÁGUA, DN 100 MM, JUNTA ELÁSTICA, INSTALADO EM LOCAL COM NÍVEL ALTO DE INTERFERÊNCIAS (NÃO INCLUI FORNECIMENTO). AF_11/2017 | C2: M | D2: 6.55 | E2: COMPOSIÇÃO | G2: SINOP
A3: 97143 | B3: ASSENTAMENTO DE TUBO DE FERRO FUNDIDO PARA REDE DE ÁGUA, DN 150 MM, JUNTA ELÁSTICA, INSTALADO EM LOCAL COM NÍVEL ALTO DE INTERFERÊNCIAS (NÃO INCLUI FORNECIMENTO). AF_11/2017 | C3: M | D3: 8.25 | E3: COMPOSIÇÃO | G3: Implantação do Campus SINOP
A4: 97144 | B4: ASSENTAMENTO DE TUBO DE FERRO FUNDIDO PARA REDE DE ÁGUA, DN 200 MM, JUNTA ELÁSTICA, INSTALADO EM LOCAL COM NÍVEL ALTO DE INTERFERÊNCIAS (NÃO INCLUI FORNECIMENTO). AF_11/2017 | C4: M | D4: 9.92 | E4: COMPOSIÇÃO | G4: \\intranet\PRODIN\ENGENHARIA\Pasta Engenharia\TABELAS\TABELA SINAPI\2021\08- AGOSTO\nÃO DESONERADO\SINAPI_Custo_Ref_Composicoes_Sintetico_MT_202108_NaoDesonerado.xls
A5: 97145 | B5: ASSENTAMENTO DE TUBO DE FERRO FUNDIDO PARA REDE DE ÁGUA, DN 250 MM, JUNTA ELÁSTICA, INSTALADO EM LOCAL COM NÍVEL ALTO DE INTERFERÊNCIAS (NÃO INCLUI FORNECIMENTO). AF_11/2017 | C5: M | D5: 11.65 | E5: COMPOSIÇÃO | G5: \\intranet\PRODIN\ENGENHARIA\Pasta Engenharia\TABELAS\TABELA SINAPI\2021\08- AGOSTO\nÃO DESONERADO\SINAPI_Preco_Ref_Insumos_MT_202108_NaoDesonerado.xls
A6: 97146 | B6: ASSENTAMENTO DE TUBO DE FERRO FUNDIDO PARA REDE DE ÁGUA, DN 300 MM, JUNTA ELÁSTICA, INSTALADO EM LOCAL COM NÍVEL ALTO DE INTERFERÊNCIAS (NÃO INCLUI FORNECIMENTO). AF_11/2017 | C6: M | D6: 13.35 | E6: COMPOSIÇÃO
A7: 97147 | B7: ASSENTAMENTO DE TUBO DE FERRO FUNDIDO PARA REDE DE ÁGUA, DN 350 MM, JUNTA ELÁSTICA, INSTALADO EM LOCAL COM NÍVEL ALTO DE INTERFERÊNCIAS (NÃO INCLUI FORNECIMENTO). AF_11/2017 | C7: M | D7: 15.07 | E7: COMPOSIÇÃO
A8: 97148 | B8: ASSENTAMENTO DE TUBO DE FERRO FUNDIDO PARA REDE DE ÁGUA, DN 400 MM, JUNTA ELÁSTICA, INSTALADO EM LOCAL COM NÍVEL ALTO DE INTERFERÊNCIAS (NÃO INCLUI FORNECIMENTO). AF_11/2017 | C8: M | D8: 16.76 | E8: COMPOSIÇÃO
A9: 97149 | B9: ASSENTAMENTO DE TUBO DE FERRO FUNDIDO PARA REDE DE ÁGUA, DN 450 MM, JUNTA ELÁSTICA, INSTALADO EM LOCAL COM NÍVEL ALTO DE INTERFERÊNCIAS (NÃO INCLUI FORNECIMENTO). AF_11/2017 | C9: M | D9: 18.51 | E9: COMPOSIÇÃO
A10: 97150 | B10: ASSENTAMENTO DE TUBO DE FERRO FUNDIDO PARA REDE DE ÁGUA, DN 500 MM, JUNTA ELÁSTICA, INSTALADO EM LOCAL COM NÍVEL ALTO DE INTERFERÊNCIAS (NÃO INCLUI FORNECIMENTO). AF_11/2017 | C10: M | D10: 23.65 | E10: COMPOSIÇÃO
A11: 97151 | B11: ASSENTAMENTO DE TUBO DE FERRO FUNDIDO PARA REDE DE ÁGUA, DN 600 MM, JUNTA ELÁSTICA, INSTALADO EM LOCAL COM NÍVEL ALTO DE INTERFERÊNCIAS (NÃO INCLUI FORNECIMENTO). AF_11/2017 | C11: M | D11: 27.62 | E11: COMPOSIÇÃO
A12: 97152 | B12: ASSENTAMENTO DE TUBO DE FERRO FUNDIDO PARA REDE DE ÁGUA, DN 700 MM, JUNTA ELÁSTICA, INSTALADO EM LOCAL COM NÍVEL ALTO DE INTERFERÊNCIAS (NÃO INCLUI FORNECIMENTO). AF_11/2017 | C12: M | D12: 31.31 | E12: COMPOSIÇÃO
A13: 97153 | B13: ASSENTAMENTO DE TUBO DE FERRO FUNDIDO PARA REDE DE ÁGUA, DN 800 MM, JUNTA ELÁSTICA, INSTALADO EM LOCAL COM NÍVEL ALTO DE INTERFERÊNCIAS (NÃO INCLUI FORNECIMENTO). AF_11/2017 | C13: M | D13: 35.16 | E13: COMPOSIÇÃO
A14: 97154 | B14: ASSENTAMENTO DE TUBO DE FERRO FUNDIDO PARA REDE DE ÁGUA, DN 900 MM, JUNTA ELÁSTICA, INSTALADO EM LOCAL COM NÍVEL ALTO DE INTERFERÊNCIAS (NÃO INCLUI FORNECIMENTO). AF_11/2017 | C14: M | D14: 39.04 | E14: COMPOSIÇÃO
A15: 97155 | B15: ASSENTAMENTO DE TUBO DE FERRO FUNDIDO PARA REDE DE ÁGUA, DN 1000 MM, JUNTA ELÁSTICA, INSTALADO EM LOCAL COM NÍVEL ALTO DE INTERFERÊNCIAS (NÃO INCLUI FORNECIMENTO). AF_11/2017 | C15: M | D15: 42.95 | E15: COMPOSIÇÃO
A16: 97156 | B16: ASSENTAMENTO DE TUBO DE FERRO FUNDIDO PARA REDE DE ÁGUA, DN 1200 MM, JUNTA ELÁSTICA, INSTALADO EM LOCAL COM NÍVEL ALTO DE INTERFERÊNCIAS (NÃO INCLUI FORNECIMENTO). AF_11/2017 | C16: M | D16: 51.17 | E16: COMPOSIÇÃO
A17: 97157 | B17: ASSENTAMENTO DE TUBO DE FERRO FUNDIDO PARA REDE DE ÁGUA, DN 80 MM, JUNTA ELÁSTICA, INSTALADO EM LOCAL COM NÍVEL BAIXO DE INTERFERÊNCIAS (NÃO INCLUI FORNECIMENTO). AF_11/2017 | C17: M | D17: 3.64 | E17: COMPOSIÇÃO
A18: 97158 | B18: ASSENTAMENTO DE TUBO DE FERRO FUNDIDO PARA REDE DE ÁGUA, DN 100 MM, JUNTA ELÁSTICA, INSTALADO EM LOCAL COM NÍVEL BAIXO DE INTERFERÊNCIAS (NÃO INCLUI FORNECIMENTO). AF_11/2017 | C18: M | D18: 4.06 | E18: COMPOSIÇÃO
A19: 97159 | B19: ASSENTAMENTO DE TUBO DE FERRO FUNDIDO PARA REDE DE ÁGUA, DN 150 MM, JUNTA ELÁSTICA, INSTALADO EM LOCAL COM NÍVEL BAIXO DE INTERFERÊNCIAS (NÃO INCLUI FORNECIMENTO). AF_11/2017 | C19: M | D19: 5.11 | E19: COMPOSIÇÃO
A20: 97160 | B20: ASSENTAMENTO DE TUBO DE FERRO FUNDIDO PARA REDE DE ÁGUA, DN 200 MM, JUNTA ELÁSTICA, INSTALADO EM LOCAL COM NÍVEL BAIXO DE INTERFERÊNCIAS (NÃO INCLUI FORNECIMENTO). AF_11/2017 | C20: M | D20: 6.13 | E20: COMPOSIÇÃO
A21: 97161 | B21: ASSENTAMENTO DE TUBO DE FERRO FUNDIDO PARA REDE DE ÁGUA, DN 250 MM, JUNTA ELÁSTICA, INSTALADO EM LOCAL COM NÍVEL BAIXO DE INTERFERÊNCIAS (NÃO INCLUI FORNECIMENTO). AF_11/2017 | C21: M | D21: 7.22 | E21: COMPOSIÇÃO
A22: 97162 | B22: ASSENTAMENTO DE TUBO DE FERRO FUNDIDO PARA REDE DE ÁGUA, DN 300 MM, JUNTA ELÁSTICA, INSTALADO EM LOCAL COM NÍVEL BAIXO DE INTERFERÊNCIAS (NÃO INCLUI FORNECIMENTO). AF_11/2017 | C22: M | D22: 8.27 | E22: COMPOSIÇÃO
A23: 97163 | B23: ASSENTAMENTO DE TUBO DE FERRO FUNDIDO PARA REDE DE ÁGUA, DN 350 MM, JUNTA ELÁSTICA, INSTALADO EM LOCAL COM NÍVEL BAIXO DE INTERFERÊNCIAS (NÃO INCLUI FORNECIMENTO). AF_11/2017 | C23: M | D23: 9.36 | E23: COMPOSIÇÃO
A24: 97164 | B24: ASSENTAMENTO DE TUBO DE FERRO FUNDIDO PARA REDE DE ÁGUA, DN 400 MM, JUNTA ELÁSTICA, INSTALADO EM LOCAL COM NÍVEL BAIXO DE INTERFERÊNCIAS (NÃO INCLUI FORNECIMENTO). AF_11/2017 | C24: M | D24: 10.41 | E24: COMPOSIÇÃO
A25: 97165 | B25: ASSENTAMENTO DE TUBO DE FERRO FUNDIDO PARA REDE DE ÁGUA, DN 450 MM, JUNTA ELÁSTICA, INSTALADO EM LOCAL COM NÍVEL BAIXO DE INTERFERÊNCIAS (NÃO INCLUI FORNECIMENTO). AF_11/2017 | C25: M | D25: 11.51 | E25: COMPOSIÇÃO
A26: 97166 | B26: ASSENTAMENTO DE TUBO DE FERRO FUNDIDO PARA REDE DE ÁGUA, DN 500 MM, JUNTA ELÁSTICA, INSTALADO EM LOCAL COM NÍVEL BAIXO DE INTERFERÊNCIAS (NÃO INCLUI FORNECIMENTO). AF_11/2017 | C26: M | D26: 14.67 | E26: COMPOSIÇÃO
A27: 97167 | B27: ASSENTAMENTO DE TUBO DE FERRO FUNDIDO PARA REDE DE ÁGUA, DN 600 MM, JUNTA ELÁSTICA, INSTALADO EM LOCAL COM NÍVEL BAIXO DE INTERFERÊNCIAS (NÃO INCLUI FORNECIMENTO). AF_11/2017 | C27: M | D27: 17.17 | E27: COMPOSIÇÃO
A28: 97168 | B28: ASSENTAMENTO DE TUBO DE FERRO FUNDIDO PARA REDE DE ÁGUA, DN 700 MM, JUNTA ELÁSTICA, INSTALADO EM LOCAL COM NÍVEL BAIXO DE INTERFERÊNCIAS (NÃO INCLUI FORNECIMENTO). AF_11/2017 | C28: M | D28: 19.37 | E28: COMPOSIÇÃO
A29: 97169 | B29: ASSENTAMENTO DE TUBO DE FERRO FUNDIDO PARA REDE DE ÁGUA, DN 800 MM, JUNTA ELÁSTICA, INSTALADO EM LOCAL COM NÍVEL BAIXO DE INTERFERÊNCIAS (NÃO INCLUI FORNECIMENTO). AF_11/2017 | C29: M | D29: 21.75 | E29: COMPOSIÇÃO
A30: 97170 | B30: ASSENTAMENTO DE TUBO DE FERRO FUNDIDO PARA REDE DE ÁGUA, DN 900 MM, JUNTA ELÁSTICA, INSTALADO EM LOCAL COM NÍVEL BAIXO DE INTERFERÊNCIAS (NÃO INCLUI FORNECIMENTO). AF_11/2017 | C30: M | D30: 24.16 | E30: COMPOSIÇÃO
A31: 97171 | B31: ASSENTAMENTO DE TUBO DE FERRO FUNDIDO PARA REDE DE ÁGUA, DN 1000 MM, JUNTA ELÁSTICA, INSTALADO EM LOCAL COM NÍVEL BAIXO DE INTERFERÊNCIAS (NÃO INCLUI FORNECIMENTO). AF_11/2017 | C31: M | D31: 26.6 | E31: COMPOSIÇÃO
A32: 97172 | B32: ASSENTAMENTO DE TUBO DE FERRO FUNDIDO PARA REDE DE ÁGUA, DN 1200 MM, JUNTA ELÁSTICA, INSTALADO EM LOCAL COM NÍVEL BAIXO DE INTERFERÊNCIAS (NÃO INCLUI FORNECIMENTO). AF_11/2017 | C32: M | D32: 31.87 | E32: COMPOSIÇÃO
A33: 97173 | B33: ASSENTAMENTO DE TUBO DE AÇO CARBONO PARA REDE DE ÁGUA, DN 600 MM (24), JUNTA SOLDADA, INSTALADO EM LOCAL COM NÍVEL ALTO DE INTERFERÊNCIAS (NÃO INCLUI FORNECIMENTO). AF_11/2017 | C33: M | D33: 26.77 | E33: COMPOSIÇÃO
A34: 97174 | B34: ASSENTAMENTO DE TUBO DE AÇO CARBONO PARA REDE DE ÁGUA, DN 700 MM (28), JUNTA SOLDADA, INSTALADO EM LOCAL COM NÍVEL ALTO DE INTERFERÊNCIAS (NÃO INCLUI FORNECIMENTO). AF_11/2017 | C34: M | D34: 30.98 | E34: COMPOSIÇÃO
A35: 97175 | B35: ASSENTAMENTO DE TUBO DE AÇO CARBONO PARA REDE DE ÁGUA, DN 800 MM (32), JUNTA SOLDADA, INSTALADO EM LOCAL COM NÍVEL ALTO DE INTERFERÊNCIAS (NÃO INCLUI FORNECIMENTO). AF_11/2017 | C35: M | D35: 35.21 | E35: COMPOSIÇÃO
A36: 97176 | B36: ASSENTAMENTO DE TUBO DE AÇO CARBONO PARA REDE DE ÁGUA, DN 900 MM (36), JUNTA SOLDADA, INSTALADO EM LOCAL COM NÍVEL ALTO DE INTERFERÊNCIAS (NÃO INCLUI FORNECIMENTO). AF_11/2017 | C36: M | D36: 39.43 | E36: COMPOSIÇÃO
A37: 97177 | B37: ASSENTAMENTO DE TUBO DE AÇO CARBONO PARA REDE DE ÁGUA, DN 1000 MM (40) OU DN 1100 MM (44), JUNTA SOLDADA, INSTALADO EM LOCAL COM NÍVEL ALTO DE INTERFERÊNCIAS (NÃO INCLUI FORNECIMENTO). AF_11/2017 | C37: M | D37: 47.85 | E37: COMPOSIÇÃO
A38: 97178 | B38: ASSENTAMENTO DE TUBO DE AÇO CARBONO PARA REDE DE ÁGUA, DN 1200 MM (48) OU DN 1300 MM (52), JUNTA SOLDADA, INSTALADO EM LOCAL COM NÍVEL ALTO DE INTERFERÊNCIAS (NÃO INCLUI FORNECIMENTO). AF_11/2017 | C38: M | D38: 56.29 | E38: COMPOSIÇÃO
A39: 97179 | B39: ASSENTAMENTO DE TUBO DE AÇO CARBONO PARA REDE DE ÁGUA, DN 1400 MM (56'') OU DN 1500 MM (60), JUNTA SOLDADA, INSTALADO EM LOCAL COM NÍVEL ALTO DE INTERFERÊNCIAS (NÃO INCLUI FORNECIMENTO). AF_11/2017 | C39: M | D39: 64.74 | E39: COMPOSIÇÃO
A40: 97180 | B40: ASSENTAMENTO DE TUBO DE AÇO CARBONO PARA REDE DE ÁGUA, DN 1600 MM (64) OU DN 1700 MM (68), JUNTA SOLDADA, INSTALADO EM LOCAL COM NÍVEL ALTO DE INTERFERÊNCIAS (NÃO INCLUI FORNECIMENTO). AF_11/2017 | C40: M | D40: 73.16 | E40: COMPOSIÇÃO
A41: 97181 | B41: ASSENTAMENTO DE TUBO DE AÇO CARBONO PARA REDE DE ÁGUA, DN 1800 MM (72) OU DN 1900 MM (76), JUNTA SOLDADA, INSTALADO EM LOCAL COM NÍVEL ALTO DE INTERFERÊNCIAS (NÃO INCLUI FORNECIMENTO). AF_11/2017 | C41: M | D41: 84.97 | E41: COMPOSIÇÃO
A42: 97182 | B42: ASSENTAMENTO DE TUBO DE AÇO CARBONO PARA REDE DE ÁGUA, DN 2000 MM (80) OU DN 2100 MM (84), JUNTA SOLDADA, INSTALADO EM LOCAL COM NÍVEL ALTO DE INTERFERÊNCIAS (NÃO INCLUI FORNECIMENTO). AF_11/2017 | C42: M | D42: 93.76 | E42: COMPOSIÇÃO
A43: 97183 | B43: ASSENTAMENTO DE TUBO DE AÇO CARBONO PARA REDE DE ÁGUA, DN 600 MM (24), JUNTA SOLDADA, INSTALADO EM LOCAL COM NÍVEL BAIXO DE INTERFERÊNCIAS (NÃO INCLUI FORNECIMENTO). AF_11/2017 | C43: M | D43: 21.92 | E43: COMPOSIÇÃO
A44: 97184 | B44: ASSENTAMENTO DE TUBO DE AÇO CARBONO PARA REDE DE ÁGUA, DN 700 MM (28), JUNTA SOLDADA, INSTALADO EM LOCAL COM NÍVEL BAIXO DE INTERFERÊNCIAS (NÃO INCLUI FORNECIMENTO). AF_11/2017 | C44: M | D44: 25.4 | E44: COMPOSIÇÃO
A45: 97185 | B45: ASSENTAMENTO DE TUBO DE AÇO CARBONO PARA REDE DE ÁGUA, DN 800 MM (32), JUNTA SOLDADA, INSTALADO EM LOCAL COM NÍVEL BAIXO DE INTERFERÊNCIAS (NÃO INCLUI FORNECIMENTO). AF_11/2017 | C45: M | D45: 28.93 | E45: COMPOSIÇÃO
A46: 97186 | B46: ASSENTAMENTO DE TUBO DE AÇO CARBONO PARA REDE DE ÁGUA, DN 900 MM (36), JUNTA SOLDADA, INSTALADO EM LOCAL COM NÍVEL BAIXO DE INTERFERÊNCIAS (NÃO INCLUI FORNECIMENTO). AF_11/2017 | C46: M | D46: 32.44 | E46: COMPOSIÇÃO
A47: 97187 | B47: ASSENTAMENTO DE TUBO DE AÇO CARBONO PARA REDE DE ÁGUA, DN 1000 MM (40 ) OU DN 1100 MM (44 ), JUNTA SOLDADA, INSTALADO EM LOCAL COM NÍVEL BAIXO DE INTERFERÊNCIAS (NÃO INCLUI FORNECIMENTO). AF_11/2017 | C47: M | D47: 39.44 | E47: COMPOSIÇÃO
A48: 97188 | B48: ASSENTAMENTO DE TUBO DE AÇO CARBONO PARA REDE DE ÁGUA, DN 1200 MM (48) OU DN 1300 MM (52), JUNTA SOLDADA, INSTALADO EM LOCAL COM NÍVEL BAIXO DE INTERFERÊNCIAS (NÃO INCLUI FORNECIMENTO). AF_11/2017 | C48: M | D48: 46.46 | E48: COMPOSIÇÃO
A49: 97189 | B49: ASSENTAMENTO DE TUBO DE AÇO CARBONO PARA REDE DE ÁGUA, DN 1400 MM (56'') OU DN 1500 MM (60), JUNTA SOLDADA, INSTALADO EM LOCAL COM NÍVEL BAIXO DE INTERFERÊNCIAS (NÃO INCLUI FORNECIMENTO). AF_11/2017 | C49: M | D49: 53.48 | E49: COMPOSIÇÃO
A50: 97190 | B50: ASSENTAMENTO DE TUBO DE AÇO CARBONO PARA REDE DE ÁGUA, DN 1600 MM (64) OU DN 1700 MM (68), JUNTA SOLDADA, INSTALADO EM LOCAL COM NÍVEL BAIXO DE INTERFERÊNCIAS (NÃO INCLUI FORNECIMENTO). AF_11/2017 | C50: M | D50: 60.48 | E50: COMPOSIÇÃO
A51: 97191 | B51: ASSENTAMENTO DE TUBO DE AÇO CARBONO PARA REDE DE ÁGUA, DN 1800 MM (72) OU DN 1900 MM (76), JUNTA SOLDADA, INSTALADO EM LOCAL COM NÍVEL BAIXO DE INTERFERÊNCIAS (NÃO INCLUI FORNECIMENTO). AF_11/2017 | C51: M | D51: 70.06 | E51: COMPOSIÇÃO
A52: 97192 | B52: ASSENTAMENTO DE TUBO DE AÇO CARBONO PARA REDE DE ÁGUA, DN 2000 MM (80) OU DN 2100 MM (84), JUNTA SOLDADA, INSTALADO EM LOCAL COM NÍVEL BAIXO DE INTERFERÊNCIAS (NÃO INCLUI FORNECIMENTO). AF_11/2017 | C52: M | D52: 77.33 | E52: COMPOSIÇÃO
A53: 90694 | B53: TUBO DE PVC PARA REDE COLETORA DE ESGOTO DE PAREDE MACIÇA, DN 100 MM, JUNTA ELÁSTICA - FORNECIMENTO E ASSENTAMENTO. AF_01/2021 | C53: M | D53: 41.39 | E53: COMPOSIÇÃO
A54: 90695 | B54: TUBO DE PVC PARA REDE COLETORA DE ESGOTO DE PAREDE MACIÇA, DN 150 MM, JUNTA ELÁSTICA - FORNECIMENTO E ASSENTAMENTO. AF_01/2021 | C54: M | D54: 86.68 | E54: COMPOSIÇÃO
A55: 90696 | B55: TUBO DE PVC PARA REDE COLETORA DE ESGOTO DE PAREDE MACIÇA, DN 200 MM, JUNTA ELÁSTICA - FORNECIMENTO E ASSENTAMENTO. AF_01/2021 | C55: M | D55: 129 | E55: COMPOSIÇÃO
A56: 90697 | B56: TUBO DE PVC PARA REDE COLETORA DE ESGOTO DE PAREDE MACIÇA, DN 250 MM, JUNTA ELÁSTICA - FORNECIMENTO E ASSENTAMENTO. AF_01/2021 | C56: M | D56: 217.83 | E56: COMPOSIÇÃO
A57: 90698 | B57: TUBO DE PVC PARA REDE COLETORA DE ESGOTO DE PAREDE MACIÇA, DN 300 MM, JUNTA ELÁSTICA, FORNECIMENTO E ASSENTAMENTO. AF_01/2021 | C57: M | D57: 349.72 | E57: COMPOSIÇÃO
A58: 90699 | B58: TUBO DE PVC PARA REDE COLETORA DE ESGOTO DE PAREDE MACIÇA, DN 350 MM, JUNTA ELÁSTICA - FORNECIMENTO E ASSENTAMENTO. AF_01/2021 | C58: M | D58: 432.54 | E58: COMPOSIÇÃO
A59: 90700 | B59: TUBO DE PVC PARA REDE COLETORA DE ESGOTO DE PAREDE MACIÇA, DN 400 MM, JUNTA ELÁSTICA FORNECIMENTO E ASSENTAMENTO. AF_01/2021 | C59: M | D59: 560.44 | E59: COMPOSIÇÃO
A60: 90701 | B60: TUBO DE PVC CORRUGADO DE DUPLA PAREDE PARA REDE COLETORA DE ESGOTO, DN 150 MM, JUNTA ELÁSTICA - FORNECIMENTO E ASSENTAMENTO. AF_01/2021 | C60: M | D60: 71.49 | E60: COMPOSIÇÃO
A61: 90702 | B61: TUBO DE PVC CORRUGADO DE DUPLA PAREDE PARA REDE COLETORA DE ESGOTO, DN 200 MM, JUNTA ELÁSTICA - FORNECIMENTO E ASSENTAMENTO. AF_01/2021 | C61: M | D61: 113.82 | E61: COMPOSIÇÃO
A62: 90703 | B62: TUBO DE PVC CORRUGADO DE DUPLA PAREDE PARA REDE COLETORA DE ESGOTO, DN 250 MM, JUNTA ELÁSTICA - FORNECIMENTO E ASSENTAMENTO. AF_01/2021 | C62: M | D62: 187.32 | E62: COMPOSIÇÃO
A63: 90704 | B63: TUBO DE PVC CORRUGADO DE DUPLA PAREDE PARA REDE COLETORA DE ESGOTO, DN 300 MM, JUNTA ELÁSTICA - FORNECIMENTO E ASSENTAMENTO. AF_01/2021 | C63: M | D63: 259.28 | E63: COMPOSIÇÃO
A64: 90705 | B64: TUBO DE PVC CORRUGADO DE DUPLA PAREDE PARA REDE COLETORA DE ESGOTO, DN 350 MM, JUNTA ELÁSTICA - FORNECIMENTO E ASSENTAMENTO. AF_01/2021 | C64: M | D64: 365.52 | E64: COMPOSIÇÃO
A65: 90706 | B65: TUBO DE PVC CORRUGADO DE DUPLA PAREDE PARA REDE COLETORA DE ESGOTO, DN 400 MM, JUNTA ELÁSTICA - FORNECIMENTO E ASSENTAMENTO. AF_01/2021 | C65: M | D65: 426.82 | E65: COMPOSIÇÃO
A66: 90708 | B66: TUBO DE PEAD CORRUGADO DE DUPLA PAREDE PARA REDE COLETORA DE ESGOTO, DN 600 MM, JUNTA ELÁSTICA INTEGRADA - FORNECIMENTO E ASSENTAMENTO. AF_01/2021 | C66: M | D66: 1189.55 | E66: COMPOSIÇÃO
A67: 90724 | B67: JUNTA ARGAMASSADA ENTRE TUBO DN 100 MM E O POÇO DE VISITA/ CAIXA DE CONCRETO OU ALVENARIA EM REDES DE ESGOTO. AF_01/2021 | C67: UN | D67: 17.43 | E67: COMPOSIÇÃO
A68: 90725 | B68: JUNTA ARGAMASSADA ENTRE TUBO DN 150 MM E O POÇO DE VISITA/ CAIXA DE CONCRETO OU ALVENARIA EM REDES DE ESGOTO. AF_01/2021 | C68: UN | D68: 21.47 | E68: COMPOSIÇÃO
A69: 90726 | B69: JUNTA ARGAMASSADA ENTRE TUBO DN 200 MM E O POÇO/ CAIXA DE CONCRETO OU ALVENARIA EM REDES DE ESGOTO. AF_01/2021 | C69: UN | D69: 25.56 | E69: COMPOSIÇÃO
A70: 90727 | B70: JUNTA ARGAMASSADA ENTRE TUBO DN 250 MM E O POÇO DE VISITA/ CAIXA DE CONCRETO OU ALVENARIA EM REDES DE ESGOTO. AF_01/2021 | C70: UN | D70: 29.59 | E70: COMPOSIÇÃO
A71: 90728 | B71: JUNTA ARGAMASSADA ENTRE TUBO DN 300 MM E O POÇO DE VISITA/ CAIXA DE CONCRETO OU ALVENARIA EM REDES DE ESGOTO. AF_01/2021 | C71: UN | D71: 33.63 | E71: COMPOSIÇÃO
A72: 90729 | B72: JUNTA ARGAMASSADA ENTRE TUBO DN 350 MM E O POÇO DE VISITA/ CAIXA DE CONCRETO OU ALVENARIA EM REDES DE ESGOTO. AF_01/2021 | C72: UN | D72: 37.67 | E72: COMPOSIÇÃO
A73: 90730 | B73: JUNTA ARGAMASSADA ENTRE TUBO DN 400 MM E O POÇO DE VISITA/ CAIXA DE CONCRETO OU ALVENARIA EM REDES DE ESGOTO. AF_01/2021 | C73: UN | D73: 41.71 | E73: COMPOSIÇÃO
A74: 90731 | B74: JUNTA ARGAMASSADA ENTRE TUBO DN 450 MM E O POÇO DE VISITA/ CAIXA DE CONCRETO OU ALVENARIA EM REDES DE ESGOTO. AF_01/2021 | C74: UN | D74: 45.74 | E74: COMPOSIÇÃO
A75: 90732 | B75: JUNTA ARGAMASSADA ENTRE TUBO DN 600 MM E O POÇO DE VISITA/ CAIXA DE CONCRETO OU ALVENARIA EM REDES DE ESGOTO. AF_01/2021 | C75: UN | D75: 57.85 | E75: COMPOSIÇÃO
A76: 90733 | B76: ASSENTAMENTO DE TUBO DE PVC PARA REDE COLETORA DE ESGOTO DE PAREDE MACIÇA, DN 100 MM, JUNTA ELÁSTICA (NÃO INCLUI FORNECIMENTO). AF_01/2021 | C76: M | D76: 2.43 | E76: COMPOSIÇÃO
A77: 90734 | B77: ASSENTAMENTO DE TUBO DE PVC PARA REDE COLETORA DE ESGOTO DE PAREDE MACIÇA, DN 150 MM, JUNTA ELÁSTICA, (NÃO INCLUI FORNECIMENTO). AF_01/2021 | C77: M | D77: 2.88 | E77: COMPOSIÇÃO
A78: 90735 | B78: ASSENTAMENTO DE TUBO DE PVC PARA REDE COLETORA DE ESGOTO DE PAREDE MACIÇA, DN 200 MM, JUNTA ELÁSTICA (NÃO INCLUI FORNECIMENTO). AF_01/2021 | C78: M | D78: 3.34 | E78: COMPOSIÇÃO
A79: 90736 | B79: ASSENTAMENTO DE TUBO DE PVC PARA REDE COLETORA DE ESGOTO DE PAREDE MACIÇA, DN 250 MM, JUNTA ELÁSTICA (NÃO INCLUI FORNECIMENTO). AF_01/2021 | C79: M | D79: 3.78 | E79: COMPOSIÇÃO
A80: 90737 | B80: ASSENTAMENTO DE TUBO DE PVC PARA REDE COLETORA DE ESGOTO DE PAREDE MACIÇA, DN 300 MM, JUNTA ELÁSTICA (NÃO INCLUI FORNECIMENTO). AF_01/2021 | C80: M | D80: 4.23 | E80: COMPOSIÇÃO
A81: 90738 | B81: ASSENTAMENTO DE TUBO DE PVC PARA REDE COLETORA DE ESGOTO DE PAREDE MACIÇA, DN 350 MM, JUNTA ELÁSTICA (NÃO INCLUI FORNECIMENTO). AF_01/2021 | C81: M | D81: 4.69 | E81: COMPOSIÇÃO
A82: 90739 | B82: ASSENTAMENTO DE TUBO DE PVC PARA REDE COLETORA DE ESGOTO DE PAREDE MACIÇA, DN 400 MM, JUNTA ELÁSTICA (NÃO INCLUI FORNECIMENTO). AF_01/2021 | C82: M | D82: 6.4 | E82: COMPOSIÇÃO
A83: 90740 | B83: ASSENTAMENTO DE TUBO DE PVC CORRUGADO DE DUPLA PAREDE PARA REDE COLETORA DE ESGOTO, DN 150 MM, JUNTA ELÁSTICA (NÃO INCLUI FORNECIMENTO). AF_01/2021 | C83: M | D83: 3.21 | E83: COMPOSIÇÃO
A84: 90741 | B84: ASSENTAMENTO DE TUBO DE PVC CORRUGADO DE DUPLA PAREDE PARA REDE COLETORA DE ESGOTO, DN 200 MM, JUNTA ELÁSTICA (NÃO INCLUI FORNECIMENTO). AF_01/2021 | C84: M | D84: 3.67 | E84: COMPOSIÇÃO
A85: 90742 | B85: ASSENTAMENTO DE TUBO DE PVC CORRUGADO DE DUPLA PAREDE PARA REDE COLETORA DE ESGOTO, DN 250 MM, JUNTA ELÁSTICA (NÃO INCLUI FORNECIMENTO). AF_01/2021 | C85: M | D85: 4.11 | E85: COMPOSIÇÃO
A86: 90743 | B86: ASSENTAMENTO DE TUBO DE PVC CORRUGADO DE DUPLA PAREDE PARA REDE COLETORA DE ESGOTO, DN 300 MM, JUNTA ELÁSTICA (NÃO INCLUI FORNECIMENTO). AF_01/2021 | C86: M | D86: 4.56 | E86: COMPOSIÇÃO
A87: 90744 | B87: ASSENTAMENTO DE TUBO DE PVC CORRUGADO DE DUPLA PAREDE PARA REDE COLETORA DE ESGOTO, DN 350 MM, JUNTA ELÁSTICA (NÃO INCLUI FORNECIMENTO). AF_01/2021 | C87: M | D87: 5.02 | E87: COMPOSIÇÃO
A88: 90745 | B88: ASSENTAMENTO DE TUBO DE PVC CORRUGADO DE DUPLA PAREDE PARA REDE COLETORA DE ESGOTO, DN 400 MM, JUNTA ELÁSTICA (NÃO INCLUI FORNECIMENTO). AF_01/2021 | C88: M | D88: 7.15 | E88: COMPOSIÇÃO
A89: 90746 | B89: ASSENTAMENTO DE TUBO DE PEAD CORRUGADO DE DUPLA PAREDE PARA REDE COLETORA DE ESGOTO, DN 450 MM, JUNTA ELÁSTICA INTEGRADA (NÃO INCLUI FORNECIMENTO). AF_01/2021 | C89: M | D89: 2.63 | E89: COMPOSIÇÃO
A90: 90747 | B90: ASSENTAMENTO DE TUBO DE PEAD CORRUGADO DE DUPLA PAREDE PARA REDE COLETORA DE ESGOTO, DN 600 MM, JUNTA ELÁSTICA INTEGRADA (NÃO INCLUI FORNECIMENTO). AF_01/2021 | C90: M | D90: 12.12 | E90: COMPOSIÇÃO
A91: 94869 | B91: TUBO DE PEAD CORRUGADO DE DUPLA PAREDE PARA REDE COLETORA DE ESGOTO, DN 250 MM, JUNTA ELÁSTICA INTEGRADA - FORNECIMENTO E ASSENTAMENTO. AF_01/2021 | C91: M | D91: 242.81 | E91: COMPOSIÇÃO
A92: 94870 | B92: ASSENTAMENTO DE TUBO DE PEAD CORRUGADO DE DUPLA PAREDE PARA REDE COLETORA DE ESGOTO, DN 250 MM, JUNTA ELÁSTICA INTEGRADA (NÃO INCLUI FORNECIMENTO). AF_01/2021 | C92: M | D92: 1.72 | E92: COMPOSIÇÃO
A93: 94871 | B93: TUBO DE PEAD CORRUGADO DE DUPLA PAREDE PARA REDE COLETORA DE ESGOTO, DN 300 MM, JUNTA ELÁSTICA INTEGRADA - FORNECIMENTO E ASSENTAMENTO. AF_01/2021 | C93: M | D93: 287.45 | E93: COMPOSIÇÃO
A94: 94872 | B94: ASSENTAMENTO DE TUBO DE PEAD CORRUGADO DE DUPLA PAREDE PARA REDE COLETORA DE ESGOTO, DN 300 MM, JUNTA ELÁSTICA INTEGRADA (NÃO INCLUI FORNECIMENTO). AF_01/2021 | C94: M | D94: 2.31 | E94: COMPOSIÇÃO
A95: 94875 | B95: TUBO DE PEAD CORRUGADO DE DUPLA PAREDE PARA REDE COLETORA DE ESGOTO, DN 800 MM, JUNTA ELÁSTICA INTEGRADA - FORNECIMENTO E ASSENTAMENTO. AF_01/2021 | C95: M | D95: 1680.12 | E95: COMPOSIÇÃO
A96: 94876 | B96: ASSENTAMENTO DE TUBO DE PEAD CORRUGADO DE DUPLA PAREDE PARA REDE COLETORA DE ESGOTO, DN 800 MM, JUNTA ELÁSTICA INTEGRADA (NÃO INCLUI FORNECIMENTO). AF_01/2021 | C96: M | D96: 21.32 | E96: COMPOSIÇÃO
A97: 94878 | B97: ASSENTAMENTO DE TUBO DE PEAD CORRUGADO DE DUPLA PAREDE PARA REDE COLETORA DE ESGOTO, DN 900 MM, JUNTA ELÁSTICA INTEGRADA (NÃO INCLUI FORNECIMENTO). AF_01/2021 | C97: M | D97: 24.51 | E97: COMPOSIÇÃO
A98: 94879 | B98: TUBO DE PEAD CORRUGADO DE DUPLA PAREDE PARA REDE COLETORA DE ESGOTO, DN 1000 MM, JUNTA ELÁSTICA INTEGRADA - FORNECIMENTO E ASSENTAMENTO. AF_01/2021 | C98: M | D98: 2237.13 | E98: COMPOSIÇÃO
A99: 94880 | B99: ASSENTAMENTO DE TUBO DE PEAD CORRUGADO DE DUPLA PAREDE PARA REDE COLETORA DE ESGOTO, DN 1000 MM, JUNTA ELÁSTICA INTEGRADA (NÃO INCLUI FORNECIMENTO). AF_01/2021 | C99: M | D99: 32.32 | E99: COMPOSIÇÃO
A100: 94881 | B100: TUBO DE PEAD CORRUGADO DE DUPLA PAREDE PARA REDE COLETORA DE ESGOTO, DN 1200 MM, JUNTA ELÁSTICA INTEGRADA - FORNECIMENTO E ASSENTAMENTO. AF_01/2021 | C100: M | D100: 3497.67 | E100: COMPOSIÇÃO
A101: 94882 | B101: ASSENTAMENTO DE TUBO DE PEAD CORRUGADO DE DUPLA PAREDE PARA REDE COLETORA DE ESGOTO, DN 1200 MM, JUNTA ELÁSTICA INTEGRADA (NÃO INCLUI FORNECIMENTO). AF_01/2021 | C101: M | D101: 37.24 | E101: COMPOSIÇÃO
A102: 94884 | B102: ASSENTAMENTO DE TUBO DE PEAD CORRUGADO DE DUPLA PAREDE PARA REDE COLETORA DE ESGOTO, DN 1500 MM, JUNTA ELÁSTICA INTEGRADA (NÃO INCLUI FORNECIMENTO). AF_01/2021 | C102: M | D102: 47.21 | E102: COMPOSIÇÃO
A103: 97121 | B103: ASSENTAMENTO DE TUBO DE PVC PBA PARA REDE DE ÁGUA, DN 50 MM, JUNTA ELÁSTICA INTEGRADA, INSTALADO EM LOCAL COM NÍVEL ALTO DE INTERFERÊNCIAS (NÃO INCLUI FORNECIMENTO). AF_11/2017 | C103: M | D103: 1.49 | E103: COMPOSIÇÃO
A104: 97122 | B104: ASSENTAMENTO DE TUBO DE PVC PBA PARA REDE DE ÁGUA, DN 75 MM, JUNTA ELÁSTICA INTEGRADA, INSTALADO EM LOCAL COM NÍVEL ALTO DE INTERFERÊNCIAS (NÃO INCLUI FORNECIMENTO). AF_11/2017 | C104: M | D104: 2.09 | E104: COMPOSIÇÃO
A105: 97123 | B105: ASSENTAMENTO DE TUBO DE PVC PBA PARA REDE DE ÁGUA, DN 100 MM, JUNTA ELÁSTICA INTEGRADA, INSTALADO EM LOCAL COM NÍVEL ALTO DE INTERFERÊNCIAS (NÃO INCLUI FORNECIMENTO). AF_11/2017 | C105: M | D105: 2.65 | E105: COMPOSIÇÃO
A106: 97124 | B106: ASSENTAMENTO DE TUBO DE PVC PBA PARA REDE DE ÁGUA, DN 50 MM, JUNTA ELÁSTICA INTEGRADA, INSTALADO EM LOCAL COM NÍVEL BAIXO DE INTERFERÊNCIAS (NÃO INCLUI FORNECIMENTO). AF_11/2017 | C106: M | D106: 0.68 | E106: COMPOSIÇÃO
A107: 97125 | B107: ASSENTAMENTO DE TUBO DE PVC PBA PARA REDE DE ÁGUA, DN 75 MM, JUNTA ELÁSTICA INTEGRADA, INSTALADO EM LOCAL COM NÍVEL BAIXO DE INTERFERÊNCIAS (NÃO INCLUI FORNECIMENTO). AF_11/2017 | C107: M | D107: 0.98 | E107: COMPOSIÇÃO
A108: 97126 | B108: ASSENTAMENTO DE TUBO DE PVC PBA PARA REDE DE ÁGUA, DN 100 MM, JUNTA ELÁSTICA INTEGRADA, INSTALADO EM LOCAL COM NÍVEL BAIXO DE INTERFERÊNCIAS (NÃO INCLUI FORNECIMENTO). AF_11/2017 | C108: M | D108: 1.25 | E108: COMPOSIÇÃO
A109: 102264 | B109: TUBO DE PVC BRANCO PARA REDE COLETORA DE ESGOTO CONDOMINIAL DE PAREDE MACIÇA, DN 100 MM, JUNTA ELÁSTICA - FORNECIMENTO E ASSENTAMENTO. AF_01/2021 | C109: M | D109: 19.51 | E109: COMPOSIÇÃO
A110: 102265 | B110: JUNTA ARGAMASSADA ENTRE TUBO DN 800 MM E O POÇO DE VISITA/ CAIXA DE CONCRETO OU ALVENARIA EM REDES DE ESGOTO. AF_01/2021 | C110: UN | D110: 74 | E110: COMPOSIÇÃO
A111: 102266 | B111: JUNTA ARGAMASSADA ENTRE TUBO DN 900 MM E O POÇO DE VISITA/ CAIXA DE CONCRETO OU ALVENARIA EM REDES DE ESGOTO. AF_01/2021 | C111: UN | D111: 82.08 | E111: COMPOSIÇÃO
A112: 102267 | B112: JUNTA ARGAMASSADA ENTRE TUBO DN 1000 MM E O POÇO DE VISITA/ CAIXA DE CONCRETO OU ALVENARIA EM REDES DE ESGOTO. AF_01/2021 | C112: UN | D112: 94.24 | E112: COMPOSIÇÃO
A113: 102268 | B113: JUNTA ARGAMASSADA ENTRE TUBO DN 1200 MM E O POÇO DE VISITA/ CAIXA DE CONCRETO OU ALVENARIA EM REDES DE ESGOTO. AF_01/2021 | C113: UN | D113: 106.35 | E113: COMPOSIÇÃO
A114: 102269 | B114: JUNTA ARGAMASSADA ENTRE TUBO DN 1500 MM E O POÇO DE VISITA/ CAIXA DE CONCRETO OU ALVENARIA EM REDES DE ESGOTO. AF_01/2021 | C114: UN | D114: 130.59 | E114: COMPOSIÇÃO
A115: 92833 | B115: TUBO DE CONCRETO PARA REDES COLETORAS DE ESGOTO SANITÁRIO, DIÂMETRO DE 300 MM, JUNTA ELÁSTICA, INSTALADO EM LOCAL COM BAIXO NÍVEL DE INTERFERÊNCIAS - FORNECIMENTO E ASSENTAMENTO. AF_12/2015 | C115: M | D115: 246.5 | E115: COMPOSIÇÃO
A116: 92834 | B116: ASSENTAMENTO DE TUBO DE CONCRETO PARA REDES COLETORAS DE ESGOTO SANITÁRIO, DIÂMETRO DE 300 MM, JUNTA ELÁSTICA, INSTALADO EM LOCAL COM BAIXO NÍVEL DE INTERFERÊNCIAS (NÃO INCLUI FORNECIMENTO). AF_12/2015 | C116: M | D116: 6.51 | E116: COMPOSIÇÃO
A117: 92835 | B117: TUBO DE CONCRETO PARA REDES COLETORAS DE ESGOTO SANITÁRIO, DIÂMETRO DE 400 MM, JUNTA ELÁSTICA, INSTALADO EM LOCAL COM BAIXO NÍVEL DE INTERFERÊNCIAS - FORNECIMENTO E ASSENTAMENTO. AF_12/2015 | C117: M | D117: 265.87 | E117: COMPOSIÇÃO
A118: 92836 | B118: ASSENTAMENTO DE TUBO DE CONCRETO PARA REDES COLETORAS DE ESGOTO SANITÁRIO, DIÂMETRO DE 400 MM, JUNTA ELÁSTICA, INSTALADO EM LOCAL COM BAIXO NÍVEL DE INTERFERÊNCIAS (NÃO INCLUI FORNECIMENTO). AF_12/2015 | C118: M | D118: 8.32 | E118: COMPOSIÇÃO
A119: 92837 | B119: TUBO DE CONCRETO PARA REDES COLETORAS DE ESGOTO SANITÁRIO, DIÂMETRO DE 500 MM, JUNTA ELÁSTICA, INSTALADO EM LOCAL COM BAIXO NÍVEL DE INTERFERÊNCIAS - FORNECIMENTO E ASSENTAMENTO. AF_12/2015 | C119: M | D119: 436.79 | E119: COMPOSIÇÃO
A120: 92838 | B120: ASSENTAMENTO DE TUBO DE CONCRETO PARA REDES COLETORAS DE ESGOTO SANITÁRIO, DIÂMETRO DE 500 MM, JUNTA ELÁSTICA, INSTALADO EM LOCAL COM BAIXO NÍVEL DE INTERFERÊNCIAS (NÃO INCLUI FORNECIMENTO). AF_12/2015 | C120: M | D120: 9.97 | E120: COMPOSIÇÃO
A121: 92839 | B121: TUBO DE CONCRETO PARA REDES COLETORAS DE ESGOTO SANITÁRIO, DIÂMETRO DE 600 MM, JUNTA ELÁSTICA, INSTALADO EM LOCAL COM BAIXO NÍVEL DE INTERFERÊNCIAS - FORNECIMENTO E ASSENTAMENTO. AF_12/2015 | C121: M | D121: 535.53 | E121: COMPOSIÇÃO
A122: 92840 | B122: ASSENTAMENTO DE TUBO DE CONCRETO PARA REDES COLETORAS DE ESGOTO SANITÁRIO, DIÂMETRO DE 600 MM, JUNTA ELÁSTICA, INSTALADO EM LOCAL COM BAIXO NÍVEL DE INTERFERÊNCIAS (NÃO INCLUI FORNECIMENTO). AF_12/2015 | C122: M | D122: 11.83 | E122: COMPOSIÇÃO
A123: 92841 | B123: TUBO DE CONCRETO PARA REDES COLETORAS DE ESGOTO SANITÁRIO, DIÂMETRO DE 700 MM, JUNTA ELÁSTICA, INSTALADO EM LOCAL COM BAIXO NÍVEL DE INTERFERÊNCIAS - FORNECIMENTO E ASSENTAMENTO. AF_12/2015 | C123: M | D123: 664.5 | E123: COMPOSIÇÃO
A124: 92842 | B124: ASSENTAMENTO DE TUBO DE CONCRETO PARA REDES COLETORAS DE ESGOTO SANITÁRIO, DIÂMETRO DE 700 MM, JUNTA ELÁSTICA, INSTALADO EM LOCAL COM BAIXO NÍVEL DE INTERFERÊNCIAS (NÃO INCLUI FORNECIMENTO). AF_12/2015 | C124: M | D124: 13.51 | E124: COMPOSIÇÃO
A125: 92843 | B125: TUBO DE CONCRETO PARA REDES COLETORAS DE ESGOTO SANITÁRIO, DIÂMETRO DE 800 MM, JUNTA ELÁSTICA, INSTALADO EM LOCAL COM BAIXO NÍVEL DE INTERFERÊNCIAS - FORNECIMENTO E ASSENTAMENTO. AF_12/2015 | C125: M | D125: 712.77 | E125: COMPOSIÇÃO
A126: 92844 | B126: ASSENTAMENTO DE TUBO DE CONCRETO PARA REDES COLETORAS DE ESGOTO SANITÁRIO, DIÂMETRO DE 800 MM, JUNTA ELÁSTICA, INSTALADO EM LOCAL COM BAIXO NÍVEL DE INTERFERÊNCIAS (NÃO INCLUI FORNECIMENTO). AF_12/2015 | C126: M | D126: 15.35 | E126: COMPOSIÇÃO
A127: 92845 | B127: TUBO DE CONCRETO PARA REDES COLETORAS DE ESGOTO SANITÁRIO, DIÂMETRO DE 900 MM, JUNTA ELÁSTICA, INSTALADO EM LOCAL COM BAIXO NÍVEL DE INTERFERÊNCIAS - FORNECIMENTO E ASSENTAMENTO. AF_12/2015 | C127: M | D127: 973.49 | E127: COMPOSIÇÃO
A128: 92846 | B128: ASSENTAMENTO DE TUBO DE CONCRETO PARA REDES COLETORAS DE ESGOTO SANITÁRIO, DIÂMETRO DE 900 MM, JUNTA ELÁSTICA, INSTALADO EM LOCAL COM BAIXO NÍVEL DE INTERFERÊNCIAS (NÃO INCLUI FORNECIMENTO). AF_12/2015 | C128: M | D128: 17 | E128: COMPOSIÇÃO
A129: 92847 | B129: TUBO DE CONCRETO PARA REDES COLETORAS DE ESGOTO SANITÁRIO, DIÂMETRO DE 1000 MM, JUNTA ELÁSTICA, INSTALADO EM LOCAL COM BAIXO NÍVEL DE INTERFERÊNCIAS - FORNECIMENTO E ASSENTAMENTO. AF_12/2015 | C129: M | D129: 1025.29 | E129: COMPOSIÇÃO
A130: 92848 | B130: ASSENTAMENTO DE TUBO DE CONCRETO PARA REDES COLETORAS DE ESGOTO SANITÁRIO, DIÂMETRO DE 1000 MM, JUNTA ELÁSTICA, INSTALADO EM LOCAL COM BAIXO NÍVEL DE INTERFERÊNCIAS (NÃO INCLUI FORNECIMENTO). AF_12/2015 | C130: M | D130: 18.88 | E130: COMPOSIÇÃO
A131: 92849 | B131: TUBO DE CONCRETO PARA REDES COLETORAS DE ESGOTO SANITÁRIO, DIÂMETRO DE 300 MM, JUNTA ELÁSTICA, INSTALADO EM LOCAL COM ALTO NÍVEL DE INTERFERÊNCIAS - FORNECIMENTO E ASSENTAMENTO. AF_12/2015 | C131: M | D131: 252.22 | E131: COMPOSIÇÃO
A132: 92850 | B132: ASSENTAMENTO DE TUBO DE CONCRETO PARA REDES COLETORAS DE ESGOTO SANITÁRIO, DIÂMETRO DE 300 MM, JUNTA ELÁSTICA, INSTALADO EM LOCAL COM ALTO NÍVEL DE INTERFERÊNCIAS (NÃO INCLUI FORNECIMENTO). AF_12/2015 | C132: M | D132: 12.31 | E132: COMPOSIÇÃO
A133: 92851 | B133: TUBO DE CONCRETO PARA REDES COLETORAS DE ESGOTO SANITÁRIO, DIÂMETRO DE 400 MM, JUNTA ELÁSTICA, INSTALADO EM LOCAL COM ALTO NÍVEL DE INTERFERÊNCIAS - FORNECIMENTO E ASSENTAMENTO. AF_12/2015 | C133: M | D133: 273 | E133: COMPOSIÇÃO
A134: 92852 | B134: ASSENTAMENTO DE TUBO DE CONCRETO PARA REDES COLETORAS DE ESGOTO SANITÁRIO, DIÂMETRO DE 400 MM, JUNTA ELÁSTICA, INSTALADO EM LOCAL COM ALTO NÍVEL DE INTERFERÊNCIAS (NÃO INCLUI FORNECIMENTO). AF_12/2015 | C134: M | D134: 15.55 | E134: COMPOSIÇÃO
A135: 92853 | B135: TUBO DE CONCRETO PARA REDES COLETORAS DE ESGOTO SANITÁRIO, DIÂMETRO DE 500 MM, JUNTA ELÁSTICA, INSTALADO EM LOCAL COM ALTO NÍVEL DE INTERFERÊNCIAS - FORNECIMENTO E ASSENTAMENTO. AF_12/2015 | C135: M | D135: 445.62 | E135: COMPOSIÇÃO
A136: 92854 | B136: ASSENTAMENTO DE TUBO DE CONCRETO PARA REDES COLETORAS DE ESGOTO SANITÁRIO, DIÂMETRO DE 500 MM, JUNTA ELÁSTICA, INSTALADO EM LOCAL COM ALTO NÍVEL DE INTERFERÊNCIAS (NÃO INCLUI FORNECIMENTO). AF_12/2015 | C136: M | D136: 18.94 | E136: COMPOSIÇÃO
